Workbook

Sheet How to Use
A1: How to Use
A3: 1. | B3: Download the MSTEP, PSAT8, and SAT student data files with SGPs from the BAA Secure Site for
B4: either a school or district.
A6: 2. | B6: Copy the student data from the MSTEP file and Paste Special "Values" into the "StudentDatafileMStep" tab.
B7: Copy the student data from the PSAT8 file and Paste Special "Values" into the "StudentDatafilePSAT8" tab.
B8: Copy the student data from the SAT file and Paste Special "Values" into the "StudentDatafileSAT" tab.
B9: The tabs to paste values on are the last ones (far right tabs).
A11: 3. | B11: Under "FilterElemTables", "FilterMiddleTables", or "FilterHSTables" click the refresh button. This may take
B12: a minute or two to update. Once completed, all of the filters and lists should be updated with your
B13: student information.
B15: Note: If there are charts with no data you will initially be prompt with an error dialog box.
C16: If you click ok, the chart will be updated (no dots because there are no students).
A18: 4. | B18: You can save the charts as a pdf by selecting "Save As", change the Save as type to "PDF (*.pdf)" from the
B19: drop-down, select "Options" at the bottom, in the pop-up change Page range to "Page(s) From: 5 To: 22"
B20: and change Publish what to "Entire workbook", select "Ok" in the pop-up, then name the file and "Save".
A22: Color Bands and Axes
A24: 1. | B24: The vertical color bands represent the 4 proficiency level ranges: Not Proficient, Partially Proficient,
B25: Proficient, and Advanced. The State considers the Proficient and Advanced level ranges to have met
B26: proficiency.
A28: 2. | B28: The Horizontal Axis represents the 50th growth percentile ("Average" growth).
B29: The Vertical Axis represents the State average proficiency (not benchmark proficiency--use the color
B30: bands for that).
A34: Created by the MISD in Oct. 2016, updated Nov 2022.

Sheet FilterElemTables
A1: Elementary Filters

Sheet FilterMiddleTables
A1: Middle School Filters

Sheet FilterHSTables
A1: High School Filters

Sheet ElemList
A1: Elementary School Quadrant Lists by Subject/Grade
A4: ELA | G4: MATH | M4: ELA | S4: MATH | Y4: Science | AE4: Social Studies
A5: Grade 4 | G5: Grade 4 | M5: Grade 5 | S5: Grade 5 | Y5: Grade 5 | AE5: Grade 5
B7: PL Ranges | H7: PL Ranges | N7: PL Ranges | T7: PL Ranges | Z7: PL Ranges | AF7: PL Ranges
A8: =ELAPVTables!C5 -> Adv. | B8: =ELAPVTables!E5 -> 1417 | C8: =ELAPVTables!F5 -> 1454 | G8: =MathPVTables!C5 -> Adv. | H8: =MathPVTables!E5 -> 1420 | I8: =MathPVTables!F5 -> 1455 | M8: =ELAPVTables!K5 -> Adv. | N8: =ELAPVTables!M5 -> 1524 | O8: =ELAPVTables!N5 -> 1560 | S8: =MathPVTables!K5 -> Adv. | T8: =MathPVTables!M5 -> 1515 | U8: =MathPVTables!N5 -> 1550 | Y8: =SciencePVTables!S5 -> Adv. | Z8: =SciencePVTables!U5 -> 1517 | AA8: =SciencePVTables!V5 -> 1579 | AE8: =SSPVTables!S5 -> Adv. | AF8: =SSPVTables!U5 -> 1530 | AG8: =SSPVTables!V5 -> 1563
A9: =ELAPVTables!C6 -> Prof. | B9: =ELAPVTables!E6 -> 1400 | C9: =ELAPVTables!F6 -> 1416 | G9: =MathPVTables!C6 -> Prof. | H9: =MathPVTables!E6 -> 1400 | I9: =MathPVTables!F6 -> 1419 | M9: =ELAPVTables!K6 -> Prof. | N9: =ELAPVTables!M6 -> 1500 | O9: =ELAPVTables!N6 -> 1523 | S9: =MathPVTables!K6 -> Prof. | T9: =MathPVTables!M6 -> 1500 | U9: =MathPVTables!N6 -> 1514 | Y9: =SciencePVTables!S6 -> Prof. | Z9: =SciencePVTables!U6 -> 1500 | AA9: =SciencePVTables!V6 -> 1516 | AE9: =SSPVTables!S6 -> Prof. | AF9: =SSPVTables!U6 -> 1500 | AG9: =SSPVTables!V6 -> 1529
A10: =ELAPVTables!C7 -> Part. Prof. | B10: =ELAPVTables!E7 -> 1383 | C10: =ELAPVTables!F7 -> 1399 | G10: =MathPVTables!C7 -> Part. Prof. | H10: =MathPVTables!E7 -> 1376 | I10: =MathPVTables!F7 -> 1399 | M10: =ELAPVTables!K7 -> Part. Prof. | N10: =ELAPVTables!M7 -> 1481 | O10: =ELAPVTables!N7 -> 1499 | S10: =MathPVTables!K7 -> Part. Prof. | T10: =MathPVTables!M7 -> 1478 | U10: =MathPVTables!N7 -> 1499 | Y10: =SciencePVTables!S7 -> Part. Prof. | Z10: =SciencePVTables!U7 -> 1477 | AA10: =SciencePVTables!V7 -> 1499 | AE10: =SSPVTables!S7 -> Part. Prof. | AF10: =SSPVTables!U7 -> 1458 | AG10: =SSPVTables!V7 -> 1499
A11: =ELAPVTables!C8 -> Not Prof. | B11: =ELAPVTables!E8 -> 1301 | C11: =ELAPVTables!F8 -> 1382 | G11: =MathPVTables!C8 -> Not Prof. | H11: =MathPVTables!E8 -> 1310 | I11: =MathPVTables!F8 -> 1375 | M11: =ELAPVTables!K8 -> Not Prof. | N11: =ELAPVTables!M8 -> 1409 | O11: =ELAPVTables!N8 -> 1480 | S11: =MathPVTables!K8 -> Not Prof. | T11: =MathPVTables!M8 -> 1409 | U11: =MathPVTables!N8 -> 1477 | Y11: =SciencePVTables!S8 -> Not Prof. | Z11: =SciencePVTables!U8 -> 1427 | AA11: =SciencePVTables!V8 -> 1476 | AE11: =SSPVTables!S8 -> Not Prof. | AF11: =SSPVTables!U8 -> 1395 | AG11: =SSPVTables!V8 -> 1457
A13: =ELAPVTables!E10 -> State Avg. | B13: =ELAPVTables!F10 -> 1393.6 | G13: =MathPVTables!E10 -> State Avg. | H13: =MathPVTables!F10 -> 1389.1 | M13: =ELAPVTables!M10 -> State Avg. | N13: =ELAPVTables!N10 -> 1493.9 | S13: =MathPVTables!M10 -> State Avg. | T13: =MathPVTables!N10 -> 1483.3 | Y13: =SciencePVTables!U10 -> State Avg. | Z13: =SciencePVTables!V10 -> 1491.7 | AE13: =SSPVTables!U10 -> State Avg. | AF13: =SSPVTables!V10 -> 1473.4
A15: =IF(ELAPVTables!A12<>"",ELAPVTables!A12,"") -> Row Labels | B15: =IF(ELAPVTables!B12<>"",ELAPVTables!B12,"") -> Scale Score | C15: =IF(ELAPVTables!C12<>"",ELAPVTables!C12,"") -> Max of SGP | D15: PL Descrip. | E15: =IF(ELAPVTables!D12<>"",ELAPVTables!D12,"") -> Chart Quadrant | G15: =IF(MathPVTables!A12<>"",MathPVTables!A12,"") -> Row Labels | H15: =IF(MathPVTables!B12<>"",MathPVTables!B12,"") -> Scale Score | I15: =IF(MathPVTables!C12<>"",MathPVTables!C12,"") -> Max of SGP | J15: PL Descrip. | K15: =IF(MathPVTables!D12<>"",MathPVTables!D12,"") -> Chart Quadrant | M15: =IF(ELAPVTables!I12<>"",ELAPVTables!I12,"") -> Row Labels | N15: =IF(ELAPVTables!J12<>"",ELAPVTables!J12,"") -> Scale Score | O15: =IF(ELAPVTables!K12<>"",ELAPVTables!K12,"") -> Max of SGP | P15: PL Descrip. | Q15: =IF(ELAPVTables!L12<>"",ELAPVTables!L12,"") -> Chart Quadrant | S15: =IF(MathPVTables!I12<>"",MathPVTables!I12,"") -> Row Labels | T15: =IF(MathPVTables!J12<>"",MathPVTables!J12,"") -> Scale Score | U15: =IF(MathPVTables!K12<>"",MathPVTables!K12,"") -> Max of SGP | V15: PL Descrip. | W15: =IF(MathPVTables!L12<>"",MathPVTables!L12,"") -> Chart Quadrant | Y15: =IF(SciencePVTables!A12<>"",SciencePVTables!A12,"") -> Row Labels | Z15: =IF(SciencePVTables!B12<>"",SciencePVTables!B12,"") -> Scale Score | AA15: =IF(SciencePVTables!C12<>"",SciencePVTables!C12,"") -> Max of SGP | AB15: PL Descrip. | AC15: =IF(SciencePVTables!D12<>"",SciencePVTables!D12,"") -> Chart Quadrant | AE15: =IF(SSPVTables!A12<>"",SSPVTables!A12,"") -> Row Labels | AF15: =IF(SSPVTables!B12<>"",SSPVTables!B12,"") -> Scale Score | AG15: =IF(SSPVTables!C12<>"",SSPVTables!C12,"") -> Max of SGP | AH15: PL Descrip. | AI15: =IF(SSPVTables!D12<>"",SSPVTables!D12,"") -> Chart Quadrant | AK15: MSTEP Overall Results
A16: =IF(ELAPVTables!A13<>"",IF(ELAPVTables!$B$4=4,ELAPVTables!A13,""),"") -> Student, 46 | B16: =IF(ELAPVTables!B13<>"",IF(ELAPVTables!$B$4=4,ELAPVTables!B13,""),"") -> 1424 | C16: =IF(ELAPVTables!C13<>"",IF(ELAPVTables!$B$4=4,ELAPVTables!C13,""),"") -> 92 | D16: =IF(B16="","",IF(B16>=B$8,"Adv.",IF(AND(B16>=B$9,B16<B$8),"Prof.",IF(AND(B16>=B$10,B16<B$9),"Part. Prof.",IF(B16<B$10,"Not Prof.",""))))) -> Adv. | E16: =IF(ELAPVTables!D13<>"",IF(ELAPVTables!$B$4=4,ELAPVTables!D13,""),"") -> Quad 1 | G16: =IF(MathPVTables!A13<>"",IF(MathPVTables!$B$4=4,MathPVTables!A13,""),"") -> Student, 38 | H16: =IF(MathPVTables!B13<>"",IF(MathPVTables!$B$4=4,MathPVTables!B13,""),"") -> 1392 | I16: =IF(MathPVTables!C13<>"",IF(MathPVTables!$B$4=4,MathPVTables!C13,""),"") -> 95 | J16: =IF(H16="","",IF(H16>=H$8,"Adv.",IF(AND(H16>=H$9,H16<H$8),"Prof.",IF(AND(H16>=H$10,H16<H$9),"Part. Prof.",IF(H16<H$10,"Not Prof.",""))))) -> Part. Prof. | K16: =IF(MathPVTables!D13<>"",IF(MathPVTables!$B$4=4,MathPVTables!D13,""),"") -> Quad 1 | M16: =IF(ELAPVTables!I13<>"",IF(ELAPVTables!$J$4=5,ELAPVTables!I13,""),"") -> Student, 67 | N16: =IF(ELAPVTables!J13<>"",IF(ELAPVTables!$J$4=5,ELAPVTables!J13,""),"") -> 1512 | O16: =IF(ELAPVTables!K13<>"",IF(ELAPVTables!$J$4=5,ELAPVTables!K13,""),"") -> 99 | P16: =IF(N16="","",IF(N16>=N$8,"Adv.",IF(AND(N16>=N$9,N16<N$8),"Prof.",IF(AND(N16>=N$10,N16<N$9),"Part. Prof.",IF(N16<N$10,"Not Prof.",""))))) -> Prof. | Q16: =IF(ELAPVTables!L13<>"",IF(ELAPVTables!$J$4=5,ELAPVTables!L13,""),"") -> Quad 1 | S16: =IF(MathPVTables!I13<>"",IF(MathPVTables!$J$4=5,MathPVTables!I13,""),"") -> Student, 56 | T16: =IF(MathPVTables!J13<>"",IF(MathPVTables!$J$4=5,MathPVTables!J13,""),"") -> 1500 | U16: =IF(MathPVTables!K13<>"",IF(MathPVTables!$J$4=5,MathPVTables!K13,""),"") -> 93 | V16: =IF(T16="","",IF(T16>=T$8,"Adv.",IF(AND(T16>=T$9,T16<T$8),"Prof.",IF(AND(T16>=T$10,T16<T$9),"Part. Prof.",IF(T16<T$10,"Not Prof.",""))))) -> Prof. | W16: =IF(MathPVTables!L13<>"",IF(MathPVTables!$J$4=5,MathPVTables!L13,""),"") -> Quad 1 | Y16: =IF(SciencePVTables!Q13<>"",IF(SciencePVTables!$R$4=5,SciencePVTables!Q13,""),"") -> Student, 48 | Z16: =IF(SciencePVTables!R13<>"",IF(SciencePVTables!$R$4=5,SciencePVTables!R13,""),"") -> 1482 | AA16: =IF(SciencePVTables!S13<>"",IF(SciencePVTables!$R$4=5,SciencePVTables!S13,""),"") -> 0 | AB16: =IF(Z16="","",IF(Z16>=Z$8,"Adv.",IF(AND(Z16>=Z$9,Z16<Z$8),"Prof.",IF(AND(Z16>=Z$10,Z16<Z$9),"Part. Prof.",IF(Z16<Z$10,"Not Prof.",""))))) -> Part. Prof. | AC16: =IF(SciencePVTables!T13<>"",IF(SciencePVTables!$R$4=5,SciencePVTables!T13,""),"") -> Quad 3 | AE16: =IF(SSPVTables!Q13<>"",IF(SSPVTables!$R$4=5,SSPVTables!Q13,""),"") -> Student, 85 | AF16: =IF(SSPVTables!R13<>"",IF(SSPVTables!$R$4=5,SSPVTables!R13,""),"") -> 1474 | AG16: =IF(SSPVTables!S13<>"",IF(SSPVTables!$R$4=5,SSPVTables!S13,""),"") -> 0 | AH16: =IF(AF16="","",IF(AF16>=AF$8,"Adv.",IF(AND(AF16>=AF$9,AF16<AF$8),"Prof.",IF(AND(AF16>=AF$10,AF16<AF$9),"Part. Prof.",IF(AF16<AF$10,"Not Prof.",""))))) -> Part. Prof. | AI16: =IF(SSPVTables!T13<>"",IF(SSPVTables!$R$4=5,SSPVTables!T13,""),"") -> Quad 4 | AM16: ELA | AO16: Math | AQ16: ELA | AS16: Math | AU16: Science | AW16: Social Studies
A17: =IF(ELAPVTables!A14<>"",IF(ELAPVTables!$B$4=4,ELAPVTables!A14,""),"") -> Student, 45 | B17: =IF(ELAPVTables!B14<>"",IF(ELAPVTables!$B$4=4,ELAPVTables!B14,""),"") -> 1419 | C17: =IF(ELAPVTables!C14<>"",IF(ELAPVTables!$B$4=4,ELAPVTables!C14,""),"") -> 74 | D17: =IF(B17="","",IF(B17>=B$8,"Adv.",IF(AND(B17>=B$9,B17<B$8),"Prof.",IF(AND(B17>=B$10,B17<B$9),"Part. Prof.",IF(B17<B$10,"Not Prof.",""))))) -> Adv. | E17: =IF(ELAPVTables!D14<>"",IF(ELAPVTables!$B$4=4,ELAPVTables!D14,""),"") -> Quad 1 | G17: =IF(MathPVTables!A14<>"",IF(MathPVTables!$B$4=4,MathPVTables!A14,""),"") -> Student, 39 | H17: =IF(MathPVTables!B14<>"",IF(MathPVTables!$B$4=4,MathPVTables!B14,""),"") -> 1364 | I17: =IF(MathPVTables!C14<>"",IF(MathPVTables!$B$4=4,MathPVTables!C14,""),"") -> 67 | J17: =IF(H17="","",IF(H17>=H$8,"Adv.",IF(AND(H17>=H$9,H17<H$8),"Prof.",IF(AND(H17>=H$10,H17<H$9),"Part. Prof.",IF(H17<H$10,"Not Prof.",""))))) -> Not Prof. | K17: =IF(MathPVTables!D14<>"",IF(MathPVTables!$B$4=4,MathPVTables!D14,""),"") -> Quad 2 | M17: =IF(ELAPVTables!I14<>"",IF(ELAPVTables!$J$4=5,ELAPVTables!I14,""),"") -> Student, 81 | N17: =IF(ELAPVTables!J14<>"",IF(ELAPVTables!$J$4=5,ELAPVTables!J14,""),"") -> 1493 | O17: =IF(ELAPVTables!K14<>"",IF(ELAPVTables!$J$4=5,ELAPVTables!K14,""),"") -> 97 | P17: =IF(N17="","",IF(N17>=N$8,"Adv.",IF(AND(N17>=N$9,N17<N$8),"Prof.",IF(AND(N17>=N$10,N17<N$9),"Part. Prof.",IF(N17<N$10,"Not Prof.",""))))) -> Part. Prof. | Q17: =IF(ELAPVTables!L14<>"",IF(ELAPVTables!$J$4=5,ELAPVTables!L14,""),"") -> Quad 2 | S17: =IF(MathPVTables!I14<>"",IF(MathPVTables!$J$4=5,MathPVTables!I14,""),"") -> Student, 76 | T17: =IF(MathPVTables!J14<>"",IF(MathPVTables!$J$4=5,MathPVTables!J14,""),"") -> 1478 | U17: =IF(MathPVTables!K14<>"",IF(MathPVTables!$J$4=5,MathPVTables!K14,""),"") -> 85 | V17: =IF(T17="","",IF(T17>=T$8,"Adv.",IF(AND(T17>=T$9,T17<T$8),"Prof.",IF(AND(T17>=T$10,T17<T$9),"Part. Prof.",IF(T17<T$10,"Not Prof.",""))))) -> Part. Prof. | W17: =IF(MathPVTables!L14<>"",IF(MathPVTables!$J$4=5,MathPVTables!L14,""),"") -> Quad 2 | Y17: =IF(SciencePVTables!Q14<>"",IF(SciencePVTables!$R$4=5,SciencePVTables!Q14,""),"") -> Student, 44 | Z17: =IF(SciencePVTables!R14<>"",IF(SciencePVTables!$R$4=5,SciencePVTables!R14,""),"") -> 1485 | AA17: =IF(SciencePVTables!S14<>"",IF(SciencePVTables!$R$4=5,SciencePVTables!S14,""),"") -> 0 | AB17: =IF(Z17="","",IF(Z17>=Z$8,"Adv.",IF(AND(Z17>=Z$9,Z17<Z$8),"Prof.",IF(AND(Z17>=Z$10,Z17<Z$9),"Part. Prof.",IF(Z17<Z$10,"Not Prof.",""))))) -> Part. Prof. | AC17: =IF(SciencePVTables!T14<>"",IF(SciencePVTables!$R$4=5,SciencePVTables!T14,""),"") -> Quad 3 | AE17: =IF(SSPVTables!Q14<>"",IF(SSPVTables!$R$4=5,SSPVTables!Q14,""),"") -> Student, 77 | AF17: =IF(SSPVTables!R14<>"",IF(SSPVTables!$R$4=5,SSPVTables!R14,""),"") -> 1490 | AG17: =IF(SSPVTables!S14<>"",IF(SSPVTables!$R$4=5,SSPVTables!S14,""),"") -> 0 | AH17: =IF(AF17="","",IF(AF17>=AF$8,"Adv.",IF(AND(AF17>=AF$9,AF17<AF$8),"Prof.",IF(AND(AF17>=AF$10,AF17<AF$9),"Part. Prof.",IF(AF17<AF$10,"Not Prof.",""))))) -> Part. Prof. | AI17: =IF(SSPVTables!T14<>"",IF(SSPVTables!$R$4=5,SSPVTables!T14,""),"") -> Quad 4 | AM17: Gr. 4 | AO17: Gr. 4 | AQ17: Gr.5 | AS17: Gr. 5 | AU17: Gr.5 | AW17: Gr. 5
A18: =IF(ELAPVTables!A15<>"",IF(ELAPVTables!$B$4=4,ELAPVTables!A15,""),"") -> Student, 41 | B18: =IF(ELAPVTables!B15<>"",IF(ELAPVTables!$B$4=4,ELAPVTables!B15,""),"") -> 1433 | C18: =IF(ELAPVTables!C15<>"",IF(ELAPVTables!$B$4=4,ELAPVTables!C15,""),"") -> 64 | D18: Adv. | E18: =IF(ELAPVTables!D15<>"",IF(ELAPVTables!$B$4=4,ELAPVTables!D15,""),"") -> Quad 1 | G18: =IF(MathPVTables!A15<>"",IF(MathPVTables!$B$4=4,MathPVTables!A15,""),"") -> Student, 46 | H18: =IF(MathPVTables!B15<>"",IF(MathPVTables!$B$4=4,MathPVTables!B15,""),"") -> 1430 | I18: =IF(MathPVTables!C15<>"",IF(MathPVTables!$B$4=4,MathPVTables!C15,""),"") -> 57 | J18: Adv. | K18: =IF(MathPVTables!D15<>"",IF(MathPVTables!$B$4=4,MathPVTables!D15,""),"") -> Quad 1 | M18: =IF(ELAPVTables!I15<>"",IF(ELAPVTables!$J$4=5,ELAPVTables!I15,""),"") -> Student, 64 | N18: =IF(ELAPVTables!J15<>"",IF(ELAPVTables!$J$4=5,ELAPVTables!J15,""),"") -> 1511 | O18: =IF(ELAPVTables!K15<>"",IF(ELAPVTables!$J$4=5,ELAPVTables!K15,""),"") -> 96 | P18: Prof. | Q18: =IF(ELAPVTables!L15<>"",IF(ELAPVTables!$J$4=5,ELAPVTables!L15,""),"") -> Quad 1 | S18: =IF(MathPVTables!I15<>"",IF(MathPVTables!$J$4=5,MathPVTables!I15,""),"") -> Student, 66 | T18: =IF(MathPVTables!J15<>"",IF(MathPVTables!$J$4=5,MathPVTables!J15,""),"") -> 1502 | U18: =IF(MathPVTables!K15<>"",IF(MathPVTables!$J$4=5,MathPVTables!K15,""),"") -> 83 | V18: Prof. | W18: =IF(MathPVTables!L15<>"",IF(MathPVTables!$J$4=5,MathPVTables!L15,""),"") -> Quad 1 | Y18: =IF(SciencePVTables!Q15<>"",IF(SciencePVTables!$R$4=5,SciencePVTables!Q15,""),"") -> Student, 52 | Z18: =IF(SciencePVTables!R15<>"",IF(SciencePVTables!$R$4=5,SciencePVTables!R15,""),"") -> 1496 | AA18: =IF(SciencePVTables!S15<>"",IF(SciencePVTables!$R$4=5,SciencePVTables!S15,""),"") -> 0 | AB18: =IF(Z18="","",IF(Z18>=Z$8,"Adv.",IF(AND(Z18>=Z$9,Z18<Z$8),"Prof.",IF(AND(Z18>=Z$10,Z18<Z$9),"Part. Prof.",IF(Z18<Z$10,"Not Prof.",""))))) -> Part. Prof. | AC18: =IF(SciencePVTables!T15<>"",IF(SciencePVTables!$R$4=5,SciencePVTables!T15,""),"") -> Quad 4 | AE18: =IF(SSPVTables!Q15<>"",IF(SSPVTables!$R$4=5,SSPVTables!Q15,""),"") -> Student, 93 | AF18: =IF(SSPVTables!R15<>"",IF(SSPVTables!$R$4=5,SSPVTables!R15,""),"") -> 1455 | AG18: =IF(SSPVTables!S15<>"",IF(SSPVTables!$R$4=5,SSPVTables!S15,""),"") -> 0 | AH18: =IF(AF18="","",IF(AF18>=AF$8,"Adv.",IF(AND(AF18>=AF$9,AF18<AF$8),"Prof.",IF(AND(AF18>=AF$10,AF18<AF$9),"Part. Prof.",IF(AF18<AF$10,"Not Prof.",""))))) -> Not Prof. | AI18: =IF(SSPVTables!T15<>"",IF(SSPVTables!$R$4=5,SSPVTables!T15,""),"") -> Quad 3 | AM18: # | AN18: % | AO18: # | AP18: % | AQ18: # | AR18: % | AS18: # | AT18: % | AU18: # | AV18: % | AW18: # | AX18: %
A19: =IF(ELAPVTables!A16<>"",IF(ELAPVTables!$B$4=4,ELAPVTables!A16,""),"") -> Student, 37 | B19: =IF(ELAPVTables!B16<>"",IF(ELAPVTables!$B$4=4,ELAPVTables!B16,""),"") -> 1386 | C19: =IF(ELAPVTables!C16<>"",IF(ELAPVTables!$B$4=4,ELAPVTables!C16,""),"") -> 60 | D19: Part. Prof. | E19: =IF(ELAPVTables!D16<>"",IF(ELAPVTables!$B$4=4,ELAPVTables!D16,""),"") -> Quad 2 | G19: =IF(MathPVTables!A16<>"",IF(MathPVTables!$B$4=4,MathPVTables!A16,""),"") -> Student, 35 | H19: =IF(MathPVTables!B16<>"",IF(MathPVTables!$B$4=4,MathPVTables!B16,""),"") -> 1421 | I19: =IF(MathPVTables!C16<>"",IF(MathPVTables!$B$4=4,MathPVTables!C16,""),"") -> 40 | J19: Adv. | K19: =IF(MathPVTables!D16<>"",IF(MathPVTables!$B$4=4,MathPVTables!D16,""),"") -> Quad 4 | M19: =IF(ELAPVTables!I16<>"",IF(ELAPVTables!$J$4=5,ELAPVTables!I16,""),"") -> Student, 82 | N19: =IF(ELAPVTables!J16<>"",IF(ELAPVTables!$J$4=5,ELAPVTables!J16,""),"") -> 1490 | O19: =IF(ELAPVTables!K16<>"",IF(ELAPVTables!$J$4=5,ELAPVTables!K16,""),"") -> 95 | P19: Part. Prof. | Q19: =IF(ELAPVTables!L16<>"",IF(ELAPVTables!$J$4=5,ELAPVTables!L16,""),"") -> Quad 2 | S19: =IF(MathPVTables!I16<>"",IF(MathPVTables!$J$4=5,MathPVTables!I16,""),"") -> Student, 62 | T19: =IF(MathPVTables!J16<>"",IF(MathPVTables!$J$4=5,MathPVTables!J16,""),"") -> 1488 | U19: =IF(MathPVTables!K16<>"",IF(MathPVTables!$J$4=5,MathPVTables!K16,""),"") -> 81 | V19: Part. Prof. | W19: =IF(MathPVTables!L16<>"",IF(MathPVTables!$J$4=5,MathPVTables!L16,""),"") -> Quad 1 | Y19: =IF(SciencePVTables!Q16<>"",IF(SciencePVTables!$R$4=5,SciencePVTables!Q16,""),"") -> Student, 34 | Z19: =IF(SciencePVTables!R16<>"",IF(SciencePVTables!$R$4=5,SciencePVTables!R16,""),"") -> 1476 | AA19: =IF(SciencePVTables!S16<>"",IF(SciencePVTables!$R$4=5,SciencePVTables!S16,""),"") -> 0 | AB19: Not Prof. | AC19: =IF(SciencePVTables!T16<>"",IF(SciencePVTables!$R$4=5,SciencePVTables!T16,""),"") -> Quad 3 | AE19: =IF(SSPVTables!Q16<>"",IF(SSPVTables!$R$4=5,SSPVTables!Q16,""),"") -> Student, 55 | AF19: =IF(SSPVTables!R16<>"",IF(SSPVTables!$R$4=5,SSPVTables!R16,""),"") -> 1471 | AG19: =IF(SSPVTables!S16<>"",IF(SSPVTables!$R$4=5,SSPVTables!S16,""),"") -> 0 | AH19: Part. Prof. | AI19: =IF(SSPVTables!T16<>"",IF(SSPVTables!$R$4=5,SSPVTables!T16,""),"") -> Quad 3 | AK19: PL | AL19: Total # | AM19: =SUM(AM20:AM23) -> 14 | AO19: =SUM(AO20:AO23) -> 16 | AQ19: =SUM(AQ20:AQ23) -> 34 | AS19: =SUM(AS20:AS23) -> 42 | AU19: =SUM(AU20:AU23) -> 21 | AW19: =SUM(AW20:AW23) -> 42
A20: =IF(ELAPVTables!A17<>"",IF(ELAPVTables!$B$4=4,ELAPVTables!A17,""),"") -> Student, 40 | B20: =IF(ELAPVTables!B17<>"",IF(ELAPVTables!$B$4=4,ELAPVTables!B17,""),"") -> 1402 | C20: =IF(ELAPVTables!C17<>"",IF(ELAPVTables!$B$4=4,ELAPVTables!C17,""),"") -> 42 | D20: Prof. | E20: =IF(ELAPVTables!D17<>"",IF(ELAPVTables!$B$4=4,ELAPVTables!D17,""),"") -> Quad 4 | G20: =IF(MathPVTables!A17<>"",IF(MathPVTables!$B$4=4,MathPVTables!A17,""),"") -> Student, 42 | H20: =IF(MathPVTables!B17<>"",IF(MathPVTables!$B$4=4,MathPVTables!B17,""),"") -> 1406 | I20: =IF(MathPVTables!C17<>"",IF(MathPVTables!$B$4=4,MathPVTables!C17,""),"") -> 36 | J20: Prof. | K20: =IF(MathPVTables!D17<>"",IF(MathPVTables!$B$4=4,MathPVTables!D17,""),"") -> Quad 4 | M20: =IF(ELAPVTables!I17<>"",IF(ELAPVTables!$J$4=5,ELAPVTables!I17,""),"") -> Student, 74 | N20: =IF(ELAPVTables!J17<>"",IF(ELAPVTables!$J$4=5,ELAPVTables!J17,""),"") -> 1485 | O20: =IF(ELAPVTables!K17<>"",IF(ELAPVTables!$J$4=5,ELAPVTables!K17,""),"") -> 92 | P20: Part. Prof. | Q20: =IF(ELAPVTables!L17<>"",IF(ELAPVTables!$J$4=5,ELAPVTables!L17,""),"") -> Quad 2 | S20: =IF(MathPVTables!I17<>"",IF(MathPVTables!$J$4=5,MathPVTables!I17,""),"") -> Student, 70 | T20: =IF(MathPVTables!J17<>"",IF(MathPVTables!$J$4=5,MathPVTables!J17,""),"") -> 1535 | U20: =IF(MathPVTables!K17<>"",IF(MathPVTables!$J$4=5,MathPVTables!K17,""),"") -> 80 | V20: Adv. | W20: =IF(MathPVTables!L17<>"",IF(MathPVTables!$J$4=5,MathPVTables!L17,""),"") -> Quad 1 | Y20: =IF(SciencePVTables!Q17<>"",IF(SciencePVTables!$R$4=5,SciencePVTables!Q17,""),"") -> Student, 46 | Z20: =IF(SciencePVTables!R17<>"",IF(SciencePVTables!$R$4=5,SciencePVTables!R17,""),"") -> 1477 | AA20: =IF(SciencePVTables!S17<>"",IF(SciencePVTables!$R$4=5,SciencePVTables!S17,""),"") -> 0 | AB20: Part. Prof. | AC20: =IF(SciencePVTables!T17<>"",IF(SciencePVTables!$R$4=5,SciencePVTables!T17,""),"") -> Quad 3 | AE20: =IF(SSPVTables!Q17<>"",IF(SSPVTables!$R$4=5,SSPVTables!Q17,""),"") -> Student, 81 | AF20: =IF(SSPVTables!R17<>"",IF(SSPVTables!$R$4=5,SSPVTables!R17,""),"") -> 1462 | AG20: =IF(SSPVTables!S17<>"",IF(SSPVTables!$R$4=5,SSPVTables!S17,""),"") -> 0 | AH20: Part. Prof. | AI20: =IF(SSPVTables!T17<>"",IF(SSPVTables!$R$4=5,SSPVTables!T17,""),"") -> Quad 3 | AL20: Adv. | AM20: =COUNTIFS(D$16:D$3482,$AL20,A$16:A$3482,"<>"&"Grand Total") -> 4 | AN20: =AM20/AM$19 -> 0.2857142857 | AO20: =COUNTIFS(J$16:J$3482,$AL20,G$16:G$3482,"<>"&"Grand Total") -> 4 | AP20: =AO20/AO$19 -> 0.25 | AQ20: =COUNTIFS(P$16:P$3482,$AL20,M$16:M$3482,"<>"&"Grand Total") -> 3 | AR20: =AQ20/AQ$19 -> 0.08823529412 | AS20: =COUNTIFS(V$16:V$3482,$AL20,S$16:S$3482,"<>"&"Grand Total") -> 1 | AT20: =AS20/AS$19 -> 0.02380952381 | AU20: =COUNTIFS(AB$16:AB$3482,$AL20,Y$16:Y$3482,"<>"&"Grand Total") -> 2 | AV20: =AU20/AU$19 -> 0.09523809524 | AW20: =COUNTIFS(AH$16:AH$3482,$AL20,AE$16:AE$3482,"<>"&"Grand Total") -> 1 | AX20: =AW20/AW$19 -> 0.02380952381
A21: =IF(ELAPVTables!A18<>"",IF(ELAPVTables!$B$4=4,ELAPVTables!A18,""),"") -> Student, 34 | B21: =IF(ELAPVTables!B18<>"",IF(ELAPVTables!$B$4=4,ELAPVTables!B18,""),"") -> 1358 | C21: =IF(ELAPVTables!C18<>"",IF(ELAPVTables!$B$4=4,ELAPVTables!C18,""),"") -> 37 | D21: Not Prof. | E21: =IF(ELAPVTables!D18<>"",IF(ELAPVTables!$B$4=4,ELAPVTables!D18,""),"") -> Quad 3 | G21: =IF(MathPVTables!A18<>"",IF(MathPVTables!$B$4=4,MathPVTables!A18,""),"") -> Student, 47 | H21: =IF(MathPVTables!B18<>"",IF(MathPVTables!$B$4=4,MathPVTables!B18,""),"") -> 1404 | I21: =IF(MathPVTables!C18<>"",IF(MathPVTables!$B$4=4,MathPVTables!C18,""),"") -> 30 | J21: Prof. | K21: =IF(MathPVTables!D18<>"",IF(MathPVTables!$B$4=4,MathPVTables!D18,""),"") -> Quad 4 | M21: =IF(ELAPVTables!I18<>"",IF(ELAPVTables!$J$4=5,ELAPVTables!I18,""),"") -> Student, 57 | N21: =IF(ELAPVTables!J18<>"",IF(ELAPVTables!$J$4=5,ELAPVTables!J18,""),"") -> 1523 | O21: =IF(ELAPVTables!K18<>"",IF(ELAPVTables!$J$4=5,ELAPVTables!K18,""),"") -> 88 | P21: Prof. | Q21: =IF(ELAPVTables!L18<>"",IF(ELAPVTables!$J$4=5,ELAPVTables!L18,""),"") -> Quad 1 | S21: =IF(MathPVTables!I18<>"",IF(MathPVTables!$J$4=5,MathPVTables!I18,""),"") -> Student, 93 | T21: =IF(MathPVTables!J18<>"",IF(MathPVTables!$J$4=5,MathPVTables!J18,""),"") -> 1468 | U21: =IF(MathPVTables!K18<>"",IF(MathPVTables!$J$4=5,MathPVTables!K18,""),"") -> 78 | V21: Not Prof. | W21: =IF(MathPVTables!L18<>"",IF(MathPVTables!$J$4=5,MathPVTables!L18,""),"") -> Quad 2 | Y21: =IF(SciencePVTables!Q18<>"",IF(SciencePVTables!$R$4=5,SciencePVTables!Q18,""),"") -> Student, 35 | Z21: =IF(SciencePVTables!R18<>"",IF(SciencePVTables!$R$4=5,SciencePVTables!R18,""),"") -> 1512 | AA21: =IF(SciencePVTables!S18<>"",IF(SciencePVTables!$R$4=5,SciencePVTables!S18,""),"") -> 0 | AB21: Prof. | AC21: =IF(SciencePVTables!T18<>"",IF(SciencePVTables!$R$4=5,SciencePVTables!T18,""),"") -> Quad 4 | AE21: =IF(SSPVTables!Q18<>"",IF(SSPVTables!$R$4=5,SSPVTables!Q18,""),"") -> Student, 56 | AF21: =IF(SSPVTables!R18<>"",IF(SSPVTables!$R$4=5,SSPVTables!R18,""),"") -> 1487 | AG21: =IF(SSPVTables!S18<>"",IF(SSPVTables!$R$4=5,SSPVTables!S18,""),"") -> 0 | AH21: Part. Prof. | AI21: =IF(SSPVTables!T18<>"",IF(SSPVTables!$R$4=5,SSPVTables!T18,""),"") -> Quad 4 | AL21: Prof. | AM21: =COUNTIFS(D$16:D$3482,$AL21,A$16:A$3482,"<>"&"Grand Total") -> 4 | AN21: =AM21/AM$19 -> 0.2857142857 | AO21: =COUNTIFS(J$16:J$3482,$AL21,G$16:G$3482,"<>"&"Grand Total") -> 4 | AP21: =AO21/AO$19 -> 0.25 | AQ21: =COUNTIFS(P$16:P$3482,$AL21,M$16:M$3482,"<>"&"Grand Total") -> 9 | AR21: =AQ21/AQ$19 -> 0.2647058824 | AS21: =COUNTIFS(V$16:V$3482,$AL21,S$16:S$3482,"<>"&"Grand Total") -> 7 | AT21: =AS21/AS$19 -> 0.1666666667 | AU21: =COUNTIFS(AB$16:AB$3482,$AL21,Y$16:Y$3482,"<>"&"Grand Total") -> 5 | AV21: =AU21/AU$19 -> 0.2380952381 | AW21: =COUNTIFS(AH$16:AH$3482,$AL21,AE$16:AE$3482,"<>"&"Grand Total") -> 2 | AX21: =AW21/AW$19 -> 0.04761904762
A22: =IF(ELAPVTables!A19<>"",IF(ELAPVTables!$B$4=4,ELAPVTables!A19,""),"") -> Student, 38 | B22: =IF(ELAPVTables!B19<>"",IF(ELAPVTables!$B$4=4,ELAPVTables!B19,""),"") -> 1363 | C22: =IF(ELAPVTables!C19<>"",IF(ELAPVTables!$B$4=4,ELAPVTables!C19,""),"") -> 31 | D22: Not Prof. | E22: =IF(ELAPVTables!D19<>"",IF(ELAPVTables!$B$4=4,ELAPVTables!D19,""),"") -> Quad 3 | G22: =IF(MathPVTables!A19<>"",IF(MathPVTables!$B$4=4,MathPVTables!A19,""),"") -> Student, 34 | H22: =IF(MathPVTables!B19<>"",IF(MathPVTables!$B$4=4,MathPVTables!B19,""),"") -> 1395 | I22: =IF(MathPVTables!C19<>"",IF(MathPVTables!$B$4=4,MathPVTables!C19,""),"") -> 27 | J22: Part. Prof. | K22: =IF(MathPVTables!D19<>"",IF(MathPVTables!$B$4=4,MathPVTables!D19,""),"") -> Quad 4 | M22: =IF(ELAPVTables!I19<>"",IF(ELAPVTables!$J$4=5,ELAPVTables!I19,""),"") -> Student, 80 | N22: =IF(ELAPVTables!J19<>"",IF(ELAPVTables!$J$4=5,ELAPVTables!J19,""),"") -> 1488 | O22: =IF(ELAPVTables!K19<>"",IF(ELAPVTables!$J$4=5,ELAPVTables!K19,""),"") -> 86 | P22: Part. Prof. | Q22: =IF(ELAPVTables!L19<>"",IF(ELAPVTables!$J$4=5,ELAPVTables!L19,""),"") -> Quad 2 | S22: =IF(MathPVTables!I19<>"",IF(MathPVTables!$J$4=5,MathPVTables!I19,""),"") -> Student, 65 | T22: =IF(MathPVTables!J19<>"",IF(MathPVTables!$J$4=5,MathPVTables!J19,""),"") -> 1501 | U22: =IF(MathPVTables!K19<>"",IF(MathPVTables!$J$4=5,MathPVTables!K19,""),"") -> 78 | V22: Prof. | W22: =IF(MathPVTables!L19<>"",IF(MathPVTables!$J$4=5,MathPVTables!L19,""),"") -> Quad 1 | Y22: =IF(SciencePVTables!Q19<>"",IF(SciencePVTables!$R$4=5,SciencePVTables!Q19,""),"") -> Student, 50 | Z22: =IF(SciencePVTables!R19<>"",IF(SciencePVTables!$R$4=5,SciencePVTables!R19,""),"") -> 1491 | AA22: =IF(SciencePVTables!S19<>"",IF(SciencePVTables!$R$4=5,SciencePVTables!S19,""),"") -> 0 | AB22: Part. Prof. | AC22: =IF(SciencePVTables!T19<>"",IF(SciencePVTables!$R$4=5,SciencePVTables!T19,""),"") -> Quad 3 | AE22: =IF(SSPVTables!Q19<>"",IF(SSPVTables!$R$4=5,SSPVTables!Q19,""),"") -> Student, 89 | AF22: =IF(SSPVTables!R19<>"",IF(SSPVTables!$R$4=5,SSPVTables!R19,""),"") -> 1480 | AG22: =IF(SSPVTables!S19<>"",IF(SSPVTables!$R$4=5,SSPVTables!S19,""),"") -> 0 | AH22: Part. Prof. | AI22: =IF(SSPVTables!T19<>"",IF(SSPVTables!$R$4=5,SSPVTables!T19,""),"") -> Quad 4 | AL22: Part. Prof. | AM22: 2 | AN22: 0.1428571429 | AO22: 4 | AP22: 0.25 | AQ22: 17 | AR22: =AQ22/AQ$19 -> 0.5 | AS22: 17 | AT22: =AS22/AS$19 -> 0.4047619048 | AU22: 12 | AV22: 0.5714285714 | AW22: 29 | AX22: 0.6904761905
A23: =IF(ELAPVTables!A20<>"",IF(ELAPVTables!$B$4=4,ELAPVTables!A20,""),"") -> Student, 44 | B23: =IF(ELAPVTables!B20<>"",IF(ELAPVTables!$B$4=4,ELAPVTables!B20,""),"") -> 1421 | C23: =IF(ELAPVTables!C20<>"",IF(ELAPVTables!$B$4=4,ELAPVTables!C20,""),"") -> 27 | D23: Adv. | E23: =IF(ELAPVTables!D20<>"",IF(ELAPVTables!$B$4=4,ELAPVTables!D20,""),"") -> Quad 4 | G23: =IF(MathPVTables!A20<>"",IF(MathPVTables!$B$4=4,MathPVTables!A20,""),"") -> Student, 43 | H23: =IF(MathPVTables!B20<>"",IF(MathPVTables!$B$4=4,MathPVTables!B20,""),"") -> 1361 | I23: =IF(MathPVTables!C20<>"",IF(MathPVTables!$B$4=4,MathPVTables!C20,""),"") -> 22 | J23: Not Prof. | K23: =IF(MathPVTables!D20<>"",IF(MathPVTables!$B$4=4,MathPVTables!D20,""),"") -> Quad 3 | M23: =IF(ELAPVTables!I20<>"",IF(ELAPVTables!$J$4=5,ELAPVTables!I20,""),"") -> Student, 86 | N23: =IF(ELAPVTables!J20<>"",IF(ELAPVTables!$J$4=5,ELAPVTables!J20,""),"") -> 1498 | O23: =IF(ELAPVTables!K20<>"",IF(ELAPVTables!$J$4=5,ELAPVTables!K20,""),"") -> 84 | P23: Part. Prof. | Q23: =IF(ELAPVTables!L20<>"",IF(ELAPVTables!$J$4=5,ELAPVTables!L20,""),"") -> Quad 1 | S23: =IF(MathPVTables!I20<>"",IF(MathPVTables!$J$4=5,MathPVTables!I20,""),"") -> Student, 67 | T23: =IF(MathPVTables!J20<>"",IF(MathPVTables!$J$4=5,MathPVTables!J20,""),"") -> 1487 | U23: =IF(MathPVTables!K20<>"",IF(MathPVTables!$J$4=5,MathPVTables!K20,""),"") -> 76 | V23: Part. Prof. | W23: =IF(MathPVTables!L20<>"",IF(MathPVTables!$J$4=5,MathPVTables!L20,""),"") -> Quad 1 | Y23: =IF(SciencePVTables!Q20<>"",IF(SciencePVTables!$R$4=5,SciencePVTables!Q20,""),"") -> Student, 36 | Z23: =IF(SciencePVTables!R20<>"",IF(SciencePVTables!$R$4=5,SciencePVTables!R20,""),"") -> 1479 | AA23: =IF(SciencePVTables!S20<>"",IF(SciencePVTables!$R$4=5,SciencePVTables!S20,""),"") -> 0 | AB23: Part. Prof. | AC23: =IF(SciencePVTables!T20<>"",IF(SciencePVTables!$R$4=5,SciencePVTables!T20,""),"") -> Quad 3 | AE23: =IF(SSPVTables!Q20<>"",IF(SSPVTables!$R$4=5,SSPVTables!Q20,""),"") -> Student, 57 | AF23: =IF(SSPVTables!R20<>"",IF(SSPVTables!$R$4=5,SSPVTables!R20,""),"") -> 1490 | AG23: =IF(SSPVTables!S20<>"",IF(SSPVTables!$R$4=5,SSPVTables!S20,""),"") -> 0 | AH23: Part. Prof. | AI23: =IF(SSPVTables!T20<>"",IF(SSPVTables!$R$4=5,SSPVTables!T20,""),"") -> Quad 4 | AL23: Not Prof. | AM23: 4 | AN23: =AM23/AM$19 -> 0.2857142857 | AO23: 4 | AP23: =AO23/AO$19 -> 0.25 | AQ23: 5 | AR23: =AQ23/AQ$19 -> 0.1470588235 | AS23: 17 | AT23: =AS23/AS$19 -> 0.4047619048 | AU23: 2 | AV23: =AU23/AU$19 -> 0.09523809524 | AW23: 10 | AX23: =AW23/AW$19 -> 0.2380952381
A24: =IF(ELAPVTables!A21<>"",IF(ELAPVTables!$B$4=4,ELAPVTables!A21,""),"") -> Student, 42 | B24: =IF(ELAPVTables!B21<>"",IF(ELAPVTables!$B$4=4,ELAPVTables!B21,""),"") -> 1404 | C24: =IF(ELAPVTables!C21<>"",IF(ELAPVTables!$B$4=4,ELAPVTables!C21,""),"") -> 27 | D24: Prof. | E24: =IF(ELAPVTables!D21<>"",IF(ELAPVTables!$B$4=4,ELAPVTables!D21,""),"") -> Quad 4 | G24: =IF(MathPVTables!A21<>"",IF(MathPVTables!$B$4=4,MathPVTables!A21,""),"") -> Student, 40 | H24: =IF(MathPVTables!B21<>"",IF(MathPVTables!$B$4=4,MathPVTables!B21,""),"") -> 1422 | I24: =IF(MathPVTables!C21<>"",IF(MathPVTables!$B$4=4,MathPVTables!C21,""),"") -> 19 | J24: Adv. | K24: =IF(MathPVTables!D21<>"",IF(MathPVTables!$B$4=4,MathPVTables!D21,""),"") -> Quad 4 | M24: =IF(ELAPVTables!I21<>"",IF(ELAPVTables!$J$4=5,ELAPVTables!I21,""),"") -> Student, 83 | N24: =IF(ELAPVTables!J21<>"",IF(ELAPVTables!$J$4=5,ELAPVTables!J21,""),"") -> 1479 | O24: =IF(ELAPVTables!K21<>"",IF(ELAPVTables!$J$4=5,ELAPVTables!K21,""),"") -> 80 | P24: Not Prof. | Q24: =IF(ELAPVTables!L21<>"",IF(ELAPVTables!$J$4=5,ELAPVTables!L21,""),"") -> Quad 2 | S24: =IF(MathPVTables!I21<>"",IF(MathPVTables!$J$4=5,MathPVTables!I21,""),"") -> Student, 74 | T24: =IF(MathPVTables!J21<>"",IF(MathPVTables!$J$4=5,MathPVTables!J21,""),"") -> 1472 | U24: =IF(MathPVTables!K21<>"",IF(MathPVTables!$J$4=5,MathPVTables!K21,""),"") -> 70 | V24: Not Prof. | W24: =IF(MathPVTables!L21<>"",IF(MathPVTables!$J$4=5,MathPVTables!L21,""),"") -> Quad 2 | Y24: =IF(SciencePVTables!Q21<>"",IF(SciencePVTables!$R$4=5,SciencePVTables!Q21,""),"") -> Student, 33 | Z24: =IF(SciencePVTables!R21<>"",IF(SciencePVTables!$R$4=5,SciencePVTables!R21,""),"") -> 1500 | AA24: =IF(SciencePVTables!S21<>"",IF(SciencePVTables!$R$4=5,SciencePVTables!S21,""),"") -> 0 | AB24: Prof. | AC24: =IF(SciencePVTables!T21<>"",IF(SciencePVTables!$R$4=5,SciencePVTables!T21,""),"") -> Quad 4 | AE24: =IF(SSPVTables!Q21<>"",IF(SSPVTables!$R$4=5,SSPVTables!Q21,""),"") -> Student, 75 | AF24: =IF(SSPVTables!R21<>"",IF(SSPVTables!$R$4=5,SSPVTables!R21,""),"") -> 1509 | AG24: =IF(SSPVTables!S21<>"",IF(SSPVTables!$R$4=5,SSPVTables!S21,""),"") -> 0 | AH24: Prof. | AI24: =IF(SSPVTables!T21<>"",IF(SSPVTables!$R$4=5,SSPVTables!T21,""),"") -> Quad 4 | AK24: SGP | AL24: Total # | AM24: =SUM(AM25:AM28) -> 14 | AO24: =SUM(AO25:AO28) -> 16 | AQ24: =SUM(AQ25:AQ28) -> 34 | AS24: =SUM(AS25:AS28) -> 42 | AU24: =SUM(AU25:AU28) -> 21 | AW24: =SUM(AW25:AW28) -> 42
A25: =IF(ELAPVTables!A22<>"",IF(ELAPVTables!$B$4=4,ELAPVTables!A22,""),"") -> Student, 39 | B25: =IF(ELAPVTables!B22<>"",IF(ELAPVTables!$B$4=4,ELAPVTables!B22,""),"") -> 1383 | C25: =IF(ELAPVTables!C22<>"",IF(ELAPVTables!$B$4=4,ELAPVTables!C22,""),"") -> 23 | D25: Part. Prof. | E25: =IF(ELAPVTables!D22<>"",IF(ELAPVTables!$B$4=4,ELAPVTables!D22,""),"") -> Quad 3 | G25: =IF(MathPVTables!A22<>"",IF(MathPVTables!$B$4=4,MathPVTables!A22,""),"") -> Student, 36 | H25: =IF(MathPVTables!B22<>"",IF(MathPVTables!$B$4=4,MathPVTables!B22,""),"") -> 1344 | I25: =IF(MathPVTables!C22<>"",IF(MathPVTables!$B$4=4,MathPVTables!C22,""),"") -> 14 | J25: Not Prof. | K25: =IF(MathPVTables!D22<>"",IF(MathPVTables!$B$4=4,MathPVTables!D22,""),"") -> Quad 3 | M25: =IF(ELAPVTables!I22<>"",IF(ELAPVTables!$J$4=5,ELAPVTables!I22,""),"") -> Student, 85 | N25: =IF(ELAPVTables!J22<>"",IF(ELAPVTables!$J$4=5,ELAPVTables!J22,""),"") -> 1497 | O25: =IF(ELAPVTables!K22<>"",IF(ELAPVTables!$J$4=5,ELAPVTables!K22,""),"") -> 80 | P25: Part. Prof. | Q25: =IF(ELAPVTables!L22<>"",IF(ELAPVTables!$J$4=5,ELAPVTables!L22,""),"") -> Quad 1 | S25: =IF(MathPVTables!I22<>"",IF(MathPVTables!$J$4=5,MathPVTables!I22,""),"") -> Student, 82 | T25: =IF(MathPVTables!J22<>"",IF(MathPVTables!$J$4=5,MathPVTables!J22,""),"") -> 1481 | U25: =IF(MathPVTables!K22<>"",IF(MathPVTables!$J$4=5,MathPVTables!K22,""),"") -> 69 | V25: Part. Prof. | W25: =IF(MathPVTables!L22<>"",IF(MathPVTables!$J$4=5,MathPVTables!L22,""),"") -> Quad 2 | Y25: =IF(SciencePVTables!Q22<>"",IF(SciencePVTables!$R$4=5,SciencePVTables!Q22,""),"") -> Student, 37 | Z25: =IF(SciencePVTables!R22<>"",IF(SciencePVTables!$R$4=5,SciencePVTables!R22,""),"") -> 1522 | AA25: =IF(SciencePVTables!S22<>"",IF(SciencePVTables!$R$4=5,SciencePVTables!S22,""),"") -> 0 | AB25: Adv. | AC25: =IF(SciencePVTables!T22<>"",IF(SciencePVTables!$R$4=5,SciencePVTables!T22,""),"") -> Quad 4 | AE25: =IF(SSPVTables!Q22<>"",IF(SSPVTables!$R$4=5,SSPVTables!Q22,""),"") -> Student, 58 | AF25: =IF(SSPVTables!R22<>"",IF(SSPVTables!$R$4=5,SSPVTables!R22,""),"") -> 1490 | AG25: =IF(SSPVTables!S22<>"",IF(SSPVTables!$R$4=5,SSPVTables!S22,""),"") -> 0 | AH25: Part. Prof. | AI25: =IF(SSPVTables!T22<>"",IF(SSPVTables!$R$4=5,SSPVTables!T22,""),"") -> Quad 4 | AL25: Quad 1 | AM25: =COUNTIFS(E$16:E$3482,$AL25,A$16:A$3482,"<>"&"Grand Total") -> 3 | AN25: =AM25/AM$24 -> 0.2142857143 | AO25: =COUNTIFS(K$16:K$3482,$AL25,G$16:G$3482,"<>"&"Grand Total") -> 2 | AP25: =AO25/AO$24 -> 0.125 | AQ25: =COUNTIFS(Q$16:Q$3482,$AL25,M$16:M$3482,"<>"&"Grand Total") -> 16 | AR25: =AQ25/AQ$24 -> 0.4705882353 | AS25: =COUNTIFS(W$16:W$3482,$AL25,S$16:S$3482,"<>"&"Grand Total") -> 13 | AT25: =AS25/AS$24 -> 0.3095238095 | AU25: =COUNTIFS(AC$16:AC$3482,$AL25,Y$16:Y$3482,"<>"&"Grand Total") -> 0 | AV25: =AU25/AU$24 -> 0 | AW25: =COUNTIFS(AI$16:AI$3482,$AL25,AE$16:AE$3482,"<>"&"Grand Total") -> 0 | AX25: =AW25/AW$24 -> 0
A26: =IF(ELAPVTables!A23<>"",IF(ELAPVTables!$B$4=4,ELAPVTables!A23,""),"") -> Student, 43 | B26: =IF(ELAPVTables!B23<>"",IF(ELAPVTables!$B$4=4,ELAPVTables!B23,""),"") -> 1405 | C26: =IF(ELAPVTables!C23<>"",IF(ELAPVTables!$B$4=4,ELAPVTables!C23,""),"") -> 22 | D26: Prof. | E26: =IF(ELAPVTables!D23<>"",IF(ELAPVTables!$B$4=4,ELAPVTables!D23,""),"") -> Quad 4 | G26: =IF(MathPVTables!A23<>"",IF(MathPVTables!$B$4=4,MathPVTables!A23,""),"") -> Student, 41 | H26: =IF(MathPVTables!B23<>"",IF(MathPVTables!$B$4=4,MathPVTables!B23,""),"") -> 1427 | I26: =IF(MathPVTables!C23<>"",IF(MathPVTables!$B$4=4,MathPVTables!C23,""),"") -> 11 | J26: Adv. | K26: =IF(MathPVTables!D23<>"",IF(MathPVTables!$B$4=4,MathPVTables!D23,""),"") -> Quad 4 | M26: =IF(ELAPVTables!I23<>"",IF(ELAPVTables!$J$4=5,ELAPVTables!I23,""),"") -> Student, 62 | N26: =IF(ELAPVTables!J23<>"",IF(ELAPVTables!$J$4=5,ELAPVTables!J23,""),"") -> 1486 | O26: =IF(ELAPVTables!K23<>"",IF(ELAPVTables!$J$4=5,ELAPVTables!K23,""),"") -> 77 | P26: Part. Prof. | Q26: =IF(ELAPVTables!L23<>"",IF(ELAPVTables!$J$4=5,ELAPVTables!L23,""),"") -> Quad 2 | S26: =IF(MathPVTables!I23<>"",IF(MathPVTables!$J$4=5,MathPVTables!I23,""),"") -> Student, 57 | T26: =IF(MathPVTables!J23<>"",IF(MathPVTables!$J$4=5,MathPVTables!J23,""),"") -> 1503 | U26: =IF(MathPVTables!K23<>"",IF(MathPVTables!$J$4=5,MathPVTables!K23,""),"") -> 67 | V26: Prof. | W26: =IF(MathPVTables!L23<>"",IF(MathPVTables!$J$4=5,MathPVTables!L23,""),"") -> Quad 1 | Y26: =IF(SciencePVTables!Q23<>"",IF(SciencePVTables!$R$4=5,SciencePVTables!Q23,""),"") -> Student, 45 | Z26: =IF(SciencePVTables!R23<>"",IF(SciencePVTables!$R$4=5,SciencePVTables!R23,""),"") -> 1491 | AA26: =IF(SciencePVTables!S23<>"",IF(SciencePVTables!$R$4=5,SciencePVTables!S23,""),"") -> 0 | AB26: Part. Prof. | AC26: =IF(SciencePVTables!T23<>"",IF(SciencePVTables!$R$4=5,SciencePVTables!T23,""),"") -> Quad 3 | AE26: =IF(SSPVTables!Q23<>"",IF(SSPVTables!$R$4=5,SSPVTables!Q23,""),"") -> Student, 79 | AF26: =IF(SSPVTables!R23<>"",IF(SSPVTables!$R$4=5,SSPVTables!R23,""),"") -> 1462 | AG26: =IF(SSPVTables!S23<>"",IF(SSPVTables!$R$4=5,SSPVTables!S23,""),"") -> 0 | AH26: Part. Prof. | AI26: =IF(SSPVTables!T23<>"",IF(SSPVTables!$R$4=5,SSPVTables!T23,""),"") -> Quad 3 | AL26: Quad 2 | AM26: =COUNTIFS(E$16:E$3482,$AL26,A$16:A$3482,"<>"&"Grand Total") -> 1 | AN26: =AM26/AM$24 -> 0.07142857143 | AO26: =COUNTIFS(K$16:K$3482,$AL26,G$16:G$3482,"<>"&"Grand Total") -> 1 | AP26: =AO26/AO$24 -> 0.0625 | AQ26: =COUNTIFS(Q$16:Q$3482,$AL26,M$16:M$3482,"<>"&"Grand Total") -> 9 | AR26: =AQ26/AQ$24 -> 0.2647058824 | AS26: =COUNTIFS(W$16:W$3482,$AL26,S$16:S$3482,"<>"&"Grand Total") -> 7 | AT26: =AS26/AS$24 -> 0.1666666667 | AU26: =COUNTIFS(AC$16:AC$3482,$AL26,Y$16:Y$3482,"<>"&"Grand Total") -> 0 | AV26: =AU26/AU$24 -> 0 | AW26: =COUNTIFS(AI$16:AI$3482,$AL26,AE$16:AE$3482,"<>"&"Grand Total") -> 0 | AX26: =AW26/AW$24 -> 0
A27: =IF(ELAPVTables!A24<>"",IF(ELAPVTables!$B$4=4,ELAPVTables!A24,""),"") -> Student, 35 | B27: =IF(ELAPVTables!B24<>"",IF(ELAPVTables!$B$4=4,ELAPVTables!B24,""),"") -> 1374 | C27: =IF(ELAPVTables!C24<>"",IF(ELAPVTables!$B$4=4,ELAPVTables!C24,""),"") -> 17 | D27: Not Prof. | E27: =IF(ELAPVTables!D24<>"",IF(ELAPVTables!$B$4=4,ELAPVTables!D24,""),"") -> Quad 3 | G27: =IF(MathPVTables!A24<>"",IF(MathPVTables!$B$4=4,MathPVTables!A24,""),"") -> Student, 48 | H27: =IF(MathPVTables!B24<>"",IF(MathPVTables!$B$4=4,MathPVTables!B24,""),"") -> 1405 | I27: =IF(MathPVTables!C24<>"",IF(MathPVTables!$B$4=4,MathPVTables!C24,""),"") -> 10 | J27: Prof. | K27: =IF(MathPVTables!D24<>"",IF(MathPVTables!$B$4=4,MathPVTables!D24,""),"") -> Quad 4 | M27: =IF(ELAPVTables!I24<>"",IF(ELAPVTables!$J$4=5,ELAPVTables!I24,""),"") -> Student, 60 | N27: =IF(ELAPVTables!J24<>"",IF(ELAPVTables!$J$4=5,ELAPVTables!J24,""),"") -> 1524 | O27: =IF(ELAPVTables!K24<>"",IF(ELAPVTables!$J$4=5,ELAPVTables!K24,""),"") -> 76 | P27: Adv. | Q27: =IF(ELAPVTables!L24<>"",IF(ELAPVTables!$J$4=5,ELAPVTables!L24,""),"") -> Quad 1 | S27: =IF(MathPVTables!I24<>"",IF(MathPVTables!$J$4=5,MathPVTables!I24,""),"") -> Student, 83 | T27: =IF(MathPVTables!J24<>"",IF(MathPVTables!$J$4=5,MathPVTables!J24,""),"") -> 1470 | U27: =IF(MathPVTables!K24<>"",IF(MathPVTables!$J$4=5,MathPVTables!K24,""),"") -> 66 | V27: Not Prof. | W27: =IF(MathPVTables!L24<>"",IF(MathPVTables!$J$4=5,MathPVTables!L24,""),"") -> Quad 2 | Y27: =IF(SciencePVTables!Q24<>"",IF(SciencePVTables!$R$4=5,SciencePVTables!Q24,""),"") -> Student, 38 | Z27: =IF(SciencePVTables!R24<>"",IF(SciencePVTables!$R$4=5,SciencePVTables!R24,""),"") -> 1516 | AA27: =IF(SciencePVTables!S24<>"",IF(SciencePVTables!$R$4=5,SciencePVTables!S24,""),"") -> 0 | AB27: Prof. | AC27: =IF(SciencePVTables!T24<>"",IF(SciencePVTables!$R$4=5,SciencePVTables!T24,""),"") -> Quad 4 | AE27: =IF(SSPVTables!Q24<>"",IF(SSPVTables!$R$4=5,SSPVTables!Q24,""),"") -> Student, 59 | AF27: =IF(SSPVTables!R24<>"",IF(SSPVTables!$R$4=5,SSPVTables!R24,""),"") -> 1474 | AG27: =IF(SSPVTables!S24<>"",IF(SSPVTables!$R$4=5,SSPVTables!S24,""),"") -> 0 | AH27: Part. Prof. | AI27: =IF(SSPVTables!T24<>"",IF(SSPVTables!$R$4=5,SSPVTables!T24,""),"") -> Quad 4 | AL27: Quad 3 | AM27: 5 | AN27: 0.3571428571 | AO27: 4 | AP27: 0.25 | AQ27: 7 | AR27: =AQ27/AQ$24 -> 0.2058823529 | AS27: 18 | AT27: =AS27/AS$24 -> 0.4285714286 | AU27: 11 | AV27: 0.5238095238 | AW27: 25 | AX27: =AW27/AW$24 -> 0.5952380952
A28: =IF(ELAPVTables!A25<>"",IF(ELAPVTables!$B$4=4,ELAPVTables!A25,""),"") -> Student, 36 | B28: =IF(ELAPVTables!B25<>"",IF(ELAPVTables!$B$4=4,ELAPVTables!B25,""),"") -> 1367 | C28: =IF(ELAPVTables!C25<>"",IF(ELAPVTables!$B$4=4,ELAPVTables!C25,""),"") -> 9 | D28: Not Prof. | E28: =IF(ELAPVTables!D25<>"",IF(ELAPVTables!$B$4=4,ELAPVTables!D25,""),"") -> Quad 3 | G28: =IF(MathPVTables!A25<>"",IF(MathPVTables!$B$4=4,MathPVTables!A25,""),"") -> Student, 45 | H28: =IF(MathPVTables!B25<>"",IF(MathPVTables!$B$4=4,MathPVTables!B25,""),"") -> 1353 | I28: =IF(MathPVTables!C25<>"",IF(MathPVTables!$B$4=4,MathPVTables!C25,""),"") -> 10 | J28: Not Prof. | K28: =IF(MathPVTables!D25<>"",IF(MathPVTables!$B$4=4,MathPVTables!D25,""),"") -> Quad 3 | M28: =IF(ELAPVTables!I25<>"",IF(ELAPVTables!$J$4=5,ELAPVTables!I25,""),"") -> Student, 70 | N28: =IF(ELAPVTables!J25<>"",IF(ELAPVTables!$J$4=5,ELAPVTables!J25,""),"") -> 1544 | O28: =IF(ELAPVTables!K25<>"",IF(ELAPVTables!$J$4=5,ELAPVTables!K25,""),"") -> 76 | P28: Adv. | Q28: =IF(ELAPVTables!L25<>"",IF(ELAPVTables!$J$4=5,ELAPVTables!L25,""),"") -> Quad 1 | S28: =IF(MathPVTables!I25<>"",IF(MathPVTables!$J$4=5,MathPVTables!I25,""),"") -> Student, 61 | T28: =IF(MathPVTables!J25<>"",IF(MathPVTables!$J$4=5,MathPVTables!J25,""),"") -> 1493 | U28: =IF(MathPVTables!K25<>"",IF(MathPVTables!$J$4=5,MathPVTables!K25,""),"") -> 63 | V28: Part. Prof. | W28: =IF(MathPVTables!L25<>"",IF(MathPVTables!$J$4=5,MathPVTables!L25,""),"") -> Quad 1 | Y28: =IF(SciencePVTables!Q25<>"",IF(SciencePVTables!$R$4=5,SciencePVTables!Q25,""),"") -> Student, 47 | Z28: =IF(SciencePVTables!R25<>"",IF(SciencePVTables!$R$4=5,SciencePVTables!R25,""),"") -> 1485 | AA28: =IF(SciencePVTables!S25<>"",IF(SciencePVTables!$R$4=5,SciencePVTables!S25,""),"") -> 0 | AB28: Part. Prof. | AC28: =IF(SciencePVTables!T25<>"",IF(SciencePVTables!$R$4=5,SciencePVTables!T25,""),"") -> Quad 3 | AE28: =IF(SSPVTables!Q25<>"",IF(SSPVTables!$R$4=5,SSPVTables!Q25,""),"") -> Student, 83 | AF28: =IF(SSPVTables!R25<>"",IF(SSPVTables!$R$4=5,SSPVTables!R25,""),"") -> 1452 | AG28: =IF(SSPVTables!S25<>"",IF(SSPVTables!$R$4=5,SSPVTables!S25,""),"") -> 0 | AH28: Not Prof. | AI28: =IF(SSPVTables!T25<>"",IF(SSPVTables!$R$4=5,SSPVTables!T25,""),"") -> Quad 3 | AL28: Quad 4 | AM28: 5 | AN28: =AM28/AM$24 -> 0.3571428571 | AO28: 9 | AP28: 0.5625 | AQ28: 2 | AR28: =AQ28/AQ$24 -> 0.05882352941 | AS28: 4 | AT28: =AS28/AS$24 -> 0.09523809524 | AU28: 10 | AV28: =AU28/AU$24 -> 0.4761904762 | AW28: 17 | AX28: =AW28/AW$24 -> 0.4047619048
A29: =IF(ELAPVTables!A26<>"",IF(ELAPVTables!$B$4=4,ELAPVTables!A26,""),"") -> Student, 33 | B29: =IF(ELAPVTables!B26<>"",IF(ELAPVTables!$B$4=4,ELAPVTables!B26,""),"") -> 1416 | C29: =IF(ELAPVTables!C26<>"",IF(ELAPVTables!$B$4=4,ELAPVTables!C26,""),"") -> 8 | D29: Prof. | E29: =IF(ELAPVTables!D26<>"",IF(ELAPVTables!$B$4=4,ELAPVTables!D26,""),"") -> Quad 4 | G29: =IF(MathPVTables!A26<>"",IF(MathPVTables!$B$4=4,MathPVTables!A26,""),"") -> Student, 37 | H29: =IF(MathPVTables!B26<>"",IF(MathPVTables!$B$4=4,MathPVTables!B26,""),"") -> 1398 | I29: =IF(MathPVTables!C26<>"",IF(MathPVTables!$B$4=4,MathPVTables!C26,""),"") -> 9 | J29: Part. Prof. | K29: =IF(MathPVTables!D26<>"",IF(MathPVTables!$B$4=4,MathPVTables!D26,""),"") -> Quad 4 | M29: =IF(ELAPVTables!I26<>"",IF(ELAPVTables!$J$4=5,ELAPVTables!I26,""),"") -> Student, 76 | N29: =IF(ELAPVTables!J26<>"",IF(ELAPVTables!$J$4=5,ELAPVTables!J26,""),"") -> 1478 | O29: =IF(ELAPVTables!K26<>"",IF(ELAPVTables!$J$4=5,ELAPVTables!K26,""),"") -> 70 | P29: Not Prof. | Q29: =IF(ELAPVTables!L26<>"",IF(ELAPVTables!$J$4=5,ELAPVTables!L26,""),"") -> Quad 2 | S29: =IF(MathPVTables!I26<>"",IF(MathPVTables!$J$4=5,MathPVTables!I26,""),"") -> Student, 88 | T29: =IF(MathPVTables!J26<>"",IF(MathPVTables!$J$4=5,MathPVTables!J26,""),"") -> 1505 | U29: =IF(MathPVTables!K26<>"",IF(MathPVTables!$J$4=5,MathPVTables!K26,""),"") -> 59 | V29: Prof. | W29: =IF(MathPVTables!L26<>"",IF(MathPVTables!$J$4=5,MathPVTables!L26,""),"") -> Quad 1 | Y29: =IF(SciencePVTables!Q26<>"",IF(SciencePVTables!$R$4=5,SciencePVTables!Q26,""),"") -> Student, 39 | Z29: =IF(SciencePVTables!R26<>"",IF(SciencePVTables!$R$4=5,SciencePVTables!R26,""),"") -> 1476 | AA29: =IF(SciencePVTables!S26<>"",IF(SciencePVTables!$R$4=5,SciencePVTables!S26,""),"") -> 0 | AB29: Not Prof. | AC29: =IF(SciencePVTables!T26<>"",IF(SciencePVTables!$R$4=5,SciencePVTables!T26,""),"") -> Quad 3 | AE29: =IF(SSPVTables!Q26<>"",IF(SSPVTables!$R$4=5,SSPVTables!Q26,""),"") -> Student, 60 | AF29: =IF(SSPVTables!R26<>"",IF(SSPVTables!$R$4=5,SSPVTables!R26,""),"") -> 1487 | AG29: =IF(SSPVTables!S26<>"",IF(SSPVTables!$R$4=5,SSPVTables!S26,""),"") -> 0 | AH29: Part. Prof. | AI29: =IF(SSPVTables!T26<>"",IF(SSPVTables!$R$4=5,SSPVTables!T26,""),"") -> Quad 4
A30: =IF(ELAPVTables!A27<>"",IF(ELAPVTables!$B$4=4,ELAPVTables!A27,""),"") -> Grand Total | B30: =IF(ELAPVTables!B27<>"",IF(ELAPVTables!$B$4=4,ELAPVTables!B27,""),"") -> 1396.785714 | C30: =IF(ELAPVTables!C27<>"",IF(ELAPVTables!$B$4=4,ELAPVTables!C27,""),"") -> 92 | D30: Part. Prof. | E30: =IF(ELAPVTables!D27<>"",IF(ELAPVTables!$B$4=4,ELAPVTables!D27,""),"") -> Quad 1 | G30: =IF(MathPVTables!A27<>"",IF(MathPVTables!$B$4=4,MathPVTables!A27,""),"") -> Student, 44 | H30: =IF(MathPVTables!B27<>"",IF(MathPVTables!$B$4=4,MathPVTables!B27,""),"") -> 1412 | I30: =IF(MathPVTables!C27<>"",IF(MathPVTables!$B$4=4,MathPVTables!C27,""),"") -> 5 | J30: Prof. | K30: =IF(MathPVTables!D27<>"",IF(MathPVTables!$B$4=4,MathPVTables!D27,""),"") -> Quad 4 | M30: =IF(ELAPVTables!I27<>"",IF(ELAPVTables!$J$4=5,ELAPVTables!I27,""),"") -> Student, 84 | N30: =IF(ELAPVTables!J27<>"",IF(ELAPVTables!$J$4=5,ELAPVTables!J27,""),"") -> 1515 | O30: =IF(ELAPVTables!K27<>"",IF(ELAPVTables!$J$4=5,ELAPVTables!K27,""),"") -> 68 | P30: Prof. | Q30: =IF(ELAPVTables!L27<>"",IF(ELAPVTables!$J$4=5,ELAPVTables!L27,""),"") -> Quad 1 | S30: =IF(MathPVTables!I27<>"",IF(MathPVTables!$J$4=5,MathPVTables!I27,""),"") -> Student, 84 | T30: =IF(MathPVTables!J27<>"",IF(MathPVTables!$J$4=5,MathPVTables!J27,""),"") -> 1491 | U30: =IF(MathPVTables!K27<>"",IF(MathPVTables!$J$4=5,MathPVTables!K27,""),"") -> 59 | V30: Part. Prof. | W30: =IF(MathPVTables!L27<>"",IF(MathPVTables!$J$4=5,MathPVTables!L27,""),"") -> Quad 1 | Y30: =IF(SciencePVTables!Q27<>"",IF(SciencePVTables!$R$4=5,SciencePVTables!Q27,""),"") -> Student, 49 | Z30: =IF(SciencePVTables!R27<>"",IF(SciencePVTables!$R$4=5,SciencePVTables!R27,""),"") -> 1516 | AA30: =IF(SciencePVTables!S27<>"",IF(SciencePVTables!$R$4=5,SciencePVTables!S27,""),"") -> 0 | AB30: Prof. | AC30: =IF(SciencePVTables!T27<>"",IF(SciencePVTables!$R$4=5,SciencePVTables!T27,""),"") -> Quad 4 | AE30: =IF(SSPVTables!Q27<>"",IF(SSPVTables!$R$4=5,SSPVTables!Q27,""),"") -> Student, 87 | AF30: =IF(SSPVTables!R27<>"",IF(SSPVTables!$R$4=5,SSPVTables!R27,""),"") -> 1452 | AG30: =IF(SSPVTables!S27<>"",IF(SSPVTables!$R$4=5,SSPVTables!S27,""),"") -> 0 | AH30: Not Prof. | AI30: =IF(SSPVTables!T27<>"",IF(SSPVTables!$R$4=5,SSPVTables!T27,""),"") -> Quad 3
A31: =IF(ELAPVTables!A28<>"",IF(ELAPVTables!$B$4=4,ELAPVTables!A28,""),"") ->  | B31: =IF(ELAPVTables!B28<>"",IF(ELAPVTables!$B$4=4,ELAPVTables!B28,""),"") ->  | C31: =IF(ELAPVTables!C28<>"",IF(ELAPVTables!$B$4=4,ELAPVTables!C28,""),"") ->  | E31: =IF(ELAPVTables!D28<>"",IF(ELAPVTables!$B$4=4,ELAPVTables!D28,""),"") ->  | G31: =IF(MathPVTables!A28<>"",IF(MathPVTables!$B$4=4,MathPVTables!A28,""),"") -> Student, 33 | H31: =IF(MathPVTables!B28<>"",IF(MathPVTables!$B$4=4,MathPVTables!B28,""),"") -> 1384 | I31: =IF(MathPVTables!C28<>"",IF(MathPVTables!$B$4=4,MathPVTables!C28,""),"") -> 4 | J31: Part. Prof. | K31: =IF(MathPVTables!D28<>"",IF(MathPVTables!$B$4=4,MathPVTables!D28,""),"") -> Quad 3 | M31: =IF(ELAPVTables!I28<>"",IF(ELAPVTables!$J$4=5,ELAPVTables!I28,""),"") -> Student, 54 | N31: =IF(ELAPVTables!J28<>"",IF(ELAPVTables!$J$4=5,ELAPVTables!J28,""),"") -> 1500 | O31: =IF(ELAPVTables!K28<>"",IF(ELAPVTables!$J$4=5,ELAPVTables!K28,""),"") -> 65 | P31: Prof. | Q31: =IF(ELAPVTables!L28<>"",IF(ELAPVTables!$J$4=5,ELAPVTables!L28,""),"") -> Quad 1 | S31: =IF(MathPVTables!I28<>"",IF(MathPVTables!$J$4=5,MathPVTables!I28,""),"") -> Student, 63 | T31: =IF(MathPVTables!J28<>"",IF(MathPVTables!$J$4=5,MathPVTables!J28,""),"") -> 1506 | U31: =IF(MathPVTables!K28<>"",IF(MathPVTables!$J$4=5,MathPVTables!K28,""),"") -> 59 | V31: Prof. | W31: =IF(MathPVTables!L28<>"",IF(MathPVTables!$J$4=5,MathPVTables!L28,""),"") -> Quad 1 | Y31: =IF(SciencePVTables!Q28<>"",IF(SciencePVTables!$R$4=5,SciencePVTables!Q28,""),"") -> Student, 40 | Z31: =IF(SciencePVTables!R28<>"",IF(SciencePVTables!$R$4=5,SciencePVTables!R28,""),"") -> 1498 | AA31: =IF(SciencePVTables!S28<>"",IF(SciencePVTables!$R$4=5,SciencePVTables!S28,""),"") -> 0 | AB31: Part. Prof. | AC31: =IF(SciencePVTables!T28<>"",IF(SciencePVTables!$R$4=5,SciencePVTables!T28,""),"") -> Quad 4 | AE31: =IF(SSPVTables!Q28<>"",IF(SSPVTables!$R$4=5,SSPVTables!Q28,""),"") -> Student, 61 | AF31: =IF(SSPVTables!R28<>"",IF(SSPVTables!$R$4=5,SSPVTables!R28,""),"") -> 1474 | AG31: =IF(SSPVTables!S28<>"",IF(SSPVTables!$R$4=5,SSPVTables!S28,""),"") -> 0 | AH31: Part. Prof. | AI31: =IF(SSPVTables!T28<>"",IF(SSPVTables!$R$4=5,SSPVTables!T28,""),"") -> Quad 4
A32: =IF(ELAPVTables!A29<>"",IF(ELAPVTables!$B$4=4,ELAPVTables!A29,""),"") ->  | B32: =IF(ELAPVTables!B29<>"",IF(ELAPVTables!$B$4=4,ELAPVTables!B29,""),"") ->  | C32: =IF(ELAPVTables!C29<>"",IF(ELAPVTables!$B$4=4,ELAPVTables!C29,""),"") ->  | E32: =IF(ELAPVTables!D29<>"",IF(ELAPVTables!$B$4=4,ELAPVTables!D29,""),"") ->  | G32: =IF(MathPVTables!A29<>"",IF(MathPVTables!$B$4=4,MathPVTables!A29,""),"") -> Grand Total | H32: =IF(MathPVTables!B29<>"",IF(MathPVTables!$B$4=4,MathPVTables!B29,""),"") -> 1394.875 | I32: =IF(MathPVTables!C29<>"",IF(MathPVTables!$B$4=4,MathPVTables!C29,""),"") -> 95 | J32: Part. Prof. | K32: =IF(MathPVTables!D29<>"",IF(MathPVTables!$B$4=4,MathPVTables!D29,""),"") -> Quad 1 | M32: =IF(ELAPVTables!I29<>"",IF(ELAPVTables!$J$4=5,ELAPVTables!I29,""),"") -> Student, 75 | N32: =IF(ELAPVTables!J29<>"",IF(ELAPVTables!$J$4=5,ELAPVTables!J29,""),"") -> 1510 | O32: =IF(ELAPVTables!K29<>"",IF(ELAPVTables!$J$4=5,ELAPVTables!K29,""),"") -> 65 | P32: Prof. | Q32: =IF(ELAPVTables!L29<>"",IF(ELAPVTables!$J$4=5,ELAPVTables!L29,""),"") -> Quad 1 | S32: =IF(MathPVTables!I29<>"",IF(MathPVTables!$J$4=5,MathPVTables!I29,""),"") -> Student, 60 | T32: =IF(MathPVTables!J29<>"",IF(MathPVTables!$J$4=5,MathPVTables!J29,""),"") -> 1492 | U32: =IF(MathPVTables!K29<>"",IF(MathPVTables!$J$4=5,MathPVTables!K29,""),"") -> 57 | V32: Part. Prof. | W32: =IF(MathPVTables!L29<>"",IF(MathPVTables!$J$4=5,MathPVTables!L29,""),"") -> Quad 1 | Y32: =IF(SciencePVTables!Q29<>"",IF(SciencePVTables!$R$4=5,SciencePVTables!Q29,""),"") -> Student, 51 | Z32: =IF(SciencePVTables!R29<>"",IF(SciencePVTables!$R$4=5,SciencePVTables!R29,""),"") -> 1477 | AA32: =IF(SciencePVTables!S29<>"",IF(SciencePVTables!$R$4=5,SciencePVTables!S29,""),"") -> 0 | AB32: Part. Prof. | AC32: =IF(SciencePVTables!T29<>"",IF(SciencePVTables!$R$4=5,SciencePVTables!T29,""),"") -> Quad 3 | AE32: =IF(SSPVTables!Q29<>"",IF(SSPVTables!$R$4=5,SSPVTables!Q29,""),"") -> Student, 91 | AF32: =IF(SSPVTables!R29<>"",IF(SSPVTables!$R$4=5,SSPVTables!R29,""),"") -> 1437 | AG32: =IF(SSPVTables!S29<>"",IF(SSPVTables!$R$4=5,SSPVTables!S29,""),"") -> 0 | AH32: Not Prof. | AI32: =IF(SSPVTables!T29<>"",IF(SSPVTables!$R$4=5,SSPVTables!T29,""),"") -> Quad 3
A33: =IF(ELAPVTables!A30<>"",IF(ELAPVTables!$B$4=4,ELAPVTables!A30,""),"") ->  | B33: =IF(ELAPVTables!B30<>"",IF(ELAPVTables!$B$4=4,ELAPVTables!B30,""),"") ->  | C33: =IF(ELAPVTables!C30<>"",IF(ELAPVTables!$B$4=4,ELAPVTables!C30,""),"") ->  | E33: =IF(ELAPVTables!D30<>"",IF(ELAPVTables!$B$4=4,ELAPVTables!D30,""),"") ->  | G33: =IF(MathPVTables!A30<>"",IF(MathPVTables!$B$4=4,MathPVTables!A30,""),"") ->  | H33: =IF(MathPVTables!B30<>"",IF(MathPVTables!$B$4=4,MathPVTables!B30,""),"") ->  | I33: =IF(MathPVTables!C30<>"",IF(MathPVTables!$B$4=4,MathPVTables!C30,""),"") ->  | K33: =IF(MathPVTables!D30<>"",IF(MathPVTables!$B$4=4,MathPVTables!D30,""),"") ->  | M33: =IF(ELAPVTables!I30<>"",IF(ELAPVTables!$J$4=5,ELAPVTables!I30,""),"") -> Student, 55 | N33: =IF(ELAPVTables!J30<>"",IF(ELAPVTables!$J$4=5,ELAPVTables!J30,""),"") -> 1496 | O33: =IF(ELAPVTables!K30<>"",IF(ELAPVTables!$J$4=5,ELAPVTables!K30,""),"") -> 64 | P33: Part. Prof. | Q33: =IF(ELAPVTables!L30<>"",IF(ELAPVTables!$J$4=5,ELAPVTables!L30,""),"") -> Quad 1 | S33: =IF(MathPVTables!I30<>"",IF(MathPVTables!$J$4=5,MathPVTables!I30,""),"") -> Student, 85 | T33: =IF(MathPVTables!J30<>"",IF(MathPVTables!$J$4=5,MathPVTables!J30,""),"") -> 1487 | U33: =IF(MathPVTables!K30<>"",IF(MathPVTables!$J$4=5,MathPVTables!K30,""),"") -> 56 | V33: Part. Prof. | W33: =IF(MathPVTables!L30<>"",IF(MathPVTables!$J$4=5,MathPVTables!L30,""),"") -> Quad 1 | Y33: =IF(SciencePVTables!Q30<>"",IF(SciencePVTables!$R$4=5,SciencePVTables!Q30,""),"") -> Student, 41 | Z33: =IF(SciencePVTables!R30<>"",IF(SciencePVTables!$R$4=5,SciencePVTables!R30,""),"") -> 1495 | AA33: =IF(SciencePVTables!S30<>"",IF(SciencePVTables!$R$4=5,SciencePVTables!S30,""),"") -> 0 | AB33: Part. Prof. | AC33: =IF(SciencePVTables!T30<>"",IF(SciencePVTables!$R$4=5,SciencePVTables!T30,""),"") -> Quad 4 | AE33: =IF(SSPVTables!Q30<>"",IF(SSPVTables!$R$4=5,SSPVTables!Q30,""),"") -> Student, 62 | AF33: =IF(SSPVTables!R30<>"",IF(SSPVTables!$R$4=5,SSPVTables!R30,""),"") -> 1458 | AG33: =IF(SSPVTables!S30<>"",IF(SSPVTables!$R$4=5,SSPVTables!S30,""),"") -> 0 | AH33: Part. Prof. | AI33: =IF(SSPVTables!T30<>"",IF(SSPVTables!$R$4=5,SSPVTables!T30,""),"") -> Quad 3
A34: =IF(ELAPVTables!A31<>"",IF(ELAPVTables!$B$4=4,ELAPVTables!A31,""),"") ->  | B34: =IF(ELAPVTables!B31<>"",IF(ELAPVTables!$B$4=4,ELAPVTables!B31,""),"") ->  | C34: =IF(ELAPVTables!C31<>"",IF(ELAPVTables!$B$4=4,ELAPVTables!C31,""),"") ->  | E34: =IF(ELAPVTables!D31<>"",IF(ELAPVTables!$B$4=4,ELAPVTables!D31,""),"") ->  | G34: =IF(MathPVTables!A31<>"",IF(MathPVTables!$B$4=4,MathPVTables!A31,""),"") ->  | H34: =IF(MathPVTables!B31<>"",IF(MathPVTables!$B$4=4,MathPVTables!B31,""),"") ->  | I34: =IF(MathPVTables!C31<>"",IF(MathPVTables!$B$4=4,MathPVTables!C31,""),"") ->  | K34: =IF(MathPVTables!D31<>"",IF(MathPVTables!$B$4=4,MathPVTables!D31,""),"") ->  | M34: =IF(ELAPVTables!I31<>"",IF(ELAPVTables!$J$4=5,ELAPVTables!I31,""),"") -> Student, 69 | N34: =IF(ELAPVTables!J31<>"",IF(ELAPVTables!$J$4=5,ELAPVTables!J31,""),"") -> 1483 | O34: =IF(ELAPVTables!K31<>"",IF(ELAPVTables!$J$4=5,ELAPVTables!K31,""),"") -> 61 | P34: Part. Prof. | Q34: =IF(ELAPVTables!L31<>"",IF(ELAPVTables!$J$4=5,ELAPVTables!L31,""),"") -> Quad 2 | S34: =IF(MathPVTables!I31<>"",IF(MathPVTables!$J$4=5,MathPVTables!I31,""),"") -> Student, 77 | T34: =IF(MathPVTables!J31<>"",IF(MathPVTables!$J$4=5,MathPVTables!J31,""),"") -> 1482 | U34: =IF(MathPVTables!K31<>"",IF(MathPVTables!$J$4=5,MathPVTables!K31,""),"") -> 56 | V34: Part. Prof. | W34: =IF(MathPVTables!L31<>"",IF(MathPVTables!$J$4=5,MathPVTables!L31,""),"") -> Quad 2 | Y34: =IF(SciencePVTables!Q31<>"",IF(SciencePVTables!$R$4=5,SciencePVTables!Q31,""),"") -> Student, 53 | Z34: =IF(SciencePVTables!R31<>"",IF(SciencePVTables!$R$4=5,SciencePVTables!R31,""),"") -> 1523 | AA34: =IF(SciencePVTables!S31<>"",IF(SciencePVTables!$R$4=5,SciencePVTables!S31,""),"") -> 0 | AB34: Adv. | AC34: =IF(SciencePVTables!T31<>"",IF(SciencePVTables!$R$4=5,SciencePVTables!T31,""),"") -> Quad 4 | AE34: =IF(SSPVTables!Q31<>"",IF(SSPVTables!$R$4=5,SSPVTables!Q31,""),"") -> Student, 95 | AF34: =IF(SSPVTables!R31<>"",IF(SSPVTables!$R$4=5,SSPVTables!R31,""),"") -> 1484 | AG34: =IF(SSPVTables!S31<>"",IF(SSPVTables!$R$4=5,SSPVTables!S31,""),"") -> 0 | AH34: Part. Prof. | AI34: =IF(SSPVTables!T31<>"",IF(SSPVTables!$R$4=5,SSPVTables!T31,""),"") -> Quad 4
A35: =IF(ELAPVTables!A32<>"",IF(ELAPVTables!$B$4=4,ELAPVTables!A32,""),"") ->  | B35: =IF(ELAPVTables!B32<>"",IF(ELAPVTables!$B$4=4,ELAPVTables!B32,""),"") ->  | C35: =IF(ELAPVTables!C32<>"",IF(ELAPVTables!$B$4=4,ELAPVTables!C32,""),"") ->  | E35: =IF(ELAPVTables!D32<>"",IF(ELAPVTables!$B$4=4,ELAPVTables!D32,""),"") ->  | G35: =IF(MathPVTables!A32<>"",IF(MathPVTables!$B$4=4,MathPVTables!A32,""),"") ->  | H35: =IF(MathPVTables!B32<>"",IF(MathPVTables!$B$4=4,MathPVTables!B32,""),"") ->  | I35: =IF(MathPVTables!C32<>"",IF(MathPVTables!$B$4=4,MathPVTables!C32,""),"") ->  | K35: =IF(MathPVTables!D32<>"",IF(MathPVTables!$B$4=4,MathPVTables!D32,""),"") ->  | M35: =IF(ELAPVTables!I32<>"",IF(ELAPVTables!$J$4=5,ELAPVTables!I32,""),"") -> Student, 56 | N35: =IF(ELAPVTables!J32<>"",IF(ELAPVTables!$J$4=5,ELAPVTables!J32,""),"") -> 1497 | O35: =IF(ELAPVTables!K32<>"",IF(ELAPVTables!$J$4=5,ELAPVTables!K32,""),"") -> 59 | P35: Part. Prof. | Q35: =IF(ELAPVTables!L32<>"",IF(ELAPVTables!$J$4=5,ELAPVTables!L32,""),"") -> Quad 1 | S35: =IF(MathPVTables!I32<>"",IF(MathPVTables!$J$4=5,MathPVTables!I32,""),"") -> Student, 55 | T35: =IF(MathPVTables!J32<>"",IF(MathPVTables!$J$4=5,MathPVTables!J32,""),"") -> 1482 | U35: =IF(MathPVTables!K32<>"",IF(MathPVTables!$J$4=5,MathPVTables!K32,""),"") -> 54 | V35: Part. Prof. | W35: =IF(MathPVTables!L32<>"",IF(MathPVTables!$J$4=5,MathPVTables!L32,""),"") -> Quad 2 | Y35: =IF(SciencePVTables!Q32<>"",IF(SciencePVTables!$R$4=5,SciencePVTables!Q32,""),"") -> Student, 42 | Z35: =IF(SciencePVTables!R32<>"",IF(SciencePVTables!$R$4=5,SciencePVTables!R32,""),"") -> 1489 | AA35: =IF(SciencePVTables!S32<>"",IF(SciencePVTables!$R$4=5,SciencePVTables!S32,""),"") -> 0 | AB35: Part. Prof. | AC35: =IF(SciencePVTables!T32<>"",IF(SciencePVTables!$R$4=5,SciencePVTables!T32,""),"") -> Quad 3 | AE35: =IF(SSPVTables!Q32<>"",IF(SSPVTables!$R$4=5,SSPVTables!Q32,""),"") -> Student, 63 | AF35: =IF(SSPVTables!R32<>"",IF(SSPVTables!$R$4=5,SSPVTables!R32,""),"") -> 1458 | AG35: =IF(SSPVTables!S32<>"",IF(SSPVTables!$R$4=5,SSPVTables!S32,""),"") -> 0 | AH35: Part. Prof. | AI35: =IF(SSPVTables!T32<>"",IF(SSPVTables!$R$4=5,SSPVTables!T32,""),"") -> Quad 3
A36: =IF(ELAPVTables!A33<>"",IF(ELAPVTables!$B$4=4,ELAPVTables!A33,""),"") ->  | B36: =IF(ELAPVTables!B33<>"",IF(ELAPVTables!$B$4=4,ELAPVTables!B33,""),"") ->  | C36: =IF(ELAPVTables!C33<>"",IF(ELAPVTables!$B$4=4,ELAPVTables!C33,""),"") ->  | E36: =IF(ELAPVTables!D33<>"",IF(ELAPVTables!$B$4=4,ELAPVTables!D33,""),"") ->  | G36: =IF(MathPVTables!A33<>"",IF(MathPVTables!$B$4=4,MathPVTables!A33,""),"") ->  | H36: =IF(MathPVTables!B33<>"",IF(MathPVTables!$B$4=4,MathPVTables!B33,""),"") ->  | I36: =IF(MathPVTables!C33<>"",IF(MathPVTables!$B$4=4,MathPVTables!C33,""),"") ->  | K36: =IF(MathPVTables!D33<>"",IF(MathPVTables!$B$4=4,MathPVTables!D33,""),"") ->  | M36: =IF(ELAPVTables!I33<>"",IF(ELAPVTables!$J$4=5,ELAPVTables!I33,""),"") -> Student, 65 | N36: =IF(ELAPVTables!J33<>"",IF(ELAPVTables!$J$4=5,ELAPVTables!J33,""),"") -> 1516 | O36: =IF(ELAPVTables!K33<>"",IF(ELAPVTables!$J$4=5,ELAPVTables!K33,""),"") -> 58 | P36: Prof. | Q36: =IF(ELAPVTables!L33<>"",IF(ELAPVTables!$J$4=5,ELAPVTables!L33,""),"") -> Quad 1 | S36: =IF(MathPVTables!I33<>"",IF(MathPVTables!$J$4=5,MathPVTables!I33,""),"") -> Student, 64 | T36: =IF(MathPVTables!J33<>"",IF(MathPVTables!$J$4=5,MathPVTables!J33,""),"") -> 1475 | U36: =IF(MathPVTables!K33<>"",IF(MathPVTables!$J$4=5,MathPVTables!K33,""),"") -> 45 | V36: Not Prof. | W36: =IF(MathPVTables!L33<>"",IF(MathPVTables!$J$4=5,MathPVTables!L33,""),"") -> Quad 3 | Y36: =IF(SciencePVTables!Q33<>"",IF(SciencePVTables!$R$4=5,SciencePVTables!Q33,""),"") -> Student, 43 | Z36: =IF(SciencePVTables!R33<>"",IF(SciencePVTables!$R$4=5,SciencePVTables!R33,""),"") -> 1504 | AA36: =IF(SciencePVTables!S33<>"",IF(SciencePVTables!$R$4=5,SciencePVTables!S33,""),"") -> 0 | AB36: Prof. | AC36: =IF(SciencePVTables!T33<>"",IF(SciencePVTables!$R$4=5,SciencePVTables!T33,""),"") -> Quad 4 | AE36: =IF(SSPVTables!Q33<>"",IF(SSPVTables!$R$4=5,SSPVTables!Q33,""),"") -> Student, 76 | AF36: =IF(SSPVTables!R33<>"",IF(SSPVTables!$R$4=5,SSPVTables!R33,""),"") -> 1441 | AG36: =IF(SSPVTables!S33<>"",IF(SSPVTables!$R$4=5,SSPVTables!S33,""),"") -> 0 | AH36: Not Prof. | AI36: =IF(SSPVTables!T33<>"",IF(SSPVTables!$R$4=5,SSPVTables!T33,""),"") -> Quad 3
A37: =IF(ELAPVTables!A34<>"",IF(ELAPVTables!$B$4=4,ELAPVTables!A34,""),"") ->  | B37: =IF(ELAPVTables!B34<>"",IF(ELAPVTables!$B$4=4,ELAPVTables!B34,""),"") ->  | C37: =IF(ELAPVTables!C34<>"",IF(ELAPVTables!$B$4=4,ELAPVTables!C34,""),"") ->  | E37: =IF(ELAPVTables!D34<>"",IF(ELAPVTables!$B$4=4,ELAPVTables!D34,""),"") ->  | G37: =IF(MathPVTables!A34<>"",IF(MathPVTables!$B$4=4,MathPVTables!A34,""),"") ->  | H37: =IF(MathPVTables!B34<>"",IF(MathPVTables!$B$4=4,MathPVTables!B34,""),"") ->  | I37: =IF(MathPVTables!C34<>"",IF(MathPVTables!$B$4=4,MathPVTables!C34,""),"") ->  | K37: =IF(MathPVTables!D34<>"",IF(MathPVTables!$B$4=4,MathPVTables!D34,""),"") ->  | M37: =IF(ELAPVTables!I34<>"",IF(ELAPVTables!$J$4=5,ELAPVTables!I34,""),"") -> Student, 73 | N37: =IF(ELAPVTables!J34<>"",IF(ELAPVTables!$J$4=5,ELAPVTables!J34,""),"") -> 1489 | O37: =IF(ELAPVTables!K34<>"",IF(ELAPVTables!$J$4=5,ELAPVTables!K34,""),"") -> 57 | P37: Part. Prof. | Q37: =IF(ELAPVTables!L34<>"",IF(ELAPVTables!$J$4=5,ELAPVTables!L34,""),"") -> Quad 2 | S37: =IF(MathPVTables!I34<>"",IF(MathPVTables!$J$4=5,MathPVTables!I34,""),"") -> Student, 69 | T37: =IF(MathPVTables!J34<>"",IF(MathPVTables!$J$4=5,MathPVTables!J34,""),"") -> 1471 | U37: =IF(MathPVTables!K34<>"",IF(MathPVTables!$J$4=5,MathPVTables!K34,""),"") -> 45 | V37: Not Prof. | W37: =IF(MathPVTables!L34<>"",IF(MathPVTables!$J$4=5,MathPVTables!L34,""),"") -> Quad 3 | Y37: =IF(SciencePVTables!Q34<>"",IF(SciencePVTables!$R$4=5,SciencePVTables!Q34,""),"") -> Grand Total | Z37: =IF(SciencePVTables!R34<>"",IF(SciencePVTables!$R$4=5,SciencePVTables!R34,""),"") -> 1494.761905 | AA37: =IF(SciencePVTables!S34<>"",IF(SciencePVTables!$R$4=5,SciencePVTables!S34,""),"") -> 0 | AB37: Part. Prof. | AC37: =IF(SciencePVTables!T34<>"",IF(SciencePVTables!$R$4=5,SciencePVTables!T34,""),"") -> Quad 4 | AE37: =IF(SSPVTables!Q34<>"",IF(SSPVTables!$R$4=5,SSPVTables!Q34,""),"") -> Student, 64 | AF37: =IF(SSPVTables!R34<>"",IF(SSPVTables!$R$4=5,SSPVTables!R34,""),"") -> 1471 | AG37: =IF(SSPVTables!S34<>"",IF(SSPVTables!$R$4=5,SSPVTables!S34,""),"") -> 0 | AH37: Part. Prof. | AI37: =IF(SSPVTables!T34<>"",IF(SSPVTables!$R$4=5,SSPVTables!T34,""),"") -> Quad 3
A38: =IF(ELAPVTables!A35<>"",IF(ELAPVTables!$B$4=4,ELAPVTables!A35,""),"") ->  | B38: =IF(ELAPVTables!B35<>"",IF(ELAPVTables!$B$4=4,ELAPVTables!B35,""),"") ->  | C38: =IF(ELAPVTables!C35<>"",IF(ELAPVTables!$B$4=4,ELAPVTables!C35,""),"") ->  | E38: =IF(ELAPVTables!D35<>"",IF(ELAPVTables!$B$4=4,ELAPVTables!D35,""),"") ->  | G38: =IF(MathPVTables!A35<>"",IF(MathPVTables!$B$4=4,MathPVTables!A35,""),"") ->  | H38: =IF(MathPVTables!B35<>"",IF(MathPVTables!$B$4=4,MathPVTables!B35,""),"") ->  | I38: =IF(MathPVTables!C35<>"",IF(MathPVTables!$B$4=4,MathPVTables!C35,""),"") ->  | K38: =IF(MathPVTables!D35<>"",IF(MathPVTables!$B$4=4,MathPVTables!D35,""),"") ->  | M38: =IF(ELAPVTables!I35<>"",IF(ELAPVTables!$J$4=5,ELAPVTables!I35,""),"") -> Student, 63 | N38: =IF(ELAPVTables!J35<>"",IF(ELAPVTables!$J$4=5,ELAPVTables!J35,""),"") -> 1535 | O38: =IF(ELAPVTables!K35<>"",IF(ELAPVTables!$J$4=5,ELAPVTables!K35,""),"") -> 53 | P38: Adv. | Q38: =IF(ELAPVTables!L35<>"",IF(ELAPVTables!$J$4=5,ELAPVTables!L35,""),"") -> Quad 1 | S38: =IF(MathPVTables!I35<>"",IF(MathPVTables!$J$4=5,MathPVTables!I35,""),"") -> Student, 73 | T38: =IF(MathPVTables!J35<>"",IF(MathPVTables!$J$4=5,MathPVTables!J35,""),"") -> 1478 | U38: =IF(MathPVTables!K35<>"",IF(MathPVTables!$J$4=5,MathPVTables!K35,""),"") -> 39 | V38: Part. Prof. | W38: =IF(MathPVTables!L35<>"",IF(MathPVTables!$J$4=5,MathPVTables!L35,""),"") -> Quad 3 | Y38: =IF(SciencePVTables!Q35<>"",IF(SciencePVTables!$R$4=5,SciencePVTables!Q35,""),"") ->  | Z38: =IF(SciencePVTables!R35<>"",IF(SciencePVTables!$R$4=5,SciencePVTables!R35,""),"") ->  | AA38: =IF(SciencePVTables!S35<>"",IF(SciencePVTables!$R$4=5,SciencePVTables!S35,""),"") ->  | AC38: =IF(SciencePVTables!T35<>"",IF(SciencePVTables!$R$4=5,SciencePVTables!T35,""),"") ->  | AE38: =IF(SSPVTables!Q35<>"",IF(SSPVTables!$R$4=5,SSPVTables!Q35,""),"") -> Student, 78 | AF38: =IF(SSPVTables!R35<>"",IF(SSPVTables!$R$4=5,SSPVTables!R35,""),"") -> 1474 | AG38: =IF(SSPVTables!S35<>"",IF(SSPVTables!$R$4=5,SSPVTables!S35,""),"") -> 0 | AH38: Part. Prof. | AI38: =IF(SSPVTables!T35<>"",IF(SSPVTables!$R$4=5,SSPVTables!T35,""),"") -> Quad 4
A39: =IF(ELAPVTables!A36<>"",IF(ELAPVTables!$B$4=4,ELAPVTables!A36,""),"") ->  | B39: =IF(ELAPVTables!B36<>"",IF(ELAPVTables!$B$4=4,ELAPVTables!B36,""),"") ->  | C39: =IF(ELAPVTables!C36<>"",IF(ELAPVTables!$B$4=4,ELAPVTables!C36,""),"") ->  | E39: =IF(ELAPVTables!D36<>"",IF(ELAPVTables!$B$4=4,ELAPVTables!D36,""),"") ->  | G39: =IF(MathPVTables!A36<>"",IF(MathPVTables!$B$4=4,MathPVTables!A36,""),"") ->  | H39: =IF(MathPVTables!B36<>"",IF(MathPVTables!$B$4=4,MathPVTables!B36,""),"") ->  | I39: =IF(MathPVTables!C36<>"",IF(MathPVTables!$B$4=4,MathPVTables!C36,""),"") ->  | K39: =IF(MathPVTables!D36<>"",IF(MathPVTables!$B$4=4,MathPVTables!D36,""),"") ->  | M39: =IF(ELAPVTables!I36<>"",IF(ELAPVTables!$J$4=5,ELAPVTables!I36,""),"") -> Student, 58 | N39: =IF(ELAPVTables!J36<>"",IF(ELAPVTables!$J$4=5,ELAPVTables!J36,""),"") -> 1512 | O39: =IF(ELAPVTables!K36<>"",IF(ELAPVTables!$J$4=5,ELAPVTables!K36,""),"") -> 52 | P39: Prof. | Q39: =IF(ELAPVTables!L36<>"",IF(ELAPVTables!$J$4=5,ELAPVTables!L36,""),"") -> Quad 1 | S39: =IF(MathPVTables!I36<>"",IF(MathPVTables!$J$4=5,MathPVTables!I36,""),"") -> Student, 87 | T39: =IF(MathPVTables!J36<>"",IF(MathPVTables!$J$4=5,MathPVTables!J36,""),"") -> 1455 | U39: =IF(MathPVTables!K36<>"",IF(MathPVTables!$J$4=5,MathPVTables!K36,""),"") -> 38 | V39: Not Prof. | W39: =IF(MathPVTables!L36<>"",IF(MathPVTables!$J$4=5,MathPVTables!L36,""),"") -> Quad 3 | Y39: =IF(SciencePVTables!Q36<>"",IF(SciencePVTables!$R$4=5,SciencePVTables!Q36,""),"") ->  | Z39: =IF(SciencePVTables!R36<>"",IF(SciencePVTables!$R$4=5,SciencePVTables!R36,""),"") ->  | AA39: =IF(SciencePVTables!S36<>"",IF(SciencePVTables!$R$4=5,SciencePVTables!S36,""),"") ->  | AC39: =IF(SciencePVTables!T36<>"",IF(SciencePVTables!$R$4=5,SciencePVTables!T36,""),"") ->  | AE39: =IF(SSPVTables!Q36<>"",IF(SSPVTables!$R$4=5,SSPVTables!Q36,""),"") -> Student, 65 | AF39: =IF(SSPVTables!R36<>"",IF(SSPVTables!$R$4=5,SSPVTables!R36,""),"") -> 1487 | AG39: =IF(SSPVTables!S36<>"",IF(SSPVTables!$R$4=5,SSPVTables!S36,""),"") -> 0 | AH39: Part. Prof. | AI39: =IF(SSPVTables!T36<>"",IF(SSPVTables!$R$4=5,SSPVTables!T36,""),"") -> Quad 4
A40: =IF(ELAPVTables!A37<>"",IF(ELAPVTables!$B$4=4,ELAPVTables!A37,""),"") ->  | B40: =IF(ELAPVTables!B37<>"",IF(ELAPVTables!$B$4=4,ELAPVTables!B37,""),"") ->  | C40: =IF(ELAPVTables!C37<>"",IF(ELAPVTables!$B$4=4,ELAPVTables!C37,""),"") ->  | E40: =IF(ELAPVTables!D37<>"",IF(ELAPVTables!$B$4=4,ELAPVTables!D37,""),"") ->  | G40: =IF(MathPVTables!A37<>"",IF(MathPVTables!$B$4=4,MathPVTables!A37,""),"") ->  | H40: =IF(MathPVTables!B37<>"",IF(MathPVTables!$B$4=4,MathPVTables!B37,""),"") ->  | I40: =IF(MathPVTables!C37<>"",IF(MathPVTables!$B$4=4,MathPVTables!C37,""),"") ->  | K40: =IF(MathPVTables!D37<>"",IF(MathPVTables!$B$4=4,MathPVTables!D37,""),"") ->  | M40: =IF(ELAPVTables!I37<>"",IF(ELAPVTables!$J$4=5,ELAPVTables!I37,""),"") -> Student, 66 | N40: =IF(ELAPVTables!J37<>"",IF(ELAPVTables!$J$4=5,ELAPVTables!J37,""),"") -> 1513 | O40: =IF(ELAPVTables!K37<>"",IF(ELAPVTables!$J$4=5,ELAPVTables!K37,""),"") -> 52 | P40: Prof. | Q40: =IF(ELAPVTables!L37<>"",IF(ELAPVTables!$J$4=5,ELAPVTables!L37,""),"") -> Quad 1 | S40: =IF(MathPVTables!I37<>"",IF(MathPVTables!$J$4=5,MathPVTables!I37,""),"") -> Student, 95 | T40: =IF(MathPVTables!J37<>"",IF(MathPVTables!$J$4=5,MathPVTables!J37,""),"") -> 1504 | U40: =IF(MathPVTables!K37<>"",IF(MathPVTables!$J$4=5,MathPVTables!K37,""),"") -> 38 | V40: Prof. | W40: =IF(MathPVTables!L37<>"",IF(MathPVTables!$J$4=5,MathPVTables!L37,""),"") -> Quad 4 | Y40: =IF(SciencePVTables!Q37<>"",IF(SciencePVTables!$R$4=5,SciencePVTables!Q37,""),"") ->  | Z40: =IF(SciencePVTables!R37<>"",IF(SciencePVTables!$R$4=5,SciencePVTables!R37,""),"") ->  | AA40: =IF(SciencePVTables!S37<>"",IF(SciencePVTables!$R$4=5,SciencePVTables!S37,""),"") ->  | AC40: =IF(SciencePVTables!T37<>"",IF(SciencePVTables!$R$4=5,SciencePVTables!T37,""),"") ->  | AE40: =IF(SSPVTables!Q37<>"",IF(SSPVTables!$R$4=5,SSPVTables!Q37,""),"") -> Student, 80 | AF40: =IF(SSPVTables!R37<>"",IF(SSPVTables!$R$4=5,SSPVTables!R37,""),"") -> 1465 | AG40: =IF(SSPVTables!S37<>"",IF(SSPVTables!$R$4=5,SSPVTables!S37,""),"") -> 0 | AH40: Part. Prof. | AI40: =IF(SSPVTables!T37<>"",IF(SSPVTables!$R$4=5,SSPVTables!T37,""),"") -> Quad 3
A41: =IF(ELAPVTables!A38<>"",IF(ELAPVTables!$B$4=4,ELAPVTables!A38,""),"") ->  | B41: =IF(ELAPVTables!B38<>"",IF(ELAPVTables!$B$4=4,ELAPVTables!B38,""),"") ->  | C41: =IF(ELAPVTables!C38<>"",IF(ELAPVTables!$B$4=4,ELAPVTables!C38,""),"") ->  | E41: =IF(ELAPVTables!D38<>"",IF(ELAPVTables!$B$4=4,ELAPVTables!D38,""),"") ->  | G41: =IF(MathPVTables!A38<>"",IF(MathPVTables!$B$4=4,MathPVTables!A38,""),"") ->  | H41: =IF(MathPVTables!B38<>"",IF(MathPVTables!$B$4=4,MathPVTables!B38,""),"") ->  | I41: =IF(MathPVTables!C38<>"",IF(MathPVTables!$B$4=4,MathPVTables!C38,""),"") ->  | K41: =IF(MathPVTables!D38<>"",IF(MathPVTables!$B$4=4,MathPVTables!D38,""),"") ->  | M41: =IF(ELAPVTables!I38<>"",IF(ELAPVTables!$J$4=5,ELAPVTables!I38,""),"") -> Student, 72 | N41: =IF(ELAPVTables!J38<>"",IF(ELAPVTables!$J$4=5,ELAPVTables!J38,""),"") -> 1492 | O41: =IF(ELAPVTables!K38<>"",IF(ELAPVTables!$J$4=5,ELAPVTables!K38,""),"") -> 49 | P41: Part. Prof. | Q41: =IF(ELAPVTables!L38<>"",IF(ELAPVTables!$J$4=5,ELAPVTables!L38,""),"") -> Quad 3 | S41: =IF(MathPVTables!I38<>"",IF(MathPVTables!$J$4=5,MathPVTables!I38,""),"") -> Student, 58 | T41: =IF(MathPVTables!J38<>"",IF(MathPVTables!$J$4=5,MathPVTables!J38,""),"") -> 1478 | U41: =IF(MathPVTables!K38<>"",IF(MathPVTables!$J$4=5,MathPVTables!K38,""),"") -> 38 | V41: Part. Prof. | W41: =IF(MathPVTables!L38<>"",IF(MathPVTables!$J$4=5,MathPVTables!L38,""),"") -> Quad 3 | Y41: =IF(SciencePVTables!Q38<>"",IF(SciencePVTables!$R$4=5,SciencePVTables!Q38,""),"") ->  | Z41: =IF(SciencePVTables!R38<>"",IF(SciencePVTables!$R$4=5,SciencePVTables!R38,""),"") ->  | AA41: =IF(SciencePVTables!S38<>"",IF(SciencePVTables!$R$4=5,SciencePVTables!S38,""),"") ->  | AC41: =IF(SciencePVTables!T38<>"",IF(SciencePVTables!$R$4=5,SciencePVTables!T38,""),"") ->  | AE41: =IF(SSPVTables!Q38<>"",IF(SSPVTables!$R$4=5,SSPVTables!Q38,""),"") -> Student, 66 | AF41: =IF(SSPVTables!R38<>"",IF(SSPVTables!$R$4=5,SSPVTables!R38,""),"") -> 1513 | AG41: =IF(SSPVTables!S38<>"",IF(SSPVTables!$R$4=5,SSPVTables!S38,""),"") -> 0 | AH41: Prof. | AI41: =IF(SSPVTables!T38<>"",IF(SSPVTables!$R$4=5,SSPVTables!T38,""),"") -> Quad 4
A42: =IF(ELAPVTables!A39<>"",IF(ELAPVTables!$B$4=4,ELAPVTables!A39,""),"") ->  | B42: =IF(ELAPVTables!B39<>"",IF(ELAPVTables!$B$4=4,ELAPVTables!B39,""),"") ->  | C42: =IF(ELAPVTables!C39<>"",IF(ELAPVTables!$B$4=4,ELAPVTables!C39,""),"") ->  | E42: =IF(ELAPVTables!D39<>"",IF(ELAPVTables!$B$4=4,ELAPVTables!D39,""),"") ->  | G42: =IF(MathPVTables!A39<>"",IF(MathPVTables!$B$4=4,MathPVTables!A39,""),"") ->  | H42: =IF(MathPVTables!B39<>"",IF(MathPVTables!$B$4=4,MathPVTables!B39,""),"") ->  | I42: =IF(MathPVTables!C39<>"",IF(MathPVTables!$B$4=4,MathPVTables!C39,""),"") ->  | K42: =IF(MathPVTables!D39<>"",IF(MathPVTables!$B$4=4,MathPVTables!D39,""),"") ->  | M42: =IF(ELAPVTables!I39<>"",IF(ELAPVTables!$J$4=5,ELAPVTables!I39,""),"") -> Student, 68 | N42: =IF(ELAPVTables!J39<>"",IF(ELAPVTables!$J$4=5,ELAPVTables!J39,""),"") -> 1498 | O42: =IF(ELAPVTables!K39<>"",IF(ELAPVTables!$J$4=5,ELAPVTables!K39,""),"") -> 43 | P42: Part. Prof. | Q42: =IF(ELAPVTables!L39<>"",IF(ELAPVTables!$J$4=5,ELAPVTables!L39,""),"") -> Quad 4 | S42: =IF(MathPVTables!I39<>"",IF(MathPVTables!$J$4=5,MathPVTables!I39,""),"") -> Student, 90 | T42: =IF(MathPVTables!J39<>"",IF(MathPVTables!$J$4=5,MathPVTables!J39,""),"") -> 1477 | U42: =IF(MathPVTables!K39<>"",IF(MathPVTables!$J$4=5,MathPVTables!K39,""),"") -> 36 | V42: Not Prof. | W42: =IF(MathPVTables!L39<>"",IF(MathPVTables!$J$4=5,MathPVTables!L39,""),"") -> Quad 3 | Y42: =IF(SciencePVTables!Q39<>"",IF(SciencePVTables!$R$4=5,SciencePVTables!Q39,""),"") ->  | Z42: =IF(SciencePVTables!R39<>"",IF(SciencePVTables!$R$4=5,SciencePVTables!R39,""),"") ->  | AA42: =IF(SciencePVTables!S39<>"",IF(SciencePVTables!$R$4=5,SciencePVTables!S39,""),"") ->  | AC42: =IF(SciencePVTables!T39<>"",IF(SciencePVTables!$R$4=5,SciencePVTables!T39,""),"") ->  | AE42: =IF(SSPVTables!Q39<>"",IF(SSPVTables!$R$4=5,SSPVTables!Q39,""),"") -> Student, 82 | AF42: =IF(SSPVTables!R39<>"",IF(SSPVTables!$R$4=5,SSPVTables!R39,""),"") -> 1448 | AG42: =IF(SSPVTables!S39<>"",IF(SSPVTables!$R$4=5,SSPVTables!S39,""),"") -> 0 | AH42: Not Prof. | AI42: =IF(SSPVTables!T39<>"",IF(SSPVTables!$R$4=5,SSPVTables!T39,""),"") -> Quad 3
A43: =IF(ELAPVTables!A40<>"",IF(ELAPVTables!$B$4=4,ELAPVTables!A40,""),"") ->  | B43: =IF(ELAPVTables!B40<>"",IF(ELAPVTables!$B$4=4,ELAPVTables!B40,""),"") ->  | C43: =IF(ELAPVTables!C40<>"",IF(ELAPVTables!$B$4=4,ELAPVTables!C40,""),"") ->  | E43: =IF(ELAPVTables!D40<>"",IF(ELAPVTables!$B$4=4,ELAPVTables!D40,""),"") ->  | G43: =IF(MathPVTables!A40<>"",IF(MathPVTables!$B$4=4,MathPVTables!A40,""),"") ->  | H43: =IF(MathPVTables!B40<>"",IF(MathPVTables!$B$4=4,MathPVTables!B40,""),"") ->  | I43: =IF(MathPVTables!C40<>"",IF(MathPVTables!$B$4=4,MathPVTables!C40,""),"") ->  | K43: =IF(MathPVTables!D40<>"",IF(MathPVTables!$B$4=4,MathPVTables!D40,""),"") ->  | M43: =IF(ELAPVTables!I40<>"",IF(ELAPVTables!$J$4=5,ELAPVTables!I40,""),"") -> Student, 61 | N43: =IF(ELAPVTables!J40<>"",IF(ELAPVTables!$J$4=5,ELAPVTables!J40,""),"") -> 1498 | O43: =IF(ELAPVTables!K40<>"",IF(ELAPVTables!$J$4=5,ELAPVTables!K40,""),"") -> 34 | P43: Part. Prof. | Q43: =IF(ELAPVTables!L40<>"",IF(ELAPVTables!$J$4=5,ELAPVTables!L40,""),"") -> Quad 4 | S43: =IF(MathPVTables!I40<>"",IF(MathPVTables!$J$4=5,MathPVTables!I40,""),"") -> Student, 72 | T43: =IF(MathPVTables!J40<>"",IF(MathPVTables!$J$4=5,MathPVTables!J40,""),"") -> 1471 | U43: =IF(MathPVTables!K40<>"",IF(MathPVTables!$J$4=5,MathPVTables!K40,""),"") -> 30 | V43: Not Prof. | W43: =IF(MathPVTables!L40<>"",IF(MathPVTables!$J$4=5,MathPVTables!L40,""),"") -> Quad 3 | Y43: =IF(SciencePVTables!Q40<>"",IF(SciencePVTables!$R$4=5,SciencePVTables!Q40,""),"") ->  | Z43: =IF(SciencePVTables!R40<>"",IF(SciencePVTables!$R$4=5,SciencePVTables!R40,""),"") ->  | AA43: =IF(SciencePVTables!S40<>"",IF(SciencePVTables!$R$4=5,SciencePVTables!S40,""),"") ->  | AC43: =IF(SciencePVTables!T40<>"",IF(SciencePVTables!$R$4=5,SciencePVTables!T40,""),"") ->  | AE43: =IF(SSPVTables!Q40<>"",IF(SSPVTables!$R$4=5,SSPVTables!Q40,""),"") -> Student, 67 | AF43: =IF(SSPVTables!R40<>"",IF(SSPVTables!$R$4=5,SSPVTables!R40,""),"") -> 1484 | AG43: =IF(SSPVTables!S40<>"",IF(SSPVTables!$R$4=5,SSPVTables!S40,""),"") -> 0 | AH43: Part. Prof. | AI43: =IF(SSPVTables!T40<>"",IF(SSPVTables!$R$4=5,SSPVTables!T40,""),"") -> Quad 4
A44: =IF(ELAPVTables!A41<>"",IF(ELAPVTables!$B$4=4,ELAPVTables!A41,""),"") ->  | B44: =IF(ELAPVTables!B41<>"",IF(ELAPVTables!$B$4=4,ELAPVTables!B41,""),"") ->  | C44: =IF(ELAPVTables!C41<>"",IF(ELAPVTables!$B$4=4,ELAPVTables!C41,""),"") ->  | E44: =IF(ELAPVTables!D41<>"",IF(ELAPVTables!$B$4=4,ELAPVTables!D41,""),"") ->  | G44: =IF(MathPVTables!A41<>"",IF(MathPVTables!$B$4=4,MathPVTables!A41,""),"") ->  | H44: =IF(MathPVTables!B41<>"",IF(MathPVTables!$B$4=4,MathPVTables!B41,""),"") ->  | I44: =IF(MathPVTables!C41<>"",IF(MathPVTables!$B$4=4,MathPVTables!C41,""),"") ->  | K44: =IF(MathPVTables!D41<>"",IF(MathPVTables!$B$4=4,MathPVTables!D41,""),"") ->  | M44: =IF(ELAPVTables!I41<>"",IF(ELAPVTables!$J$4=5,ELAPVTables!I41,""),"") -> Student, 78 | N44: =IF(ELAPVTables!J41<>"",IF(ELAPVTables!$J$4=5,ELAPVTables!J41,""),"") -> 1466 | O44: =IF(ELAPVTables!K41<>"",IF(ELAPVTables!$J$4=5,ELAPVTables!K41,""),"") -> 29 | P44: Not Prof. | Q44: =IF(ELAPVTables!L41<>"",IF(ELAPVTables!$J$4=5,ELAPVTables!L41,""),"") -> Quad 3 | S44: =IF(MathPVTables!I41<>"",IF(MathPVTables!$J$4=5,MathPVTables!I41,""),"") -> Student, 75 | T44: =IF(MathPVTables!J41<>"",IF(MathPVTables!$J$4=5,MathPVTables!J41,""),"") -> 1484 | U44: =IF(MathPVTables!K41<>"",IF(MathPVTables!$J$4=5,MathPVTables!K41,""),"") -> 30 | V44: Part. Prof. | W44: =IF(MathPVTables!L41<>"",IF(MathPVTables!$J$4=5,MathPVTables!L41,""),"") -> Quad 4 | Y44: =IF(SciencePVTables!Q41<>"",IF(SciencePVTables!$R$4=5,SciencePVTables!Q41,""),"") ->  | Z44: =IF(SciencePVTables!R41<>"",IF(SciencePVTables!$R$4=5,SciencePVTables!R41,""),"") ->  | AA44: =IF(SciencePVTables!S41<>"",IF(SciencePVTables!$R$4=5,SciencePVTables!S41,""),"") ->  | AC44: =IF(SciencePVTables!T41<>"",IF(SciencePVTables!$R$4=5,SciencePVTables!T41,""),"") ->  | AE44: =IF(SSPVTables!Q41<>"",IF(SSPVTables!$R$4=5,SSPVTables!Q41,""),"") -> Student, 84 | AF44: =IF(SSPVTables!R41<>"",IF(SSPVTables!$R$4=5,SSPVTables!R41,""),"") -> 1471 | AG44: =IF(SSPVTables!S41<>"",IF(SSPVTables!$R$4=5,SSPVTables!S41,""),"") -> 0 | AH44: Part. Prof. | AI44: =IF(SSPVTables!T41<>"",IF(SSPVTables!$R$4=5,SSPVTables!T41,""),"") -> Quad 3
A45: =IF(ELAPVTables!A42<>"",IF(ELAPVTables!$B$4=4,ELAPVTables!A42,""),"") ->  | B45: =IF(ELAPVTables!B42<>"",IF(ELAPVTables!$B$4=4,ELAPVTables!B42,""),"") ->  | C45: =IF(ELAPVTables!C42<>"",IF(ELAPVTables!$B$4=4,ELAPVTables!C42,""),"") ->  | E45: =IF(ELAPVTables!D42<>"",IF(ELAPVTables!$B$4=4,ELAPVTables!D42,""),"") ->  | G45: =IF(MathPVTables!A42<>"",IF(MathPVTables!$B$4=4,MathPVTables!A42,""),"") ->  | H45: =IF(MathPVTables!B42<>"",IF(MathPVTables!$B$4=4,MathPVTables!B42,""),"") ->  | I45: =IF(MathPVTables!C42<>"",IF(MathPVTables!$B$4=4,MathPVTables!C42,""),"") ->  | K45: =IF(MathPVTables!D42<>"",IF(MathPVTables!$B$4=4,MathPVTables!D42,""),"") ->  | M45: =IF(ELAPVTables!I42<>"",IF(ELAPVTables!$J$4=5,ELAPVTables!I42,""),"") -> Student, 71 | N45: =IF(ELAPVTables!J42<>"",IF(ELAPVTables!$J$4=5,ELAPVTables!J42,""),"") -> 1485 | O45: =IF(ELAPVTables!K42<>"",IF(ELAPVTables!$J$4=5,ELAPVTables!K42,""),"") -> 27 | P45: Part. Prof. | Q45: =IF(ELAPVTables!L42<>"",IF(ELAPVTables!$J$4=5,ELAPVTables!L42,""),"") -> Quad 3 | S45: =IF(MathPVTables!I42<>"",IF(MathPVTables!$J$4=5,MathPVTables!I42,""),"") -> Student, 80 | T45: =IF(MathPVTables!J42<>"",IF(MathPVTables!$J$4=5,MathPVTables!J42,""),"") -> 1464 | U45: =IF(MathPVTables!K42<>"",IF(MathPVTables!$J$4=5,MathPVTables!K42,""),"") -> 29 | V45: Not Prof. | W45: =IF(MathPVTables!L42<>"",IF(MathPVTables!$J$4=5,MathPVTables!L42,""),"") -> Quad 3 | Y45: =IF(SciencePVTables!Q42<>"",IF(SciencePVTables!$R$4=5,SciencePVTables!Q42,""),"") ->  | Z45: =IF(SciencePVTables!R42<>"",IF(SciencePVTables!$R$4=5,SciencePVTables!R42,""),"") ->  | AA45: =IF(SciencePVTables!S42<>"",IF(SciencePVTables!$R$4=5,SciencePVTables!S42,""),"") ->  | AC45: =IF(SciencePVTables!T42<>"",IF(SciencePVTables!$R$4=5,SciencePVTables!T42,""),"") ->  | AE45: =IF(SSPVTables!Q42<>"",IF(SSPVTables!$R$4=5,SSPVTables!Q42,""),"") -> Student, 68 | AF45: =IF(SSPVTables!R42<>"",IF(SSPVTables!$R$4=5,SSPVTables!R42,""),"") -> 1471 | AG45: =IF(SSPVTables!S42<>"",IF(SSPVTables!$R$4=5,SSPVTables!S42,""),"") -> 0 | AH45: Part. Prof. | AI45: =IF(SSPVTables!T42<>"",IF(SSPVTables!$R$4=5,SSPVTables!T42,""),"") -> Quad 3
A46: =IF(ELAPVTables!A43<>"",IF(ELAPVTables!$B$4=4,ELAPVTables!A43,""),"") ->  | B46: =IF(ELAPVTables!B43<>"",IF(ELAPVTables!$B$4=4,ELAPVTables!B43,""),"") ->  | C46: =IF(ELAPVTables!C43<>"",IF(ELAPVTables!$B$4=4,ELAPVTables!C43,""),"") ->  | E46: =IF(ELAPVTables!D43<>"",IF(ELAPVTables!$B$4=4,ELAPVTables!D43,""),"") ->  | G46: =IF(MathPVTables!A43<>"",IF(MathPVTables!$B$4=4,MathPVTables!A43,""),"") ->  | H46: =IF(MathPVTables!B43<>"",IF(MathPVTables!$B$4=4,MathPVTables!B43,""),"") ->  | I46: =IF(MathPVTables!C43<>"",IF(MathPVTables!$B$4=4,MathPVTables!C43,""),"") ->  | K46: =IF(MathPVTables!D43<>"",IF(MathPVTables!$B$4=4,MathPVTables!D43,""),"") ->  | M46: =IF(ELAPVTables!I43<>"",IF(ELAPVTables!$J$4=5,ELAPVTables!I43,""),"") -> Student, 77 | N46: =IF(ELAPVTables!J43<>"",IF(ELAPVTables!$J$4=5,ELAPVTables!J43,""),"") -> 1493 | O46: =IF(ELAPVTables!K43<>"",IF(ELAPVTables!$J$4=5,ELAPVTables!K43,""),"") -> 13 | P46: Part. Prof. | Q46: =IF(ELAPVTables!L43<>"",IF(ELAPVTables!$J$4=5,ELAPVTables!L43,""),"") -> Quad 3 | S46: =IF(MathPVTables!I43<>"",IF(MathPVTables!$J$4=5,MathPVTables!I43,""),"") -> Student, 78 | T46: =IF(MathPVTables!J43<>"",IF(MathPVTables!$J$4=5,MathPVTables!J43,""),"") -> 1478 | U46: =IF(MathPVTables!K43<>"",IF(MathPVTables!$J$4=5,MathPVTables!K43,""),"") -> 28 | V46: Part. Prof. | W46: =IF(MathPVTables!L43<>"",IF(MathPVTables!$J$4=5,MathPVTables!L43,""),"") -> Quad 3 | Y46: =IF(SciencePVTables!Q43<>"",IF(SciencePVTables!$R$4=5,SciencePVTables!Q43,""),"") ->  | Z46: =IF(SciencePVTables!R43<>"",IF(SciencePVTables!$R$4=5,SciencePVTables!R43,""),"") ->  | AA46: =IF(SciencePVTables!S43<>"",IF(SciencePVTables!$R$4=5,SciencePVTables!S43,""),"") ->  | AC46: =IF(SciencePVTables!T43<>"",IF(SciencePVTables!$R$4=5,SciencePVTables!T43,""),"") ->  | AE46: =IF(SSPVTables!Q43<>"",IF(SSPVTables!$R$4=5,SSPVTables!Q43,""),"") -> Student, 86 | AF46: =IF(SSPVTables!R43<>"",IF(SSPVTables!$R$4=5,SSPVTables!R43,""),"") -> 1468 | AG46: =IF(SSPVTables!S43<>"",IF(SSPVTables!$R$4=5,SSPVTables!S43,""),"") -> 0 | AH46: Part. Prof. | AI46: =IF(SSPVTables!T43<>"",IF(SSPVTables!$R$4=5,SSPVTables!T43,""),"") -> Quad 3
A47: =IF(ELAPVTables!A44<>"",IF(ELAPVTables!$B$4=4,ELAPVTables!A44,""),"") ->  | B47: =IF(ELAPVTables!B44<>"",IF(ELAPVTables!$B$4=4,ELAPVTables!B44,""),"") ->  | C47: =IF(ELAPVTables!C44<>"",IF(ELAPVTables!$B$4=4,ELAPVTables!C44,""),"") ->  | E47: =IF(ELAPVTables!D44<>"",IF(ELAPVTables!$B$4=4,ELAPVTables!D44,""),"") ->  | G47: =IF(MathPVTables!A44<>"",IF(MathPVTables!$B$4=4,MathPVTables!A44,""),"") ->  | H47: =IF(MathPVTables!B44<>"",IF(MathPVTables!$B$4=4,MathPVTables!B44,""),"") ->  | I47: =IF(MathPVTables!C44<>"",IF(MathPVTables!$B$4=4,MathPVTables!C44,""),"") ->  | K47: =IF(MathPVTables!D44<>"",IF(MathPVTables!$B$4=4,MathPVTables!D44,""),"") ->  | M47: =IF(ELAPVTables!I44<>"",IF(ELAPVTables!$J$4=5,ELAPVTables!I44,""),"") -> Student, 79 | N47: =IF(ELAPVTables!J44<>"",IF(ELAPVTables!$J$4=5,ELAPVTables!J44,""),"") -> 1482 | O47: =IF(ELAPVTables!K44<>"",IF(ELAPVTables!$J$4=5,ELAPVTables!K44,""),"") -> 6 | P47: Part. Prof. | Q47: =IF(ELAPVTables!L44<>"",IF(ELAPVTables!$J$4=5,ELAPVTables!L44,""),"") -> Quad 3 | S47: =IF(MathPVTables!I44<>"",IF(MathPVTables!$J$4=5,MathPVTables!I44,""),"") -> Student, 68 | T47: =IF(MathPVTables!J44<>"",IF(MathPVTables!$J$4=5,MathPVTables!J44,""),"") -> 1489 | U47: =IF(MathPVTables!K44<>"",IF(MathPVTables!$J$4=5,MathPVTables!K44,""),"") -> 21 | V47: Part. Prof. | W47: =IF(MathPVTables!L44<>"",IF(MathPVTables!$J$4=5,MathPVTables!L44,""),"") -> Quad 4 | Y47: =IF(SciencePVTables!Q44<>"",IF(SciencePVTables!$R$4=5,SciencePVTables!Q44,""),"") ->  | Z47: =IF(SciencePVTables!R44<>"",IF(SciencePVTables!$R$4=5,SciencePVTables!R44,""),"") ->  | AA47: =IF(SciencePVTables!S44<>"",IF(SciencePVTables!$R$4=5,SciencePVTables!S44,""),"") ->  | AC47: =IF(SciencePVTables!T44<>"",IF(SciencePVTables!$R$4=5,SciencePVTables!T44,""),"") ->  | AE47: =IF(SSPVTables!Q44<>"",IF(SSPVTables!$R$4=5,SSPVTables!Q44,""),"") -> Student, 69 | AF47: =IF(SSPVTables!R44<>"",IF(SSPVTables!$R$4=5,SSPVTables!R44,""),"") -> 1448 | AG47: =IF(SSPVTables!S44<>"",IF(SSPVTables!$R$4=5,SSPVTables!S44,""),"") -> 0 | AH47: Not Prof. | AI47: =IF(SSPVTables!T44<>"",IF(SSPVTables!$R$4=5,SSPVTables!T44,""),"") -> Quad 3
A48: =IF(ELAPVTables!A45<>"",IF(ELAPVTables!$B$4=4,ELAPVTables!A45,""),"") ->  | B48: =IF(ELAPVTables!B45<>"",IF(ELAPVTables!$B$4=4,ELAPVTables!B45,""),"") ->  | C48: =IF(ELAPVTables!C45<>"",IF(ELAPVTables!$B$4=4,ELAPVTables!C45,""),"") ->  | E48: =IF(ELAPVTables!D45<>"",IF(ELAPVTables!$B$4=4,ELAPVTables!D45,""),"") ->  | G48: =IF(MathPVTables!A45<>"",IF(MathPVTables!$B$4=4,MathPVTables!A45,""),"") ->  | H48: =IF(MathPVTables!B45<>"",IF(MathPVTables!$B$4=4,MathPVTables!B45,""),"") ->  | I48: =IF(MathPVTables!C45<>"",IF(MathPVTables!$B$4=4,MathPVTables!C45,""),"") ->  | K48: =IF(MathPVTables!D45<>"",IF(MathPVTables!$B$4=4,MathPVTables!D45,""),"") ->  | M48: =IF(ELAPVTables!I45<>"",IF(ELAPVTables!$J$4=5,ELAPVTables!I45,""),"") -> Student, 87 | N48: =IF(ELAPVTables!J45<>"",IF(ELAPVTables!$J$4=5,ELAPVTables!J45,""),"") -> 1441 | O48: =IF(ELAPVTables!K45<>"",IF(ELAPVTables!$J$4=5,ELAPVTables!K45,""),"") -> 4 | P48: Not Prof. | Q48: =IF(ELAPVTables!L45<>"",IF(ELAPVTables!$J$4=5,ELAPVTables!L45,""),"") -> Quad 3 | S48: =IF(MathPVTables!I45<>"",IF(MathPVTables!$J$4=5,MathPVTables!I45,""),"") -> Student, 54 | T48: =IF(MathPVTables!J45<>"",IF(MathPVTables!$J$4=5,MathPVTables!J45,""),"") -> 1461 | U48: =IF(MathPVTables!K45<>"",IF(MathPVTables!$J$4=5,MathPVTables!K45,""),"") -> 21 | V48: Not Prof. | W48: =IF(MathPVTables!L45<>"",IF(MathPVTables!$J$4=5,MathPVTables!L45,""),"") -> Quad 3 | Y48: =IF(SciencePVTables!Q45<>"",IF(SciencePVTables!$R$4=5,SciencePVTables!Q45,""),"") ->  | Z48: =IF(SciencePVTables!R45<>"",IF(SciencePVTables!$R$4=5,SciencePVTables!R45,""),"") ->  | AA48: =IF(SciencePVTables!S45<>"",IF(SciencePVTables!$R$4=5,SciencePVTables!S45,""),"") ->  | AC48: =IF(SciencePVTables!T45<>"",IF(SciencePVTables!$R$4=5,SciencePVTables!T45,""),"") ->  | AE48: =IF(SSPVTables!Q45<>"",IF(SSPVTables!$R$4=5,SSPVTables!Q45,""),"") -> Student, 88 | AF48: =IF(SSPVTables!R45<>"",IF(SSPVTables!$R$4=5,SSPVTables!R45,""),"") -> 1493 | AG48: =IF(SSPVTables!S45<>"",IF(SSPVTables!$R$4=5,SSPVTables!S45,""),"") -> 0 | AH48: Part. Prof. | AI48: =IF(SSPVTables!T45<>"",IF(SSPVTables!$R$4=5,SSPVTables!T45,""),"") -> Quad 4
A49: =IF(ELAPVTables!A46<>"",IF(ELAPVTables!$B$4=4,ELAPVTables!A46,""),"") ->  | B49: =IF(ELAPVTables!B46<>"",IF(ELAPVTables!$B$4=4,ELAPVTables!B46,""),"") ->  | C49: =IF(ELAPVTables!C46<>"",IF(ELAPVTables!$B$4=4,ELAPVTables!C46,""),"") ->  | E49: =IF(ELAPVTables!D46<>"",IF(ELAPVTables!$B$4=4,ELAPVTables!D46,""),"") ->  | G49: =IF(MathPVTables!A46<>"",IF(MathPVTables!$B$4=4,MathPVTables!A46,""),"") ->  | H49: =IF(MathPVTables!B46<>"",IF(MathPVTables!$B$4=4,MathPVTables!B46,""),"") ->  | I49: =IF(MathPVTables!C46<>"",IF(MathPVTables!$B$4=4,MathPVTables!C46,""),"") ->  | K49: =IF(MathPVTables!D46<>"",IF(MathPVTables!$B$4=4,MathPVTables!D46,""),"") ->  | M49: =IF(ELAPVTables!I46<>"",IF(ELAPVTables!$J$4=5,ELAPVTables!I46,""),"") -> Student, 59 | N49: =IF(ELAPVTables!J46<>"",IF(ELAPVTables!$J$4=5,ELAPVTables!J46,""),"") -> 1477 | O49: =IF(ELAPVTables!K46<>"",IF(ELAPVTables!$J$4=5,ELAPVTables!K46,""),"") -> 4 | P49: Not Prof. | Q49: =IF(ELAPVTables!L46<>"",IF(ELAPVTables!$J$4=5,ELAPVTables!L46,""),"") -> Quad 3 | S49: =IF(MathPVTables!I46<>"",IF(MathPVTables!$J$4=5,MathPVTables!I46,""),"") -> Student, 94 | T49: =IF(MathPVTables!J46<>"",IF(MathPVTables!$J$4=5,MathPVTables!J46,""),"") -> 1447 | U49: =IF(MathPVTables!K46<>"",IF(MathPVTables!$J$4=5,MathPVTables!K46,""),"") -> 20 | V49: Not Prof. | W49: =IF(MathPVTables!L46<>"",IF(MathPVTables!$J$4=5,MathPVTables!L46,""),"") -> Quad 3 | Y49: =IF(SciencePVTables!Q46<>"",IF(SciencePVTables!$R$4=5,SciencePVTables!Q46,""),"") ->  | Z49: =IF(SciencePVTables!R46<>"",IF(SciencePVTables!$R$4=5,SciencePVTables!R46,""),"") ->  | AA49: =IF(SciencePVTables!S46<>"",IF(SciencePVTables!$R$4=5,SciencePVTables!S46,""),"") ->  | AC49: =IF(SciencePVTables!T46<>"",IF(SciencePVTables!$R$4=5,SciencePVTables!T46,""),"") ->  | AE49: =IF(SSPVTables!Q46<>"",IF(SSPVTables!$R$4=5,SSPVTables!Q46,""),"") -> Student, 70 | AF49: =IF(SSPVTables!R46<>"",IF(SSPVTables!$R$4=5,SSPVTables!R46,""),"") -> 1536 | AG49: =IF(SSPVTables!S46<>"",IF(SSPVTables!$R$4=5,SSPVTables!S46,""),"") -> 0 | AH49: Adv. | AI49: =IF(SSPVTables!T46<>"",IF(SSPVTables!$R$4=5,SSPVTables!T46,""),"") -> Quad 4
A50: =IF(ELAPVTables!A47<>"",IF(ELAPVTables!$B$4=4,ELAPVTables!A47,""),"") ->  | B50: =IF(ELAPVTables!B47<>"",IF(ELAPVTables!$B$4=4,ELAPVTables!B47,""),"") ->  | C50: =IF(ELAPVTables!C47<>"",IF(ELAPVTables!$B$4=4,ELAPVTables!C47,""),"") ->  | E50: =IF(ELAPVTables!D47<>"",IF(ELAPVTables!$B$4=4,ELAPVTables!D47,""),"") ->  | G50: =IF(MathPVTables!A47<>"",IF(MathPVTables!$B$4=4,MathPVTables!A47,""),"") ->  | H50: =IF(MathPVTables!B47<>"",IF(MathPVTables!$B$4=4,MathPVTables!B47,""),"") ->  | I50: =IF(MathPVTables!C47<>"",IF(MathPVTables!$B$4=4,MathPVTables!C47,""),"") ->  | K50: =IF(MathPVTables!D47<>"",IF(MathPVTables!$B$4=4,MathPVTables!D47,""),"") ->  | M50: =IF(ELAPVTables!I47<>"",IF(ELAPVTables!$J$4=5,ELAPVTables!I47,""),"") -> Grand Total | N50: =IF(ELAPVTables!J47<>"",IF(ELAPVTables!$J$4=5,ELAPVTables!J47,""),"") -> 1497.235294 | O50: =IF(ELAPVTables!K47<>"",IF(ELAPVTables!$J$4=5,ELAPVTables!K47,""),"") -> 99 | P50: Part. Prof. | Q50: =IF(ELAPVTables!L47<>"",IF(ELAPVTables!$J$4=5,ELAPVTables!L47,""),"") -> Quad 1 | S50: =IF(MathPVTables!I47<>"",IF(MathPVTables!$J$4=5,MathPVTables!I47,""),"") -> Student, 71 | T50: =IF(MathPVTables!J47<>"",IF(MathPVTables!$J$4=5,MathPVTables!J47,""),"") -> 1488 | U50: =IF(MathPVTables!K47<>"",IF(MathPVTables!$J$4=5,MathPVTables!K47,""),"") -> 17 | V50: Part. Prof. | W50: =IF(MathPVTables!L47<>"",IF(MathPVTables!$J$4=5,MathPVTables!L47,""),"") -> Quad 4 | Y50: =IF(SciencePVTables!Q47<>"",IF(SciencePVTables!$R$4=5,SciencePVTables!Q47,""),"") ->  | Z50: =IF(SciencePVTables!R47<>"",IF(SciencePVTables!$R$4=5,SciencePVTables!R47,""),"") ->  | AA50: =IF(SciencePVTables!S47<>"",IF(SciencePVTables!$R$4=5,SciencePVTables!S47,""),"") ->  | AC50: =IF(SciencePVTables!T47<>"",IF(SciencePVTables!$R$4=5,SciencePVTables!T47,""),"") ->  | AE50: =IF(SSPVTables!Q47<>"",IF(SSPVTables!$R$4=5,SSPVTables!Q47,""),"") -> Student, 90 | AF50: =IF(SSPVTables!R47<>"",IF(SSPVTables!$R$4=5,SSPVTables!R47,""),"") -> 1465 | AG50: =IF(SSPVTables!S47<>"",IF(SSPVTables!$R$4=5,SSPVTables!S47,""),"") -> 0 | AH50: Part. Prof. | AI50: =IF(SSPVTables!T47<>"",IF(SSPVTables!$R$4=5,SSPVTables!T47,""),"") -> Quad 3
A51: =IF(ELAPVTables!A48<>"",IF(ELAPVTables!$B$4=4,ELAPVTables!A48,""),"") ->  | B51: =IF(ELAPVTables!B48<>"",IF(ELAPVTables!$B$4=4,ELAPVTables!B48,""),"") ->  | C51: =IF(ELAPVTables!C48<>"",IF(ELAPVTables!$B$4=4,ELAPVTables!C48,""),"") ->  | E51: =IF(ELAPVTables!D48<>"",IF(ELAPVTables!$B$4=4,ELAPVTables!D48,""),"") ->  | G51: =IF(MathPVTables!A48<>"",IF(MathPVTables!$B$4=4,MathPVTables!A48,""),"") ->  | H51: =IF(MathPVTables!B48<>"",IF(MathPVTables!$B$4=4,MathPVTables!B48,""),"") ->  | I51: =IF(MathPVTables!C48<>"",IF(MathPVTables!$B$4=4,MathPVTables!C48,""),"") ->  | K51: =IF(MathPVTables!D48<>"",IF(MathPVTables!$B$4=4,MathPVTables!D48,""),"") ->  | M51: =IF(ELAPVTables!I48<>"",IF(ELAPVTables!$J$4=5,ELAPVTables!I48,""),"") ->  | N51: =IF(ELAPVTables!J48<>"",IF(ELAPVTables!$J$4=5,ELAPVTables!J48,""),"") ->  | O51: =IF(ELAPVTables!K48<>"",IF(ELAPVTables!$J$4=5,ELAPVTables!K48,""),"") ->  | Q51: =IF(ELAPVTables!L48<>"",IF(ELAPVTables!$J$4=5,ELAPVTables!L48,""),"") ->  | S51: =IF(MathPVTables!I48<>"",IF(MathPVTables!$J$4=5,MathPVTables!I48,""),"") -> Student, 81 | T51: =IF(MathPVTables!J48<>"",IF(MathPVTables!$J$4=5,MathPVTables!J48,""),"") -> 1446 | U51: =IF(MathPVTables!K48<>"",IF(MathPVTables!$J$4=5,MathPVTables!K48,""),"") -> 14 | V51: Not Prof. | W51: =IF(MathPVTables!L48<>"",IF(MathPVTables!$J$4=5,MathPVTables!L48,""),"") -> Quad 3 | Y51: =IF(SciencePVTables!Q48<>"",IF(SciencePVTables!$R$4=5,SciencePVTables!Q48,""),"") ->  | Z51: =IF(SciencePVTables!R48<>"",IF(SciencePVTables!$R$4=5,SciencePVTables!R48,""),"") ->  | AA51: =IF(SciencePVTables!S48<>"",IF(SciencePVTables!$R$4=5,SciencePVTables!S48,""),"") ->  | AC51: =IF(SciencePVTables!T48<>"",IF(SciencePVTables!$R$4=5,SciencePVTables!T48,""),"") ->  | AE51: =IF(SSPVTables!Q48<>"",IF(SSPVTables!$R$4=5,SSPVTables!Q48,""),"") -> Student, 71 | AF51: =IF(SSPVTables!R48<>"",IF(SSPVTables!$R$4=5,SSPVTables!R48,""),"") -> 1458 | AG51: =IF(SSPVTables!S48<>"",IF(SSPVTables!$R$4=5,SSPVTables!S48,""),"") -> 0 | AH51: Part. Prof. | AI51: =IF(SSPVTables!T48<>"",IF(SSPVTables!$R$4=5,SSPVTables!T48,""),"") -> Quad 3
A52: =IF(ELAPVTables!A49<>"",IF(ELAPVTables!$B$4=4,ELAPVTables!A49,""),"") ->  | B52: =IF(ELAPVTables!B49<>"",IF(ELAPVTables!$B$4=4,ELAPVTables!B49,""),"") ->  | C52: =IF(ELAPVTables!C49<>"",IF(ELAPVTables!$B$4=4,ELAPVTables!C49,""),"") ->  | E52: =IF(ELAPVTables!D49<>"",IF(ELAPVTables!$B$4=4,ELAPVTables!D49,""),"") ->  | G52: =IF(MathPVTables!A49<>"",IF(MathPVTables!$B$4=4,MathPVTables!A49,""),"") ->  | H52: =IF(MathPVTables!B49<>"",IF(MathPVTables!$B$4=4,MathPVTables!B49,""),"") ->  | I52: =IF(MathPVTables!C49<>"",IF(MathPVTables!$B$4=4,MathPVTables!C49,""),"") ->  | K52: =IF(MathPVTables!D49<>"",IF(MathPVTables!$B$4=4,MathPVTables!D49,""),"") ->  | M52: =IF(ELAPVTables!I49<>"",IF(ELAPVTables!$J$4=5,ELAPVTables!I49,""),"") ->  | N52: =IF(ELAPVTables!J49<>"",IF(ELAPVTables!$J$4=5,ELAPVTables!J49,""),"") ->  | O52: =IF(ELAPVTables!K49<>"",IF(ELAPVTables!$J$4=5,ELAPVTables!K49,""),"") ->  | Q52: =IF(ELAPVTables!L49<>"",IF(ELAPVTables!$J$4=5,ELAPVTables!L49,""),"") ->  | S52: =IF(MathPVTables!I49<>"",IF(MathPVTables!$J$4=5,MathPVTables!I49,""),"") -> Student, 79 | T52: =IF(MathPVTables!J49<>"",IF(MathPVTables!$J$4=5,MathPVTables!J49,""),"") -> 1467 | U52: =IF(MathPVTables!K49<>"",IF(MathPVTables!$J$4=5,MathPVTables!K49,""),"") -> 12 | V52: Not Prof. | W52: =IF(MathPVTables!L49<>"",IF(MathPVTables!$J$4=5,MathPVTables!L49,""),"") -> Quad 3 | Y52: =IF(SciencePVTables!Q49<>"",IF(SciencePVTables!$R$4=5,SciencePVTables!Q49,""),"") ->  | Z52: =IF(SciencePVTables!R49<>"",IF(SciencePVTables!$R$4=5,SciencePVTables!R49,""),"") ->  | AA52: =IF(SciencePVTables!S49<>"",IF(SciencePVTables!$R$4=5,SciencePVTables!S49,""),"") ->  | AC52: =IF(SciencePVTables!T49<>"",IF(SciencePVTables!$R$4=5,SciencePVTables!T49,""),"") ->  | AE52: =IF(SSPVTables!Q49<>"",IF(SSPVTables!$R$4=5,SSPVTables!Q49,""),"") -> Student, 92 | AF52: =IF(SSPVTables!R49<>"",IF(SSPVTables!$R$4=5,SSPVTables!R49,""),"") -> 1462 | AG52: =IF(SSPVTables!S49<>"",IF(SSPVTables!$R$4=5,SSPVTables!S49,""),"") -> 0 | AH52: Part. Prof. | AI52: =IF(SSPVTables!T49<>"",IF(SSPVTables!$R$4=5,SSPVTables!T49,""),"") -> Quad 3
A53: =IF(ELAPVTables!A50<>"",IF(ELAPVTables!$B$4=4,ELAPVTables!A50,""),"") ->  | B53: =IF(ELAPVTables!B50<>"",IF(ELAPVTables!$B$4=4,ELAPVTables!B50,""),"") ->  | C53: =IF(ELAPVTables!C50<>"",IF(ELAPVTables!$B$4=4,ELAPVTables!C50,""),"") ->  | E53: =IF(ELAPVTables!D50<>"",IF(ELAPVTables!$B$4=4,ELAPVTables!D50,""),"") ->  | G53: =IF(MathPVTables!A50<>"",IF(MathPVTables!$B$4=4,MathPVTables!A50,""),"") ->  | H53: =IF(MathPVTables!B50<>"",IF(MathPVTables!$B$4=4,MathPVTables!B50,""),"") ->  | I53: =IF(MathPVTables!C50<>"",IF(MathPVTables!$B$4=4,MathPVTables!C50,""),"") ->  | K53: =IF(MathPVTables!D50<>"",IF(MathPVTables!$B$4=4,MathPVTables!D50,""),"") ->  | M53: =IF(ELAPVTables!I50<>"",IF(ELAPVTables!$J$4=5,ELAPVTables!I50,""),"") ->  | N53: =IF(ELAPVTables!J50<>"",IF(ELAPVTables!$J$4=5,ELAPVTables!J50,""),"") ->  | O53: =IF(ELAPVTables!K50<>"",IF(ELAPVTables!$J$4=5,ELAPVTables!K50,""),"") ->  | Q53: =IF(ELAPVTables!L50<>"",IF(ELAPVTables!$J$4=5,ELAPVTables!L50,""),"") ->  | S53: =IF(MathPVTables!I50<>"",IF(MathPVTables!$J$4=5,MathPVTables!I50,""),"") -> Student, 59 | T53: =IF(MathPVTables!J50<>"",IF(MathPVTables!$J$4=5,MathPVTables!J50,""),"") -> 1462 | U53: =IF(MathPVTables!K50<>"",IF(MathPVTables!$J$4=5,MathPVTables!K50,""),"") -> 11 | V53: Not Prof. | W53: =IF(MathPVTables!L50<>"",IF(MathPVTables!$J$4=5,MathPVTables!L50,""),"") -> Quad 3 | Y53: =IF(SciencePVTables!Q50<>"",IF(SciencePVTables!$R$4=5,SciencePVTables!Q50,""),"") ->  | Z53: =IF(SciencePVTables!R50<>"",IF(SciencePVTables!$R$4=5,SciencePVTables!R50,""),"") ->  | AA53: =IF(SciencePVTables!S50<>"",IF(SciencePVTables!$R$4=5,SciencePVTables!S50,""),"") ->  | AC53: =IF(SciencePVTables!T50<>"",IF(SciencePVTables!$R$4=5,SciencePVTables!T50,""),"") ->  | AE53: =IF(SSPVTables!Q50<>"",IF(SSPVTables!$R$4=5,SSPVTables!Q50,""),"") -> Student, 72 | AF53: =IF(SSPVTables!R50<>"",IF(SSPVTables!$R$4=5,SSPVTables!R50,""),"") -> 1462 | AG53: =IF(SSPVTables!S50<>"",IF(SSPVTables!$R$4=5,SSPVTables!S50,""),"") -> 0 | AH53: Part. Prof. | AI53: =IF(SSPVTables!T50<>"",IF(SSPVTables!$R$4=5,SSPVTables!T50,""),"") -> Quad 3
A54: =IF(ELAPVTables!A51<>"",IF(ELAPVTables!$B$4=4,ELAPVTables!A51,""),"") ->  | B54: =IF(ELAPVTables!B51<>"",IF(ELAPVTables!$B$4=4,ELAPVTables!B51,""),"") ->  | C54: =IF(ELAPVTables!C51<>"",IF(ELAPVTables!$B$4=4,ELAPVTables!C51,""),"") ->  | E54: =IF(ELAPVTables!D51<>"",IF(ELAPVTables!$B$4=4,ELAPVTables!D51,""),"") ->  | G54: =IF(MathPVTables!A51<>"",IF(MathPVTables!$B$4=4,MathPVTables!A51,""),"") ->  | H54: =IF(MathPVTables!B51<>"",IF(MathPVTables!$B$4=4,MathPVTables!B51,""),"") ->  | I54: =IF(MathPVTables!C51<>"",IF(MathPVTables!$B$4=4,MathPVTables!C51,""),"") ->  | K54: =IF(MathPVTables!D51<>"",IF(MathPVTables!$B$4=4,MathPVTables!D51,""),"") ->  | M54: =IF(ELAPVTables!I51<>"",IF(ELAPVTables!$J$4=5,ELAPVTables!I51,""),"") ->  | N54: =IF(ELAPVTables!J51<>"",IF(ELAPVTables!$J$4=5,ELAPVTables!J51,""),"") ->  | O54: =IF(ELAPVTables!K51<>"",IF(ELAPVTables!$J$4=5,ELAPVTables!K51,""),"") ->  | Q54: =IF(ELAPVTables!L51<>"",IF(ELAPVTables!$J$4=5,ELAPVTables!L51,""),"") ->  | S54: =IF(MathPVTables!I51<>"",IF(MathPVTables!$J$4=5,MathPVTables!I51,""),"") -> Student, 89 | T54: =IF(MathPVTables!J51<>"",IF(MathPVTables!$J$4=5,MathPVTables!J51,""),"") -> 1478 | U54: =IF(MathPVTables!K51<>"",IF(MathPVTables!$J$4=5,MathPVTables!K51,""),"") -> 8 | V54: Part. Prof. | W54: =IF(MathPVTables!L51<>"",IF(MathPVTables!$J$4=5,MathPVTables!L51,""),"") -> Quad 3 | Y54: =IF(SciencePVTables!Q51<>"",IF(SciencePVTables!$R$4=5,SciencePVTables!Q51,""),"") ->  | Z54: =IF(SciencePVTables!R51<>"",IF(SciencePVTables!$R$4=5,SciencePVTables!R51,""),"") ->  | AA54: =IF(SciencePVTables!S51<>"",IF(SciencePVTables!$R$4=5,SciencePVTables!S51,""),"") ->  | AC54: =IF(SciencePVTables!T51<>"",IF(SciencePVTables!$R$4=5,SciencePVTables!T51,""),"") ->  | AE54: =IF(SSPVTables!Q51<>"",IF(SSPVTables!$R$4=5,SSPVTables!Q51,""),"") -> Student, 94 | AF54: =IF(SSPVTables!R51<>"",IF(SSPVTables!$R$4=5,SSPVTables!R51,""),"") -> 1452 | AG54: =IF(SSPVTables!S51<>"",IF(SSPVTables!$R$4=5,SSPVTables!S51,""),"") -> 0 | AH54: Not Prof. | AI54: =IF(SSPVTables!T51<>"",IF(SSPVTables!$R$4=5,SSPVTables!T51,""),"") -> Quad 3
A55: =IF(ELAPVTables!A52<>"",IF(ELAPVTables!$B$4=4,ELAPVTables!A52,""),"") ->  | B55: =IF(ELAPVTables!B52<>"",IF(ELAPVTables!$B$4=4,ELAPVTables!B52,""),"") ->  | C55: =IF(ELAPVTables!C52<>"",IF(ELAPVTables!$B$4=4,ELAPVTables!C52,""),"") ->  | E55: =IF(ELAPVTables!D52<>"",IF(ELAPVTables!$B$4=4,ELAPVTables!D52,""),"") ->  | G55: =IF(MathPVTables!A52<>"",IF(MathPVTables!$B$4=4,MathPVTables!A52,""),"") ->  | H55: =IF(MathPVTables!B52<>"",IF(MathPVTables!$B$4=4,MathPVTables!B52,""),"") ->  | I55: =IF(MathPVTables!C52<>"",IF(MathPVTables!$B$4=4,MathPVTables!C52,""),"") ->  | K55: =IF(MathPVTables!D52<>"",IF(MathPVTables!$B$4=4,MathPVTables!D52,""),"") ->  | M55: =IF(ELAPVTables!I52<>"",IF(ELAPVTables!$J$4=5,ELAPVTables!I52,""),"") ->  | N55: =IF(ELAPVTables!J52<>"",IF(ELAPVTables!$J$4=5,ELAPVTables!J52,""),"") ->  | O55: =IF(ELAPVTables!K52<>"",IF(ELAPVTables!$J$4=5,ELAPVTables!K52,""),"") ->  | Q55: =IF(ELAPVTables!L52<>"",IF(ELAPVTables!$J$4=5,ELAPVTables!L52,""),"") ->  | S55: =IF(MathPVTables!I52<>"",IF(MathPVTables!$J$4=5,MathPVTables!I52,""),"") -> Student, 91 | T55: =IF(MathPVTables!J52<>"",IF(MathPVTables!$J$4=5,MathPVTables!J52,""),"") -> 1425 | U55: =IF(MathPVTables!K52<>"",IF(MathPVTables!$J$4=5,MathPVTables!K52,""),"") -> 4 | V55: Not Prof. | W55: =IF(MathPVTables!L52<>"",IF(MathPVTables!$J$4=5,MathPVTables!L52,""),"") -> Quad 3 | Y55: =IF(SciencePVTables!Q52<>"",IF(SciencePVTables!$R$4=5,SciencePVTables!Q52,""),"") ->  | Z55: =IF(SciencePVTables!R52<>"",IF(SciencePVTables!$R$4=5,SciencePVTables!R52,""),"") ->  | AA55: =IF(SciencePVTables!S52<>"",IF(SciencePVTables!$R$4=5,SciencePVTables!S52,""),"") ->  | AC55: =IF(SciencePVTables!T52<>"",IF(SciencePVTables!$R$4=5,SciencePVTables!T52,""),"") ->  | AE55: =IF(SSPVTables!Q52<>"",IF(SSPVTables!$R$4=5,SSPVTables!Q52,""),"") -> Student, 73 | AF55: =IF(SSPVTables!R52<>"",IF(SSPVTables!$R$4=5,SSPVTables!R52,""),"") -> 1448 | AG55: =IF(SSPVTables!S52<>"",IF(SSPVTables!$R$4=5,SSPVTables!S52,""),"") -> 0 | AH55: Not Prof. | AI55: =IF(SSPVTables!T52<>"",IF(SSPVTables!$R$4=5,SSPVTables!T52,""),"") -> Quad 3
A56: =IF(ELAPVTables!A53<>"",IF(ELAPVTables!$B$4=4,ELAPVTables!A53,""),"") ->  | B56: =IF(ELAPVTables!B53<>"",IF(ELAPVTables!$B$4=4,ELAPVTables!B53,""),"") ->  | C56: =IF(ELAPVTables!C53<>"",IF(ELAPVTables!$B$4=4,ELAPVTables!C53,""),"") ->  | E56: =IF(ELAPVTables!D53<>"",IF(ELAPVTables!$B$4=4,ELAPVTables!D53,""),"") ->  | G56: =IF(MathPVTables!A53<>"",IF(MathPVTables!$B$4=4,MathPVTables!A53,""),"") ->  | H56: =IF(MathPVTables!B53<>"",IF(MathPVTables!$B$4=4,MathPVTables!B53,""),"") ->  | I56: =IF(MathPVTables!C53<>"",IF(MathPVTables!$B$4=4,MathPVTables!C53,""),"") ->  | K56: =IF(MathPVTables!D53<>"",IF(MathPVTables!$B$4=4,MathPVTables!D53,""),"") ->  | M56: =IF(ELAPVTables!I53<>"",IF(ELAPVTables!$J$4=5,ELAPVTables!I53,""),"") ->  | N56: =IF(ELAPVTables!J53<>"",IF(ELAPVTables!$J$4=5,ELAPVTables!J53,""),"") ->  | O56: =IF(ELAPVTables!K53<>"",IF(ELAPVTables!$J$4=5,ELAPVTables!K53,""),"") ->  | Q56: =IF(ELAPVTables!L53<>"",IF(ELAPVTables!$J$4=5,ELAPVTables!L53,""),"") ->  | S56: =IF(MathPVTables!I53<>"",IF(MathPVTables!$J$4=5,MathPVTables!I53,""),"") -> Student, 86 | T56: =IF(MathPVTables!J53<>"",IF(MathPVTables!$J$4=5,MathPVTables!J53,""),"") -> 1465 | U56: =IF(MathPVTables!K53<>"",IF(MathPVTables!$J$4=5,MathPVTables!K53,""),"") -> 4 | V56: Not Prof. | W56: =IF(MathPVTables!L53<>"",IF(MathPVTables!$J$4=5,MathPVTables!L53,""),"") -> Quad 3 | Y56: =IF(SciencePVTables!Q53<>"",IF(SciencePVTables!$R$4=5,SciencePVTables!Q53,""),"") ->  | Z56: =IF(SciencePVTables!R53<>"",IF(SciencePVTables!$R$4=5,SciencePVTables!R53,""),"") ->  | AA56: =IF(SciencePVTables!S53<>"",IF(SciencePVTables!$R$4=5,SciencePVTables!S53,""),"") ->  | AC56: =IF(SciencePVTables!T53<>"",IF(SciencePVTables!$R$4=5,SciencePVTables!T53,""),"") ->  | AE56: =IF(SSPVTables!Q53<>"",IF(SSPVTables!$R$4=5,SSPVTables!Q53,""),"") -> Student, 54 | AF56: =IF(SSPVTables!R53<>"",IF(SSPVTables!$R$4=5,SSPVTables!R53,""),"") -> 1452 | AG56: =IF(SSPVTables!S53<>"",IF(SSPVTables!$R$4=5,SSPVTables!S53,""),"") -> 0 | AH56: Not Prof. | AI56: =IF(SSPVTables!T53<>"",IF(SSPVTables!$R$4=5,SSPVTables!T53,""),"") -> Quad 3
A57: =IF(ELAPVTables!A54<>"",IF(ELAPVTables!$B$4=4,ELAPVTables!A54,""),"") ->  | B57: =IF(ELAPVTables!B54<>"",IF(ELAPVTables!$B$4=4,ELAPVTables!B54,""),"") ->  | C57: =IF(ELAPVTables!C54<>"",IF(ELAPVTables!$B$4=4,ELAPVTables!C54,""),"") ->  | E57: =IF(ELAPVTables!D54<>"",IF(ELAPVTables!$B$4=4,ELAPVTables!D54,""),"") ->  | G57: =IF(MathPVTables!A54<>"",IF(MathPVTables!$B$4=4,MathPVTables!A54,""),"") ->  | H57: =IF(MathPVTables!B54<>"",IF(MathPVTables!$B$4=4,MathPVTables!B54,""),"") ->  | I57: =IF(MathPVTables!C54<>"",IF(MathPVTables!$B$4=4,MathPVTables!C54,""),"") ->  | K57: =IF(MathPVTables!D54<>"",IF(MathPVTables!$B$4=4,MathPVTables!D54,""),"") ->  | M57: =IF(ELAPVTables!I54<>"",IF(ELAPVTables!$J$4=5,ELAPVTables!I54,""),"") ->  | N57: =IF(ELAPVTables!J54<>"",IF(ELAPVTables!$J$4=5,ELAPVTables!J54,""),"") ->  | O57: =IF(ELAPVTables!K54<>"",IF(ELAPVTables!$J$4=5,ELAPVTables!K54,""),"") ->  | Q57: =IF(ELAPVTables!L54<>"",IF(ELAPVTables!$J$4=5,ELAPVTables!L54,""),"") ->  | S57: =IF(MathPVTables!I54<>"",IF(MathPVTables!$J$4=5,MathPVTables!I54,""),"") -> Student, 92 | T57: =IF(MathPVTables!J54<>"",IF(MathPVTables!$J$4=5,MathPVTables!J54,""),"") -> 1451 | U57: =IF(MathPVTables!K54<>"",IF(MathPVTables!$J$4=5,MathPVTables!K54,""),"") -> 0 | V57: Not Prof. | W57: =IF(MathPVTables!L54<>"",IF(MathPVTables!$J$4=5,MathPVTables!L54,""),"") -> Quad 3 | Y57: =IF(SciencePVTables!Q54<>"",IF(SciencePVTables!$R$4=5,SciencePVTables!Q54,""),"") ->  | Z57: =IF(SciencePVTables!R54<>"",IF(SciencePVTables!$R$4=5,SciencePVTables!R54,""),"") ->  | AA57: =IF(SciencePVTables!S54<>"",IF(SciencePVTables!$R$4=5,SciencePVTables!S54,""),"") ->  | AC57: =IF(SciencePVTables!T54<>"",IF(SciencePVTables!$R$4=5,SciencePVTables!T54,""),"") ->  | AE57: =IF(SSPVTables!Q54<>"",IF(SSPVTables!$R$4=5,SSPVTables!Q54,""),"") -> Student, 74 | AF57: =IF(SSPVTables!R54<>"",IF(SSPVTables!$R$4=5,SSPVTables!R54,""),"") -> 1458 | AG57: =IF(SSPVTables!S54<>"",IF(SSPVTables!$R$4=5,SSPVTables!S54,""),"") -> 0 | AH57: Part. Prof. | AI57: =IF(SSPVTables!T54<>"",IF(SSPVTables!$R$4=5,SSPVTables!T54,""),"") -> Quad 3
A58: =IF(ELAPVTables!A55<>"",IF(ELAPVTables!$B$4=4,ELAPVTables!A55,""),"") ->  | B58: =IF(ELAPVTables!B55<>"",IF(ELAPVTables!$B$4=4,ELAPVTables!B55,""),"") ->  | C58: =IF(ELAPVTables!C55<>"",IF(ELAPVTables!$B$4=4,ELAPVTables!C55,""),"") ->  | E58: =IF(ELAPVTables!D55<>"",IF(ELAPVTables!$B$4=4,ELAPVTables!D55,""),"") ->  | G58: =IF(MathPVTables!A55<>"",IF(MathPVTables!$B$4=4,MathPVTables!A55,""),"") ->  | H58: =IF(MathPVTables!B55<>"",IF(MathPVTables!$B$4=4,MathPVTables!B55,""),"") ->  | I58: =IF(MathPVTables!C55<>"",IF(MathPVTables!$B$4=4,MathPVTables!C55,""),"") ->  | K58: =IF(MathPVTables!D55<>"",IF(MathPVTables!$B$4=4,MathPVTables!D55,""),"") ->  | M58: =IF(ELAPVTables!I55<>"",IF(ELAPVTables!$J$4=5,ELAPVTables!I55,""),"") ->  | N58: =IF(ELAPVTables!J55<>"",IF(ELAPVTables!$J$4=5,ELAPVTables!J55,""),"") ->  | O58: =IF(ELAPVTables!K55<>"",IF(ELAPVTables!$J$4=5,ELAPVTables!K55,""),"") ->  | Q58: =IF(ELAPVTables!L55<>"",IF(ELAPVTables!$J$4=5,ELAPVTables!L55,""),"") ->  | S58: =IF(MathPVTables!I55<>"",IF(MathPVTables!$J$4=5,MathPVTables!I55,""),"") -> Grand Total | T58: =IF(MathPVTables!J55<>"",IF(MathPVTables!$J$4=5,MathPVTables!J55,""),"") -> 1479.452381 | U58: =IF(MathPVTables!K55<>"",IF(MathPVTables!$J$4=5,MathPVTables!K55,""),"") -> 93 | V58: Part. Prof. | W58: =IF(MathPVTables!L55<>"",IF(MathPVTables!$J$4=5,MathPVTables!L55,""),"") -> Quad 2 | Y58: =IF(SciencePVTables!Q55<>"",IF(SciencePVTables!$R$4=5,SciencePVTables!Q55,""),"") ->  | Z58: =IF(SciencePVTables!R55<>"",IF(SciencePVTables!$R$4=5,SciencePVTables!R55,""),"") ->  | AA58: =IF(SciencePVTables!S55<>"",IF(SciencePVTables!$R$4=5,SciencePVTables!S55,""),"") ->  | AC58: =IF(SciencePVTables!T55<>"",IF(SciencePVTables!$R$4=5,SciencePVTables!T55,""),"") ->  | AE58: =IF(SSPVTables!Q55<>"",IF(SSPVTables!$R$4=5,SSPVTables!Q55,""),"") -> Grand Total | AF58: =IF(SSPVTables!R55<>"",IF(SSPVTables!$R$4=5,SSPVTables!R55,""),"") -> 1470.785714 | AG58: =IF(SSPVTables!S55<>"",IF(SSPVTables!$R$4=5,SSPVTables!S55,""),"") -> 0 | AH58: Part. Prof. | AI58: =IF(SSPVTables!T55<>"",IF(SSPVTables!$R$4=5,SSPVTables!T55,""),"") -> Quad 3
A59: =IF(ELAPVTables!A56<>"",IF(ELAPVTables!$B$4=4,ELAPVTables!A56,""),"") ->  | B59: =IF(ELAPVTables!B56<>"",IF(ELAPVTables!$B$4=4,ELAPVTables!B56,""),"") ->  | C59: =IF(ELAPVTables!C56<>"",IF(ELAPVTables!$B$4=4,ELAPVTables!C56,""),"") ->  | E59: =IF(ELAPVTables!D56<>"",IF(ELAPVTables!$B$4=4,ELAPVTables!D56,""),"") ->  | G59: =IF(MathPVTables!A56<>"",IF(MathPVTables!$B$4=4,MathPVTables!A56,""),"") ->  | H59: =IF(MathPVTables!B56<>"",IF(MathPVTables!$B$4=4,MathPVTables!B56,""),"") ->  | I59: =IF(MathPVTables!C56<>"",IF(MathPVTables!$B$4=4,MathPVTables!C56,""),"") ->  | K59: =IF(MathPVTables!D56<>"",IF(MathPVTables!$B$4=4,MathPVTables!D56,""),"") ->  | M59: =IF(ELAPVTables!I56<>"",IF(ELAPVTables!$J$4=5,ELAPVTables!I56,""),"") ->  | N59: =IF(ELAPVTables!J56<>"",IF(ELAPVTables!$J$4=5,ELAPVTables!J56,""),"") ->  | O59: =IF(ELAPVTables!K56<>"",IF(ELAPVTables!$J$4=5,ELAPVTables!K56,""),"") ->  | Q59: =IF(ELAPVTables!L56<>"",IF(ELAPVTables!$J$4=5,ELAPVTables!L56,""),"") ->  | S59: =IF(MathPVTables!I56<>"",IF(MathPVTables!$J$4=5,MathPVTables!I56,""),"") ->  | T59: =IF(MathPVTables!J56<>"",IF(MathPVTables!$J$4=5,MathPVTables!J56,""),"") ->  | U59: =IF(MathPVTables!K56<>"",IF(MathPVTables!$J$4=5,MathPVTables!K56,""),"") ->  | W59: =IF(MathPVTables!L56<>"",IF(MathPVTables!$J$4=5,MathPVTables!L56,""),"") ->  | Y59: =IF(SciencePVTables!Q56<>"",IF(SciencePVTables!$R$4=5,SciencePVTables!Q56,""),"") ->  | Z59: =IF(SciencePVTables!R56<>"",IF(SciencePVTables!$R$4=5,SciencePVTables!R56,""),"") ->  | AA59: =IF(SciencePVTables!S56<>"",IF(SciencePVTables!$R$4=5,SciencePVTables!S56,""),"") ->  | AC59: =IF(SciencePVTables!T56<>"",IF(SciencePVTables!$R$4=5,SciencePVTables!T56,""),"") ->  | AE59: =IF(SSPVTables!Q56<>"",IF(SSPVTables!$R$4=5,SSPVTables!Q56,""),"") ->  | AF59: =IF(SSPVTables!R56<>"",IF(SSPVTables!$R$4=5,SSPVTables!R56,""),"") ->  | AG59: =IF(SSPVTables!S56<>"",IF(SSPVTables!$R$4=5,SSPVTables!S56,""),"") ->  | AI59: =IF(SSPVTables!T56<>"",IF(SSPVTables!$R$4=5,SSPVTables!T56,""),"") -> 
A60: =IF(ELAPVTables!A57<>"",IF(ELAPVTables!$B$4=4,ELAPVTables!A57,""),"") ->  | B60: =IF(ELAPVTables!B57<>"",IF(ELAPVTables!$B$4=4,ELAPVTables!B57,""),"") ->  | C60: =IF(ELAPVTables!C57<>"",IF(ELAPVTables!$B$4=4,ELAPVTables!C57,""),"") ->  | E60: =IF(ELAPVTables!D57<>"",IF(ELAPVTables!$B$4=4,ELAPVTables!D57,""),"") ->  | G60: =IF(MathPVTables!A57<>"",IF(MathPVTables!$B$4=4,MathPVTables!A57,""),"") ->  | H60: =IF(MathPVTables!B57<>"",IF(MathPVTables!$B$4=4,MathPVTables!B57,""),"") ->  | I60: =IF(MathPVTables!C57<>"",IF(MathPVTables!$B$4=4,MathPVTables!C57,""),"") ->  | K60: =IF(MathPVTables!D57<>"",IF(MathPVTables!$B$4=4,MathPVTables!D57,""),"") ->  | M60: =IF(ELAPVTables!I57<>"",IF(ELAPVTables!$J$4=5,ELAPVTables!I57,""),"") ->  | N60: =IF(ELAPVTables!J57<>"",IF(ELAPVTables!$J$4=5,ELAPVTables!J57,""),"") ->  | O60: =IF(ELAPVTables!K57<>"",IF(ELAPVTables!$J$4=5,ELAPVTables!K57,""),"") ->  | Q60: =IF(ELAPVTables!L57<>"",IF(ELAPVTables!$J$4=5,ELAPVTables!L57,""),"") ->  | S60: =IF(MathPVTables!I57<>"",IF(MathPVTables!$J$4=5,MathPVTables!I57,""),"") ->  | T60: =IF(MathPVTables!J57<>"",IF(MathPVTables!$J$4=5,MathPVTables!J57,""),"") ->  | U60: =IF(MathPVTables!K57<>"",IF(MathPVTables!$J$4=5,MathPVTables!K57,""),"") ->  | W60: =IF(MathPVTables!L57<>"",IF(MathPVTables!$J$4=5,MathPVTables!L57,""),"") ->  | Y60: =IF(SciencePVTables!Q57<>"",IF(SciencePVTables!$R$4=5,SciencePVTables!Q57,""),"") ->  | Z60: =IF(SciencePVTables!R57<>"",IF(SciencePVTables!$R$4=5,SciencePVTables!R57,""),"") ->  | AA60: =IF(SciencePVTables!S57<>"",IF(SciencePVTables!$R$4=5,SciencePVTables!S57,""),"") ->  | AC60: =IF(SciencePVTables!T57<>"",IF(SciencePVTables!$R$4=5,SciencePVTables!T57,""),"") ->  | AE60: =IF(SSPVTables!Q57<>"",IF(SSPVTables!$R$4=5,SSPVTables!Q57,""),"") ->  | AF60: =IF(SSPVTables!R57<>"",IF(SSPVTables!$R$4=5,SSPVTables!R57,""),"") ->  | AG60: =IF(SSPVTables!S57<>"",IF(SSPVTables!$R$4=5,SSPVTables!S57,""),"") ->  | AI60: =IF(SSPVTables!T57<>"",IF(SSPVTables!$R$4=5,SSPVTables!T57,""),"") -> 
A61: =IF(ELAPVTables!A58<>"",IF(ELAPVTables!$B$4=4,ELAPVTables!A58,""),"") ->  | B61: =IF(ELAPVTables!B58<>"",IF(ELAPVTables!$B$4=4,ELAPVTables!B58,""),"") ->  | C61: =IF(ELAPVTables!C58<>"",IF(ELAPVTables!$B$4=4,ELAPVTables!C58,""),"") ->  | E61: =IF(ELAPVTables!D58<>"",IF(ELAPVTables!$B$4=4,ELAPVTables!D58,""),"") ->  | G61: =IF(MathPVTables!A58<>"",IF(MathPVTables!$B$4=4,MathPVTables!A58,""),"") ->  | H61: =IF(MathPVTables!B58<>"",IF(MathPVTables!$B$4=4,MathPVTables!B58,""),"") ->  | I61: =IF(MathPVTables!C58<>"",IF(MathPVTables!$B$4=4,MathPVTables!C58,""),"") ->  | K61: =IF(MathPVTables!D58<>"",IF(MathPVTables!$B$4=4,MathPVTables!D58,""),"") ->  | M61: =IF(ELAPVTables!I58<>"",IF(ELAPVTables!$J$4=5,ELAPVTables!I58,""),"") ->  | N61: =IF(ELAPVTables!J58<>"",IF(ELAPVTables!$J$4=5,ELAPVTables!J58,""),"") ->  | O61: =IF(ELAPVTables!K58<>"",IF(ELAPVTables!$J$4=5,ELAPVTables!K58,""),"") ->  | Q61: =IF(ELAPVTables!L58<>"",IF(ELAPVTables!$J$4=5,ELAPVTables!L58,""),"") ->  | S61: =IF(MathPVTables!I58<>"",IF(MathPVTables!$J$4=5,MathPVTables!I58,""),"") ->  | T61: =IF(MathPVTables!J58<>"",IF(MathPVTables!$J$4=5,MathPVTables!J58,""),"") ->  | U61: =IF(MathPVTables!K58<>"",IF(MathPVTables!$J$4=5,MathPVTables!K58,""),"") ->  | W61: =IF(MathPVTables!L58<>"",IF(MathPVTables!$J$4=5,MathPVTables!L58,""),"") ->  | Y61: =IF(SciencePVTables!Q58<>"",IF(SciencePVTables!$R$4=5,SciencePVTables!Q58,""),"") ->  | Z61: =IF(SciencePVTables!R58<>"",IF(SciencePVTables!$R$4=5,SciencePVTables!R58,""),"") ->  | AA61: =IF(SciencePVTables!S58<>"",IF(SciencePVTables!$R$4=5,SciencePVTables!S58,""),"") ->  | AC61: =IF(SciencePVTables!T58<>"",IF(SciencePVTables!$R$4=5,SciencePVTables!T58,""),"") ->  | AE61: =IF(SSPVTables!Q58<>"",IF(SSPVTables!$R$4=5,SSPVTables!Q58,""),"") ->  | AF61: =IF(SSPVTables!R58<>"",IF(SSPVTables!$R$4=5,SSPVTables!R58,""),"") ->  | AG61: =IF(SSPVTables!S58<>"",IF(SSPVTables!$R$4=5,SSPVTables!S58,""),"") ->  | AI61: =IF(SSPVTables!T58<>"",IF(SSPVTables!$R$4=5,SSPVTables!T58,""),"") -> 
A62: =IF(ELAPVTables!A59<>"",IF(ELAPVTables!$B$4=4,ELAPVTables!A59,""),"") ->  | B62: =IF(ELAPVTables!B59<>"",IF(ELAPVTables!$B$4=4,ELAPVTables!B59,""),"") ->  | C62: =IF(ELAPVTables!C59<>"",IF(ELAPVTables!$B$4=4,ELAPVTables!C59,""),"") ->  | E62: =IF(ELAPVTables!D59<>"",IF(ELAPVTables!$B$4=4,ELAPVTables!D59,""),"") ->  | G62: =IF(MathPVTables!A59<>"",IF(MathPVTables!$B$4=4,MathPVTables!A59,""),"") ->  | H62: =IF(MathPVTables!B59<>"",IF(MathPVTables!$B$4=4,MathPVTables!B59,""),"") ->  | I62: =IF(MathPVTables!C59<>"",IF(MathPVTables!$B$4=4,MathPVTables!C59,""),"") ->  | K62: =IF(MathPVTables!D59<>"",IF(MathPVTables!$B$4=4,MathPVTables!D59,""),"") ->  | M62: =IF(ELAPVTables!I59<>"",IF(ELAPVTables!$J$4=5,ELAPVTables!I59,""),"") ->  | N62: =IF(ELAPVTables!J59<>"",IF(ELAPVTables!$J$4=5,ELAPVTables!J59,""),"") ->  | O62: =IF(ELAPVTables!K59<>"",IF(ELAPVTables!$J$4=5,ELAPVTables!K59,""),"") ->  | Q62: =IF(ELAPVTables!L59<>"",IF(ELAPVTables!$J$4=5,ELAPVTables!L59,""),"") ->  | S62: =IF(MathPVTables!I59<>"",IF(MathPVTables!$J$4=5,MathPVTables!I59,""),"") ->  | T62: =IF(MathPVTables!J59<>"",IF(MathPVTables!$J$4=5,MathPVTables!J59,""),"") ->  | U62: =IF(MathPVTables!K59<>"",IF(MathPVTables!$J$4=5,MathPVTables!K59,""),"") ->  | W62: =IF(MathPVTables!L59<>"",IF(MathPVTables!$J$4=5,MathPVTables!L59,""),"") ->  | Y62: =IF(SciencePVTables!Q59<>"",IF(SciencePVTables!$R$4=5,SciencePVTables!Q59,""),"") ->  | Z62: =IF(SciencePVTables!R59<>"",IF(SciencePVTables!$R$4=5,SciencePVTables!R59,""),"") ->  | AA62: =IF(SciencePVTables!S59<>"",IF(SciencePVTables!$R$4=5,SciencePVTables!S59,""),"") ->  | AC62: =IF(SciencePVTables!T59<>"",IF(SciencePVTables!$R$4=5,SciencePVTables!T59,""),"") ->  | AE62: =IF(SSPVTables!Q59<>"",IF(SSPVTables!$R$4=5,SSPVTables!Q59,""),"") ->  | AF62: =IF(SSPVTables!R59<>"",IF(SSPVTables!$R$4=5,SSPVTables!R59,""),"") ->  | AG62: =IF(SSPVTables!S59<>"",IF(SSPVTables!$R$4=5,SSPVTables!S59,""),"") ->  | AI62: =IF(SSPVTables!T59<>"",IF(SSPVTables!$R$4=5,SSPVTables!T59,""),"") -> 
A63: =IF(ELAPVTables!A60<>"",IF(ELAPVTables!$B$4=4,ELAPVTables!A60,""),"") ->  | B63: =IF(ELAPVTables!B60<>"",IF(ELAPVTables!$B$4=4,ELAPVTables!B60,""),"") ->  | C63: =IF(ELAPVTables!C60<>"",IF(ELAPVTables!$B$4=4,ELAPVTables!C60,""),"") ->  | E63: =IF(ELAPVTables!D60<>"",IF(ELAPVTables!$B$4=4,ELAPVTables!D60,""),"") ->  | G63: =IF(MathPVTables!A60<>"",IF(MathPVTables!$B$4=4,MathPVTables!A60,""),"") ->  | H63: =IF(MathPVTables!B60<>"",IF(MathPVTables!$B$4=4,MathPVTables!B60,""),"") ->  | I63: =IF(MathPVTables!C60<>"",IF(MathPVTables!$B$4=4,MathPVTables!C60,""),"") ->  | K63: =IF(MathPVTables!D60<>"",IF(MathPVTables!$B$4=4,MathPVTables!D60,""),"") ->  | M63: =IF(ELAPVTables!I60<>"",IF(ELAPVTables!$J$4=5,ELAPVTables!I60,""),"") ->  | N63: =IF(ELAPVTables!J60<>"",IF(ELAPVTables!$J$4=5,ELAPVTables!J60,""),"") ->  | O63: =IF(ELAPVTables!K60<>"",IF(ELAPVTables!$J$4=5,ELAPVTables!K60,""),"") ->  | Q63: =IF(ELAPVTables!L60<>"",IF(ELAPVTables!$J$4=5,ELAPVTables!L60,""),"") ->  | S63: =IF(MathPVTables!I60<>"",IF(MathPVTables!$J$4=5,MathPVTables!I60,""),"") ->  | T63: =IF(MathPVTables!J60<>"",IF(MathPVTables!$J$4=5,MathPVTables!J60,""),"") ->  | U63: =IF(MathPVTables!K60<>"",IF(MathPVTables!$J$4=5,MathPVTables!K60,""),"") ->  | W63: =IF(MathPVTables!L60<>"",IF(MathPVTables!$J$4=5,MathPVTables!L60,""),"") ->  | Y63: =IF(SciencePVTables!Q60<>"",IF(SciencePVTables!$R$4=5,SciencePVTables!Q60,""),"") ->  | Z63: =IF(SciencePVTables!R60<>"",IF(SciencePVTables!$R$4=5,SciencePVTables!R60,""),"") ->  | AA63: =IF(SciencePVTables!S60<>"",IF(SciencePVTables!$R$4=5,SciencePVTables!S60,""),"") ->  | AC63: =IF(SciencePVTables!T60<>"",IF(SciencePVTables!$R$4=5,SciencePVTables!T60,""),"") ->  | AE63: =IF(SSPVTables!Q60<>"",IF(SSPVTables!$R$4=5,SSPVTables!Q60,""),"") ->  | AF63: =IF(SSPVTables!R60<>"",IF(SSPVTables!$R$4=5,SSPVTables!R60,""),"") ->  | AG63: =IF(SSPVTables!S60<>"",IF(SSPVTables!$R$4=5,SSPVTables!S60,""),"") ->  | AI63: =IF(SSPVTables!T60<>"",IF(SSPVTables!$R$4=5,SSPVTables!T60,""),"") -> 
A64: =IF(ELAPVTables!A61<>"",IF(ELAPVTables!$B$4=4,ELAPVTables!A61,""),"") ->  | B64: =IF(ELAPVTables!B61<>"",IF(ELAPVTables!$B$4=4,ELAPVTables!B61,""),"") ->  | C64: =IF(ELAPVTables!C61<>"",IF(ELAPVTables!$B$4=4,ELAPVTables!C61,""),"") ->  | E64: =IF(ELAPVTables!D61<>"",IF(ELAPVTables!$B$4=4,ELAPVTables!D61,""),"") ->  | G64: =IF(MathPVTables!A61<>"",IF(MathPVTables!$B$4=4,MathPVTables!A61,""),"") ->  | H64: =IF(MathPVTables!B61<>"",IF(MathPVTables!$B$4=4,MathPVTables!B61,""),"") ->  | I64: =IF(MathPVTables!C61<>"",IF(MathPVTables!$B$4=4,MathPVTables!C61,""),"") ->  | K64: =IF(MathPVTables!D61<>"",IF(MathPVTables!$B$4=4,MathPVTables!D61,""),"") ->  | M64: =IF(ELAPVTables!I61<>"",IF(ELAPVTables!$J$4=5,ELAPVTables!I61,""),"") ->  | N64: =IF(ELAPVTables!J61<>"",IF(ELAPVTables!$J$4=5,ELAPVTables!J61,""),"") ->  | O64: =IF(ELAPVTables!K61<>"",IF(ELAPVTables!$J$4=5,ELAPVTables!K61,""),"") ->  | Q64: =IF(ELAPVTables!L61<>"",IF(ELAPVTables!$J$4=5,ELAPVTables!L61,""),"") ->  | S64: =IF(MathPVTables!I61<>"",IF(MathPVTables!$J$4=5,MathPVTables!I61,""),"") ->  | T64: =IF(MathPVTables!J61<>"",IF(MathPVTables!$J$4=5,MathPVTables!J61,""),"") ->  | U64: =IF(MathPVTables!K61<>"",IF(MathPVTables!$J$4=5,MathPVTables!K61,""),"") ->  | W64: =IF(MathPVTables!L61<>"",IF(MathPVTables!$J$4=5,MathPVTables!L61,""),"") ->  | Y64: =IF(SciencePVTables!Q61<>"",IF(SciencePVTables!$R$4=5,SciencePVTables!Q61,""),"") ->  | Z64: =IF(SciencePVTables!R61<>"",IF(SciencePVTables!$R$4=5,SciencePVTables!R61,""),"") ->  | AA64: =IF(SciencePVTables!S61<>"",IF(SciencePVTables!$R$4=5,SciencePVTables!S61,""),"") ->  | AC64: =IF(SciencePVTables!T61<>"",IF(SciencePVTables!$R$4=5,SciencePVTables!T61,""),"") ->  | AE64: =IF(SSPVTables!Q61<>"",IF(SSPVTables!$R$4=5,SSPVTables!Q61,""),"") ->  | AF64: =IF(SSPVTables!R61<>"",IF(SSPVTables!$R$4=5,SSPVTables!R61,""),"") ->  | AG64: =IF(SSPVTables!S61<>"",IF(SSPVTables!$R$4=5,SSPVTables!S61,""),"") ->  | AI64: =IF(SSPVTables!T61<>"",IF(SSPVTables!$R$4=5,SSPVTables!T61,""),"") -> 
A65: =IF(ELAPVTables!A62<>"",IF(ELAPVTables!$B$4=4,ELAPVTables!A62,""),"") ->  | B65: =IF(ELAPVTables!B62<>"",IF(ELAPVTables!$B$4=4,ELAPVTables!B62,""),"") ->  | C65: =IF(ELAPVTables!C62<>"",IF(ELAPVTables!$B$4=4,ELAPVTables!C62,""),"") ->  | E65: =IF(ELAPVTables!D62<>"",IF(ELAPVTables!$B$4=4,ELAPVTables!D62,""),"") ->  | G65: =IF(MathPVTables!A62<>"",IF(MathPVTables!$B$4=4,MathPVTables!A62,""),"") ->  | H65: =IF(MathPVTables!B62<>"",IF(MathPVTables!$B$4=4,MathPVTables!B62,""),"") ->  | I65: =IF(MathPVTables!C62<>"",IF(MathPVTables!$B$4=4,MathPVTables!C62,""),"") ->  | K65: =IF(MathPVTables!D62<>"",IF(MathPVTables!$B$4=4,MathPVTables!D62,""),"") ->  | M65: =IF(ELAPVTables!I62<>"",IF(ELAPVTables!$J$4=5,ELAPVTables!I62,""),"") ->  | N65: =IF(ELAPVTables!J62<>"",IF(ELAPVTables!$J$4=5,ELAPVTables!J62,""),"") ->  | O65: =IF(ELAPVTables!K62<>"",IF(ELAPVTables!$J$4=5,ELAPVTables!K62,""),"") ->  | Q65: =IF(ELAPVTables!L62<>"",IF(ELAPVTables!$J$4=5,ELAPVTables!L62,""),"") ->  | S65: =IF(MathPVTables!I62<>"",IF(MathPVTables!$J$4=5,MathPVTables!I62,""),"") ->  | T65: =IF(MathPVTables!J62<>"",IF(MathPVTables!$J$4=5,MathPVTables!J62,""),"") ->  | U65: =IF(MathPVTables!K62<>"",IF(MathPVTables!$J$4=5,MathPVTables!K62,""),"") ->  | W65: =IF(MathPVTables!L62<>"",IF(MathPVTables!$J$4=5,MathPVTables!L62,""),"") ->  | Y65: =IF(SciencePVTables!Q62<>"",IF(SciencePVTables!$R$4=5,SciencePVTables!Q62,""),"") ->  | Z65: =IF(SciencePVTables!R62<>"",IF(SciencePVTables!$R$4=5,SciencePVTables!R62,""),"") ->  | AA65: =IF(SciencePVTables!S62<>"",IF(SciencePVTables!$R$4=5,SciencePVTables!S62,""),"") ->  | AC65: =IF(SciencePVTables!T62<>"",IF(SciencePVTables!$R$4=5,SciencePVTables!T62,""),"") ->  | AE65: =IF(SSPVTables!Q62<>"",IF(SSPVTables!$R$4=5,SSPVTables!Q62,""),"") ->  | AF65: =IF(SSPVTables!R62<>"",IF(SSPVTables!$R$4=5,SSPVTables!R62,""),"") ->  | AG65: =IF(SSPVTables!S62<>"",IF(SSPVTables!$R$4=5,SSPVTables!S62,""),"") ->  | AI65: =IF(SSPVTables!T62<>"",IF(SSPVTables!$R$4=5,SSPVTables!T62,""),"") -> 
A66: =IF(ELAPVTables!A63<>"",IF(ELAPVTables!$B$4=4,ELAPVTables!A63,""),"") ->  | B66: =IF(ELAPVTables!B63<>"",IF(ELAPVTables!$B$4=4,ELAPVTables!B63,""),"") ->  | C66: =IF(ELAPVTables!C63<>"",IF(ELAPVTables!$B$4=4,ELAPVTables!C63,""),"") ->  | E66: =IF(ELAPVTables!D63<>"",IF(ELAPVTables!$B$4=4,ELAPVTables!D63,""),"") ->  | G66: =IF(MathPVTables!A63<>"",IF(MathPVTables!$B$4=4,MathPVTables!A63,""),"") ->  | H66: =IF(MathPVTables!B63<>"",IF(MathPVTables!$B$4=4,MathPVTables!B63,""),"") ->  | I66: =IF(MathPVTables!C63<>"",IF(MathPVTables!$B$4=4,MathPVTables!C63,""),"") ->  | K66: =IF(MathPVTables!D63<>"",IF(MathPVTables!$B$4=4,MathPVTables!D63,""),"") ->  | M66: =IF(ELAPVTables!I63<>"",IF(ELAPVTables!$J$4=5,ELAPVTables!I63,""),"") ->  | N66: =IF(ELAPVTables!J63<>"",IF(ELAPVTables!$J$4=5,ELAPVTables!J63,""),"") ->  | O66: =IF(ELAPVTables!K63<>"",IF(ELAPVTables!$J$4=5,ELAPVTables!K63,""),"") ->  | Q66: =IF(ELAPVTables!L63<>"",IF(ELAPVTables!$J$4=5,ELAPVTables!L63,""),"") ->  | S66: =IF(MathPVTables!I63<>"",IF(MathPVTables!$J$4=5,MathPVTables!I63,""),"") ->  | T66: =IF(MathPVTables!J63<>"",IF(MathPVTables!$J$4=5,MathPVTables!J63,""),"") ->  | U66: =IF(MathPVTables!K63<>"",IF(MathPVTables!$J$4=5,MathPVTables!K63,""),"") ->  | W66: =IF(MathPVTables!L63<>"",IF(MathPVTables!$J$4=5,MathPVTables!L63,""),"") ->  | Y66: =IF(SciencePVTables!Q63<>"",IF(SciencePVTables!$R$4=5,SciencePVTables!Q63,""),"") ->  | Z66: =IF(SciencePVTables!R63<>"",IF(SciencePVTables!$R$4=5,SciencePVTables!R63,""),"") ->  | AA66: =IF(SciencePVTables!S63<>"",IF(SciencePVTables!$R$4=5,SciencePVTables!S63,""),"") ->  | AC66: =IF(SciencePVTables!T63<>"",IF(SciencePVTables!$R$4=5,SciencePVTables!T63,""),"") ->  | AE66: =IF(SSPVTables!Q63<>"",IF(SSPVTables!$R$4=5,SSPVTables!Q63,""),"") ->  | AF66: =IF(SSPVTables!R63<>"",IF(SSPVTables!$R$4=5,SSPVTables!R63,""),"") ->  | AG66: =IF(SSPVTables!S63<>"",IF(SSPVTables!$R$4=5,SSPVTables!S63,""),"") ->  | AI66: =IF(SSPVTables!T63<>"",IF(SSPVTables!$R$4=5,SSPVTables!T63,""),"") -> 
A67: =IF(ELAPVTables!A64<>"",IF(ELAPVTables!$B$4=4,ELAPVTables!A64,""),"") ->  | B67: =IF(ELAPVTables!B64<>"",IF(ELAPVTables!$B$4=4,ELAPVTables!B64,""),"") ->  | C67: =IF(ELAPVTables!C64<>"",IF(ELAPVTables!$B$4=4,ELAPVTables!C64,""),"") ->  | E67: =IF(ELAPVTables!D64<>"",IF(ELAPVTables!$B$4=4,ELAPVTables!D64,""),"") ->  | G67: =IF(MathPVTables!A64<>"",IF(MathPVTables!$B$4=4,MathPVTables!A64,""),"") ->  | H67: =IF(MathPVTables!B64<>"",IF(MathPVTables!$B$4=4,MathPVTables!B64,""),"") ->  | I67: =IF(MathPVTables!C64<>"",IF(MathPVTables!$B$4=4,MathPVTables!C64,""),"") ->  | K67: =IF(MathPVTables!D64<>"",IF(MathPVTables!$B$4=4,MathPVTables!D64,""),"") ->  | M67: =IF(ELAPVTables!I64<>"",IF(ELAPVTables!$J$4=5,ELAPVTables!I64,""),"") ->  | N67: =IF(ELAPVTables!J64<>"",IF(ELAPVTables!$J$4=5,ELAPVTables!J64,""),"") ->  | O67: =IF(ELAPVTables!K64<>"",IF(ELAPVTables!$J$4=5,ELAPVTables!K64,""),"") ->  | Q67: =IF(ELAPVTables!L64<>"",IF(ELAPVTables!$J$4=5,ELAPVTables!L64,""),"") ->  | S67: =IF(MathPVTables!I64<>"",IF(MathPVTables!$J$4=5,MathPVTables!I64,""),"") ->  | T67: =IF(MathPVTables!J64<>"",IF(MathPVTables!$J$4=5,MathPVTables!J64,""),"") ->  | U67: =IF(MathPVTables!K64<>"",IF(MathPVTables!$J$4=5,MathPVTables!K64,""),"") ->  | W67: =IF(MathPVTables!L64<>"",IF(MathPVTables!$J$4=5,MathPVTables!L64,""),"") ->  | Y67: =IF(SciencePVTables!Q64<>"",IF(SciencePVTables!$R$4=5,SciencePVTables!Q64,""),"") ->  | Z67: =IF(SciencePVTables!R64<>"",IF(SciencePVTables!$R$4=5,SciencePVTables!R64,""),"") ->  | AA67: =IF(SciencePVTables!S64<>"",IF(SciencePVTables!$R$4=5,SciencePVTables!S64,""),"") ->  | AC67: =IF(SciencePVTables!T64<>"",IF(SciencePVTables!$R$4=5,SciencePVTables!T64,""),"") ->  | AE67: =IF(SSPVTables!Q64<>"",IF(SSPVTables!$R$4=5,SSPVTables!Q64,""),"") ->  | AF67: =IF(SSPVTables!R64<>"",IF(SSPVTables!$R$4=5,SSPVTables!R64,""),"") ->  | AG67: =IF(SSPVTables!S64<>"",IF(SSPVTables!$R$4=5,SSPVTables!S64,""),"") ->  | AI67: =IF(SSPVTables!T64<>"",IF(SSPVTables!$R$4=5,SSPVTables!T64,""),"") -> 
A68: =IF(ELAPVTables!A65<>"",IF(ELAPVTables!$B$4=4,ELAPVTables!A65,""),"") ->  | B68: =IF(ELAPVTables!B65<>"",IF(ELAPVTables!$B$4=4,ELAPVTables!B65,""),"") ->  | C68: =IF(ELAPVTables!C65<>"",IF(ELAPVTables!$B$4=4,ELAPVTables!C65,""),"") ->  | E68: =IF(ELAPVTables!D65<>"",IF(ELAPVTables!$B$4=4,ELAPVTables!D65,""),"") ->  | G68: =IF(MathPVTables!A65<>"",IF(MathPVTables!$B$4=4,MathPVTables!A65,""),"") ->  | H68: =IF(MathPVTables!B65<>"",IF(MathPVTables!$B$4=4,MathPVTables!B65,""),"") ->  | I68: =IF(MathPVTables!C65<>"",IF(MathPVTables!$B$4=4,MathPVTables!C65,""),"") ->  | K68: =IF(MathPVTables!D65<>"",IF(MathPVTables!$B$4=4,MathPVTables!D65,""),"") ->  | M68: =IF(ELAPVTables!I65<>"",IF(ELAPVTables!$J$4=5,ELAPVTables!I65,""),"") ->  | N68: =IF(ELAPVTables!J65<>"",IF(ELAPVTables!$J$4=5,ELAPVTables!J65,""),"") ->  | O68: =IF(ELAPVTables!K65<>"",IF(ELAPVTables!$J$4=5,ELAPVTables!K65,""),"") ->  | Q68: =IF(ELAPVTables!L65<>"",IF(ELAPVTables!$J$4=5,ELAPVTables!L65,""),"") ->  | S68: =IF(MathPVTables!I65<>"",IF(MathPVTables!$J$4=5,MathPVTables!I65,""),"") ->  | T68: =IF(MathPVTables!J65<>"",IF(MathPVTables!$J$4=5,MathPVTables!J65,""),"") ->  | U68: =IF(MathPVTables!K65<>"",IF(MathPVTables!$J$4=5,MathPVTables!K65,""),"") ->  | W68: =IF(MathPVTables!L65<>"",IF(MathPVTables!$J$4=5,MathPVTables!L65,""),"") ->  | Y68: =IF(SciencePVTables!Q65<>"",IF(SciencePVTables!$R$4=5,SciencePVTables!Q65,""),"") ->  | Z68: =IF(SciencePVTables!R65<>"",IF(SciencePVTables!$R$4=5,SciencePVTables!R65,""),"") ->  | AA68: =IF(SciencePVTables!S65<>"",IF(SciencePVTables!$R$4=5,SciencePVTables!S65,""),"") ->  | AC68: =IF(SciencePVTables!T65<>"",IF(SciencePVTables!$R$4=5,SciencePVTables!T65,""),"") ->  | AE68: =IF(SSPVTables!Q65<>"",IF(SSPVTables!$R$4=5,SSPVTables!Q65,""),"") ->  | AF68: =IF(SSPVTables!R65<>"",IF(SSPVTables!$R$4=5,SSPVTables!R65,""),"") ->  | AG68: =IF(SSPVTables!S65<>"",IF(SSPVTables!$R$4=5,SSPVTables!S65,""),"") ->  | AI68: =IF(SSPVTables!T65<>"",IF(SSPVTables!$R$4=5,SSPVTables!T65,""),"") -> 
A69: =IF(ELAPVTables!A66<>"",IF(ELAPVTables!$B$4=4,ELAPVTables!A66,""),"") ->  | B69: =IF(ELAPVTables!B66<>"",IF(ELAPVTables!$B$4=4,ELAPVTables!B66,""),"") ->  | C69: =IF(ELAPVTables!C66<>"",IF(ELAPVTables!$B$4=4,ELAPVTables!C66,""),"") ->  | E69: =IF(ELAPVTables!D66<>"",IF(ELAPVTables!$B$4=4,ELAPVTables!D66,""),"") ->  | G69: =IF(MathPVTables!A66<>"",IF(MathPVTables!$B$4=4,MathPVTables!A66,""),"") ->  | H69: =IF(MathPVTables!B66<>"",IF(MathPVTables!$B$4=4,MathPVTables!B66,""),"") ->  | I69: =IF(MathPVTables!C66<>"",IF(MathPVTables!$B$4=4,MathPVTables!C66,""),"") ->  | K69: =IF(MathPVTables!D66<>"",IF(MathPVTables!$B$4=4,MathPVTables!D66,""),"") ->  | M69: =IF(ELAPVTables!I66<>"",IF(ELAPVTables!$J$4=5,ELAPVTables!I66,""),"") ->  | N69: =IF(ELAPVTables!J66<>"",IF(ELAPVTables!$J$4=5,ELAPVTables!J66,""),"") ->  | O69: =IF(ELAPVTables!K66<>"",IF(ELAPVTables!$J$4=5,ELAPVTables!K66,""),"") ->  | Q69: =IF(ELAPVTables!L66<>"",IF(ELAPVTables!$J$4=5,ELAPVTables!L66,""),"") ->  | S69: =IF(MathPVTables!I66<>"",IF(MathPVTables!$J$4=5,MathPVTables!I66,""),"") ->  | T69: =IF(MathPVTables!J66<>"",IF(MathPVTables!$J$4=5,MathPVTables!J66,""),"") ->  | U69: =IF(MathPVTables!K66<>"",IF(MathPVTables!$J$4=5,MathPVTables!K66,""),"") ->  | W69: =IF(MathPVTables!L66<>"",IF(MathPVTables!$J$4=5,MathPVTables!L66,""),"") ->  | Y69: =IF(SciencePVTables!Q66<>"",IF(SciencePVTables!$R$4=5,SciencePVTables!Q66,""),"") ->  | Z69: =IF(SciencePVTables!R66<>"",IF(SciencePVTables!$R$4=5,SciencePVTables!R66,""),"") ->  | AA69: =IF(SciencePVTables!S66<>"",IF(SciencePVTables!$R$4=5,SciencePVTables!S66,""),"") ->  | AC69: =IF(SciencePVTables!T66<>"",IF(SciencePVTables!$R$4=5,SciencePVTables!T66,""),"") ->  | AE69: =IF(SSPVTables!Q66<>"",IF(SSPVTables!$R$4=5,SSPVTables!Q66,""),"") ->  | AF69: =IF(SSPVTables!R66<>"",IF(SSPVTables!$R$4=5,SSPVTables!R66,""),"") ->  | AG69: =IF(SSPVTables!S66<>"",IF(SSPVTables!$R$4=5,SSPVTables!S66,""),"") ->  | AI69: =IF(SSPVTables!T66<>"",IF(SSPVTables!$R$4=5,SSPVTables!T66,""),"") -> 
A70: =IF(ELAPVTables!A67<>"",IF(ELAPVTables!$B$4=4,ELAPVTables!A67,""),"") ->  | B70: =IF(ELAPVTables!B67<>"",IF(ELAPVTables!$B$4=4,ELAPVTables!B67,""),"") ->  | C70: =IF(ELAPVTables!C67<>"",IF(ELAPVTables!$B$4=4,ELAPVTables!C67,""),"") ->  | E70: =IF(ELAPVTables!D67<>"",IF(ELAPVTables!$B$4=4,ELAPVTables!D67,""),"") ->  | G70: =IF(MathPVTables!A67<>"",IF(MathPVTables!$B$4=4,MathPVTables!A67,""),"") ->  | H70: =IF(MathPVTables!B67<>"",IF(MathPVTables!$B$4=4,MathPVTables!B67,""),"") ->  | I70: =IF(MathPVTables!C67<>"",IF(MathPVTables!$B$4=4,MathPVTables!C67,""),"") ->  | K70: =IF(MathPVTables!D67<>"",IF(MathPVTables!$B$4=4,MathPVTables!D67,""),"") ->  | M70: =IF(ELAPVTables!I67<>"",IF(ELAPVTables!$J$4=5,ELAPVTables!I67,""),"") ->  | N70: =IF(ELAPVTables!J67<>"",IF(ELAPVTables!$J$4=5,ELAPVTables!J67,""),"") ->  | O70: =IF(ELAPVTables!K67<>"",IF(ELAPVTables!$J$4=5,ELAPVTables!K67,""),"") ->  | Q70: =IF(ELAPVTables!L67<>"",IF(ELAPVTables!$J$4=5,ELAPVTables!L67,""),"") ->  | S70: =IF(MathPVTables!I67<>"",IF(MathPVTables!$J$4=5,MathPVTables!I67,""),"") ->  | T70: =IF(MathPVTables!J67<>"",IF(MathPVTables!$J$4=5,MathPVTables!J67,""),"") ->  | U70: =IF(MathPVTables!K67<>"",IF(MathPVTables!$J$4=5,MathPVTables!K67,""),"") ->  | W70: =IF(MathPVTables!L67<>"",IF(MathPVTables!$J$4=5,MathPVTables!L67,""),"") ->  | Y70: =IF(SciencePVTables!Q67<>"",IF(SciencePVTables!$R$4=5,SciencePVTables!Q67,""),"") ->  | Z70: =IF(SciencePVTables!R67<>"",IF(SciencePVTables!$R$4=5,SciencePVTables!R67,""),"") ->  | AA70: =IF(SciencePVTables!S67<>"",IF(SciencePVTables!$R$4=5,SciencePVTables!S67,""),"") ->  | AC70: =IF(SciencePVTables!T67<>"",IF(SciencePVTables!$R$4=5,SciencePVTables!T67,""),"") ->  | AE70: =IF(SSPVTables!Q67<>"",IF(SSPVTables!$R$4=5,SSPVTables!Q67,""),"") ->  | AF70: =IF(SSPVTables!R67<>"",IF(SSPVTables!$R$4=5,SSPVTables!R67,""),"") ->  | AG70: =IF(SSPVTables!S67<>"",IF(SSPVTables!$R$4=5,SSPVTables!S67,""),"") ->  | AI70: =IF(SSPVTables!T67<>"",IF(SSPVTables!$R$4=5,SSPVTables!T67,""),"") -> 
A71: =IF(ELAPVTables!A68<>"",IF(ELAPVTables!$B$4=4,ELAPVTables!A68,""),"") ->  | B71: =IF(ELAPVTables!B68<>"",IF(ELAPVTables!$B$4=4,ELAPVTables!B68,""),"") ->  | C71: =IF(ELAPVTables!C68<>"",IF(ELAPVTables!$B$4=4,ELAPVTables!C68,""),"") ->  | E71: =IF(ELAPVTables!D68<>"",IF(ELAPVTables!$B$4=4,ELAPVTables!D68,""),"") ->  | G71: =IF(MathPVTables!A68<>"",IF(MathPVTables!$B$4=4,MathPVTables!A68,""),"") ->  | H71: =IF(MathPVTables!B68<>"",IF(MathPVTables!$B$4=4,MathPVTables!B68,""),"") ->  | I71: =IF(MathPVTables!C68<>"",IF(MathPVTables!$B$4=4,MathPVTables!C68,""),"") ->  | K71: =IF(MathPVTables!D68<>"",IF(MathPVTables!$B$4=4,MathPVTables!D68,""),"") ->  | M71: =IF(ELAPVTables!I68<>"",IF(ELAPVTables!$J$4=5,ELAPVTables!I68,""),"") ->  | N71: =IF(ELAPVTables!J68<>"",IF(ELAPVTables!$J$4=5,ELAPVTables!J68,""),"") ->  | O71: =IF(ELAPVTables!K68<>"",IF(ELAPVTables!$J$4=5,ELAPVTables!K68,""),"") ->  | Q71: =IF(ELAPVTables!L68<>"",IF(ELAPVTables!$J$4=5,ELAPVTables!L68,""),"") ->  | S71: =IF(MathPVTables!I68<>"",IF(MathPVTables!$J$4=5,MathPVTables!I68,""),"") ->  | T71: =IF(MathPVTables!J68<>"",IF(MathPVTables!$J$4=5,MathPVTables!J68,""),"") ->  | U71: =IF(MathPVTables!K68<>"",IF(MathPVTables!$J$4=5,MathPVTables!K68,""),"") ->  | W71: =IF(MathPVTables!L68<>"",IF(MathPVTables!$J$4=5,MathPVTables!L68,""),"") ->  | Y71: =IF(SciencePVTables!Q68<>"",IF(SciencePVTables!$R$4=5,SciencePVTables!Q68,""),"") ->  | Z71: =IF(SciencePVTables!R68<>"",IF(SciencePVTables!$R$4=5,SciencePVTables!R68,""),"") ->  | AA71: =IF(SciencePVTables!S68<>"",IF(SciencePVTables!$R$4=5,SciencePVTables!S68,""),"") ->  | AC71: =IF(SciencePVTables!T68<>"",IF(SciencePVTables!$R$4=5,SciencePVTables!T68,""),"") ->  | AE71: =IF(SSPVTables!Q68<>"",IF(SSPVTables!$R$4=5,SSPVTables!Q68,""),"") ->  | AF71: =IF(SSPVTables!R68<>"",IF(SSPVTables!$R$4=5,SSPVTables!R68,""),"") ->  | AG71: =IF(SSPVTables!S68<>"",IF(SSPVTables!$R$4=5,SSPVTables!S68,""),"") ->  | AI71: =IF(SSPVTables!T68<>"",IF(SSPVTables!$R$4=5,SSPVTables!T68,""),"") -> 
A72: =IF(ELAPVTables!A69<>"",IF(ELAPVTables!$B$4=4,ELAPVTables!A69,""),"") ->  | B72: =IF(ELAPVTables!B69<>"",IF(ELAPVTables!$B$4=4,ELAPVTables!B69,""),"") ->  | C72: =IF(ELAPVTables!C69<>"",IF(ELAPVTables!$B$4=4,ELAPVTables!C69,""),"") ->  | E72: =IF(ELAPVTables!D69<>"",IF(ELAPVTables!$B$4=4,ELAPVTables!D69,""),"") ->  | G72: =IF(MathPVTables!A69<>"",IF(MathPVTables!$B$4=4,MathPVTables!A69,""),"") ->  | H72: =IF(MathPVTables!B69<>"",IF(MathPVTables!$B$4=4,MathPVTables!B69,""),"") ->  | I72: =IF(MathPVTables!C69<>"",IF(MathPVTables!$B$4=4,MathPVTables!C69,""),"") ->  | K72: =IF(MathPVTables!D69<>"",IF(MathPVTables!$B$4=4,MathPVTables!D69,""),"") ->  | M72: =IF(ELAPVTables!I69<>"",IF(ELAPVTables!$J$4=5,ELAPVTables!I69,""),"") ->  | N72: =IF(ELAPVTables!J69<>"",IF(ELAPVTables!$J$4=5,ELAPVTables!J69,""),"") ->  | O72: =IF(ELAPVTables!K69<>"",IF(ELAPVTables!$J$4=5,ELAPVTables!K69,""),"") ->  | Q72: =IF(ELAPVTables!L69<>"",IF(ELAPVTables!$J$4=5,ELAPVTables!L69,""),"") ->  | S72: =IF(MathPVTables!I69<>"",IF(MathPVTables!$J$4=5,MathPVTables!I69,""),"") ->  | T72: =IF(MathPVTables!J69<>"",IF(MathPVTables!$J$4=5,MathPVTables!J69,""),"") ->  | U72: =IF(MathPVTables!K69<>"",IF(MathPVTables!$J$4=5,MathPVTables!K69,""),"") ->  | W72: =IF(MathPVTables!L69<>"",IF(MathPVTables!$J$4=5,MathPVTables!L69,""),"") ->  | Y72: =IF(SciencePVTables!Q69<>"",IF(SciencePVTables!$R$4=5,SciencePVTables!Q69,""),"") ->  | Z72: =IF(SciencePVTables!R69<>"",IF(SciencePVTables!$R$4=5,SciencePVTables!R69,""),"") ->  | AA72: =IF(SciencePVTables!S69<>"",IF(SciencePVTables!$R$4=5,SciencePVTables!S69,""),"") ->  | AC72: =IF(SciencePVTables!T69<>"",IF(SciencePVTables!$R$4=5,SciencePVTables!T69,""),"") ->  | AE72: =IF(SSPVTables!Q69<>"",IF(SSPVTables!$R$4=5,SSPVTables!Q69,""),"") ->  | AF72: =IF(SSPVTables!R69<>"",IF(SSPVTables!$R$4=5,SSPVTables!R69,""),"") ->  | AG72: =IF(SSPVTables!S69<>"",IF(SSPVTables!$R$4=5,SSPVTables!S69,""),"") ->  | AI72: =IF(SSPVTables!T69<>"",IF(SSPVTables!$R$4=5,SSPVTables!T69,""),"") -> 
A73: =IF(ELAPVTables!A70<>"",IF(ELAPVTables!$B$4=4,ELAPVTables!A70,""),"") ->  | B73: =IF(ELAPVTables!B70<>"",IF(ELAPVTables!$B$4=4,ELAPVTables!B70,""),"") ->  | C73: =IF(ELAPVTables!C70<>"",IF(ELAPVTables!$B$4=4,ELAPVTables!C70,""),"") ->  | E73: =IF(ELAPVTables!D70<>"",IF(ELAPVTables!$B$4=4,ELAPVTables!D70,""),"") ->  | G73: =IF(MathPVTables!A70<>"",IF(MathPVTables!$B$4=4,MathPVTables!A70,""),"") ->  | H73: =IF(MathPVTables!B70<>"",IF(MathPVTables!$B$4=4,MathPVTables!B70,""),"") ->  | I73: =IF(MathPVTables!C70<>"",IF(MathPVTables!$B$4=4,MathPVTables!C70,""),"") ->  | K73: =IF(MathPVTables!D70<>"",IF(MathPVTables!$B$4=4,MathPVTables!D70,""),"") ->  | M73: =IF(ELAPVTables!I70<>"",IF(ELAPVTables!$J$4=5,ELAPVTables!I70,""),"") ->  | N73: =IF(ELAPVTables!J70<>"",IF(ELAPVTables!$J$4=5,ELAPVTables!J70,""),"") ->  | O73: =IF(ELAPVTables!K70<>"",IF(ELAPVTables!$J$4=5,ELAPVTables!K70,""),"") ->  | Q73: =IF(ELAPVTables!L70<>"",IF(ELAPVTables!$J$4=5,ELAPVTables!L70,""),"") ->  | S73: =IF(MathPVTables!I70<>"",IF(MathPVTables!$J$4=5,MathPVTables!I70,""),"") ->  | T73: =IF(MathPVTables!J70<>"",IF(MathPVTables!$J$4=5,MathPVTables!J70,""),"") ->  | U73: =IF(MathPVTables!K70<>"",IF(MathPVTables!$J$4=5,MathPVTables!K70,""),"") ->  | W73: =IF(MathPVTables!L70<>"",IF(MathPVTables!$J$4=5,MathPVTables!L70,""),"") ->  | Y73: =IF(SciencePVTables!Q70<>"",IF(SciencePVTables!$R$4=5,SciencePVTables!Q70,""),"") ->  | Z73: =IF(SciencePVTables!R70<>"",IF(SciencePVTables!$R$4=5,SciencePVTables!R70,""),"") ->  | AA73: =IF(SciencePVTables!S70<>"",IF(SciencePVTables!$R$4=5,SciencePVTables!S70,""),"") ->  | AC73: =IF(SciencePVTables!T70<>"",IF(SciencePVTables!$R$4=5,SciencePVTables!T70,""),"") ->  | AE73: =IF(SSPVTables!Q70<>"",IF(SSPVTables!$R$4=5,SSPVTables!Q70,""),"") ->  | AF73: =IF(SSPVTables!R70<>"",IF(SSPVTables!$R$4=5,SSPVTables!R70,""),"") ->  | AG73: =IF(SSPVTables!S70<>"",IF(SSPVTables!$R$4=5,SSPVTables!S70,""),"") ->  | AI73: =IF(SSPVTables!T70<>"",IF(SSPVTables!$R$4=5,SSPVTables!T70,""),"") -> 
A74: =IF(ELAPVTables!A71<>"",IF(ELAPVTables!$B$4=4,ELAPVTables!A71,""),"") ->  | B74: =IF(ELAPVTables!B71<>"",IF(ELAPVTables!$B$4=4,ELAPVTables!B71,""),"") ->  | C74: =IF(ELAPVTables!C71<>"",IF(ELAPVTables!$B$4=4,ELAPVTables!C71,""),"") ->  | E74: =IF(ELAPVTables!D71<>"",IF(ELAPVTables!$B$4=4,ELAPVTables!D71,""),"") ->  | G74: =IF(MathPVTables!A71<>"",IF(MathPVTables!$B$4=4,MathPVTables!A71,""),"") ->  | H74: =IF(MathPVTables!B71<>"",IF(MathPVTables!$B$4=4,MathPVTables!B71,""),"") ->  | I74: =IF(MathPVTables!C71<>"",IF(MathPVTables!$B$4=4,MathPVTables!C71,""),"") ->  | K74: =IF(MathPVTables!D71<>"",IF(MathPVTables!$B$4=4,MathPVTables!D71,""),"") ->  | M74: =IF(ELAPVTables!I71<>"",IF(ELAPVTables!$J$4=5,ELAPVTables!I71,""),"") ->  | N74: =IF(ELAPVTables!J71<>"",IF(ELAPVTables!$J$4=5,ELAPVTables!J71,""),"") ->  | O74: =IF(ELAPVTables!K71<>"",IF(ELAPVTables!$J$4=5,ELAPVTables!K71,""),"") ->  | Q74: =IF(ELAPVTables!L71<>"",IF(ELAPVTables!$J$4=5,ELAPVTables!L71,""),"") ->  | S74: =IF(MathPVTables!I71<>"",IF(MathPVTables!$J$4=5,MathPVTables!I71,""),"") ->  | T74: =IF(MathPVTables!J71<>"",IF(MathPVTables!$J$4=5,MathPVTables!J71,""),"") ->  | U74: =IF(MathPVTables!K71<>"",IF(MathPVTables!$J$4=5,MathPVTables!K71,""),"") ->  | W74: =IF(MathPVTables!L71<>"",IF(MathPVTables!$J$4=5,MathPVTables!L71,""),"") ->  | Y74: =IF(SciencePVTables!Q71<>"",IF(SciencePVTables!$R$4=5,SciencePVTables!Q71,""),"") ->  | Z74: =IF(SciencePVTables!R71<>"",IF(SciencePVTables!$R$4=5,SciencePVTables!R71,""),"") ->  | AA74: =IF(SciencePVTables!S71<>"",IF(SciencePVTables!$R$4=5,SciencePVTables!S71,""),"") ->  | AC74: =IF(SciencePVTables!T71<>"",IF(SciencePVTables!$R$4=5,SciencePVTables!T71,""),"") ->  | AE74: =IF(SSPVTables!Q71<>"",IF(SSPVTables!$R$4=5,SSPVTables!Q71,""),"") ->  | AF74: =IF(SSPVTables!R71<>"",IF(SSPVTables!$R$4=5,SSPVTables!R71,""),"") ->  | AG74: =IF(SSPVTables!S71<>"",IF(SSPVTables!$R$4=5,SSPVTables!S71,""),"") ->  | AI74: =IF(SSPVTables!T71<>"",IF(SSPVTables!$R$4=5,SSPVTables!T71,""),"") -> 
A75: =IF(ELAPVTables!A72<>"",IF(ELAPVTables!$B$4=4,ELAPVTables!A72,""),"") ->  | B75: =IF(ELAPVTables!B72<>"",IF(ELAPVTables!$B$4=4,ELAPVTables!B72,""),"") ->  | C75: =IF(ELAPVTables!C72<>"",IF(ELAPVTables!$B$4=4,ELAPVTables!C72,""),"") ->  | E75: =IF(ELAPVTables!D72<>"",IF(ELAPVTables!$B$4=4,ELAPVTables!D72,""),"") ->  | G75: =IF(MathPVTables!A72<>"",IF(MathPVTables!$B$4=4,MathPVTables!A72,""),"") ->  | H75: =IF(MathPVTables!B72<>"",IF(MathPVTables!$B$4=4,MathPVTables!B72,""),"") ->  | I75: =IF(MathPVTables!C72<>"",IF(MathPVTables!$B$4=4,MathPVTables!C72,""),"") ->  | K75: =IF(MathPVTables!D72<>"",IF(MathPVTables!$B$4=4,MathPVTables!D72,""),"") ->  | M75: =IF(ELAPVTables!I72<>"",IF(ELAPVTables!$J$4=5,ELAPVTables!I72,""),"") ->  | N75: =IF(ELAPVTables!J72<>"",IF(ELAPVTables!$J$4=5,ELAPVTables!J72,""),"") ->  | O75: =IF(ELAPVTables!K72<>"",IF(ELAPVTables!$J$4=5,ELAPVTables!K72,""),"") ->  | Q75: =IF(ELAPVTables!L72<>"",IF(ELAPVTables!$J$4=5,ELAPVTables!L72,""),"") ->  | S75: =IF(MathPVTables!I72<>"",IF(MathPVTables!$J$4=5,MathPVTables!I72,""),"") ->  | T75: =IF(MathPVTables!J72<>"",IF(MathPVTables!$J$4=5,MathPVTables!J72,""),"") ->  | U75: =IF(MathPVTables!K72<>"",IF(MathPVTables!$J$4=5,MathPVTables!K72,""),"") ->  | W75: =IF(MathPVTables!L72<>"",IF(MathPVTables!$J$4=5,MathPVTables!L72,""),"") ->  | Y75: =IF(SciencePVTables!Q72<>"",IF(SciencePVTables!$R$4=5,SciencePVTables!Q72,""),"") ->  | Z75: =IF(SciencePVTables!R72<>"",IF(SciencePVTables!$R$4=5,SciencePVTables!R72,""),"") ->  | AA75: =IF(SciencePVTables!S72<>"",IF(SciencePVTables!$R$4=5,SciencePVTables!S72,""),"") ->  | AC75: =IF(SciencePVTables!T72<>"",IF(SciencePVTables!$R$4=5,SciencePVTables!T72,""),"") ->  | AE75: =IF(SSPVTables!Q72<>"",IF(SSPVTables!$R$4=5,SSPVTables!Q72,""),"") ->  | AF75: =IF(SSPVTables!R72<>"",IF(SSPVTables!$R$4=5,SSPVTables!R72,""),"") ->  | AG75: =IF(SSPVTables!S72<>"",IF(SSPVTables!$R$4=5,SSPVTables!S72,""),"") ->  | AI75: =IF(SSPVTables!T72<>"",IF(SSPVTables!$R$4=5,SSPVTables!T72,""),"") -> 
A76: =IF(ELAPVTables!A73<>"",IF(ELAPVTables!$B$4=4,ELAPVTables!A73,""),"") ->  | B76: =IF(ELAPVTables!B73<>"",IF(ELAPVTables!$B$4=4,ELAPVTables!B73,""),"") ->  | C76: =IF(ELAPVTables!C73<>"",IF(ELAPVTables!$B$4=4,ELAPVTables!C73,""),"") ->  | E76: =IF(ELAPVTables!D73<>"",IF(ELAPVTables!$B$4=4,ELAPVTables!D73,""),"") ->  | G76: =IF(MathPVTables!A73<>"",IF(MathPVTables!$B$4=4,MathPVTables!A73,""),"") ->  | H76: =IF(MathPVTables!B73<>"",IF(MathPVTables!$B$4=4,MathPVTables!B73,""),"") ->  | I76: =IF(MathPVTables!C73<>"",IF(MathPVTables!$B$4=4,MathPVTables!C73,""),"") ->  | K76: =IF(MathPVTables!D73<>"",IF(MathPVTables!$B$4=4,MathPVTables!D73,""),"") ->  | M76: =IF(ELAPVTables!I73<>"",IF(ELAPVTables!$J$4=5,ELAPVTables!I73,""),"") ->  | N76: =IF(ELAPVTables!J73<>"",IF(ELAPVTables!$J$4=5,ELAPVTables!J73,""),"") ->  | O76: =IF(ELAPVTables!K73<>"",IF(ELAPVTables!$J$4=5,ELAPVTables!K73,""),"") ->  | Q76: =IF(ELAPVTables!L73<>"",IF(ELAPVTables!$J$4=5,ELAPVTables!L73,""),"") ->  | S76: =IF(MathPVTables!I73<>"",IF(MathPVTables!$J$4=5,MathPVTables!I73,""),"") ->  | T76: =IF(MathPVTables!J73<>"",IF(MathPVTables!$J$4=5,MathPVTables!J73,""),"") ->  | U76: =IF(MathPVTables!K73<>"",IF(MathPVTables!$J$4=5,MathPVTables!K73,""),"") ->  | W76: =IF(MathPVTables!L73<>"",IF(MathPVTables!$J$4=5,MathPVTables!L73,""),"") ->  | Y76: =IF(SciencePVTables!Q73<>"",IF(SciencePVTables!$R$4=5,SciencePVTables!Q73,""),"") ->  | Z76: =IF(SciencePVTables!R73<>"",IF(SciencePVTables!$R$4=5,SciencePVTables!R73,""),"") ->  | AA76: =IF(SciencePVTables!S73<>"",IF(SciencePVTables!$R$4=5,SciencePVTables!S73,""),"") ->  | AC76: =IF(SciencePVTables!T73<>"",IF(SciencePVTables!$R$4=5,SciencePVTables!T73,""),"") ->  | AE76: =IF(SSPVTables!Q73<>"",IF(SSPVTables!$R$4=5,SSPVTables!Q73,""),"") ->  | AF76: =IF(SSPVTables!R73<>"",IF(SSPVTables!$R$4=5,SSPVTables!R73,""),"") ->  | AG76: =IF(SSPVTables!S73<>"",IF(SSPVTables!$R$4=5,SSPVTables!S73,""),"") ->  | AI76: =IF(SSPVTables!T73<>"",IF(SSPVTables!$R$4=5,SSPVTables!T73,""),"") -> 
A77: =IF(ELAPVTables!A74<>"",IF(ELAPVTables!$B$4=4,ELAPVTables!A74,""),"") ->  | B77: =IF(ELAPVTables!B74<>"",IF(ELAPVTables!$B$4=4,ELAPVTables!B74,""),"") ->  | C77: =IF(ELAPVTables!C74<>"",IF(ELAPVTables!$B$4=4,ELAPVTables!C74,""),"") ->  | E77: =IF(ELAPVTables!D74<>"",IF(ELAPVTables!$B$4=4,ELAPVTables!D74,""),"") ->  | G77: =IF(MathPVTables!A74<>"",IF(MathPVTables!$B$4=4,MathPVTables!A74,""),"") ->  | H77: =IF(MathPVTables!B74<>"",IF(MathPVTables!$B$4=4,MathPVTables!B74,""),"") ->  | I77: =IF(MathPVTables!C74<>"",IF(MathPVTables!$B$4=4,MathPVTables!C74,""),"") ->  | K77: =IF(MathPVTables!D74<>"",IF(MathPVTables!$B$4=4,MathPVTables!D74,""),"") ->  | M77: =IF(ELAPVTables!I74<>"",IF(ELAPVTables!$J$4=5,ELAPVTables!I74,""),"") ->  | N77: =IF(ELAPVTables!J74<>"",IF(ELAPVTables!$J$4=5,ELAPVTables!J74,""),"") ->  | O77: =IF(ELAPVTables!K74<>"",IF(ELAPVTables!$J$4=5,ELAPVTables!K74,""),"") ->  | Q77: =IF(ELAPVTables!L74<>"",IF(ELAPVTables!$J$4=5,ELAPVTables!L74,""),"") ->  | S77: =IF(MathPVTables!I74<>"",IF(MathPVTables!$J$4=5,MathPVTables!I74,""),"") ->  | T77: =IF(MathPVTables!J74<>"",IF(MathPVTables!$J$4=5,MathPVTables!J74,""),"") ->  | U77: =IF(MathPVTables!K74<>"",IF(MathPVTables!$J$4=5,MathPVTables!K74,""),"") ->  | W77: =IF(MathPVTables!L74<>"",IF(MathPVTables!$J$4=5,MathPVTables!L74,""),"") ->  | Y77: =IF(SciencePVTables!Q74<>"",IF(SciencePVTables!$R$4=5,SciencePVTables!Q74,""),"") ->  | Z77: =IF(SciencePVTables!R74<>"",IF(SciencePVTables!$R$4=5,SciencePVTables!R74,""),"") ->  | AA77: =IF(SciencePVTables!S74<>"",IF(SciencePVTables!$R$4=5,SciencePVTables!S74,""),"") ->  | AC77: =IF(SciencePVTables!T74<>"",IF(SciencePVTables!$R$4=5,SciencePVTables!T74,""),"") ->  | AE77: =IF(SSPVTables!Q74<>"",IF(SSPVTables!$R$4=5,SSPVTables!Q74,""),"") ->  | AF77: =IF(SSPVTables!R74<>"",IF(SSPVTables!$R$4=5,SSPVTables!R74,""),"") ->  | AG77: =IF(SSPVTables!S74<>"",IF(SSPVTables!$R$4=5,SSPVTables!S74,""),"") ->  | AI77: =IF(SSPVTables!T74<>"",IF(SSPVTables!$R$4=5,SSPVTables!T74,""),"") -> 
A78: =IF(ELAPVTables!A75<>"",IF(ELAPVTables!$B$4=4,ELAPVTables!A75,""),"") ->  | B78: =IF(ELAPVTables!B75<>"",IF(ELAPVTables!$B$4=4,ELAPVTables!B75,""),"") ->  | C78: =IF(ELAPVTables!C75<>"",IF(ELAPVTables!$B$4=4,ELAPVTables!C75,""),"") ->  | E78: =IF(ELAPVTables!D75<>"",IF(ELAPVTables!$B$4=4,ELAPVTables!D75,""),"") ->  | G78: =IF(MathPVTables!A75<>"",IF(MathPVTables!$B$4=4,MathPVTables!A75,""),"") ->  | H78: =IF(MathPVTables!B75<>"",IF(MathPVTables!$B$4=4,MathPVTables!B75,""),"") ->  | I78: =IF(MathPVTables!C75<>"",IF(MathPVTables!$B$4=4,MathPVTables!C75,""),"") ->  | K78: =IF(MathPVTables!D75<>"",IF(MathPVTables!$B$4=4,MathPVTables!D75,""),"") ->  | M78: =IF(ELAPVTables!I75<>"",IF(ELAPVTables!$J$4=5,ELAPVTables!I75,""),"") ->  | N78: =IF(ELAPVTables!J75<>"",IF(ELAPVTables!$J$4=5,ELAPVTables!J75,""),"") ->  | O78: =IF(ELAPVTables!K75<>"",IF(ELAPVTables!$J$4=5,ELAPVTables!K75,""),"") ->  | Q78: =IF(ELAPVTables!L75<>"",IF(ELAPVTables!$J$4=5,ELAPVTables!L75,""),"") ->  | S78: =IF(MathPVTables!I75<>"",IF(MathPVTables!$J$4=5,MathPVTables!I75,""),"") ->  | T78: =IF(MathPVTables!J75<>"",IF(MathPVTables!$J$4=5,MathPVTables!J75,""),"") ->  | U78: =IF(MathPVTables!K75<>"",IF(MathPVTables!$J$4=5,MathPVTables!K75,""),"") ->  | W78: =IF(MathPVTables!L75<>"",IF(MathPVTables!$J$4=5,MathPVTables!L75,""),"") ->  | Y78: =IF(SciencePVTables!Q75<>"",IF(SciencePVTables!$R$4=5,SciencePVTables!Q75,""),"") ->  | Z78: =IF(SciencePVTables!R75<>"",IF(SciencePVTables!$R$4=5,SciencePVTables!R75,""),"") ->  | AA78: =IF(SciencePVTables!S75<>"",IF(SciencePVTables!$R$4=5,SciencePVTables!S75,""),"") ->  | AC78: =IF(SciencePVTables!T75<>"",IF(SciencePVTables!$R$4=5,SciencePVTables!T75,""),"") ->  | AE78: =IF(SSPVTables!Q75<>"",IF(SSPVTables!$R$4=5,SSPVTables!Q75,""),"") ->  | AF78: =IF(SSPVTables!R75<>"",IF(SSPVTables!$R$4=5,SSPVTables!R75,""),"") ->  | AG78: =IF(SSPVTables!S75<>"",IF(SSPVTables!$R$4=5,SSPVTables!S75,""),"") ->  | AI78: =IF(SSPVTables!T75<>"",IF(SSPVTables!$R$4=5,SSPVTables!T75,""),"") -> 
A79: =IF(ELAPVTables!A76<>"",IF(ELAPVTables!$B$4=4,ELAPVTables!A76,""),"") ->  | B79: =IF(ELAPVTables!B76<>"",IF(ELAPVTables!$B$4=4,ELAPVTables!B76,""),"") ->  | C79: =IF(ELAPVTables!C76<>"",IF(ELAPVTables!$B$4=4,ELAPVTables!C76,""),"") ->  | E79: =IF(ELAPVTables!D76<>"",IF(ELAPVTables!$B$4=4,ELAPVTables!D76,""),"") ->  | G79: =IF(MathPVTables!A76<>"",IF(MathPVTables!$B$4=4,MathPVTables!A76,""),"") ->  | H79: =IF(MathPVTables!B76<>"",IF(MathPVTables!$B$4=4,MathPVTables!B76,""),"") ->  | I79: =IF(MathPVTables!C76<>"",IF(MathPVTables!$B$4=4,MathPVTables!C76,""),"") ->  | K79: =IF(MathPVTables!D76<>"",IF(MathPVTables!$B$4=4,MathPVTables!D76,""),"") ->  | M79: =IF(ELAPVTables!I76<>"",IF(ELAPVTables!$J$4=5,ELAPVTables!I76,""),"") ->  | N79: =IF(ELAPVTables!J76<>"",IF(ELAPVTables!$J$4=5,ELAPVTables!J76,""),"") ->  | O79: =IF(ELAPVTables!K76<>"",IF(ELAPVTables!$J$4=5,ELAPVTables!K76,""),"") ->  | Q79: =IF(ELAPVTables!L76<>"",IF(ELAPVTables!$J$4=5,ELAPVTables!L76,""),"") ->  | S79: =IF(MathPVTables!I76<>"",IF(MathPVTables!$J$4=5,MathPVTables!I76,""),"") ->  | T79: =IF(MathPVTables!J76<>"",IF(MathPVTables!$J$4=5,MathPVTables!J76,""),"") ->  | U79: =IF(MathPVTables!K76<>"",IF(MathPVTables!$J$4=5,MathPVTables!K76,""),"") ->  | W79: =IF(MathPVTables!L76<>"",IF(MathPVTables!$J$4=5,MathPVTables!L76,""),"") ->  | Y79: =IF(SciencePVTables!Q76<>"",IF(SciencePVTables!$R$4=5,SciencePVTables!Q76,""),"") ->  | Z79: =IF(SciencePVTables!R76<>"",IF(SciencePVTables!$R$4=5,SciencePVTables!R76,""),"") ->  | AA79: =IF(SciencePVTables!S76<>"",IF(SciencePVTables!$R$4=5,SciencePVTables!S76,""),"") ->  | AC79: =IF(SciencePVTables!T76<>"",IF(SciencePVTables!$R$4=5,SciencePVTables!T76,""),"") ->  | AE79: =IF(SSPVTables!Q76<>"",IF(SSPVTables!$R$4=5,SSPVTables!Q76,""),"") ->  | AF79: =IF(SSPVTables!R76<>"",IF(SSPVTables!$R$4=5,SSPVTables!R76,""),"") ->  | AG79: =IF(SSPVTables!S76<>"",IF(SSPVTables!$R$4=5,SSPVTables!S76,""),"") ->  | AI79: =IF(SSPVTables!T76<>"",IF(SSPVTables!$R$4=5,SSPVTables!T76,""),"") -> 
A80: =IF(ELAPVTables!A77<>"",IF(ELAPVTables!$B$4=4,ELAPVTables!A77,""),"") ->  | B80: =IF(ELAPVTables!B77<>"",IF(ELAPVTables!$B$4=4,ELAPVTables!B77,""),"") ->  | C80: =IF(ELAPVTables!C77<>"",IF(ELAPVTables!$B$4=4,ELAPVTables!C77,""),"") ->  | E80: =IF(ELAPVTables!D77<>"",IF(ELAPVTables!$B$4=4,ELAPVTables!D77,""),"") ->  | G80: =IF(MathPVTables!A77<>"",IF(MathPVTables!$B$4=4,MathPVTables!A77,""),"") ->  | H80: =IF(MathPVTables!B77<>"",IF(MathPVTables!$B$4=4,MathPVTables!B77,""),"") ->  | I80: =IF(MathPVTables!C77<>"",IF(MathPVTables!$B$4=4,MathPVTables!C77,""),"") ->  | K80: =IF(MathPVTables!D77<>"",IF(MathPVTables!$B$4=4,MathPVTables!D77,""),"") ->  | M80: =IF(ELAPVTables!I77<>"",IF(ELAPVTables!$J$4=5,ELAPVTables!I77,""),"") ->  | N80: =IF(ELAPVTables!J77<>"",IF(ELAPVTables!$J$4=5,ELAPVTables!J77,""),"") ->  | O80: =IF(ELAPVTables!K77<>"",IF(ELAPVTables!$J$4=5,ELAPVTables!K77,""),"") ->  | Q80: =IF(ELAPVTables!L77<>"",IF(ELAPVTables!$J$4=5,ELAPVTables!L77,""),"") ->  | S80: =IF(MathPVTables!I77<>"",IF(MathPVTables!$J$4=5,MathPVTables!I77,""),"") ->  | T80: =IF(MathPVTables!J77<>"",IF(MathPVTables!$J$4=5,MathPVTables!J77,""),"") ->  | U80: =IF(MathPVTables!K77<>"",IF(MathPVTables!$J$4=5,MathPVTables!K77,""),"") ->  | W80: =IF(MathPVTables!L77<>"",IF(MathPVTables!$J$4=5,MathPVTables!L77,""),"") ->  | Y80: =IF(SciencePVTables!Q77<>"",IF(SciencePVTables!$R$4=5,SciencePVTables!Q77,""),"") ->  | Z80: =IF(SciencePVTables!R77<>"",IF(SciencePVTables!$R$4=5,SciencePVTables!R77,""),"") ->  | AA80: =IF(SciencePVTables!S77<>"",IF(SciencePVTables!$R$4=5,SciencePVTables!S77,""),"") ->  | AC80: =IF(SciencePVTables!T77<>"",IF(SciencePVTables!$R$4=5,SciencePVTables!T77,""),"") ->  | AE80: =IF(SSPVTables!Q77<>"",IF(SSPVTables!$R$4=5,SSPVTables!Q77,""),"") ->  | AF80: =IF(SSPVTables!R77<>"",IF(SSPVTables!$R$4=5,SSPVTables!R77,""),"") ->  | AG80: =IF(SSPVTables!S77<>"",IF(SSPVTables!$R$4=5,SSPVTables!S77,""),"") ->  | AI80: =IF(SSPVTables!T77<>"",IF(SSPVTables!$R$4=5,SSPVTables!T77,""),"") -> 
A81: =IF(ELAPVTables!A78<>"",IF(ELAPVTables!$B$4=4,ELAPVTables!A78,""),"") ->  | B81: =IF(ELAPVTables!B78<>"",IF(ELAPVTables!$B$4=4,ELAPVTables!B78,""),"") ->  | C81: =IF(ELAPVTables!C78<>"",IF(ELAPVTables!$B$4=4,ELAPVTables!C78,""),"") ->  | D81: =IF(B81="","",IF(B81>=B$8,"Adv.",IF(AND(B81>=B$9,B81<B$8),"Prof.",IF(AND(B81>=B$10,B81<B$9),"Part. Prof.",IF(B81<B$10,"Not Prof.",""))))) ->  | E81: =IF(ELAPVTables!D78<>"",IF(ELAPVTables!$B$4=4,ELAPVTables!D78,""),"") ->  | G81: =IF(MathPVTables!A78<>"",IF(MathPVTables!$B$4=4,MathPVTables!A78,""),"") ->  | H81: =IF(MathPVTables!B78<>"",IF(MathPVTables!$B$4=4,MathPVTables!B78,""),"") ->  | I81: =IF(MathPVTables!C78<>"",IF(MathPVTables!$B$4=4,MathPVTables!C78,""),"") ->  | J81: =IF(H81="","",IF(H81>=H$8,"Adv.",IF(AND(H81>=H$9,H81<H$8),"Prof.",IF(AND(H81>=H$10,H81<H$9),"Part. Prof.",IF(H81<H$10,"Not Prof.",""))))) ->  | K81: =IF(MathPVTables!D78<>"",IF(MathPVTables!$B$4=4,MathPVTables!D78,""),"") ->  | M81: =IF(ELAPVTables!I78<>"",IF(ELAPVTables!$J$4=5,ELAPVTables!I78,""),"") ->  | N81: =IF(ELAPVTables!J78<>"",IF(ELAPVTables!$J$4=5,ELAPVTables!J78,""),"") ->  | O81: =IF(ELAPVTables!K78<>"",IF(ELAPVTables!$J$4=5,ELAPVTables!K78,""),"") ->  | P81: =IF(N81="","",IF(N81>=N$8,"Adv.",IF(AND(N81>=N$9,N81<N$8),"Prof.",IF(AND(N81>=N$10,N81<N$9),"Part. Prof.",IF(N81<N$10,"Not Prof.",""))))) ->  | Q81: =IF(ELAPVTables!L78<>"",IF(ELAPVTables!$J$4=5,ELAPVTables!L78,""),"") ->  | S81: =IF(MathPVTables!I78<>"",IF(MathPVTables!$J$4=5,MathPVTables!I78,""),"") ->  | T81: =IF(MathPVTables!J78<>"",IF(MathPVTables!$J$4=5,MathPVTables!J78,""),"") ->  | U81: =IF(MathPVTables!K78<>"",IF(MathPVTables!$J$4=5,MathPVTables!K78,""),"") ->  | V81: =IF(T81="","",IF(T81>=T$8,"Adv.",IF(AND(T81>=T$9,T81<T$8),"Prof.",IF(AND(T81>=T$10,T81<T$9),"Part. Prof.",IF(T81<T$10,"Not Prof.",""))))) ->  | W81: =IF(MathPVTables!L78<>"",IF(MathPVTables!$J$4=5,MathPVTables!L78,""),"") ->  | Y81: =IF(SciencePVTables!Q78<>"",IF(SciencePVTables!$R$4=5,SciencePVTables!Q78,""),"") ->  | Z81: =IF(SciencePVTables!R78<>"",IF(SciencePVTables!$R$4=5,SciencePVTables!R78,""),"") ->  | AA81: =IF(SciencePVTables!S78<>"",IF(SciencePVTables!$R$4=5,SciencePVTables!S78,""),"") ->  | AC81: =IF(SciencePVTables!T78<>"",IF(SciencePVTables!$R$4=5,SciencePVTables!T78,""),"") ->  | AE81: =IF(SSPVTables!Q78<>"",IF(SSPVTables!$R$4=5,SSPVTables!Q78,""),"") ->  | AF81: =IF(SSPVTables!R78<>"",IF(SSPVTables!$R$4=5,SSPVTables!R78,""),"") ->  | AG81: =IF(SSPVTables!S78<>"",IF(SSPVTables!$R$4=5,SSPVTables!S78,""),"") ->  | AI81: =IF(SSPVTables!T78<>"",IF(SSPVTables!$R$4=5,SSPVTables!T78,""),"") -> 
A82: =IF(ELAPVTables!A79<>"",IF(ELAPVTables!$B$4=4,ELAPVTables!A79,""),"") ->  | B82: =IF(ELAPVTables!B79<>"",IF(ELAPVTables!$B$4=4,ELAPVTables!B79,""),"") ->  | C82: =IF(ELAPVTables!C79<>"",IF(ELAPVTables!$B$4=4,ELAPVTables!C79,""),"") ->  | E82: =IF(ELAPVTables!D79<>"",IF(ELAPVTables!$B$4=4,ELAPVTables!D79,""),"") ->  | G82: =IF(MathPVTables!A79<>"",IF(MathPVTables!$B$4=4,MathPVTables!A79,""),"") ->  | H82: =IF(MathPVTables!B79<>"",IF(MathPVTables!$B$4=4,MathPVTables!B79,""),"") ->  | I82: =IF(MathPVTables!C79<>"",IF(MathPVTables!$B$4=4,MathPVTables!C79,""),"") ->  | K82: =IF(MathPVTables!D79<>"",IF(MathPVTables!$B$4=4,MathPVTables!D79,""),"") ->  | M82: =IF(ELAPVTables!I79<>"",IF(ELAPVTables!$J$4=5,ELAPVTables!I79,""),"") ->  | N82: =IF(ELAPVTables!J79<>"",IF(ELAPVTables!$J$4=5,ELAPVTables!J79,""),"") ->  | O82: =IF(ELAPVTables!K79<>"",IF(ELAPVTables!$J$4=5,ELAPVTables!K79,""),"") ->  | Q82: =IF(ELAPVTables!L79<>"",IF(ELAPVTables!$J$4=5,ELAPVTables!L79,""),"") ->  | S82: =IF(MathPVTables!I79<>"",IF(MathPVTables!$J$4=5,MathPVTables!I79,""),"") ->  | T82: =IF(MathPVTables!J79<>"",IF(MathPVTables!$J$4=5,MathPVTables!J79,""),"") ->  | U82: =IF(MathPVTables!K79<>"",IF(MathPVTables!$J$4=5,MathPVTables!K79,""),"") ->  | W82: =IF(MathPVTables!L79<>"",IF(MathPVTables!$J$4=5,MathPVTables!L79,""),"") ->  | Y82: =IF(SciencePVTables!Q79<>"",IF(SciencePVTables!$R$4=5,SciencePVTables!Q79,""),"") ->  | Z82: =IF(SciencePVTables!R79<>"",IF(SciencePVTables!$R$4=5,SciencePVTables!R79,""),"") ->  | AA82: =IF(SciencePVTables!S79<>"",IF(SciencePVTables!$R$4=5,SciencePVTables!S79,""),"") ->  | AB82: =IF(Z82="","",IF(Z82>=Z$8,"Adv.",IF(AND(Z82>=Z$9,Z82<Z$8),"Prof.",IF(AND(Z82>=Z$10,Z82<Z$9),"Part. Prof.",IF(Z82<Z$10,"Not Prof.",""))))) ->  | AC82: =IF(SciencePVTables!T79<>"",IF(SciencePVTables!$R$4=5,SciencePVTables!T79,""),"") ->  | AE82: =IF(SSPVTables!Q79<>"",IF(SSPVTables!$R$4=5,SSPVTables!Q79,""),"") ->  | AF82: =IF(SSPVTables!R79<>"",IF(SSPVTables!$R$4=5,SSPVTables!R79,""),"") ->  | AG82: =IF(SSPVTables!S79<>"",IF(SSPVTables!$R$4=5,SSPVTables!S79,""),"") ->  | AH82: =IF(AF82="","",IF(AF82>=AF$8,"Adv.",IF(AND(AF82>=AF$9,AF82<AF$8),"Prof.",IF(AND(AF82>=AF$10,AF82<AF$9),"Part. Prof.",IF(AF82<AF$10,"Not Prof.",""))))) ->  | AI82: =IF(SSPVTables!T79<>"",IF(SSPVTables!$R$4=5,SSPVTables!T79,""),"") -> 
A83: =IF(ELAPVTables!A80<>"",IF(ELAPVTables!$B$4=4,ELAPVTables!A80,""),"") ->  | B83: =IF(ELAPVTables!B80<>"",IF(ELAPVTables!$B$4=4,ELAPVTables!B80,""),"") ->  | C83: =IF(ELAPVTables!C80<>"",IF(ELAPVTables!$B$4=4,ELAPVTables!C80,""),"") ->  | E83: =IF(ELAPVTables!D80<>"",IF(ELAPVTables!$B$4=4,ELAPVTables!D80,""),"") ->  | G83: =IF(MathPVTables!A80<>"",IF(MathPVTables!$B$4=4,MathPVTables!A80,""),"") ->  | H83: =IF(MathPVTables!B80<>"",IF(MathPVTables!$B$4=4,MathPVTables!B80,""),"") ->  | I83: =IF(MathPVTables!C80<>"",IF(MathPVTables!$B$4=4,MathPVTables!C80,""),"") ->  | K83: =IF(MathPVTables!D80<>"",IF(MathPVTables!$B$4=4,MathPVTables!D80,""),"") ->  | M83: =IF(ELAPVTables!I80<>"",IF(ELAPVTables!$J$4=5,ELAPVTables!I80,""),"") ->  | N83: =IF(ELAPVTables!J80<>"",IF(ELAPVTables!$J$4=5,ELAPVTables!J80,""),"") ->  | O83: =IF(ELAPVTables!K80<>"",IF(ELAPVTables!$J$4=5,ELAPVTables!K80,""),"") ->  | Q83: =IF(ELAPVTables!L80<>"",IF(ELAPVTables!$J$4=5,ELAPVTables!L80,""),"") ->  | S83: =IF(MathPVTables!I80<>"",IF(MathPVTables!$J$4=5,MathPVTables!I80,""),"") ->  | T83: =IF(MathPVTables!J80<>"",IF(MathPVTables!$J$4=5,MathPVTables!J80,""),"") ->  | U83: =IF(MathPVTables!K80<>"",IF(MathPVTables!$J$4=5,MathPVTables!K80,""),"") ->  | W83: =IF(MathPVTables!L80<>"",IF(MathPVTables!$J$4=5,MathPVTables!L80,""),"") ->  | Y83: =IF(SciencePVTables!Q80<>"",IF(SciencePVTables!$R$4=5,SciencePVTables!Q80,""),"") ->  | Z83: =IF(SciencePVTables!R80<>"",IF(SciencePVTables!$R$4=5,SciencePVTables!R80,""),"") ->  | AA83: =IF(SciencePVTables!S80<>"",IF(SciencePVTables!$R$4=5,SciencePVTables!S80,""),"") ->  | AC83: =IF(SciencePVTables!T80<>"",IF(SciencePVTables!$R$4=5,SciencePVTables!T80,""),"") ->  | AE83: =IF(SSPVTables!Q80<>"",IF(SSPVTables!$R$4=5,SSPVTables!Q80,""),"") ->  | AF83: =IF(SSPVTables!R80<>"",IF(SSPVTables!$R$4=5,SSPVTables!R80,""),"") ->  | AG83: =IF(SSPVTables!S80<>"",IF(SSPVTables!$R$4=5,SSPVTables!S80,""),"") ->  | AI83: =IF(SSPVTables!T80<>"",IF(SSPVTables!$R$4=5,SSPVTables!T80,""),"") -> 
A84: =IF(ELAPVTables!A81<>"",IF(ELAPVTables!$B$4=4,ELAPVTables!A81,""),"") ->  | B84: =IF(ELAPVTables!B81<>"",IF(ELAPVTables!$B$4=4,ELAPVTables!B81,""),"") ->  | C84: =IF(ELAPVTables!C81<>"",IF(ELAPVTables!$B$4=4,ELAPVTables!C81,""),"") ->  | E84: =IF(ELAPVTables!D81<>"",IF(ELAPVTables!$B$4=4,ELAPVTables!D81,""),"") ->  | G84: =IF(MathPVTables!A81<>"",IF(MathPVTables!$B$4=4,MathPVTables!A81,""),"") ->  | H84: =IF(MathPVTables!B81<>"",IF(MathPVTables!$B$4=4,MathPVTables!B81,""),"") ->  | I84: =IF(MathPVTables!C81<>"",IF(MathPVTables!$B$4=4,MathPVTables!C81,""),"") ->  | K84: =IF(MathPVTables!D81<>"",IF(MathPVTables!$B$4=4,MathPVTables!D81,""),"") ->  | M84: =IF(ELAPVTables!I81<>"",IF(ELAPVTables!$J$4=5,ELAPVTables!I81,""),"") ->  | N84: =IF(ELAPVTables!J81<>"",IF(ELAPVTables!$J$4=5,ELAPVTables!J81,""),"") ->  | O84: =IF(ELAPVTables!K81<>"",IF(ELAPVTables!$J$4=5,ELAPVTables!K81,""),"") ->  | Q84: =IF(ELAPVTables!L81<>"",IF(ELAPVTables!$J$4=5,ELAPVTables!L81,""),"") ->  | S84: =IF(MathPVTables!I81<>"",IF(MathPVTables!$J$4=5,MathPVTables!I81,""),"") ->  | T84: =IF(MathPVTables!J81<>"",IF(MathPVTables!$J$4=5,MathPVTables!J81,""),"") ->  | U84: =IF(MathPVTables!K81<>"",IF(MathPVTables!$J$4=5,MathPVTables!K81,""),"") ->  | W84: =IF(MathPVTables!L81<>"",IF(MathPVTables!$J$4=5,MathPVTables!L81,""),"") ->  | Y84: =IF(SciencePVTables!Q81<>"",IF(SciencePVTables!$R$4=5,SciencePVTables!Q81,""),"") ->  | Z84: =IF(SciencePVTables!R81<>"",IF(SciencePVTables!$R$4=5,SciencePVTables!R81,""),"") ->  | AA84: =IF(SciencePVTables!S81<>"",IF(SciencePVTables!$R$4=5,SciencePVTables!S81,""),"") ->  | AC84: =IF(SciencePVTables!T81<>"",IF(SciencePVTables!$R$4=5,SciencePVTables!T81,""),"") ->  | AE84: =IF(SSPVTables!Q81<>"",IF(SSPVTables!$R$4=5,SSPVTables!Q81,""),"") ->  | AF84: =IF(SSPVTables!R81<>"",IF(SSPVTables!$R$4=5,SSPVTables!R81,""),"") ->  | AG84: =IF(SSPVTables!S81<>"",IF(SSPVTables!$R$4=5,SSPVTables!S81,""),"") ->  | AI84: =IF(SSPVTables!T81<>"",IF(SSPVTables!$R$4=5,SSPVTables!T81,""),"") -> 
A85: =IF(ELAPVTables!A82<>"",IF(ELAPVTables!$B$4=4,ELAPVTables!A82,""),"") ->  | B85: =IF(ELAPVTables!B82<>"",IF(ELAPVTables!$B$4=4,ELAPVTables!B82,""),"") ->  | C85: =IF(ELAPVTables!C82<>"",IF(ELAPVTables!$B$4=4,ELAPVTables!C82,""),"") ->  | E85: =IF(ELAPVTables!D82<>"",IF(ELAPVTables!$B$4=4,ELAPVTables!D82,""),"") ->  | G85: =IF(MathPVTables!A82<>"",IF(MathPVTables!$B$4=4,MathPVTables!A82,""),"") ->  | H85: =IF(MathPVTables!B82<>"",IF(MathPVTables!$B$4=4,MathPVTables!B82,""),"") ->  | I85: =IF(MathPVTables!C82<>"",IF(MathPVTables!$B$4=4,MathPVTables!C82,""),"") ->  | K85: =IF(MathPVTables!D82<>"",IF(MathPVTables!$B$4=4,MathPVTables!D82,""),"") ->  | M85: =IF(ELAPVTables!I82<>"",IF(ELAPVTables!$J$4=5,ELAPVTables!I82,""),"") ->  | N85: =IF(ELAPVTables!J82<>"",IF(ELAPVTables!$J$4=5,ELAPVTables!J82,""),"") ->  | O85: =IF(ELAPVTables!K82<>"",IF(ELAPVTables!$J$4=5,ELAPVTables!K82,""),"") ->  | Q85: =IF(ELAPVTables!L82<>"",IF(ELAPVTables!$J$4=5,ELAPVTables!L82,""),"") ->  | S85: =IF(MathPVTables!I82<>"",IF(MathPVTables!$J$4=5,MathPVTables!I82,""),"") ->  | T85: =IF(MathPVTables!J82<>"",IF(MathPVTables!$J$4=5,MathPVTables!J82,""),"") ->  | U85: =IF(MathPVTables!K82<>"",IF(MathPVTables!$J$4=5,MathPVTables!K82,""),"") ->  | W85: =IF(MathPVTables!L82<>"",IF(MathPVTables!$J$4=5,MathPVTables!L82,""),"") ->  | Y85: =IF(SciencePVTables!Q82<>"",IF(SciencePVTables!$R$4=5,SciencePVTables!Q82,""),"") ->  | Z85: =IF(SciencePVTables!R82<>"",IF(SciencePVTables!$R$4=5,SciencePVTables!R82,""),"") ->  | AA85: =IF(SciencePVTables!S82<>"",IF(SciencePVTables!$R$4=5,SciencePVTables!S82,""),"") ->  | AC85: =IF(SciencePVTables!T82<>"",IF(SciencePVTables!$R$4=5,SciencePVTables!T82,""),"") ->  | AE85: =IF(SSPVTables!Q82<>"",IF(SSPVTables!$R$4=5,SSPVTables!Q82,""),"") ->  | AF85: =IF(SSPVTables!R82<>"",IF(SSPVTables!$R$4=5,SSPVTables!R82,""),"") ->  | AG85: =IF(SSPVTables!S82<>"",IF(SSPVTables!$R$4=5,SSPVTables!S82,""),"") ->  | AI85: =IF(SSPVTables!T82<>"",IF(SSPVTables!$R$4=5,SSPVTables!T82,""),"") -> 
A86: =IF(ELAPVTables!A83<>"",IF(ELAPVTables!$B$4=4,ELAPVTables!A83,""),"") ->  | B86: =IF(ELAPVTables!B83<>"",IF(ELAPVTables!$B$4=4,ELAPVTables!B83,""),"") ->  | C86: =IF(ELAPVTables!C83<>"",IF(ELAPVTables!$B$4=4,ELAPVTables!C83,""),"") ->  | E86: =IF(ELAPVTables!D83<>"",IF(ELAPVTables!$B$4=4,ELAPVTables!D83,""),"") ->  | G86: =IF(MathPVTables!A83<>"",IF(MathPVTables!$B$4=4,MathPVTables!A83,""),"") ->  | H86: =IF(MathPVTables!B83<>"",IF(MathPVTables!$B$4=4,MathPVTables!B83,""),"") ->  | I86: =IF(MathPVTables!C83<>"",IF(MathPVTables!$B$4=4,MathPVTables!C83,""),"") ->  | K86: =IF(MathPVTables!D83<>"",IF(MathPVTables!$B$4=4,MathPVTables!D83,""),"") ->  | M86: =IF(ELAPVTables!I83<>"",IF(ELAPVTables!$J$4=5,ELAPVTables!I83,""),"") ->  | N86: =IF(ELAPVTables!J83<>"",IF(ELAPVTables!$J$4=5,ELAPVTables!J83,""),"") ->  | O86: =IF(ELAPVTables!K83<>"",IF(ELAPVTables!$J$4=5,ELAPVTables!K83,""),"") ->  | Q86: =IF(ELAPVTables!L83<>"",IF(ELAPVTables!$J$4=5,ELAPVTables!L83,""),"") ->  | S86: =IF(MathPVTables!I83<>"",IF(MathPVTables!$J$4=5,MathPVTables!I83,""),"") ->  | T86: =IF(MathPVTables!J83<>"",IF(MathPVTables!$J$4=5,MathPVTables!J83,""),"") ->  | U86: =IF(MathPVTables!K83<>"",IF(MathPVTables!$J$4=5,MathPVTables!K83,""),"") ->  | W86: =IF(MathPVTables!L83<>"",IF(MathPVTables!$J$4=5,MathPVTables!L83,""),"") ->  | Y86: =IF(SciencePVTables!Q83<>"",IF(SciencePVTables!$R$4=5,SciencePVTables!Q83,""),"") ->  | Z86: =IF(SciencePVTables!R83<>"",IF(SciencePVTables!$R$4=5,SciencePVTables!R83,""),"") ->  | AA86: =IF(SciencePVTables!S83<>"",IF(SciencePVTables!$R$4=5,SciencePVTables!S83,""),"") ->  | AC86: =IF(SciencePVTables!T83<>"",IF(SciencePVTables!$R$4=5,SciencePVTables!T83,""),"") ->  | AE86: =IF(SSPVTables!Q83<>"",IF(SSPVTables!$R$4=5,SSPVTables!Q83,""),"") ->  | AF86: =IF(SSPVTables!R83<>"",IF(SSPVTables!$R$4=5,SSPVTables!R83,""),"") ->  | AG86: =IF(SSPVTables!S83<>"",IF(SSPVTables!$R$4=5,SSPVTables!S83,""),"") ->  | AI86: =IF(SSPVTables!T83<>"",IF(SSPVTables!$R$4=5,SSPVTables!T83,""),"") -> 
A87: =IF(ELAPVTables!A84<>"",IF(ELAPVTables!$B$4=4,ELAPVTables!A84,""),"") ->  | B87: =IF(ELAPVTables!B84<>"",IF(ELAPVTables!$B$4=4,ELAPVTables!B84,""),"") ->  | C87: =IF(ELAPVTables!C84<>"",IF(ELAPVTables!$B$4=4,ELAPVTables!C84,""),"") ->  | E87: =IF(ELAPVTables!D84<>"",IF(ELAPVTables!$B$4=4,ELAPVTables!D84,""),"") ->  | G87: =IF(MathPVTables!A84<>"",IF(MathPVTables!$B$4=4,MathPVTables!A84,""),"") ->  | H87: =IF(MathPVTables!B84<>"",IF(MathPVTables!$B$4=4,MathPVTables!B84,""),"") ->  | I87: =IF(MathPVTables!C84<>"",IF(MathPVTables!$B$4=4,MathPVTables!C84,""),"") ->  | K87: =IF(MathPVTables!D84<>"",IF(MathPVTables!$B$4=4,MathPVTables!D84,""),"") ->  | M87: =IF(ELAPVTables!I84<>"",IF(ELAPVTables!$J$4=5,ELAPVTables!I84,""),"") ->  | N87: =IF(ELAPVTables!J84<>"",IF(ELAPVTables!$J$4=5,ELAPVTables!J84,""),"") ->  | O87: =IF(ELAPVTables!K84<>"",IF(ELAPVTables!$J$4=5,ELAPVTables!K84,""),"") ->  | Q87: =IF(ELAPVTables!L84<>"",IF(ELAPVTables!$J$4=5,ELAPVTables!L84,""),"") ->  | S87: =IF(MathPVTables!I84<>"",IF(MathPVTables!$J$4=5,MathPVTables!I84,""),"") ->  | T87: =IF(MathPVTables!J84<>"",IF(MathPVTables!$J$4=5,MathPVTables!J84,""),"") ->  | U87: =IF(MathPVTables!K84<>"",IF(MathPVTables!$J$4=5,MathPVTables!K84,""),"") ->  | W87: =IF(MathPVTables!L84<>"",IF(MathPVTables!$J$4=5,MathPVTables!L84,""),"") ->  | Y87: =IF(SciencePVTables!Q84<>"",IF(SciencePVTables!$R$4=5,SciencePVTables!Q84,""),"") ->  | Z87: =IF(SciencePVTables!R84<>"",IF(SciencePVTables!$R$4=5,SciencePVTables!R84,""),"") ->  | AA87: =IF(SciencePVTables!S84<>"",IF(SciencePVTables!$R$4=5,SciencePVTables!S84,""),"") ->  | AC87: =IF(SciencePVTables!T84<>"",IF(SciencePVTables!$R$4=5,SciencePVTables!T84,""),"") ->  | AE87: =IF(SSPVTables!Q84<>"",IF(SSPVTables!$R$4=5,SSPVTables!Q84,""),"") ->  | AF87: =IF(SSPVTables!R84<>"",IF(SSPVTables!$R$4=5,SSPVTables!R84,""),"") ->  | AG87: =IF(SSPVTables!S84<>"",IF(SSPVTables!$R$4=5,SSPVTables!S84,""),"") ->  | AI87: =IF(SSPVTables!T84<>"",IF(SSPVTables!$R$4=5,SSPVTables!T84,""),"") -> 
A88: =IF(ELAPVTables!A85<>"",IF(ELAPVTables!$B$4=4,ELAPVTables!A85,""),"") ->  | B88: =IF(ELAPVTables!B85<>"",IF(ELAPVTables!$B$4=4,ELAPVTables!B85,""),"") ->  | C88: =IF(ELAPVTables!C85<>"",IF(ELAPVTables!$B$4=4,ELAPVTables!C85,""),"") ->  | E88: =IF(ELAPVTables!D85<>"",IF(ELAPVTables!$B$4=4,ELAPVTables!D85,""),"") ->  | G88: =IF(MathPVTables!A85<>"",IF(MathPVTables!$B$4=4,MathPVTables!A85,""),"") ->  | H88: =IF(MathPVTables!B85<>"",IF(MathPVTables!$B$4=4,MathPVTables!B85,""),"") ->  | I88: =IF(MathPVTables!C85<>"",IF(MathPVTables!$B$4=4,MathPVTables!C85,""),"") ->  | K88: =IF(MathPVTables!D85<>"",IF(MathPVTables!$B$4=4,MathPVTables!D85,""),"") ->  | M88: =IF(ELAPVTables!I85<>"",IF(ELAPVTables!$J$4=5,ELAPVTables!I85,""),"") ->  | N88: =IF(ELAPVTables!J85<>"",IF(ELAPVTables!$J$4=5,ELAPVTables!J85,""),"") ->  | O88: =IF(ELAPVTables!K85<>"",IF(ELAPVTables!$J$4=5,ELAPVTables!K85,""),"") ->  | Q88: =IF(ELAPVTables!L85<>"",IF(ELAPVTables!$J$4=5,ELAPVTables!L85,""),"") ->  | S88: =IF(MathPVTables!I85<>"",IF(MathPVTables!$J$4=5,MathPVTables!I85,""),"") ->  | T88: =IF(MathPVTables!J85<>"",IF(MathPVTables!$J$4=5,MathPVTables!J85,""),"") ->  | U88: =IF(MathPVTables!K85<>"",IF(MathPVTables!$J$4=5,MathPVTables!K85,""),"") ->  | W88: =IF(MathPVTables!L85<>"",IF(MathPVTables!$J$4=5,MathPVTables!L85,""),"") ->  | Y88: =IF(SciencePVTables!Q85<>"",IF(SciencePVTables!$R$4=5,SciencePVTables!Q85,""),"") ->  | Z88: =IF(SciencePVTables!R85<>"",IF(SciencePVTables!$R$4=5,SciencePVTables!R85,""),"") ->  | AA88: =IF(SciencePVTables!S85<>"",IF(SciencePVTables!$R$4=5,SciencePVTables!S85,""),"") ->  | AC88: =IF(SciencePVTables!T85<>"",IF(SciencePVTables!$R$4=5,SciencePVTables!T85,""),"") ->  | AE88: =IF(SSPVTables!Q85<>"",IF(SSPVTables!$R$4=5,SSPVTables!Q85,""),"") ->  | AF88: =IF(SSPVTables!R85<>"",IF(SSPVTables!$R$4=5,SSPVTables!R85,""),"") ->  | AG88: =IF(SSPVTables!S85<>"",IF(SSPVTables!$R$4=5,SSPVTables!S85,""),"") ->  | AI88: =IF(SSPVTables!T85<>"",IF(SSPVTables!$R$4=5,SSPVTables!T85,""),"") -> 
A89: =IF(ELAPVTables!A86<>"",IF(ELAPVTables!$B$4=4,ELAPVTables!A86,""),"") ->  | B89: =IF(ELAPVTables!B86<>"",IF(ELAPVTables!$B$4=4,ELAPVTables!B86,""),"") ->  | C89: =IF(ELAPVTables!C86<>"",IF(ELAPVTables!$B$4=4,ELAPVTables!C86,""),"") ->  | E89: =IF(ELAPVTables!D86<>"",IF(ELAPVTables!$B$4=4,ELAPVTables!D86,""),"") ->  | G89: =IF(MathPVTables!A86<>"",IF(MathPVTables!$B$4=4,MathPVTables!A86,""),"") ->  | H89: =IF(MathPVTables!B86<>"",IF(MathPVTables!$B$4=4,MathPVTables!B86,""),"") ->  | I89: =IF(MathPVTables!C86<>"",IF(MathPVTables!$B$4=4,MathPVTables!C86,""),"") ->  | K89: =IF(MathPVTables!D86<>"",IF(MathPVTables!$B$4=4,MathPVTables!D86,""),"") ->  | M89: =IF(ELAPVTables!I86<>"",IF(ELAPVTables!$J$4=5,ELAPVTables!I86,""),"") ->  | N89: =IF(ELAPVTables!J86<>"",IF(ELAPVTables!$J$4=5,ELAPVTables!J86,""),"") ->  | O89: =IF(ELAPVTables!K86<>"",IF(ELAPVTables!$J$4=5,ELAPVTables!K86,""),"") ->  | Q89: =IF(ELAPVTables!L86<>"",IF(ELAPVTables!$J$4=5,ELAPVTables!L86,""),"") ->  | S89: =IF(MathPVTables!I86<>"",IF(MathPVTables!$J$4=5,MathPVTables!I86,""),"") ->  | T89: =IF(MathPVTables!J86<>"",IF(MathPVTables!$J$4=5,MathPVTables!J86,""),"") ->  | U89: =IF(MathPVTables!K86<>"",IF(MathPVTables!$J$4=5,MathPVTables!K86,""),"") ->  | W89: =IF(MathPVTables!L86<>"",IF(MathPVTables!$J$4=5,MathPVTables!L86,""),"") ->  | Y89: =IF(SciencePVTables!Q86<>"",IF(SciencePVTables!$R$4=5,SciencePVTables!Q86,""),"") ->  | Z89: =IF(SciencePVTables!R86<>"",IF(SciencePVTables!$R$4=5,SciencePVTables!R86,""),"") ->  | AA89: =IF(SciencePVTables!S86<>"",IF(SciencePVTables!$R$4=5,SciencePVTables!S86,""),"") ->  | AC89: =IF(SciencePVTables!T86<>"",IF(SciencePVTables!$R$4=5,SciencePVTables!T86,""),"") ->  | AE89: =IF(SSPVTables!Q86<>"",IF(SSPVTables!$R$4=5,SSPVTables!Q86,""),"") ->  | AF89: =IF(SSPVTables!R86<>"",IF(SSPVTables!$R$4=5,SSPVTables!R86,""),"") ->  | AG89: =IF(SSPVTables!S86<>"",IF(SSPVTables!$R$4=5,SSPVTables!S86,""),"") ->  | AI89: =IF(SSPVTables!T86<>"",IF(SSPVTables!$R$4=5,SSPVTables!T86,""),"") -> 
A90: =IF(ELAPVTables!A87<>"",IF(ELAPVTables!$B$4=4,ELAPVTables!A87,""),"") ->  | B90: =IF(ELAPVTables!B87<>"",IF(ELAPVTables!$B$4=4,ELAPVTables!B87,""),"") ->  | C90: =IF(ELAPVTables!C87<>"",IF(ELAPVTables!$B$4=4,ELAPVTables!C87,""),"") ->  | E90: =IF(ELAPVTables!D87<>"",IF(ELAPVTables!$B$4=4,ELAPVTables!D87,""),"") ->  | G90: =IF(MathPVTables!A87<>"",IF(MathPVTables!$B$4=4,MathPVTables!A87,""),"") ->  | H90: =IF(MathPVTables!B87<>"",IF(MathPVTables!$B$4=4,MathPVTables!B87,""),"") ->  | I90: =IF(MathPVTables!C87<>"",IF(MathPVTables!$B$4=4,MathPVTables!C87,""),"") ->  | K90: =IF(MathPVTables!D87<>"",IF(MathPVTables!$B$4=4,MathPVTables!D87,""),"") ->  | M90: =IF(ELAPVTables!I87<>"",IF(ELAPVTables!$J$4=5,ELAPVTables!I87,""),"") ->  | N90: =IF(ELAPVTables!J87<>"",IF(ELAPVTables!$J$4=5,ELAPVTables!J87,""),"") ->  | O90: =IF(ELAPVTables!K87<>"",IF(ELAPVTables!$J$4=5,ELAPVTables!K87,""),"") ->  | Q90: =IF(ELAPVTables!L87<>"",IF(ELAPVTables!$J$4=5,ELAPVTables!L87,""),"") ->  | S90: =IF(MathPVTables!I87<>"",IF(MathPVTables!$J$4=5,MathPVTables!I87,""),"") ->  | T90: =IF(MathPVTables!J87<>"",IF(MathPVTables!$J$4=5,MathPVTables!J87,""),"") ->  | U90: =IF(MathPVTables!K87<>"",IF(MathPVTables!$J$4=5,MathPVTables!K87,""),"") ->  | W90: =IF(MathPVTables!L87<>"",IF(MathPVTables!$J$4=5,MathPVTables!L87,""),"") ->  | Y90: =IF(SciencePVTables!Q87<>"",IF(SciencePVTables!$R$4=5,SciencePVTables!Q87,""),"") ->  | Z90: =IF(SciencePVTables!R87<>"",IF(SciencePVTables!$R$4=5,SciencePVTables!R87,""),"") ->  | AA90: =IF(SciencePVTables!S87<>"",IF(SciencePVTables!$R$4=5,SciencePVTables!S87,""),"") ->  | AC90: =IF(SciencePVTables!T87<>"",IF(SciencePVTables!$R$4=5,SciencePVTables!T87,""),"") ->  | AE90: =IF(SSPVTables!Q87<>"",IF(SSPVTables!$R$4=5,SSPVTables!Q87,""),"") ->  | AF90: =IF(SSPVTables!R87<>"",IF(SSPVTables!$R$4=5,SSPVTables!R87,""),"") ->  | AG90: =IF(SSPVTables!S87<>"",IF(SSPVTables!$R$4=5,SSPVTables!S87,""),"") ->  | AI90: =IF(SSPVTables!T87<>"",IF(SSPVTables!$R$4=5,SSPVTables!T87,""),"") -> 
A91: =IF(ELAPVTables!A88<>"",IF(ELAPVTables!$B$4=4,ELAPVTables!A88,""),"") ->  | B91: =IF(ELAPVTables!B88<>"",IF(ELAPVTables!$B$4=4,ELAPVTables!B88,""),"") ->  | C91: =IF(ELAPVTables!C88<>"",IF(ELAPVTables!$B$4=4,ELAPVTables!C88,""),"") ->  | E91: =IF(ELAPVTables!D88<>"",IF(ELAPVTables!$B$4=4,ELAPVTables!D88,""),"") ->  | G91: =IF(MathPVTables!A88<>"",IF(MathPVTables!$B$4=4,MathPVTables!A88,""),"") ->  | H91: =IF(MathPVTables!B88<>"",IF(MathPVTables!$B$4=4,MathPVTables!B88,""),"") ->  | I91: =IF(MathPVTables!C88<>"",IF(MathPVTables!$B$4=4,MathPVTables!C88,""),"") ->  | K91: =IF(MathPVTables!D88<>"",IF(MathPVTables!$B$4=4,MathPVTables!D88,""),"") ->  | M91: =IF(ELAPVTables!I88<>"",IF(ELAPVTables!$J$4=5,ELAPVTables!I88,""),"") ->  | N91: =IF(ELAPVTables!J88<>"",IF(ELAPVTables!$J$4=5,ELAPVTables!J88,""),"") ->  | O91: =IF(ELAPVTables!K88<>"",IF(ELAPVTables!$J$4=5,ELAPVTables!K88,""),"") ->  | Q91: =IF(ELAPVTables!L88<>"",IF(ELAPVTables!$J$4=5,ELAPVTables!L88,""),"") ->  | S91: =IF(MathPVTables!I88<>"",IF(MathPVTables!$J$4=5,MathPVTables!I88,""),"") ->  | T91: =IF(MathPVTables!J88<>"",IF(MathPVTables!$J$4=5,MathPVTables!J88,""),"") ->  | U91: =IF(MathPVTables!K88<>"",IF(MathPVTables!$J$4=5,MathPVTables!K88,""),"") ->  | W91: =IF(MathPVTables!L88<>"",IF(MathPVTables!$J$4=5,MathPVTables!L88,""),"") ->  | Y91: =IF(SciencePVTables!Q88<>"",IF(SciencePVTables!$R$4=5,SciencePVTables!Q88,""),"") ->  | Z91: =IF(SciencePVTables!R88<>"",IF(SciencePVTables!$R$4=5,SciencePVTables!R88,""),"") ->  | AA91: =IF(SciencePVTables!S88<>"",IF(SciencePVTables!$R$4=5,SciencePVTables!S88,""),"") ->  | AC91: =IF(SciencePVTables!T88<>"",IF(SciencePVTables!$R$4=5,SciencePVTables!T88,""),"") ->  | AE91: =IF(SSPVTables!Q88<>"",IF(SSPVTables!$R$4=5,SSPVTables!Q88,""),"") ->  | AF91: =IF(SSPVTables!R88<>"",IF(SSPVTables!$R$4=5,SSPVTables!R88,""),"") ->  | AG91: =IF(SSPVTables!S88<>"",IF(SSPVTables!$R$4=5,SSPVTables!S88,""),"") ->  | AI91: =IF(SSPVTables!T88<>"",IF(SSPVTables!$R$4=5,SSPVTables!T88,""),"") -> 
A92: =IF(ELAPVTables!A89<>"",IF(ELAPVTables!$B$4=4,ELAPVTables!A89,""),"") ->  | B92: =IF(ELAPVTables!B89<>"",IF(ELAPVTables!$B$4=4,ELAPVTables!B89,""),"") ->  | C92: =IF(ELAPVTables!C89<>"",IF(ELAPVTables!$B$4=4,ELAPVTables!C89,""),"") ->  | E92: =IF(ELAPVTables!D89<>"",IF(ELAPVTables!$B$4=4,ELAPVTables!D89,""),"") ->  | G92: =IF(MathPVTables!A89<>"",IF(MathPVTables!$B$4=4,MathPVTables!A89,""),"") ->  | H92: =IF(MathPVTables!B89<>"",IF(MathPVTables!$B$4=4,MathPVTables!B89,""),"") ->  | I92: =IF(MathPVTables!C89<>"",IF(MathPVTables!$B$4=4,MathPVTables!C89,""),"") ->  | K92: =IF(MathPVTables!D89<>"",IF(MathPVTables!$B$4=4,MathPVTables!D89,""),"") ->  | M92: =IF(ELAPVTables!I89<>"",IF(ELAPVTables!$J$4=5,ELAPVTables!I89,""),"") ->  | N92: =IF(ELAPVTables!J89<>"",IF(ELAPVTables!$J$4=5,ELAPVTables!J89,""),"") ->  | O92: =IF(ELAPVTables!K89<>"",IF(ELAPVTables!$J$4=5,ELAPVTables!K89,""),"") ->  | Q92: =IF(ELAPVTables!L89<>"",IF(ELAPVTables!$J$4=5,ELAPVTables!L89,""),"") ->  | S92: =IF(MathPVTables!I89<>"",IF(MathPVTables!$J$4=5,MathPVTables!I89,""),"") ->  | T92: =IF(MathPVTables!J89<>"",IF(MathPVTables!$J$4=5,MathPVTables!J89,""),"") ->  | U92: =IF(MathPVTables!K89<>"",IF(MathPVTables!$J$4=5,MathPVTables!K89,""),"") ->  | W92: =IF(MathPVTables!L89<>"",IF(MathPVTables!$J$4=5,MathPVTables!L89,""),"") ->  | Y92: =IF(SciencePVTables!Q89<>"",IF(SciencePVTables!$R$4=5,SciencePVTables!Q89,""),"") ->  | Z92: =IF(SciencePVTables!R89<>"",IF(SciencePVTables!$R$4=5,SciencePVTables!R89,""),"") ->  | AA92: =IF(SciencePVTables!S89<>"",IF(SciencePVTables!$R$4=5,SciencePVTables!S89,""),"") ->  | AC92: =IF(SciencePVTables!T89<>"",IF(SciencePVTables!$R$4=5,SciencePVTables!T89,""),"") ->  | AE92: =IF(SSPVTables!Q89<>"",IF(SSPVTables!$R$4=5,SSPVTables!Q89,""),"") ->  | AF92: =IF(SSPVTables!R89<>"",IF(SSPVTables!$R$4=5,SSPVTables!R89,""),"") ->  | AG92: =IF(SSPVTables!S89<>"",IF(SSPVTables!$R$4=5,SSPVTables!S89,""),"") ->  | AI92: =IF(SSPVTables!T89<>"",IF(SSPVTables!$R$4=5,SSPVTables!T89,""),"") -> 
A93: =IF(ELAPVTables!A90<>"",IF(ELAPVTables!$B$4=4,ELAPVTables!A90,""),"") ->  | B93: =IF(ELAPVTables!B90<>"",IF(ELAPVTables!$B$4=4,ELAPVTables!B90,""),"") ->  | C93: =IF(ELAPVTables!C90<>"",IF(ELAPVTables!$B$4=4,ELAPVTables!C90,""),"") ->  | E93: =IF(ELAPVTables!D90<>"",IF(ELAPVTables!$B$4=4,ELAPVTables!D90,""),"") ->  | G93: =IF(MathPVTables!A90<>"",IF(MathPVTables!$B$4=4,MathPVTables!A90,""),"") ->  | H93: =IF(MathPVTables!B90<>"",IF(MathPVTables!$B$4=4,MathPVTables!B90,""),"") ->  | I93: =IF(MathPVTables!C90<>"",IF(MathPVTables!$B$4=4,MathPVTables!C90,""),"") ->  | K93: =IF(MathPVTables!D90<>"",IF(MathPVTables!$B$4=4,MathPVTables!D90,""),"") ->  | M93: =IF(ELAPVTables!I90<>"",IF(ELAPVTables!$J$4=5,ELAPVTables!I90,""),"") ->  | N93: =IF(ELAPVTables!J90<>"",IF(ELAPVTables!$J$4=5,ELAPVTables!J90,""),"") ->  | O93: =IF(ELAPVTables!K90<>"",IF(ELAPVTables!$J$4=5,ELAPVTables!K90,""),"") ->  | Q93: =IF(ELAPVTables!L90<>"",IF(ELAPVTables!$J$4=5,ELAPVTables!L90,""),"") ->  | S93: =IF(MathPVTables!I90<>"",IF(MathPVTables!$J$4=5,MathPVTables!I90,""),"") ->  | T93: =IF(MathPVTables!J90<>"",IF(MathPVTables!$J$4=5,MathPVTables!J90,""),"") ->  | U93: =IF(MathPVTables!K90<>"",IF(MathPVTables!$J$4=5,MathPVTables!K90,""),"") ->  | W93: =IF(MathPVTables!L90<>"",IF(MathPVTables!$J$4=5,MathPVTables!L90,""),"") ->  | Y93: =IF(SciencePVTables!Q90<>"",IF(SciencePVTables!$R$4=5,SciencePVTables!Q90,""),"") ->  | Z93: =IF(SciencePVTables!R90<>"",IF(SciencePVTables!$R$4=5,SciencePVTables!R90,""),"") ->  | AA93: =IF(SciencePVTables!S90<>"",IF(SciencePVTables!$R$4=5,SciencePVTables!S90,""),"") ->  | AC93: =IF(SciencePVTables!T90<>"",IF(SciencePVTables!$R$4=5,SciencePVTables!T90,""),"") ->  | AE93: =IF(SSPVTables!Q90<>"",IF(SSPVTables!$R$4=5,SSPVTables!Q90,""),"") ->  | AF93: =IF(SSPVTables!R90<>"",IF(SSPVTables!$R$4=5,SSPVTables!R90,""),"") ->  | AG93: =IF(SSPVTables!S90<>"",IF(SSPVTables!$R$4=5,SSPVTables!S90,""),"") ->  | AI93: =IF(SSPVTables!T90<>"",IF(SSPVTables!$R$4=5,SSPVTables!T90,""),"") -> 
A94: =IF(ELAPVTables!A91<>"",IF(ELAPVTables!$B$4=4,ELAPVTables!A91,""),"") ->  | B94: =IF(ELAPVTables!B91<>"",IF(ELAPVTables!$B$4=4,ELAPVTables!B91,""),"") ->  | C94: =IF(ELAPVTables!C91<>"",IF(ELAPVTables!$B$4=4,ELAPVTables!C91,""),"") ->  | E94: =IF(ELAPVTables!D91<>"",IF(ELAPVTables!$B$4=4,ELAPVTables!D91,""),"") ->  | G94: =IF(MathPVTables!A91<>"",IF(MathPVTables!$B$4=4,MathPVTables!A91,""),"") ->  | H94: =IF(MathPVTables!B91<>"",IF(MathPVTables!$B$4=4,MathPVTables!B91,""),"") ->  | I94: =IF(MathPVTables!C91<>"",IF(MathPVTables!$B$4=4,MathPVTables!C91,""),"") ->  | K94: =IF(MathPVTables!D91<>"",IF(MathPVTables!$B$4=4,MathPVTables!D91,""),"") ->  | M94: =IF(ELAPVTables!I91<>"",IF(ELAPVTables!$J$4=5,ELAPVTables!I91,""),"") ->  | N94: =IF(ELAPVTables!J91<>"",IF(ELAPVTables!$J$4=5,ELAPVTables!J91,""),"") ->  | O94: =IF(ELAPVTables!K91<>"",IF(ELAPVTables!$J$4=5,ELAPVTables!K91,""),"") ->  | Q94: =IF(ELAPVTables!L91<>"",IF(ELAPVTables!$J$4=5,ELAPVTables!L91,""),"") ->  | S94: =IF(MathPVTables!I91<>"",IF(MathPVTables!$J$4=5,MathPVTables!I91,""),"") ->  | T94: =IF(MathPVTables!J91<>"",IF(MathPVTables!$J$4=5,MathPVTables!J91,""),"") ->  | U94: =IF(MathPVTables!K91<>"",IF(MathPVTables!$J$4=5,MathPVTables!K91,""),"") ->  | W94: =IF(MathPVTables!L91<>"",IF(MathPVTables!$J$4=5,MathPVTables!L91,""),"") ->  | Y94: =IF(SciencePVTables!Q91<>"",IF(SciencePVTables!$R$4=5,SciencePVTables!Q91,""),"") ->  | Z94: =IF(SciencePVTables!R91<>"",IF(SciencePVTables!$R$4=5,SciencePVTables!R91,""),"") ->  | AA94: =IF(SciencePVTables!S91<>"",IF(SciencePVTables!$R$4=5,SciencePVTables!S91,""),"") ->  | AC94: =IF(SciencePVTables!T91<>"",IF(SciencePVTables!$R$4=5,SciencePVTables!T91,""),"") ->  | AE94: =IF(SSPVTables!Q91<>"",IF(SSPVTables!$R$4=5,SSPVTables!Q91,""),"") ->  | AF94: =IF(SSPVTables!R91<>"",IF(SSPVTables!$R$4=5,SSPVTables!R91,""),"") ->  | AG94: =IF(SSPVTables!S91<>"",IF(SSPVTables!$R$4=5,SSPVTables!S91,""),"") ->  | AI94: =IF(SSPVTables!T91<>"",IF(SSPVTables!$R$4=5,SSPVTables!T91,""),"") -> 
A95: =IF(ELAPVTables!A92<>"",IF(ELAPVTables!$B$4=4,ELAPVTables!A92,""),"") ->  | B95: =IF(ELAPVTables!B92<>"",IF(ELAPVTables!$B$4=4,ELAPVTables!B92,""),"") ->  | C95: =IF(ELAPVTables!C92<>"",IF(ELAPVTables!$B$4=4,ELAPVTables!C92,""),"") ->  | E95: =IF(ELAPVTables!D92<>"",IF(ELAPVTables!$B$4=4,ELAPVTables!D92,""),"") ->  | G95: =IF(MathPVTables!A92<>"",IF(MathPVTables!$B$4=4,MathPVTables!A92,""),"") ->  | H95: =IF(MathPVTables!B92<>"",IF(MathPVTables!$B$4=4,MathPVTables!B92,""),"") ->  | I95: =IF(MathPVTables!C92<>"",IF(MathPVTables!$B$4=4,MathPVTables!C92,""),"") ->  | K95: =IF(MathPVTables!D92<>"",IF(MathPVTables!$B$4=4,MathPVTables!D92,""),"") ->  | M95: =IF(ELAPVTables!I92<>"",IF(ELAPVTables!$J$4=5,ELAPVTables!I92,""),"") ->  | N95: =IF(ELAPVTables!J92<>"",IF(ELAPVTables!$J$4=5,ELAPVTables!J92,""),"") ->  | O95: =IF(ELAPVTables!K92<>"",IF(ELAPVTables!$J$4=5,ELAPVTables!K92,""),"") ->  | Q95: =IF(ELAPVTables!L92<>"",IF(ELAPVTables!$J$4=5,ELAPVTables!L92,""),"") ->  | S95: =IF(MathPVTables!I92<>"",IF(MathPVTables!$J$4=5,MathPVTables!I92,""),"") ->  | T95: =IF(MathPVTables!J92<>"",IF(MathPVTables!$J$4=5,MathPVTables!J92,""),"") ->  | U95: =IF(MathPVTables!K92<>"",IF(MathPVTables!$J$4=5,MathPVTables!K92,""),"") ->  | W95: =IF(MathPVTables!L92<>"",IF(MathPVTables!$J$4=5,MathPVTables!L92,""),"") ->  | Y95: =IF(SciencePVTables!Q92<>"",IF(SciencePVTables!$R$4=5,SciencePVTables!Q92,""),"") ->  | Z95: =IF(SciencePVTables!R92<>"",IF(SciencePVTables!$R$4=5,SciencePVTables!R92,""),"") ->  | AA95: =IF(SciencePVTables!S92<>"",IF(SciencePVTables!$R$4=5,SciencePVTables!S92,""),"") ->  | AC95: =IF(SciencePVTables!T92<>"",IF(SciencePVTables!$R$4=5,SciencePVTables!T92,""),"") ->  | AE95: =IF(SSPVTables!Q92<>"",IF(SSPVTables!$R$4=5,SSPVTables!Q92,""),"") ->  | AF95: =IF(SSPVTables!R92<>"",IF(SSPVTables!$R$4=5,SSPVTables!R92,""),"") ->  | AG95: =IF(SSPVTables!S92<>"",IF(SSPVTables!$R$4=5,SSPVTables!S92,""),"") ->  | AI95: =IF(SSPVTables!T92<>"",IF(SSPVTables!$R$4=5,SSPVTables!T92,""),"") -> 
A96: =IF(ELAPVTables!A93<>"",IF(ELAPVTables!$B$4=4,ELAPVTables!A93,""),"") ->  | B96: =IF(ELAPVTables!B93<>"",IF(ELAPVTables!$B$4=4,ELAPVTables!B93,""),"") ->  | C96: =IF(ELAPVTables!C93<>"",IF(ELAPVTables!$B$4=4,ELAPVTables!C93,""),"") ->  | E96: =IF(ELAPVTables!D93<>"",IF(ELAPVTables!$B$4=4,ELAPVTables!D93,""),"") ->  | G96: =IF(MathPVTables!A93<>"",IF(MathPVTables!$B$4=4,MathPVTables!A93,""),"") ->  | H96: =IF(MathPVTables!B93<>"",IF(MathPVTables!$B$4=4,MathPVTables!B93,""),"") ->  | I96: =IF(MathPVTables!C93<>"",IF(MathPVTables!$B$4=4,MathPVTables!C93,""),"") ->  | K96: =IF(MathPVTables!D93<>"",IF(MathPVTables!$B$4=4,MathPVTables!D93,""),"") ->  | M96: =IF(ELAPVTables!I93<>"",IF(ELAPVTables!$J$4=5,ELAPVTables!I93,""),"") ->  | N96: =IF(ELAPVTables!J93<>"",IF(ELAPVTables!$J$4=5,ELAPVTables!J93,""),"") ->  | O96: =IF(ELAPVTables!K93<>"",IF(ELAPVTables!$J$4=5,ELAPVTables!K93,""),"") ->  | Q96: =IF(ELAPVTables!L93<>"",IF(ELAPVTables!$J$4=5,ELAPVTables!L93,""),"") ->  | S96: =IF(MathPVTables!I93<>"",IF(MathPVTables!$J$4=5,MathPVTables!I93,""),"") ->  | T96: =IF(MathPVTables!J93<>"",IF(MathPVTables!$J$4=5,MathPVTables!J93,""),"") ->  | U96: =IF(MathPVTables!K93<>"",IF(MathPVTables!$J$4=5,MathPVTables!K93,""),"") ->  | W96: =IF(MathPVTables!L93<>"",IF(MathPVTables!$J$4=5,MathPVTables!L93,""),"") ->  | Y96: =IF(SciencePVTables!Q93<>"",IF(SciencePVTables!$R$4=5,SciencePVTables!Q93,""),"") ->  | Z96: =IF(SciencePVTables!R93<>"",IF(SciencePVTables!$R$4=5,SciencePVTables!R93,""),"") ->  | AA96: =IF(SciencePVTables!S93<>"",IF(SciencePVTables!$R$4=5,SciencePVTables!S93,""),"") ->  | AC96: =IF(SciencePVTables!T93<>"",IF(SciencePVTables!$R$4=5,SciencePVTables!T93,""),"") ->  | AE96: =IF(SSPVTables!Q93<>"",IF(SSPVTables!$R$4=5,SSPVTables!Q93,""),"") ->  | AF96: =IF(SSPVTables!R93<>"",IF(SSPVTables!$R$4=5,SSPVTables!R93,""),"") ->  | AG96: =IF(SSPVTables!S93<>"",IF(SSPVTables!$R$4=5,SSPVTables!S93,""),"") ->  | AI96: =IF(SSPVTables!T93<>"",IF(SSPVTables!$R$4=5,SSPVTables!T93,""),"") -> 
A97: =IF(ELAPVTables!A94<>"",IF(ELAPVTables!$B$4=4,ELAPVTables!A94,""),"") ->  | B97: =IF(ELAPVTables!B94<>"",IF(ELAPVTables!$B$4=4,ELAPVTables!B94,""),"") ->  | C97: =IF(ELAPVTables!C94<>"",IF(ELAPVTables!$B$4=4,ELAPVTables!C94,""),"") ->  | E97: =IF(ELAPVTables!D94<>"",IF(ELAPVTables!$B$4=4,ELAPVTables!D94,""),"") ->  | G97: =IF(MathPVTables!A94<>"",IF(MathPVTables!$B$4=4,MathPVTables!A94,""),"") ->  | H97: =IF(MathPVTables!B94<>"",IF(MathPVTables!$B$4=4,MathPVTables!B94,""),"") ->  | I97: =IF(MathPVTables!C94<>"",IF(MathPVTables!$B$4=4,MathPVTables!C94,""),"") ->  | K97: =IF(MathPVTables!D94<>"",IF(MathPVTables!$B$4=4,MathPVTables!D94,""),"") ->  | M97: =IF(ELAPVTables!I94<>"",IF(ELAPVTables!$J$4=5,ELAPVTables!I94,""),"") ->  | N97: =IF(ELAPVTables!J94<>"",IF(ELAPVTables!$J$4=5,ELAPVTables!J94,""),"") ->  | O97: =IF(ELAPVTables!K94<>"",IF(ELAPVTables!$J$4=5,ELAPVTables!K94,""),"") ->  | Q97: =IF(ELAPVTables!L94<>"",IF(ELAPVTables!$J$4=5,ELAPVTables!L94,""),"") ->  | S97: =IF(MathPVTables!I94<>"",IF(MathPVTables!$J$4=5,MathPVTables!I94,""),"") ->  | T97: =IF(MathPVTables!J94<>"",IF(MathPVTables!$J$4=5,MathPVTables!J94,""),"") ->  | U97: =IF(MathPVTables!K94<>"",IF(MathPVTables!$J$4=5,MathPVTables!K94,""),"") ->  | W97: =IF(MathPVTables!L94<>"",IF(MathPVTables!$J$4=5,MathPVTables!L94,""),"") ->  | Y97: =IF(SciencePVTables!Q94<>"",IF(SciencePVTables!$R$4=5,SciencePVTables!Q94,""),"") ->  | Z97: =IF(SciencePVTables!R94<>"",IF(SciencePVTables!$R$4=5,SciencePVTables!R94,""),"") ->  | AA97: =IF(SciencePVTables!S94<>"",IF(SciencePVTables!$R$4=5,SciencePVTables!S94,""),"") ->  | AC97: =IF(SciencePVTables!T94<>"",IF(SciencePVTables!$R$4=5,SciencePVTables!T94,""),"") ->  | AE97: =IF(SSPVTables!Q94<>"",IF(SSPVTables!$R$4=5,SSPVTables!Q94,""),"") ->  | AF97: =IF(SSPVTables!R94<>"",IF(SSPVTables!$R$4=5,SSPVTables!R94,""),"") ->  | AG97: =IF(SSPVTables!S94<>"",IF(SSPVTables!$R$4=5,SSPVTables!S94,""),"") ->  | AI97: =IF(SSPVTables!T94<>"",IF(SSPVTables!$R$4=5,SSPVTables!T94,""),"") -> 
A98: =IF(ELAPVTables!A95<>"",IF(ELAPVTables!$B$4=4,ELAPVTables!A95,""),"") ->  | B98: =IF(ELAPVTables!B95<>"",IF(ELAPVTables!$B$4=4,ELAPVTables!B95,""),"") ->  | C98: =IF(ELAPVTables!C95<>"",IF(ELAPVTables!$B$4=4,ELAPVTables!C95,""),"") ->  | E98: =IF(ELAPVTables!D95<>"",IF(ELAPVTables!$B$4=4,ELAPVTables!D95,""),"") ->  | G98: =IF(MathPVTables!A95<>"",IF(MathPVTables!$B$4=4,MathPVTables!A95,""),"") ->  | H98: =IF(MathPVTables!B95<>"",IF(MathPVTables!$B$4=4,MathPVTables!B95,""),"") ->  | I98: =IF(MathPVTables!C95<>"",IF(MathPVTables!$B$4=4,MathPVTables!C95,""),"") ->  | K98: =IF(MathPVTables!D95<>"",IF(MathPVTables!$B$4=4,MathPVTables!D95,""),"") ->  | M98: =IF(ELAPVTables!I95<>"",IF(ELAPVTables!$J$4=5,ELAPVTables!I95,""),"") ->  | N98: =IF(ELAPVTables!J95<>"",IF(ELAPVTables!$J$4=5,ELAPVTables!J95,""),"") ->  | O98: =IF(ELAPVTables!K95<>"",IF(ELAPVTables!$J$4=5,ELAPVTables!K95,""),"") ->  | Q98: =IF(ELAPVTables!L95<>"",IF(ELAPVTables!$J$4=5,ELAPVTables!L95,""),"") ->  | S98: =IF(MathPVTables!I95<>"",IF(MathPVTables!$J$4=5,MathPVTables!I95,""),"") ->  | T98: =IF(MathPVTables!J95<>"",IF(MathPVTables!$J$4=5,MathPVTables!J95,""),"") ->  | U98: =IF(MathPVTables!K95<>"",IF(MathPVTables!$J$4=5,MathPVTables!K95,""),"") ->  | W98: =IF(MathPVTables!L95<>"",IF(MathPVTables!$J$4=5,MathPVTables!L95,""),"") ->  | Y98: =IF(SciencePVTables!Q95<>"",IF(SciencePVTables!$R$4=5,SciencePVTables!Q95,""),"") ->  | Z98: =IF(SciencePVTables!R95<>"",IF(SciencePVTables!$R$4=5,SciencePVTables!R95,""),"") ->  | AA98: =IF(SciencePVTables!S95<>"",IF(SciencePVTables!$R$4=5,SciencePVTables!S95,""),"") ->  | AC98: =IF(SciencePVTables!T95<>"",IF(SciencePVTables!$R$4=5,SciencePVTables!T95,""),"") ->  | AE98: =IF(SSPVTables!Q95<>"",IF(SSPVTables!$R$4=5,SSPVTables!Q95,""),"") ->  | AF98: =IF(SSPVTables!R95<>"",IF(SSPVTables!$R$4=5,SSPVTables!R95,""),"") ->  | AG98: =IF(SSPVTables!S95<>"",IF(SSPVTables!$R$4=5,SSPVTables!S95,""),"") ->  | AI98: =IF(SSPVTables!T95<>"",IF(SSPVTables!$R$4=5,SSPVTables!T95,""),"") -> 
A99: =IF(ELAPVTables!A96<>"",IF(ELAPVTables!$B$4=4,ELAPVTables!A96,""),"") ->  | B99: =IF(ELAPVTables!B96<>"",IF(ELAPVTables!$B$4=4,ELAPVTables!B96,""),"") ->  | C99: =IF(ELAPVTables!C96<>"",IF(ELAPVTables!$B$4=4,ELAPVTables!C96,""),"") ->  | E99: =IF(ELAPVTables!D96<>"",IF(ELAPVTables!$B$4=4,ELAPVTables!D96,""),"") ->  | G99: =IF(MathPVTables!A96<>"",IF(MathPVTables!$B$4=4,MathPVTables!A96,""),"") ->  | H99: =IF(MathPVTables!B96<>"",IF(MathPVTables!$B$4=4,MathPVTables!B96,""),"") ->  | I99: =IF(MathPVTables!C96<>"",IF(MathPVTables!$B$4=4,MathPVTables!C96,""),"") ->  | K99: =IF(MathPVTables!D96<>"",IF(MathPVTables!$B$4=4,MathPVTables!D96,""),"") ->  | M99: =IF(ELAPVTables!I96<>"",IF(ELAPVTables!$J$4=5,ELAPVTables!I96,""),"") ->  | N99: =IF(ELAPVTables!J96<>"",IF(ELAPVTables!$J$4=5,ELAPVTables!J96,""),"") ->  | O99: =IF(ELAPVTables!K96<>"",IF(ELAPVTables!$J$4=5,ELAPVTables!K96,""),"") ->  | Q99: =IF(ELAPVTables!L96<>"",IF(ELAPVTables!$J$4=5,ELAPVTables!L96,""),"") ->  | S99: =IF(MathPVTables!I96<>"",IF(MathPVTables!$J$4=5,MathPVTables!I96,""),"") ->  | T99: =IF(MathPVTables!J96<>"",IF(MathPVTables!$J$4=5,MathPVTables!J96,""),"") ->  | U99: =IF(MathPVTables!K96<>"",IF(MathPVTables!$J$4=5,MathPVTables!K96,""),"") ->  | W99: =IF(MathPVTables!L96<>"",IF(MathPVTables!$J$4=5,MathPVTables!L96,""),"") ->  | Y99: =IF(SciencePVTables!Q96<>"",IF(SciencePVTables!$R$4=5,SciencePVTables!Q96,""),"") ->  | Z99: =IF(SciencePVTables!R96<>"",IF(SciencePVTables!$R$4=5,SciencePVTables!R96,""),"") ->  | AA99: =IF(SciencePVTables!S96<>"",IF(SciencePVTables!$R$4=5,SciencePVTables!S96,""),"") ->  | AC99: =IF(SciencePVTables!T96<>"",IF(SciencePVTables!$R$4=5,SciencePVTables!T96,""),"") ->  | AE99: =IF(SSPVTables!Q96<>"",IF(SSPVTables!$R$4=5,SSPVTables!Q96,""),"") ->  | AF99: =IF(SSPVTables!R96<>"",IF(SSPVTables!$R$4=5,SSPVTables!R96,""),"") ->  | AG99: =IF(SSPVTables!S96<>"",IF(SSPVTables!$R$4=5,SSPVTables!S96,""),"") ->  | AI99: =IF(SSPVTables!T96<>"",IF(SSPVTables!$R$4=5,SSPVTables!T96,""),"") -> 
A100: =IF(ELAPVTables!A97<>"",IF(ELAPVTables!$B$4=4,ELAPVTables!A97,""),"") ->  | B100: =IF(ELAPVTables!B97<>"",IF(ELAPVTables!$B$4=4,ELAPVTables!B97,""),"") ->  | C100: =IF(ELAPVTables!C97<>"",IF(ELAPVTables!$B$4=4,ELAPVTables!C97,""),"") ->  | E100: =IF(ELAPVTables!D97<>"",IF(ELAPVTables!$B$4=4,ELAPVTables!D97,""),"") ->  | G100: =IF(MathPVTables!A97<>"",IF(MathPVTables!$B$4=4,MathPVTables!A97,""),"") ->  | H100: =IF(MathPVTables!B97<>"",IF(MathPVTables!$B$4=4,MathPVTables!B97,""),"") ->  | I100: =IF(MathPVTables!C97<>"",IF(MathPVTables!$B$4=4,MathPVTables!C97,""),"") ->  | K100: =IF(MathPVTables!D97<>"",IF(MathPVTables!$B$4=4,MathPVTables!D97,""),"") ->  | M100: =IF(ELAPVTables!I97<>"",IF(ELAPVTables!$J$4=5,ELAPVTables!I97,""),"") ->  | N100: =IF(ELAPVTables!J97<>"",IF(ELAPVTables!$J$4=5,ELAPVTables!J97,""),"") ->  | O100: =IF(ELAPVTables!K97<>"",IF(ELAPVTables!$J$4=5,ELAPVTables!K97,""),"") ->  | Q100: =IF(ELAPVTables!L97<>"",IF(ELAPVTables!$J$4=5,ELAPVTables!L97,""),"") ->  | S100: =IF(MathPVTables!I97<>"",IF(MathPVTables!$J$4=5,MathPVTables!I97,""),"") ->  | T100: =IF(MathPVTables!J97<>"",IF(MathPVTables!$J$4=5,MathPVTables!J97,""),"") ->  | U100: =IF(MathPVTables!K97<>"",IF(MathPVTables!$J$4=5,MathPVTables!K97,""),"") ->  | W100: =IF(MathPVTables!L97<>"",IF(MathPVTables!$J$4=5,MathPVTables!L97,""),"") ->  | Y100: =IF(SciencePVTables!Q97<>"",IF(SciencePVTables!$R$4=5,SciencePVTables!Q97,""),"") ->  | Z100: =IF(SciencePVTables!R97<>"",IF(SciencePVTables!$R$4=5,SciencePVTables!R97,""),"") ->  | AA100: =IF(SciencePVTables!S97<>"",IF(SciencePVTables!$R$4=5,SciencePVTables!S97,""),"") ->  | AC100: =IF(SciencePVTables!T97<>"",IF(SciencePVTables!$R$4=5,SciencePVTables!T97,""),"") ->  | AE100: =IF(SSPVTables!Q97<>"",IF(SSPVTables!$R$4=5,SSPVTables!Q97,""),"") ->  | AF100: =IF(SSPVTables!R97<>"",IF(SSPVTables!$R$4=5,SSPVTables!R97,""),"") ->  | AG100: =IF(SSPVTables!S97<>"",IF(SSPVTables!$R$4=5,SSPVTables!S97,""),"") ->  | AI100: =IF(SSPVTables!T97<>"",IF(SSPVTables!$R$4=5,SSPVTables!T97,""),"") -> 
A101: =IF(ELAPVTables!A98<>"",IF(ELAPVTables!$B$4=4,ELAPVTables!A98,""),"") ->  | B101: =IF(ELAPVTables!B98<>"",IF(ELAPVTables!$B$4=4,ELAPVTables!B98,""),"") ->  | C101: =IF(ELAPVTables!C98<>"",IF(ELAPVTables!$B$4=4,ELAPVTables!C98,""),"") ->  | E101: =IF(ELAPVTables!D98<>"",IF(ELAPVTables!$B$4=4,ELAPVTables!D98,""),"") ->  | G101: =IF(MathPVTables!A98<>"",IF(MathPVTables!$B$4=4,MathPVTables!A98,""),"") ->  | H101: =IF(MathPVTables!B98<>"",IF(MathPVTables!$B$4=4,MathPVTables!B98,""),"") ->  | I101: =IF(MathPVTables!C98<>"",IF(MathPVTables!$B$4=4,MathPVTables!C98,""),"") ->  | K101: =IF(MathPVTables!D98<>"",IF(MathPVTables!$B$4=4,MathPVTables!D98,""),"") ->  | M101: =IF(ELAPVTables!I98<>"",IF(ELAPVTables!$J$4=5,ELAPVTables!I98,""),"") ->  | N101: =IF(ELAPVTables!J98<>"",IF(ELAPVTables!$J$4=5,ELAPVTables!J98,""),"") ->  | O101: =IF(ELAPVTables!K98<>"",IF(ELAPVTables!$J$4=5,ELAPVTables!K98,""),"") ->  | Q101: =IF(ELAPVTables!L98<>"",IF(ELAPVTables!$J$4=5,ELAPVTables!L98,""),"") ->  | S101: =IF(MathPVTables!I98<>"",IF(MathPVTables!$J$4=5,MathPVTables!I98,""),"") ->  | T101: =IF(MathPVTables!J98<>"",IF(MathPVTables!$J$4=5,MathPVTables!J98,""),"") ->  | U101: =IF(MathPVTables!K98<>"",IF(MathPVTables!$J$4=5,MathPVTables!K98,""),"") ->  | W101: =IF(MathPVTables!L98<>"",IF(MathPVTables!$J$4=5,MathPVTables!L98,""),"") ->  | Y101: =IF(SciencePVTables!Q98<>"",IF(SciencePVTables!$R$4=5,SciencePVTables!Q98,""),"") ->  | Z101: =IF(SciencePVTables!R98<>"",IF(SciencePVTables!$R$4=5,SciencePVTables!R98,""),"") ->  | AA101: =IF(SciencePVTables!S98<>"",IF(SciencePVTables!$R$4=5,SciencePVTables!S98,""),"") ->  | AC101: =IF(SciencePVTables!T98<>"",IF(SciencePVTables!$R$4=5,SciencePVTables!T98,""),"") ->  | AE101: =IF(SSPVTables!Q98<>"",IF(SSPVTables!$R$4=5,SSPVTables!Q98,""),"") ->  | AF101: =IF(SSPVTables!R98<>"",IF(SSPVTables!$R$4=5,SSPVTables!R98,""),"") ->  | AG101: =IF(SSPVTables!S98<>"",IF(SSPVTables!$R$4=5,SSPVTables!S98,""),"") ->  | AI101: =IF(SSPVTables!T98<>"",IF(SSPVTables!$R$4=5,SSPVTables!T98,""),"") -> 
A102: =IF(ELAPVTables!A99<>"",IF(ELAPVTables!$B$4=4,ELAPVTables!A99,""),"") ->  | B102: =IF(ELAPVTables!B99<>"",IF(ELAPVTables!$B$4=4,ELAPVTables!B99,""),"") ->  | C102: =IF(ELAPVTables!C99<>"",IF(ELAPVTables!$B$4=4,ELAPVTables!C99,""),"") ->  | E102: =IF(ELAPVTables!D99<>"",IF(ELAPVTables!$B$4=4,ELAPVTables!D99,""),"") ->  | G102: =IF(MathPVTables!A99<>"",IF(MathPVTables!$B$4=4,MathPVTables!A99,""),"") ->  | H102: =IF(MathPVTables!B99<>"",IF(MathPVTables!$B$4=4,MathPVTables!B99,""),"") ->  | I102: =IF(MathPVTables!C99<>"",IF(MathPVTables!$B$4=4,MathPVTables!C99,""),"") ->  | K102: =IF(MathPVTables!D99<>"",IF(MathPVTables!$B$4=4,MathPVTables!D99,""),"") ->  | M102: =IF(ELAPVTables!I99<>"",IF(ELAPVTables!$J$4=5,ELAPVTables!I99,""),"") ->  | N102: =IF(ELAPVTables!J99<>"",IF(ELAPVTables!$J$4=5,ELAPVTables!J99,""),"") ->  | O102: =IF(ELAPVTables!K99<>"",IF(ELAPVTables!$J$4=5,ELAPVTables!K99,""),"") ->  | Q102: =IF(ELAPVTables!L99<>"",IF(ELAPVTables!$J$4=5,ELAPVTables!L99,""),"") ->  | S102: =IF(MathPVTables!I99<>"",IF(MathPVTables!$J$4=5,MathPVTables!I99,""),"") ->  | T102: =IF(MathPVTables!J99<>"",IF(MathPVTables!$J$4=5,MathPVTables!J99,""),"") ->  | U102: =IF(MathPVTables!K99<>"",IF(MathPVTables!$J$4=5,MathPVTables!K99,""),"") ->  | W102: =IF(MathPVTables!L99<>"",IF(MathPVTables!$J$4=5,MathPVTables!L99,""),"") ->  | Y102: =IF(SciencePVTables!Q99<>"",IF(SciencePVTables!$R$4=5,SciencePVTables!Q99,""),"") ->  | Z102: =IF(SciencePVTables!R99<>"",IF(SciencePVTables!$R$4=5,SciencePVTables!R99,""),"") ->  | AA102: =IF(SciencePVTables!S99<>"",IF(SciencePVTables!$R$4=5,SciencePVTables!S99,""),"") ->  | AC102: =IF(SciencePVTables!T99<>"",IF(SciencePVTables!$R$4=5,SciencePVTables!T99,""),"") ->  | AE102: =IF(SSPVTables!Q99<>"",IF(SSPVTables!$R$4=5,SSPVTables!Q99,""),"") ->  | AF102: =IF(SSPVTables!R99<>"",IF(SSPVTables!$R$4=5,SSPVTables!R99,""),"") ->  | AG102: =IF(SSPVTables!S99<>"",IF(SSPVTables!$R$4=5,SSPVTables!S99,""),"") ->  | AI102: =IF(SSPVTables!T99<>"",IF(SSPVTables!$R$4=5,SSPVTables!T99,""),"") -> 
A103: =IF(ELAPVTables!A100<>"",IF(ELAPVTables!$B$4=4,ELAPVTables!A100,""),"") ->  | B103: =IF(ELAPVTables!B100<>"",IF(ELAPVTables!$B$4=4,ELAPVTables!B100,""),"") ->  | C103: =IF(ELAPVTables!C100<>"",IF(ELAPVTables!$B$4=4,ELAPVTables!C100,""),"") ->  | E103: =IF(ELAPVTables!D100<>"",IF(ELAPVTables!$B$4=4,ELAPVTables!D100,""),"") ->  | G103: =IF(MathPVTables!A100<>"",IF(MathPVTables!$B$4=4,MathPVTables!A100,""),"") ->  | H103: =IF(MathPVTables!B100<>"",IF(MathPVTables!$B$4=4,MathPVTables!B100,""),"") ->  | I103: =IF(MathPVTables!C100<>"",IF(MathPVTables!$B$4=4,MathPVTables!C100,""),"") ->  | K103: =IF(MathPVTables!D100<>"",IF(MathPVTables!$B$4=4,MathPVTables!D100,""),"") ->  | M103: =IF(ELAPVTables!I100<>"",IF(ELAPVTables!$J$4=5,ELAPVTables!I100,""),"") ->  | N103: =IF(ELAPVTables!J100<>"",IF(ELAPVTables!$J$4=5,ELAPVTables!J100,""),"") ->  | O103: =IF(ELAPVTables!K100<>"",IF(ELAPVTables!$J$4=5,ELAPVTables!K100,""),"") ->  | Q103: =IF(ELAPVTables!L100<>"",IF(ELAPVTables!$J$4=5,ELAPVTables!L100,""),"") ->  | S103: =IF(MathPVTables!I100<>"",IF(MathPVTables!$J$4=5,MathPVTables!I100,""),"") ->  | T103: =IF(MathPVTables!J100<>"",IF(MathPVTables!$J$4=5,MathPVTables!J100,""),"") ->  | U103: =IF(MathPVTables!K100<>"",IF(MathPVTables!$J$4=5,MathPVTables!K100,""),"") ->  | W103: =IF(MathPVTables!L100<>"",IF(MathPVTables!$J$4=5,MathPVTables!L100,""),"") ->  | Y103: =IF(SciencePVTables!Q100<>"",IF(SciencePVTables!$R$4=5,SciencePVTables!Q100,""),"") ->  | Z103: =IF(SciencePVTables!R100<>"",IF(SciencePVTables!$R$4=5,SciencePVTables!R100,""),"") ->  | AA103: =IF(SciencePVTables!S100<>"",IF(SciencePVTables!$R$4=5,SciencePVTables!S100,""),"") ->  | AC103: =IF(SciencePVTables!T100<>"",IF(SciencePVTables!$R$4=5,SciencePVTables!T100,""),"") ->  | AE103: =IF(SSPVTables!Q100<>"",IF(SSPVTables!$R$4=5,SSPVTables!Q100,""),"") ->  | AF103: =IF(SSPVTables!R100<>"",IF(SSPVTables!$R$4=5,SSPVTables!R100,""),"") ->  | AG103: =IF(SSPVTables!S100<>"",IF(SSPVTables!$R$4=5,SSPVTables!S100,""),"") ->  | AI103: =IF(SSPVTables!T100<>"",IF(SSPVTables!$R$4=5,SSPVTables!T100,""),"") -> 
A104: =IF(ELAPVTables!A101<>"",IF(ELAPVTables!$B$4=4,ELAPVTables!A101,""),"") ->  | B104: =IF(ELAPVTables!B101<>"",IF(ELAPVTables!$B$4=4,ELAPVTables!B101,""),"") ->  | C104: =IF(ELAPVTables!C101<>"",IF(ELAPVTables!$B$4=4,ELAPVTables!C101,""),"") ->  | E104: =IF(ELAPVTables!D101<>"",IF(ELAPVTables!$B$4=4,ELAPVTables!D101,""),"") ->  | G104: =IF(MathPVTables!A101<>"",IF(MathPVTables!$B$4=4,MathPVTables!A101,""),"") ->  | H104: =IF(MathPVTables!B101<>"",IF(MathPVTables!$B$4=4,MathPVTables!B101,""),"") ->  | I104: =IF(MathPVTables!C101<>"",IF(MathPVTables!$B$4=4,MathPVTables!C101,""),"") ->  | K104: =IF(MathPVTables!D101<>"",IF(MathPVTables!$B$4=4,MathPVTables!D101,""),"") ->  | M104: =IF(ELAPVTables!I101<>"",IF(ELAPVTables!$J$4=5,ELAPVTables!I101,""),"") ->  | N104: =IF(ELAPVTables!J101<>"",IF(ELAPVTables!$J$4=5,ELAPVTables!J101,""),"") ->  | O104: =IF(ELAPVTables!K101<>"",IF(ELAPVTables!$J$4=5,ELAPVTables!K101,""),"") ->  | Q104: =IF(ELAPVTables!L101<>"",IF(ELAPVTables!$J$4=5,ELAPVTables!L101,""),"") ->  | S104: =IF(MathPVTables!I101<>"",IF(MathPVTables!$J$4=5,MathPVTables!I101,""),"") ->  | T104: =IF(MathPVTables!J101<>"",IF(MathPVTables!$J$4=5,MathPVTables!J101,""),"") ->  | U104: =IF(MathPVTables!K101<>"",IF(MathPVTables!$J$4=5,MathPVTables!K101,""),"") ->  | W104: =IF(MathPVTables!L101<>"",IF(MathPVTables!$J$4=5,MathPVTables!L101,""),"") ->  | Y104: =IF(SciencePVTables!Q101<>"",IF(SciencePVTables!$R$4=5,SciencePVTables!Q101,""),"") ->  | Z104: =IF(SciencePVTables!R101<>"",IF(SciencePVTables!$R$4=5,SciencePVTables!R101,""),"") ->  | AA104: =IF(SciencePVTables!S101<>"",IF(SciencePVTables!$R$4=5,SciencePVTables!S101,""),"") ->  | AC104: =IF(SciencePVTables!T101<>"",IF(SciencePVTables!$R$4=5,SciencePVTables!T101,""),"") ->  | AE104: =IF(SSPVTables!Q101<>"",IF(SSPVTables!$R$4=5,SSPVTables!Q101,""),"") ->  | AF104: =IF(SSPVTables!R101<>"",IF(SSPVTables!$R$4=5,SSPVTables!R101,""),"") ->  | AG104: =IF(SSPVTables!S101<>"",IF(SSPVTables!$R$4=5,SSPVTables!S101,""),"") ->  | AI104: =IF(SSPVTables!T101<>"",IF(SSPVTables!$R$4=5,SSPVTables!T101,""),"") -> 
A105: =IF(ELAPVTables!A102<>"",IF(ELAPVTables!$B$4=4,ELAPVTables!A102,""),"") ->  | B105: =IF(ELAPVTables!B102<>"",IF(ELAPVTables!$B$4=4,ELAPVTables!B102,""),"") ->  | C105: =IF(ELAPVTables!C102<>"",IF(ELAPVTables!$B$4=4,ELAPVTables!C102,""),"") ->  | E105: =IF(ELAPVTables!D102<>"",IF(ELAPVTables!$B$4=4,ELAPVTables!D102,""),"") ->  | G105: =IF(MathPVTables!A102<>"",IF(MathPVTables!$B$4=4,MathPVTables!A102,""),"") ->  | H105: =IF(MathPVTables!B102<>"",IF(MathPVTables!$B$4=4,MathPVTables!B102,""),"") ->  | I105: =IF(MathPVTables!C102<>"",IF(MathPVTables!$B$4=4,MathPVTables!C102,""),"") ->  | K105: =IF(MathPVTables!D102<>"",IF(MathPVTables!$B$4=4,MathPVTables!D102,""),"") ->  | M105: =IF(ELAPVTables!I102<>"",IF(ELAPVTables!$J$4=5,ELAPVTables!I102,""),"") ->  | N105: =IF(ELAPVTables!J102<>"",IF(ELAPVTables!$J$4=5,ELAPVTables!J102,""),"") ->  | O105: =IF(ELAPVTables!K102<>"",IF(ELAPVTables!$J$4=5,ELAPVTables!K102,""),"") ->  | Q105: =IF(ELAPVTables!L102<>"",IF(ELAPVTables!$J$4=5,ELAPVTables!L102,""),"") ->  | S105: =IF(MathPVTables!I102<>"",IF(MathPVTables!$J$4=5,MathPVTables!I102,""),"") ->  | T105: =IF(MathPVTables!J102<>"",IF(MathPVTables!$J$4=5,MathPVTables!J102,""),"") ->  | U105: =IF(MathPVTables!K102<>"",IF(MathPVTables!$J$4=5,MathPVTables!K102,""),"") ->  | W105: =IF(MathPVTables!L102<>"",IF(MathPVTables!$J$4=5,MathPVTables!L102,""),"") ->  | Y105: =IF(SciencePVTables!Q102<>"",IF(SciencePVTables!$R$4=5,SciencePVTables!Q102,""),"") ->  | Z105: =IF(SciencePVTables!R102<>"",IF(SciencePVTables!$R$4=5,SciencePVTables!R102,""),"") ->  | AA105: =IF(SciencePVTables!S102<>"",IF(SciencePVTables!$R$4=5,SciencePVTables!S102,""),"") ->  | AC105: =IF(SciencePVTables!T102<>"",IF(SciencePVTables!$R$4=5,SciencePVTables!T102,""),"") ->  | AE105: =IF(SSPVTables!Q102<>"",IF(SSPVTables!$R$4=5,SSPVTables!Q102,""),"") ->  | AF105: =IF(SSPVTables!R102<>"",IF(SSPVTables!$R$4=5,SSPVTables!R102,""),"") ->  | AG105: =IF(SSPVTables!S102<>"",IF(SSPVTables!$R$4=5,SSPVTables!S102,""),"") ->  | AI105: =IF(SSPVTables!T102<>"",IF(SSPVTables!$R$4=5,SSPVTables!T102,""),"") -> 
A106: =IF(ELAPVTables!A103<>"",IF(ELAPVTables!$B$4=4,ELAPVTables!A103,""),"") ->  | B106: =IF(ELAPVTables!B103<>"",IF(ELAPVTables!$B$4=4,ELAPVTables!B103,""),"") ->  | C106: =IF(ELAPVTables!C103<>"",IF(ELAPVTables!$B$4=4,ELAPVTables!C103,""),"") ->  | E106: =IF(ELAPVTables!D103<>"",IF(ELAPVTables!$B$4=4,ELAPVTables!D103,""),"") ->  | G106: =IF(MathPVTables!A103<>"",IF(MathPVTables!$B$4=4,MathPVTables!A103,""),"") ->  | H106: =IF(MathPVTables!B103<>"",IF(MathPVTables!$B$4=4,MathPVTables!B103,""),"") ->  | I106: =IF(MathPVTables!C103<>"",IF(MathPVTables!$B$4=4,MathPVTables!C103,""),"") ->  | K106: =IF(MathPVTables!D103<>"",IF(MathPVTables!$B$4=4,MathPVTables!D103,""),"") ->  | M106: =IF(ELAPVTables!I103<>"",IF(ELAPVTables!$J$4=5,ELAPVTables!I103,""),"") ->  | N106: =IF(ELAPVTables!J103<>"",IF(ELAPVTables!$J$4=5,ELAPVTables!J103,""),"") ->  | O106: =IF(ELAPVTables!K103<>"",IF(ELAPVTables!$J$4=5,ELAPVTables!K103,""),"") ->  | Q106: =IF(ELAPVTables!L103<>"",IF(ELAPVTables!$J$4=5,ELAPVTables!L103,""),"") ->  | S106: =IF(MathPVTables!I103<>"",IF(MathPVTables!$J$4=5,MathPVTables!I103,""),"") ->  | T106: =IF(MathPVTables!J103<>"",IF(MathPVTables!$J$4=5,MathPVTables!J103,""),"") ->  | U106: =IF(MathPVTables!K103<>"",IF(MathPVTables!$J$4=5,MathPVTables!K103,""),"") ->  | W106: =IF(MathPVTables!L103<>"",IF(MathPVTables!$J$4=5,MathPVTables!L103,""),"") ->  | Y106: =IF(SciencePVTables!Q103<>"",IF(SciencePVTables!$R$4=5,SciencePVTables!Q103,""),"") ->  | Z106: =IF(SciencePVTables!R103<>"",IF(SciencePVTables!$R$4=5,SciencePVTables!R103,""),"") ->  | AA106: =IF(SciencePVTables!S103<>"",IF(SciencePVTables!$R$4=5,SciencePVTables!S103,""),"") ->  | AC106: =IF(SciencePVTables!T103<>"",IF(SciencePVTables!$R$4=5,SciencePVTables!T103,""),"") ->  | AE106: =IF(SSPVTables!Q103<>"",IF(SSPVTables!$R$4=5,SSPVTables!Q103,""),"") ->  | AF106: =IF(SSPVTables!R103<>"",IF(SSPVTables!$R$4=5,SSPVTables!R103,""),"") ->  | AG106: =IF(SSPVTables!S103<>"",IF(SSPVTables!$R$4=5,SSPVTables!S103,""),"") ->  | AI106: =IF(SSPVTables!T103<>"",IF(SSPVTables!$R$4=5,SSPVTables!T103,""),"") -> 
A107: =IF(ELAPVTables!A104<>"",IF(ELAPVTables!$B$4=4,ELAPVTables!A104,""),"") ->  | B107: =IF(ELAPVTables!B104<>"",IF(ELAPVTables!$B$4=4,ELAPVTables!B104,""),"") ->  | C107: =IF(ELAPVTables!C104<>"",IF(ELAPVTables!$B$4=4,ELAPVTables!C104,""),"") ->  | E107: =IF(ELAPVTables!D104<>"",IF(ELAPVTables!$B$4=4,ELAPVTables!D104,""),"") ->  | G107: =IF(MathPVTables!A104<>"",IF(MathPVTables!$B$4=4,MathPVTables!A104,""),"") ->  | H107: =IF(MathPVTables!B104<>"",IF(MathPVTables!$B$4=4,MathPVTables!B104,""),"") ->  | I107: =IF(MathPVTables!C104<>"",IF(MathPVTables!$B$4=4,MathPVTables!C104,""),"") ->  | K107: =IF(MathPVTables!D104<>"",IF(MathPVTables!$B$4=4,MathPVTables!D104,""),"") ->  | M107: =IF(ELAPVTables!I104<>"",IF(ELAPVTables!$J$4=5,ELAPVTables!I104,""),"") ->  | N107: =IF(ELAPVTables!J104<>"",IF(ELAPVTables!$J$4=5,ELAPVTables!J104,""),"") ->  | O107: =IF(ELAPVTables!K104<>"",IF(ELAPVTables!$J$4=5,ELAPVTables!K104,""),"") ->  | Q107: =IF(ELAPVTables!L104<>"",IF(ELAPVTables!$J$4=5,ELAPVTables!L104,""),"") ->  | S107: =IF(MathPVTables!I104<>"",IF(MathPVTables!$J$4=5,MathPVTables!I104,""),"") ->  | T107: =IF(MathPVTables!J104<>"",IF(MathPVTables!$J$4=5,MathPVTables!J104,""),"") ->  | U107: =IF(MathPVTables!K104<>"",IF(MathPVTables!$J$4=5,MathPVTables!K104,""),"") ->  | W107: =IF(MathPVTables!L104<>"",IF(MathPVTables!$J$4=5,MathPVTables!L104,""),"") ->  | Y107: =IF(SciencePVTables!Q104<>"",IF(SciencePVTables!$R$4=5,SciencePVTables!Q104,""),"") ->  | Z107: =IF(SciencePVTables!R104<>"",IF(SciencePVTables!$R$4=5,SciencePVTables!R104,""),"") ->  | AA107: =IF(SciencePVTables!S104<>"",IF(SciencePVTables!$R$4=5,SciencePVTables!S104,""),"") ->  | AC107: =IF(SciencePVTables!T104<>"",IF(SciencePVTables!$R$4=5,SciencePVTables!T104,""),"") ->  | AE107: =IF(SSPVTables!Q104<>"",IF(SSPVTables!$R$4=5,SSPVTables!Q104,""),"") ->  | AF107: =IF(SSPVTables!R104<>"",IF(SSPVTables!$R$4=5,SSPVTables!R104,""),"") ->  | AG107: =IF(SSPVTables!S104<>"",IF(SSPVTables!$R$4=5,SSPVTables!S104,""),"") ->  | AI107: =IF(SSPVTables!T104<>"",IF(SSPVTables!$R$4=5,SSPVTables!T104,""),"") -> 
A108: =IF(ELAPVTables!A105<>"",IF(ELAPVTables!$B$4=4,ELAPVTables!A105,""),"") ->  | B108: =IF(ELAPVTables!B105<>"",IF(ELAPVTables!$B$4=4,ELAPVTables!B105,""),"") ->  | C108: =IF(ELAPVTables!C105<>"",IF(ELAPVTables!$B$4=4,ELAPVTables!C105,""),"") ->  | E108: =IF(ELAPVTables!D105<>"",IF(ELAPVTables!$B$4=4,ELAPVTables!D105,""),"") ->  | G108: =IF(MathPVTables!A105<>"",IF(MathPVTables!$B$4=4,MathPVTables!A105,""),"") ->  | H108: =IF(MathPVTables!B105<>"",IF(MathPVTables!$B$4=4,MathPVTables!B105,""),"") ->  | I108: =IF(MathPVTables!C105<>"",IF(MathPVTables!$B$4=4,MathPVTables!C105,""),"") ->  | K108: =IF(MathPVTables!D105<>"",IF(MathPVTables!$B$4=4,MathPVTables!D105,""),"") ->  | M108: =IF(ELAPVTables!I105<>"",IF(ELAPVTables!$J$4=5,ELAPVTables!I105,""),"") ->  | N108: =IF(ELAPVTables!J105<>"",IF(ELAPVTables!$J$4=5,ELAPVTables!J105,""),"") ->  | O108: =IF(ELAPVTables!K105<>"",IF(ELAPVTables!$J$4=5,ELAPVTables!K105,""),"") ->  | Q108: =IF(ELAPVTables!L105<>"",IF(ELAPVTables!$J$4=5,ELAPVTables!L105,""),"") ->  | S108: =IF(MathPVTables!I105<>"",IF(MathPVTables!$J$4=5,MathPVTables!I105,""),"") ->  | T108: =IF(MathPVTables!J105<>"",IF(MathPVTables!$J$4=5,MathPVTables!J105,""),"") ->  | U108: =IF(MathPVTables!K105<>"",IF(MathPVTables!$J$4=5,MathPVTables!K105,""),"") ->  | W108: =IF(MathPVTables!L105<>"",IF(MathPVTables!$J$4=5,MathPVTables!L105,""),"") ->  | Y108: =IF(SciencePVTables!Q105<>"",IF(SciencePVTables!$R$4=5,SciencePVTables!Q105,""),"") ->  | Z108: =IF(SciencePVTables!R105<>"",IF(SciencePVTables!$R$4=5,SciencePVTables!R105,""),"") ->  | AA108: =IF(SciencePVTables!S105<>"",IF(SciencePVTables!$R$4=5,SciencePVTables!S105,""),"") ->  | AC108: =IF(SciencePVTables!T105<>"",IF(SciencePVTables!$R$4=5,SciencePVTables!T105,""),"") ->  | AE108: =IF(SSPVTables!Q105<>"",IF(SSPVTables!$R$4=5,SSPVTables!Q105,""),"") ->  | AF108: =IF(SSPVTables!R105<>"",IF(SSPVTables!$R$4=5,SSPVTables!R105,""),"") ->  | AG108: =IF(SSPVTables!S105<>"",IF(SSPVTables!$R$4=5,SSPVTables!S105,""),"") ->  | AI108: =IF(SSPVTables!T105<>"",IF(SSPVTables!$R$4=5,SSPVTables!T105,""),"") -> 
A109: =IF(ELAPVTables!A106<>"",IF(ELAPVTables!$B$4=4,ELAPVTables!A106,""),"") ->  | B109: =IF(ELAPVTables!B106<>"",IF(ELAPVTables!$B$4=4,ELAPVTables!B106,""),"") ->  | C109: =IF(ELAPVTables!C106<>"",IF(ELAPVTables!$B$4=4,ELAPVTables!C106,""),"") ->  | E109: =IF(ELAPVTables!D106<>"",IF(ELAPVTables!$B$4=4,ELAPVTables!D106,""),"") ->  | G109: =IF(MathPVTables!A106<>"",IF(MathPVTables!$B$4=4,MathPVTables!A106,""),"") ->  | H109: =IF(MathPVTables!B106<>"",IF(MathPVTables!$B$4=4,MathPVTables!B106,""),"") ->  | I109: =IF(MathPVTables!C106<>"",IF(MathPVTables!$B$4=4,MathPVTables!C106,""),"") ->  | K109: =IF(MathPVTables!D106<>"",IF(MathPVTables!$B$4=4,MathPVTables!D106,""),"") ->  | M109: =IF(ELAPVTables!I106<>"",IF(ELAPVTables!$J$4=5,ELAPVTables!I106,""),"") ->  | N109: =IF(ELAPVTables!J106<>"",IF(ELAPVTables!$J$4=5,ELAPVTables!J106,""),"") ->  | O109: =IF(ELAPVTables!K106<>"",IF(ELAPVTables!$J$4=5,ELAPVTables!K106,""),"") ->  | Q109: =IF(ELAPVTables!L106<>"",IF(ELAPVTables!$J$4=5,ELAPVTables!L106,""),"") ->  | S109: =IF(MathPVTables!I106<>"",IF(MathPVTables!$J$4=5,MathPVTables!I106,""),"") ->  | T109: =IF(MathPVTables!J106<>"",IF(MathPVTables!$J$4=5,MathPVTables!J106,""),"") ->  | U109: =IF(MathPVTables!K106<>"",IF(MathPVTables!$J$4=5,MathPVTables!K106,""),"") ->  | W109: =IF(MathPVTables!L106<>"",IF(MathPVTables!$J$4=5,MathPVTables!L106,""),"") ->  | Y109: =IF(SciencePVTables!Q106<>"",IF(SciencePVTables!$R$4=5,SciencePVTables!Q106,""),"") ->  | Z109: =IF(SciencePVTables!R106<>"",IF(SciencePVTables!$R$4=5,SciencePVTables!R106,""),"") ->  | AA109: =IF(SciencePVTables!S106<>"",IF(SciencePVTables!$R$4=5,SciencePVTables!S106,""),"") ->  | AC109: =IF(SciencePVTables!T106<>"",IF(SciencePVTables!$R$4=5,SciencePVTables!T106,""),"") ->  | AE109: =IF(SSPVTables!Q106<>"",IF(SSPVTables!$R$4=5,SSPVTables!Q106,""),"") ->  | AF109: =IF(SSPVTables!R106<>"",IF(SSPVTables!$R$4=5,SSPVTables!R106,""),"") ->  | AG109: =IF(SSPVTables!S106<>"",IF(SSPVTables!$R$4=5,SSPVTables!S106,""),"") ->  | AI109: =IF(SSPVTables!T106<>"",IF(SSPVTables!$R$4=5,SSPVTables!T106,""),"") -> 
A110: =IF(ELAPVTables!A107<>"",IF(ELAPVTables!$B$4=4,ELAPVTables!A107,""),"") ->  | B110: =IF(ELAPVTables!B107<>"",IF(ELAPVTables!$B$4=4,ELAPVTables!B107,""),"") ->  | C110: =IF(ELAPVTables!C107<>"",IF(ELAPVTables!$B$4=4,ELAPVTables!C107,""),"") ->  | E110: =IF(ELAPVTables!D107<>"",IF(ELAPVTables!$B$4=4,ELAPVTables!D107,""),"") ->  | G110: =IF(MathPVTables!A107<>"",IF(MathPVTables!$B$4=4,MathPVTables!A107,""),"") ->  | H110: =IF(MathPVTables!B107<>"",IF(MathPVTables!$B$4=4,MathPVTables!B107,""),"") ->  | I110: =IF(MathPVTables!C107<>"",IF(MathPVTables!$B$4=4,MathPVTables!C107,""),"") ->  | K110: =IF(MathPVTables!D107<>"",IF(MathPVTables!$B$4=4,MathPVTables!D107,""),"") ->  | M110: =IF(ELAPVTables!I107<>"",IF(ELAPVTables!$J$4=5,ELAPVTables!I107,""),"") ->  | N110: =IF(ELAPVTables!J107<>"",IF(ELAPVTables!$J$4=5,ELAPVTables!J107,""),"") ->  | O110: =IF(ELAPVTables!K107<>"",IF(ELAPVTables!$J$4=5,ELAPVTables!K107,""),"") ->  | Q110: =IF(ELAPVTables!L107<>"",IF(ELAPVTables!$J$4=5,ELAPVTables!L107,""),"") ->  | S110: =IF(MathPVTables!I107<>"",IF(MathPVTables!$J$4=5,MathPVTables!I107,""),"") ->  | T110: =IF(MathPVTables!J107<>"",IF(MathPVTables!$J$4=5,MathPVTables!J107,""),"") ->  | U110: =IF(MathPVTables!K107<>"",IF(MathPVTables!$J$4=5,MathPVTables!K107,""),"") ->  | W110: =IF(MathPVTables!L107<>"",IF(MathPVTables!$J$4=5,MathPVTables!L107,""),"") ->  | Y110: =IF(SciencePVTables!Q107<>"",IF(SciencePVTables!$R$4=5,SciencePVTables!Q107,""),"") ->  | Z110: =IF(SciencePVTables!R107<>"",IF(SciencePVTables!$R$4=5,SciencePVTables!R107,""),"") ->  | AA110: =IF(SciencePVTables!S107<>"",IF(SciencePVTables!$R$4=5,SciencePVTables!S107,""),"") ->  | AC110: =IF(SciencePVTables!T107<>"",IF(SciencePVTables!$R$4=5,SciencePVTables!T107,""),"") ->  | AE110: =IF(SSPVTables!Q107<>"",IF(SSPVTables!$R$4=5,SSPVTables!Q107,""),"") ->  | AF110: =IF(SSPVTables!R107<>"",IF(SSPVTables!$R$4=5,SSPVTables!R107,""),"") ->  | AG110: =IF(SSPVTables!S107<>"",IF(SSPVTables!$R$4=5,SSPVTables!S107,""),"") ->  | AI110: =IF(SSPVTables!T107<>"",IF(SSPVTables!$R$4=5,SSPVTables!T107,""),"") -> 
A111: =IF(ELAPVTables!A108<>"",IF(ELAPVTables!$B$4=4,ELAPVTables!A108,""),"") ->  | B111: =IF(ELAPVTables!B108<>"",IF(ELAPVTables!$B$4=4,ELAPVTables!B108,""),"") ->  | C111: =IF(ELAPVTables!C108<>"",IF(ELAPVTables!$B$4=4,ELAPVTables!C108,""),"") ->  | E111: =IF(ELAPVTables!D108<>"",IF(ELAPVTables!$B$4=4,ELAPVTables!D108,""),"") ->  | G111: =IF(MathPVTables!A108<>"",IF(MathPVTables!$B$4=4,MathPVTables!A108,""),"") ->  | H111: =IF(MathPVTables!B108<>"",IF(MathPVTables!$B$4=4,MathPVTables!B108,""),"") ->  | I111: =IF(MathPVTables!C108<>"",IF(MathPVTables!$B$4=4,MathPVTables!C108,""),"") ->  | K111: =IF(MathPVTables!D108<>"",IF(MathPVTables!$B$4=4,MathPVTables!D108,""),"") ->  | M111: =IF(ELAPVTables!I108<>"",IF(ELAPVTables!$J$4=5,ELAPVTables!I108,""),"") ->  | N111: =IF(ELAPVTables!J108<>"",IF(ELAPVTables!$J$4=5,ELAPVTables!J108,""),"") ->  | O111: =IF(ELAPVTables!K108<>"",IF(ELAPVTables!$J$4=5,ELAPVTables!K108,""),"") ->  | Q111: =IF(ELAPVTables!L108<>"",IF(ELAPVTables!$J$4=5,ELAPVTables!L108,""),"") ->  | S111: =IF(MathPVTables!I108<>"",IF(MathPVTables!$J$4=5,MathPVTables!I108,""),"") ->  | T111: =IF(MathPVTables!J108<>"",IF(MathPVTables!$J$4=5,MathPVTables!J108,""),"") ->  | U111: =IF(MathPVTables!K108<>"",IF(MathPVTables!$J$4=5,MathPVTables!K108,""),"") ->  | W111: =IF(MathPVTables!L108<>"",IF(MathPVTables!$J$4=5,MathPVTables!L108,""),"") ->  | Y111: =IF(SciencePVTables!Q108<>"",IF(SciencePVTables!$R$4=5,SciencePVTables!Q108,""),"") ->  | Z111: =IF(SciencePVTables!R108<>"",IF(SciencePVTables!$R$4=5,SciencePVTables!R108,""),"") ->  | AA111: =IF(SciencePVTables!S108<>"",IF(SciencePVTables!$R$4=5,SciencePVTables!S108,""),"") ->  | AC111: =IF(SciencePVTables!T108<>"",IF(SciencePVTables!$R$4=5,SciencePVTables!T108,""),"") ->  | AE111: =IF(SSPVTables!Q108<>"",IF(SSPVTables!$R$4=5,SSPVTables!Q108,""),"") ->  | AF111: =IF(SSPVTables!R108<>"",IF(SSPVTables!$R$4=5,SSPVTables!R108,""),"") ->  | AG111: =IF(SSPVTables!S108<>"",IF(SSPVTables!$R$4=5,SSPVTables!S108,""),"") ->  | AI111: =IF(SSPVTables!T108<>"",IF(SSPVTables!$R$4=5,SSPVTables!T108,""),"") -> 
A112: =IF(ELAPVTables!A109<>"",IF(ELAPVTables!$B$4=4,ELAPVTables!A109,""),"") ->  | B112: =IF(ELAPVTables!B109<>"",IF(ELAPVTables!$B$4=4,ELAPVTables!B109,""),"") ->  | C112: =IF(ELAPVTables!C109<>"",IF(ELAPVTables!$B$4=4,ELAPVTables!C109,""),"") ->  | E112: =IF(ELAPVTables!D109<>"",IF(ELAPVTables!$B$4=4,ELAPVTables!D109,""),"") ->  | G112: =IF(MathPVTables!A109<>"",IF(MathPVTables!$B$4=4,MathPVTables!A109,""),"") ->  | H112: =IF(MathPVTables!B109<>"",IF(MathPVTables!$B$4=4,MathPVTables!B109,""),"") ->  | I112: =IF(MathPVTables!C109<>"",IF(MathPVTables!$B$4=4,MathPVTables!C109,""),"") ->  | K112: =IF(MathPVTables!D109<>"",IF(MathPVTables!$B$4=4,MathPVTables!D109,""),"") ->  | M112: =IF(ELAPVTables!I109<>"",IF(ELAPVTables!$J$4=5,ELAPVTables!I109,""),"") ->  | N112: =IF(ELAPVTables!J109<>"",IF(ELAPVTables!$J$4=5,ELAPVTables!J109,""),"") ->  | O112: =IF(ELAPVTables!K109<>"",IF(ELAPVTables!$J$4=5,ELAPVTables!K109,""),"") ->  | Q112: =IF(ELAPVTables!L109<>"",IF(ELAPVTables!$J$4=5,ELAPVTables!L109,""),"") ->  | S112: =IF(MathPVTables!I109<>"",IF(MathPVTables!$J$4=5,MathPVTables!I109,""),"") ->  | T112: =IF(MathPVTables!J109<>"",IF(MathPVTables!$J$4=5,MathPVTables!J109,""),"") ->  | U112: =IF(MathPVTables!K109<>"",IF(MathPVTables!$J$4=5,MathPVTables!K109,""),"") ->  | W112: =IF(MathPVTables!L109<>"",IF(MathPVTables!$J$4=5,MathPVTables!L109,""),"") ->  | Y112: =IF(SciencePVTables!Q109<>"",IF(SciencePVTables!$R$4=5,SciencePVTables!Q109,""),"") ->  | Z112: =IF(SciencePVTables!R109<>"",IF(SciencePVTables!$R$4=5,SciencePVTables!R109,""),"") ->  | AA112: =IF(SciencePVTables!S109<>"",IF(SciencePVTables!$R$4=5,SciencePVTables!S109,""),"") ->  | AC112: =IF(SciencePVTables!T109<>"",IF(SciencePVTables!$R$4=5,SciencePVTables!T109,""),"") ->  | AE112: =IF(SSPVTables!Q109<>"",IF(SSPVTables!$R$4=5,SSPVTables!Q109,""),"") ->  | AF112: =IF(SSPVTables!R109<>"",IF(SSPVTables!$R$4=5,SSPVTables!R109,""),"") ->  | AG112: =IF(SSPVTables!S109<>"",IF(SSPVTables!$R$4=5,SSPVTables!S109,""),"") ->  | AI112: =IF(SSPVTables!T109<>"",IF(SSPVTables!$R$4=5,SSPVTables!T109,""),"") -> 
A113: =IF(ELAPVTables!A110<>"",IF(ELAPVTables!$B$4=4,ELAPVTables!A110,""),"") ->  | B113: =IF(ELAPVTables!B110<>"",IF(ELAPVTables!$B$4=4,ELAPVTables!B110,""),"") ->  | C113: =IF(ELAPVTables!C110<>"",IF(ELAPVTables!$B$4=4,ELAPVTables!C110,""),"") ->  | E113: =IF(ELAPVTables!D110<>"",IF(ELAPVTables!$B$4=4,ELAPVTables!D110,""),"") ->  | G113: =IF(MathPVTables!A110<>"",IF(MathPVTables!$B$4=4,MathPVTables!A110,""),"") ->  | H113: =IF(MathPVTables!B110<>"",IF(MathPVTables!$B$4=4,MathPVTables!B110,""),"") ->  | I113: =IF(MathPVTables!C110<>"",IF(MathPVTables!$B$4=4,MathPVTables!C110,""),"") ->  | K113: =IF(MathPVTables!D110<>"",IF(MathPVTables!$B$4=4,MathPVTables!D110,""),"") ->  | M113: =IF(ELAPVTables!I110<>"",IF(ELAPVTables!$J$4=5,ELAPVTables!I110,""),"") ->  | N113: =IF(ELAPVTables!J110<>"",IF(ELAPVTables!$J$4=5,ELAPVTables!J110,""),"") ->  | O113: =IF(ELAPVTables!K110<>"",IF(ELAPVTables!$J$4=5,ELAPVTables!K110,""),"") ->  | Q113: =IF(ELAPVTables!L110<>"",IF(ELAPVTables!$J$4=5,ELAPVTables!L110,""),"") ->  | S113: =IF(MathPVTables!I110<>"",IF(MathPVTables!$J$4=5,MathPVTables!I110,""),"") ->  | T113: =IF(MathPVTables!J110<>"",IF(MathPVTables!$J$4=5,MathPVTables!J110,""),"") ->  | U113: =IF(MathPVTables!K110<>"",IF(MathPVTables!$J$4=5,MathPVTables!K110,""),"") ->  | W113: =IF(MathPVTables!L110<>"",IF(MathPVTables!$J$4=5,MathPVTables!L110,""),"") ->  | Y113: =IF(SciencePVTables!Q110<>"",IF(SciencePVTables!$R$4=5,SciencePVTables!Q110,""),"") ->  | Z113: =IF(SciencePVTables!R110<>"",IF(SciencePVTables!$R$4=5,SciencePVTables!R110,""),"") ->  | AA113: =IF(SciencePVTables!S110<>"",IF(SciencePVTables!$R$4=5,SciencePVTables!S110,""),"") ->  | AC113: =IF(SciencePVTables!T110<>"",IF(SciencePVTables!$R$4=5,SciencePVTables!T110,""),"") ->  | AE113: =IF(SSPVTables!Q110<>"",IF(SSPVTables!$R$4=5,SSPVTables!Q110,""),"") ->  | AF113: =IF(SSPVTables!R110<>"",IF(SSPVTables!$R$4=5,SSPVTables!R110,""),"") ->  | AG113: =IF(SSPVTables!S110<>"",IF(SSPVTables!$R$4=5,SSPVTables!S110,""),"") ->  | AI113: =IF(SSPVTables!T110<>"",IF(SSPVTables!$R$4=5,SSPVTables!T110,""),"") -> 
A114: =IF(ELAPVTables!A111<>"",IF(ELAPVTables!$B$4=4,ELAPVTables!A111,""),"") ->  | B114: =IF(ELAPVTables!B111<>"",IF(ELAPVTables!$B$4=4,ELAPVTables!B111,""),"") ->  | C114: =IF(ELAPVTables!C111<>"",IF(ELAPVTables!$B$4=4,ELAPVTables!C111,""),"") ->  | E114: =IF(ELAPVTables!D111<>"",IF(ELAPVTables!$B$4=4,ELAPVTables!D111,""),"") ->  | G114: =IF(MathPVTables!A111<>"",IF(MathPVTables!$B$4=4,MathPVTables!A111,""),"") ->  | H114: =IF(MathPVTables!B111<>"",IF(MathPVTables!$B$4=4,MathPVTables!B111,""),"") ->  | I114: =IF(MathPVTables!C111<>"",IF(MathPVTables!$B$4=4,MathPVTables!C111,""),"") ->  | K114: =IF(MathPVTables!D111<>"",IF(MathPVTables!$B$4=4,MathPVTables!D111,""),"") ->  | M114: =IF(ELAPVTables!I111<>"",IF(ELAPVTables!$J$4=5,ELAPVTables!I111,""),"") ->  | N114: =IF(ELAPVTables!J111<>"",IF(ELAPVTables!$J$4=5,ELAPVTables!J111,""),"") ->  | O114: =IF(ELAPVTables!K111<>"",IF(ELAPVTables!$J$4=5,ELAPVTables!K111,""),"") ->  | Q114: =IF(ELAPVTables!L111<>"",IF(ELAPVTables!$J$4=5,ELAPVTables!L111,""),"") ->  | S114: =IF(MathPVTables!I111<>"",IF(MathPVTables!$J$4=5,MathPVTables!I111,""),"") ->  | T114: =IF(MathPVTables!J111<>"",IF(MathPVTables!$J$4=5,MathPVTables!J111,""),"") ->  | U114: =IF(MathPVTables!K111<>"",IF(MathPVTables!$J$4=5,MathPVTables!K111,""),"") ->  | W114: =IF(MathPVTables!L111<>"",IF(MathPVTables!$J$4=5,MathPVTables!L111,""),"") ->  | Y114: =IF(SciencePVTables!Q111<>"",IF(SciencePVTables!$R$4=5,SciencePVTables!Q111,""),"") ->  | Z114: =IF(SciencePVTables!R111<>"",IF(SciencePVTables!$R$4=5,SciencePVTables!R111,""),"") ->  | AA114: =IF(SciencePVTables!S111<>"",IF(SciencePVTables!$R$4=5,SciencePVTables!S111,""),"") ->  | AC114: =IF(SciencePVTables!T111<>"",IF(SciencePVTables!$R$4=5,SciencePVTables!T111,""),"") ->  | AE114: =IF(SSPVTables!Q111<>"",IF(SSPVTables!$R$4=5,SSPVTables!Q111,""),"") ->  | AF114: =IF(SSPVTables!R111<>"",IF(SSPVTables!$R$4=5,SSPVTables!R111,""),"") ->  | AG114: =IF(SSPVTables!S111<>"",IF(SSPVTables!$R$4=5,SSPVTables!S111,""),"") ->  | AI114: =IF(SSPVTables!T111<>"",IF(SSPVTables!$R$4=5,SSPVTables!T111,""),"") -> 
A115: =IF(ELAPVTables!A112<>"",IF(ELAPVTables!$B$4=4,ELAPVTables!A112,""),"") ->  | B115: =IF(ELAPVTables!B112<>"",IF(ELAPVTables!$B$4=4,ELAPVTables!B112,""),"") ->  | C115: =IF(ELAPVTables!C112<>"",IF(ELAPVTables!$B$4=4,ELAPVTables!C112,""),"") ->  | E115: =IF(ELAPVTables!D112<>"",IF(ELAPVTables!$B$4=4,ELAPVTables!D112,""),"") ->  | G115: =IF(MathPVTables!A112<>"",IF(MathPVTables!$B$4=4,MathPVTables!A112,""),"") ->  | H115: =IF(MathPVTables!B112<>"",IF(MathPVTables!$B$4=4,MathPVTables!B112,""),"") ->  | I115: =IF(MathPVTables!C112<>"",IF(MathPVTables!$B$4=4,MathPVTables!C112,""),"") ->  | K115: =IF(MathPVTables!D112<>"",IF(MathPVTables!$B$4=4,MathPVTables!D112,""),"") ->  | M115: =IF(ELAPVTables!I112<>"",IF(ELAPVTables!$J$4=5,ELAPVTables!I112,""),"") ->  | N115: =IF(ELAPVTables!J112<>"",IF(ELAPVTables!$J$4=5,ELAPVTables!J112,""),"") ->  | O115: =IF(ELAPVTables!K112<>"",IF(ELAPVTables!$J$4=5,ELAPVTables!K112,""),"") ->  | Q115: =IF(ELAPVTables!L112<>"",IF(ELAPVTables!$J$4=5,ELAPVTables!L112,""),"") ->  | S115: =IF(MathPVTables!I112<>"",IF(MathPVTables!$J$4=5,MathPVTables!I112,""),"") ->  | T115: =IF(MathPVTables!J112<>"",IF(MathPVTables!$J$4=5,MathPVTables!J112,""),"") ->  | U115: =IF(MathPVTables!K112<>"",IF(MathPVTables!$J$4=5,MathPVTables!K112,""),"") ->  | W115: =IF(MathPVTables!L112<>"",IF(MathPVTables!$J$4=5,MathPVTables!L112,""),"") ->  | Y115: =IF(SciencePVTables!Q112<>"",IF(SciencePVTables!$R$4=5,SciencePVTables!Q112,""),"") ->  | Z115: =IF(SciencePVTables!R112<>"",IF(SciencePVTables!$R$4=5,SciencePVTables!R112,""),"") ->  | AA115: =IF(SciencePVTables!S112<>"",IF(SciencePVTables!$R$4=5,SciencePVTables!S112,""),"") ->  | AC115: =IF(SciencePVTables!T112<>"",IF(SciencePVTables!$R$4=5,SciencePVTables!T112,""),"") ->  | AE115: =IF(SSPVTables!Q112<>"",IF(SSPVTables!$R$4=5,SSPVTables!Q112,""),"") ->  | AF115: =IF(SSPVTables!R112<>"",IF(SSPVTables!$R$4=5,SSPVTables!R112,""),"") ->  | AG115: =IF(SSPVTables!S112<>"",IF(SSPVTables!$R$4=5,SSPVTables!S112,""),"") ->  | AI115: =IF(SSPVTables!T112<>"",IF(SSPVTables!$R$4=5,SSPVTables!T112,""),"") -> 
A116: =IF(ELAPVTables!A113<>"",IF(ELAPVTables!$B$4=4,ELAPVTables!A113,""),"") ->  | B116: =IF(ELAPVTables!B113<>"",IF(ELAPVTables!$B$4=4,ELAPVTables!B113,""),"") ->  | C116: =IF(ELAPVTables!C113<>"",IF(ELAPVTables!$B$4=4,ELAPVTables!C113,""),"") ->  | E116: =IF(ELAPVTables!D113<>"",IF(ELAPVTables!$B$4=4,ELAPVTables!D113,""),"") ->  | G116: =IF(MathPVTables!A113<>"",IF(MathPVTables!$B$4=4,MathPVTables!A113,""),"") ->  | H116: =IF(MathPVTables!B113<>"",IF(MathPVTables!$B$4=4,MathPVTables!B113,""),"") ->  | I116: =IF(MathPVTables!C113<>"",IF(MathPVTables!$B$4=4,MathPVTables!C113,""),"") ->  | K116: =IF(MathPVTables!D113<>"",IF(MathPVTables!$B$4=4,MathPVTables!D113,""),"") ->  | M116: =IF(ELAPVTables!I113<>"",IF(ELAPVTables!$J$4=5,ELAPVTables!I113,""),"") ->  | N116: =IF(ELAPVTables!J113<>"",IF(ELAPVTables!$J$4=5,ELAPVTables!J113,""),"") ->  | O116: =IF(ELAPVTables!K113<>"",IF(ELAPVTables!$J$4=5,ELAPVTables!K113,""),"") ->  | Q116: =IF(ELAPVTables!L113<>"",IF(ELAPVTables!$J$4=5,ELAPVTables!L113,""),"") ->  | S116: =IF(MathPVTables!I113<>"",IF(MathPVTables!$J$4=5,MathPVTables!I113,""),"") ->  | T116: =IF(MathPVTables!J113<>"",IF(MathPVTables!$J$4=5,MathPVTables!J113,""),"") ->  | U116: =IF(MathPVTables!K113<>"",IF(MathPVTables!$J$4=5,MathPVTables!K113,""),"") ->  | W116: =IF(MathPVTables!L113<>"",IF(MathPVTables!$J$4=5,MathPVTables!L113,""),"") ->  | Y116: =IF(SciencePVTables!Q113<>"",IF(SciencePVTables!$R$4=5,SciencePVTables!Q113,""),"") ->  | Z116: =IF(SciencePVTables!R113<>"",IF(SciencePVTables!$R$4=5,SciencePVTables!R113,""),"") ->  | AA116: =IF(SciencePVTables!S113<>"",IF(SciencePVTables!$R$4=5,SciencePVTables!S113,""),"") ->  | AC116: =IF(SciencePVTables!T113<>"",IF(SciencePVTables!$R$4=5,SciencePVTables!T113,""),"") ->  | AE116: =IF(SSPVTables!Q113<>"",IF(SSPVTables!$R$4=5,SSPVTables!Q113,""),"") ->  | AF116: =IF(SSPVTables!R113<>"",IF(SSPVTables!$R$4=5,SSPVTables!R113,""),"") ->  | AG116: =IF(SSPVTables!S113<>"",IF(SSPVTables!$R$4=5,SSPVTables!S113,""),"") ->  | AI116: =IF(SSPVTables!T113<>"",IF(SSPVTables!$R$4=5,SSPVTables!T113,""),"") -> 
A117: =IF(ELAPVTables!A114<>"",IF(ELAPVTables!$B$4=4,ELAPVTables!A114,""),"") ->  | B117: =IF(ELAPVTables!B114<>"",IF(ELAPVTables!$B$4=4,ELAPVTables!B114,""),"") ->  | C117: =IF(ELAPVTables!C114<>"",IF(ELAPVTables!$B$4=4,ELAPVTables!C114,""),"") ->  | E117: =IF(ELAPVTables!D114<>"",IF(ELAPVTables!$B$4=4,ELAPVTables!D114,""),"") ->  | G117: =IF(MathPVTables!A114<>"",IF(MathPVTables!$B$4=4,MathPVTables!A114,""),"") ->  | H117: =IF(MathPVTables!B114<>"",IF(MathPVTables!$B$4=4,MathPVTables!B114,""),"") ->  | I117: =IF(MathPVTables!C114<>"",IF(MathPVTables!$B$4=4,MathPVTables!C114,""),"") ->  | K117: =IF(MathPVTables!D114<>"",IF(MathPVTables!$B$4=4,MathPVTables!D114,""),"") ->  | M117: =IF(ELAPVTables!I114<>"",IF(ELAPVTables!$J$4=5,ELAPVTables!I114,""),"") ->  | N117: =IF(ELAPVTables!J114<>"",IF(ELAPVTables!$J$4=5,ELAPVTables!J114,""),"") ->  | O117: =IF(ELAPVTables!K114<>"",IF(ELAPVTables!$J$4=5,ELAPVTables!K114,""),"") ->  | Q117: =IF(ELAPVTables!L114<>"",IF(ELAPVTables!$J$4=5,ELAPVTables!L114,""),"") ->  | S117: =IF(MathPVTables!I114<>"",IF(MathPVTables!$J$4=5,MathPVTables!I114,""),"") ->  | T117: =IF(MathPVTables!J114<>"",IF(MathPVTables!$J$4=5,MathPVTables!J114,""),"") ->  | U117: =IF(MathPVTables!K114<>"",IF(MathPVTables!$J$4=5,MathPVTables!K114,""),"") ->  | W117: =IF(MathPVTables!L114<>"",IF(MathPVTables!$J$4=5,MathPVTables!L114,""),"") ->  | Y117: =IF(SciencePVTables!Q114<>"",IF(SciencePVTables!$R$4=5,SciencePVTables!Q114,""),"") ->  | Z117: =IF(SciencePVTables!R114<>"",IF(SciencePVTables!$R$4=5,SciencePVTables!R114,""),"") ->  | AA117: =IF(SciencePVTables!S114<>"",IF(SciencePVTables!$R$4=5,SciencePVTables!S114,""),"") ->  | AC117: =IF(SciencePVTables!T114<>"",IF(SciencePVTables!$R$4=5,SciencePVTables!T114,""),"") ->  | AE117: =IF(SSPVTables!Q114<>"",IF(SSPVTables!$R$4=5,SSPVTables!Q114,""),"") ->  | AF117: =IF(SSPVTables!R114<>"",IF(SSPVTables!$R$4=5,SSPVTables!R114,""),"") ->  | AG117: =IF(SSPVTables!S114<>"",IF(SSPVTables!$R$4=5,SSPVTables!S114,""),"") ->  | AI117: =IF(SSPVTables!T114<>"",IF(SSPVTables!$R$4=5,SSPVTables!T114,""),"") -> 
A118: =IF(ELAPVTables!A115<>"",IF(ELAPVTables!$B$4=4,ELAPVTables!A115,""),"") ->  | B118: =IF(ELAPVTables!B115<>"",IF(ELAPVTables!$B$4=4,ELAPVTables!B115,""),"") ->  | C118: =IF(ELAPVTables!C115<>"",IF(ELAPVTables!$B$4=4,ELAPVTables!C115,""),"") ->  | E118: =IF(ELAPVTables!D115<>"",IF(ELAPVTables!$B$4=4,ELAPVTables!D115,""),"") ->  | G118: =IF(MathPVTables!A115<>"",IF(MathPVTables!$B$4=4,MathPVTables!A115,""),"") ->  | H118: =IF(MathPVTables!B115<>"",IF(MathPVTables!$B$4=4,MathPVTables!B115,""),"") ->  | I118: =IF(MathPVTables!C115<>"",IF(MathPVTables!$B$4=4,MathPVTables!C115,""),"") ->  | K118: =IF(MathPVTables!D115<>"",IF(MathPVTables!$B$4=4,MathPVTables!D115,""),"") ->  | M118: =IF(ELAPVTables!I115<>"",IF(ELAPVTables!$J$4=5,ELAPVTables!I115,""),"") ->  | N118: =IF(ELAPVTables!J115<>"",IF(ELAPVTables!$J$4=5,ELAPVTables!J115,""),"") ->  | O118: =IF(ELAPVTables!K115<>"",IF(ELAPVTables!$J$4=5,ELAPVTables!K115,""),"") ->  | Q118: =IF(ELAPVTables!L115<>"",IF(ELAPVTables!$J$4=5,ELAPVTables!L115,""),"") ->  | S118: =IF(MathPVTables!I115<>"",IF(MathPVTables!$J$4=5,MathPVTables!I115,""),"") ->  | T118: =IF(MathPVTables!J115<>"",IF(MathPVTables!$J$4=5,MathPVTables!J115,""),"") ->  | U118: =IF(MathPVTables!K115<>"",IF(MathPVTables!$J$4=5,MathPVTables!K115,""),"") ->  | W118: =IF(MathPVTables!L115<>"",IF(MathPVTables!$J$4=5,MathPVTables!L115,""),"") ->  | Y118: =IF(SciencePVTables!Q115<>"",IF(SciencePVTables!$R$4=5,SciencePVTables!Q115,""),"") ->  | Z118: =IF(SciencePVTables!R115<>"",IF(SciencePVTables!$R$4=5,SciencePVTables!R115,""),"") ->  | AA118: =IF(SciencePVTables!S115<>"",IF(SciencePVTables!$R$4=5,SciencePVTables!S115,""),"") ->  | AC118: =IF(SciencePVTables!T115<>"",IF(SciencePVTables!$R$4=5,SciencePVTables!T115,""),"") ->  | AE118: =IF(SSPVTables!Q115<>"",IF(SSPVTables!$R$4=5,SSPVTables!Q115,""),"") ->  | AF118: =IF(SSPVTables!R115<>"",IF(SSPVTables!$R$4=5,SSPVTables!R115,""),"") ->  | AG118: =IF(SSPVTables!S115<>"",IF(SSPVTables!$R$4=5,SSPVTables!S115,""),"") ->  | AI118: =IF(SSPVTables!T115<>"",IF(SSPVTables!$R$4=5,SSPVTables!T115,""),"") -> 
A119: =IF(ELAPVTables!A116<>"",IF(ELAPVTables!$B$4=4,ELAPVTables!A116,""),"") ->  | B119: =IF(ELAPVTables!B116<>"",IF(ELAPVTables!$B$4=4,ELAPVTables!B116,""),"") ->  | C119: =IF(ELAPVTables!C116<>"",IF(ELAPVTables!$B$4=4,ELAPVTables!C116,""),"") ->  | E119: =IF(ELAPVTables!D116<>"",IF(ELAPVTables!$B$4=4,ELAPVTables!D116,""),"") ->  | G119: =IF(MathPVTables!A116<>"",IF(MathPVTables!$B$4=4,MathPVTables!A116,""),"") ->  | H119: =IF(MathPVTables!B116<>"",IF(MathPVTables!$B$4=4,MathPVTables!B116,""),"") ->  | I119: =IF(MathPVTables!C116<>"",IF(MathPVTables!$B$4=4,MathPVTables!C116,""),"") ->  | K119: =IF(MathPVTables!D116<>"",IF(MathPVTables!$B$4=4,MathPVTables!D116,""),"") ->  | M119: =IF(ELAPVTables!I116<>"",IF(ELAPVTables!$J$4=5,ELAPVTables!I116,""),"") ->  | N119: =IF(ELAPVTables!J116<>"",IF(ELAPVTables!$J$4=5,ELAPVTables!J116,""),"") ->  | O119: =IF(ELAPVTables!K116<>"",IF(ELAPVTables!$J$4=5,ELAPVTables!K116,""),"") ->  | Q119: =IF(ELAPVTables!L116<>"",IF(ELAPVTables!$J$4=5,ELAPVTables!L116,""),"") ->  | S119: =IF(MathPVTables!I116<>"",IF(MathPVTables!$J$4=5,MathPVTables!I116,""),"") ->  | T119: =IF(MathPVTables!J116<>"",IF(MathPVTables!$J$4=5,MathPVTables!J116,""),"") ->  | U119: =IF(MathPVTables!K116<>"",IF(MathPVTables!$J$4=5,MathPVTables!K116,""),"") ->  | W119: =IF(MathPVTables!L116<>"",IF(MathPVTables!$J$4=5,MathPVTables!L116,""),"") ->  | Y119: =IF(SciencePVTables!Q116<>"",IF(SciencePVTables!$R$4=5,SciencePVTables!Q116,""),"") ->  | Z119: =IF(SciencePVTables!R116<>"",IF(SciencePVTables!$R$4=5,SciencePVTables!R116,""),"") ->  | AA119: =IF(SciencePVTables!S116<>"",IF(SciencePVTables!$R$4=5,SciencePVTables!S116,""),"") ->  | AC119: =IF(SciencePVTables!T116<>"",IF(SciencePVTables!$R$4=5,SciencePVTables!T116,""),"") ->  | AE119: =IF(SSPVTables!Q116<>"",IF(SSPVTables!$R$4=5,SSPVTables!Q116,""),"") ->  | AF119: =IF(SSPVTables!R116<>"",IF(SSPVTables!$R$4=5,SSPVTables!R116,""),"") ->  | AG119: =IF(SSPVTables!S116<>"",IF(SSPVTables!$R$4=5,SSPVTables!S116,""),"") ->  | AI119: =IF(SSPVTables!T116<>"",IF(SSPVTables!$R$4=5,SSPVTables!T116,""),"") -> 
A120: =IF(ELAPVTables!A117<>"",IF(ELAPVTables!$B$4=4,ELAPVTables!A117,""),"") ->  | B120: =IF(ELAPVTables!B117<>"",IF(ELAPVTables!$B$4=4,ELAPVTables!B117,""),"") ->  | C120: =IF(ELAPVTables!C117<>"",IF(ELAPVTables!$B$4=4,ELAPVTables!C117,""),"") ->  | E120: =IF(ELAPVTables!D117<>"",IF(ELAPVTables!$B$4=4,ELAPVTables!D117,""),"") ->  | G120: =IF(MathPVTables!A117<>"",IF(MathPVTables!$B$4=4,MathPVTables!A117,""),"") ->  | H120: =IF(MathPVTables!B117<>"",IF(MathPVTables!$B$4=4,MathPVTables!B117,""),"") ->  | I120: =IF(MathPVTables!C117<>"",IF(MathPVTables!$B$4=4,MathPVTables!C117,""),"") ->  | K120: =IF(MathPVTables!D117<>"",IF(MathPVTables!$B$4=4,MathPVTables!D117,""),"") ->  | M120: =IF(ELAPVTables!I117<>"",IF(ELAPVTables!$J$4=5,ELAPVTables!I117,""),"") ->  | N120: =IF(ELAPVTables!J117<>"",IF(ELAPVTables!$J$4=5,ELAPVTables!J117,""),"") ->  | O120: =IF(ELAPVTables!K117<>"",IF(ELAPVTables!$J$4=5,ELAPVTables!K117,""),"") ->  | Q120: =IF(ELAPVTables!L117<>"",IF(ELAPVTables!$J$4=5,ELAPVTables!L117,""),"") ->  | S120: =IF(MathPVTables!I117<>"",IF(MathPVTables!$J$4=5,MathPVTables!I117,""),"") ->  | T120: =IF(MathPVTables!J117<>"",IF(MathPVTables!$J$4=5,MathPVTables!J117,""),"") ->  | U120: =IF(MathPVTables!K117<>"",IF(MathPVTables!$J$4=5,MathPVTables!K117,""),"") ->  | W120: =IF(MathPVTables!L117<>"",IF(MathPVTables!$J$4=5,MathPVTables!L117,""),"") ->  | Y120: =IF(SciencePVTables!Q117<>"",IF(SciencePVTables!$R$4=5,SciencePVTables!Q117,""),"") ->  | Z120: =IF(SciencePVTables!R117<>"",IF(SciencePVTables!$R$4=5,SciencePVTables!R117,""),"") ->  | AA120: =IF(SciencePVTables!S117<>"",IF(SciencePVTables!$R$4=5,SciencePVTables!S117,""),"") ->  | AC120: =IF(SciencePVTables!T117<>"",IF(SciencePVTables!$R$4=5,SciencePVTables!T117,""),"") ->  | AE120: =IF(SSPVTables!Q117<>"",IF(SSPVTables!$R$4=5,SSPVTables!Q117,""),"") ->  | AF120: =IF(SSPVTables!R117<>"",IF(SSPVTables!$R$4=5,SSPVTables!R117,""),"") ->  | AG120: =IF(SSPVTables!S117<>"",IF(SSPVTables!$R$4=5,SSPVTables!S117,""),"") ->  | AI120: =IF(SSPVTables!T117<>"",IF(SSPVTables!$R$4=5,SSPVTables!T117,""),"") -> 
A121: =IF(ELAPVTables!A118<>"",IF(ELAPVTables!$B$4=4,ELAPVTables!A118,""),"") ->  | B121: =IF(ELAPVTables!B118<>"",IF(ELAPVTables!$B$4=4,ELAPVTables!B118,""),"") ->  | C121: =IF(ELAPVTables!C118<>"",IF(ELAPVTables!$B$4=4,ELAPVTables!C118,""),"") ->  | E121: =IF(ELAPVTables!D118<>"",IF(ELAPVTables!$B$4=4,ELAPVTables!D118,""),"") ->  | G121: =IF(MathPVTables!A118<>"",IF(MathPVTables!$B$4=4,MathPVTables!A118,""),"") ->  | H121: =IF(MathPVTables!B118<>"",IF(MathPVTables!$B$4=4,MathPVTables!B118,""),"") ->  | I121: =IF(MathPVTables!C118<>"",IF(MathPVTables!$B$4=4,MathPVTables!C118,""),"") ->  | K121: =IF(MathPVTables!D118<>"",IF(MathPVTables!$B$4=4,MathPVTables!D118,""),"") ->  | M121: =IF(ELAPVTables!I118<>"",IF(ELAPVTables!$J$4=5,ELAPVTables!I118,""),"") ->  | N121: =IF(ELAPVTables!J118<>"",IF(ELAPVTables!$J$4=5,ELAPVTables!J118,""),"") ->  | O121: =IF(ELAPVTables!K118<>"",IF(ELAPVTables!$J$4=5,ELAPVTables!K118,""),"") ->  | Q121: =IF(ELAPVTables!L118<>"",IF(ELAPVTables!$J$4=5,ELAPVTables!L118,""),"") ->  | S121: =IF(MathPVTables!I118<>"",IF(MathPVTables!$J$4=5,MathPVTables!I118,""),"") ->  | T121: =IF(MathPVTables!J118<>"",IF(MathPVTables!$J$4=5,MathPVTables!J118,""),"") ->  | U121: =IF(MathPVTables!K118<>"",IF(MathPVTables!$J$4=5,MathPVTables!K118,""),"") ->  | W121: =IF(MathPVTables!L118<>"",IF(MathPVTables!$J$4=5,MathPVTables!L118,""),"") ->  | Y121: =IF(SciencePVTables!Q118<>"",IF(SciencePVTables!$R$4=5,SciencePVTables!Q118,""),"") ->  | Z121: =IF(SciencePVTables!R118<>"",IF(SciencePVTables!$R$4=5,SciencePVTables!R118,""),"") ->  | AA121: =IF(SciencePVTables!S118<>"",IF(SciencePVTables!$R$4=5,SciencePVTables!S118,""),"") ->  | AC121: =IF(SciencePVTables!T118<>"",IF(SciencePVTables!$R$4=5,SciencePVTables!T118,""),"") ->  | AE121: =IF(SSPVTables!Q118<>"",IF(SSPVTables!$R$4=5,SSPVTables!Q118,""),"") ->  | AF121: =IF(SSPVTables!R118<>"",IF(SSPVTables!$R$4=5,SSPVTables!R118,""),"") ->  | AG121: =IF(SSPVTables!S118<>"",IF(SSPVTables!$R$4=5,SSPVTables!S118,""),"") ->  | AI121: =IF(SSPVTables!T118<>"",IF(SSPVTables!$R$4=5,SSPVTables!T118,""),"") -> 
A122: =IF(ELAPVTables!A119<>"",IF(ELAPVTables!$B$4=4,ELAPVTables!A119,""),"") ->  | B122: =IF(ELAPVTables!B119<>"",IF(ELAPVTables!$B$4=4,ELAPVTables!B119,""),"") ->  | C122: =IF(ELAPVTables!C119<>"",IF(ELAPVTables!$B$4=4,ELAPVTables!C119,""),"") ->  | E122: =IF(ELAPVTables!D119<>"",IF(ELAPVTables!$B$4=4,ELAPVTables!D119,""),"") ->  | G122: =IF(MathPVTables!A119<>"",IF(MathPVTables!$B$4=4,MathPVTables!A119,""),"") ->  | H122: =IF(MathPVTables!B119<>"",IF(MathPVTables!$B$4=4,MathPVTables!B119,""),"") ->  | I122: =IF(MathPVTables!C119<>"",IF(MathPVTables!$B$4=4,MathPVTables!C119,""),"") ->  | K122: =IF(MathPVTables!D119<>"",IF(MathPVTables!$B$4=4,MathPVTables!D119,""),"") ->  | M122: =IF(ELAPVTables!I119<>"",IF(ELAPVTables!$J$4=5,ELAPVTables!I119,""),"") ->  | N122: =IF(ELAPVTables!J119<>"",IF(ELAPVTables!$J$4=5,ELAPVTables!J119,""),"") ->  | O122: =IF(ELAPVTables!K119<>"",IF(ELAPVTables!$J$4=5,ELAPVTables!K119,""),"") ->  | Q122: =IF(ELAPVTables!L119<>"",IF(ELAPVTables!$J$4=5,ELAPVTables!L119,""),"") ->  | S122: =IF(MathPVTables!I119<>"",IF(MathPVTables!$J$4=5,MathPVTables!I119,""),"") ->  | T122: =IF(MathPVTables!J119<>"",IF(MathPVTables!$J$4=5,MathPVTables!J119,""),"") ->  | U122: =IF(MathPVTables!K119<>"",IF(MathPVTables!$J$4=5,MathPVTables!K119,""),"") ->  | W122: =IF(MathPVTables!L119<>"",IF(MathPVTables!$J$4=5,MathPVTables!L119,""),"") ->  | Y122: =IF(SciencePVTables!Q119<>"",IF(SciencePVTables!$R$4=5,SciencePVTables!Q119,""),"") ->  | Z122: =IF(SciencePVTables!R119<>"",IF(SciencePVTables!$R$4=5,SciencePVTables!R119,""),"") ->  | AA122: =IF(SciencePVTables!S119<>"",IF(SciencePVTables!$R$4=5,SciencePVTables!S119,""),"") ->  | AC122: =IF(SciencePVTables!T119<>"",IF(SciencePVTables!$R$4=5,SciencePVTables!T119,""),"") ->  | AE122: =IF(SSPVTables!Q119<>"",IF(SSPVTables!$R$4=5,SSPVTables!Q119,""),"") ->  | AF122: =IF(SSPVTables!R119<>"",IF(SSPVTables!$R$4=5,SSPVTables!R119,""),"") ->  | AG122: =IF(SSPVTables!S119<>"",IF(SSPVTables!$R$4=5,SSPVTables!S119,""),"") ->  | AI122: =IF(SSPVTables!T119<>"",IF(SSPVTables!$R$4=5,SSPVTables!T119,""),"") -> 
A123: =IF(ELAPVTables!A120<>"",IF(ELAPVTables!$B$4=4,ELAPVTables!A120,""),"") ->  | B123: =IF(ELAPVTables!B120<>"",IF(ELAPVTables!$B$4=4,ELAPVTables!B120,""),"") ->  | C123: =IF(ELAPVTables!C120<>"",IF(ELAPVTables!$B$4=4,ELAPVTables!C120,""),"") ->  | E123: =IF(ELAPVTables!D120<>"",IF(ELAPVTables!$B$4=4,ELAPVTables!D120,""),"") ->  | G123: =IF(MathPVTables!A120<>"",IF(MathPVTables!$B$4=4,MathPVTables!A120,""),"") ->  | H123: =IF(MathPVTables!B120<>"",IF(MathPVTables!$B$4=4,MathPVTables!B120,""),"") ->  | I123: =IF(MathPVTables!C120<>"",IF(MathPVTables!$B$4=4,MathPVTables!C120,""),"") ->  | K123: =IF(MathPVTables!D120<>"",IF(MathPVTables!$B$4=4,MathPVTables!D120,""),"") ->  | M123: =IF(ELAPVTables!I120<>"",IF(ELAPVTables!$J$4=5,ELAPVTables!I120,""),"") ->  | N123: =IF(ELAPVTables!J120<>"",IF(ELAPVTables!$J$4=5,ELAPVTables!J120,""),"") ->  | O123: =IF(ELAPVTables!K120<>"",IF(ELAPVTables!$J$4=5,ELAPVTables!K120,""),"") ->  | Q123: =IF(ELAPVTables!L120<>"",IF(ELAPVTables!$J$4=5,ELAPVTables!L120,""),"") ->  | S123: =IF(MathPVTables!I120<>"",IF(MathPVTables!$J$4=5,MathPVTables!I120,""),"") ->  | T123: =IF(MathPVTables!J120<>"",IF(MathPVTables!$J$4=5,MathPVTables!J120,""),"") ->  | U123: =IF(MathPVTables!K120<>"",IF(MathPVTables!$J$4=5,MathPVTables!K120,""),"") ->  | W123: =IF(MathPVTables!L120<>"",IF(MathPVTables!$J$4=5,MathPVTables!L120,""),"") ->  | Y123: =IF(SciencePVTables!Q120<>"",IF(SciencePVTables!$R$4=5,SciencePVTables!Q120,""),"") ->  | Z123: =IF(SciencePVTables!R120<>"",IF(SciencePVTables!$R$4=5,SciencePVTables!R120,""),"") ->  | AA123: =IF(SciencePVTables!S120<>"",IF(SciencePVTables!$R$4=5,SciencePVTables!S120,""),"") ->  | AC123: =IF(SciencePVTables!T120<>"",IF(SciencePVTables!$R$4=5,SciencePVTables!T120,""),"") ->  | AE123: =IF(SSPVTables!Q120<>"",IF(SSPVTables!$R$4=5,SSPVTables!Q120,""),"") ->  | AF123: =IF(SSPVTables!R120<>"",IF(SSPVTables!$R$4=5,SSPVTables!R120,""),"") ->  | AG123: =IF(SSPVTables!S120<>"",IF(SSPVTables!$R$4=5,SSPVTables!S120,""),"") ->  | AI123: =IF(SSPVTables!T120<>"",IF(SSPVTables!$R$4=5,SSPVTables!T120,""),"") -> 
A124: =IF(ELAPVTables!A121<>"",IF(ELAPVTables!$B$4=4,ELAPVTables!A121,""),"") ->  | B124: =IF(ELAPVTables!B121<>"",IF(ELAPVTables!$B$4=4,ELAPVTables!B121,""),"") ->  | C124: =IF(ELAPVTables!C121<>"",IF(ELAPVTables!$B$4=4,ELAPVTables!C121,""),"") ->  | E124: =IF(ELAPVTables!D121<>"",IF(ELAPVTables!$B$4=4,ELAPVTables!D121,""),"") ->  | G124: =IF(MathPVTables!A121<>"",IF(MathPVTables!$B$4=4,MathPVTables!A121,""),"") ->  | H124: =IF(MathPVTables!B121<>"",IF(MathPVTables!$B$4=4,MathPVTables!B121,""),"") ->  | I124: =IF(MathPVTables!C121<>"",IF(MathPVTables!$B$4=4,MathPVTables!C121,""),"") ->  | K124: =IF(MathPVTables!D121<>"",IF(MathPVTables!$B$4=4,MathPVTables!D121,""),"") ->  | M124: =IF(ELAPVTables!I121<>"",IF(ELAPVTables!$J$4=5,ELAPVTables!I121,""),"") ->  | N124: =IF(ELAPVTables!J121<>"",IF(ELAPVTables!$J$4=5,ELAPVTables!J121,""),"") ->  | O124: =IF(ELAPVTables!K121<>"",IF(ELAPVTables!$J$4=5,ELAPVTables!K121,""),"") ->  | Q124: =IF(ELAPVTables!L121<>"",IF(ELAPVTables!$J$4=5,ELAPVTables!L121,""),"") ->  | S124: =IF(MathPVTables!I121<>"",IF(MathPVTables!$J$4=5,MathPVTables!I121,""),"") ->  | T124: =IF(MathPVTables!J121<>"",IF(MathPVTables!$J$4=5,MathPVTables!J121,""),"") ->  | U124: =IF(MathPVTables!K121<>"",IF(MathPVTables!$J$4=5,MathPVTables!K121,""),"") ->  | W124: =IF(MathPVTables!L121<>"",IF(MathPVTables!$J$4=5,MathPVTables!L121,""),"") ->  | Y124: =IF(SciencePVTables!Q121<>"",IF(SciencePVTables!$R$4=5,SciencePVTables!Q121,""),"") ->  | Z124: =IF(SciencePVTables!R121<>"",IF(SciencePVTables!$R$4=5,SciencePVTables!R121,""),"") ->  | AA124: =IF(SciencePVTables!S121<>"",IF(SciencePVTables!$R$4=5,SciencePVTables!S121,""),"") ->  | AC124: =IF(SciencePVTables!T121<>"",IF(SciencePVTables!$R$4=5,SciencePVTables!T121,""),"") ->  | AE124: =IF(SSPVTables!Q121<>"",IF(SSPVTables!$R$4=5,SSPVTables!Q121,""),"") ->  | AF124: =IF(SSPVTables!R121<>"",IF(SSPVTables!$R$4=5,SSPVTables!R121,""),"") ->  | AG124: =IF(SSPVTables!S121<>"",IF(SSPVTables!$R$4=5,SSPVTables!S121,""),"") ->  | AI124: =IF(SSPVTables!T121<>"",IF(SSPVTables!$R$4=5,SSPVTables!T121,""),"") -> 
A125: =IF(ELAPVTables!A122<>"",IF(ELAPVTables!$B$4=4,ELAPVTables!A122,""),"") ->  | B125: =IF(ELAPVTables!B122<>"",IF(ELAPVTables!$B$4=4,ELAPVTables!B122,""),"") ->  | C125: =IF(ELAPVTables!C122<>"",IF(ELAPVTables!$B$4=4,ELAPVTables!C122,""),"") ->  | E125: =IF(ELAPVTables!D122<>"",IF(ELAPVTables!$B$4=4,ELAPVTables!D122,""),"") ->  | G125: =IF(MathPVTables!A122<>"",IF(MathPVTables!$B$4=4,MathPVTables!A122,""),"") ->  | H125: =IF(MathPVTables!B122<>"",IF(MathPVTables!$B$4=4,MathPVTables!B122,""),"") ->  | I125: =IF(MathPVTables!C122<>"",IF(MathPVTables!$B$4=4,MathPVTables!C122,""),"") ->  | K125: =IF(MathPVTables!D122<>"",IF(MathPVTables!$B$4=4,MathPVTables!D122,""),"") ->  | M125: =IF(ELAPVTables!I122<>"",IF(ELAPVTables!$J$4=5,ELAPVTables!I122,""),"") ->  | N125: =IF(ELAPVTables!J122<>"",IF(ELAPVTables!$J$4=5,ELAPVTables!J122,""),"") ->  | O125: =IF(ELAPVTables!K122<>"",IF(ELAPVTables!$J$4=5,ELAPVTables!K122,""),"") ->  | Q125: =IF(ELAPVTables!L122<>"",IF(ELAPVTables!$J$4=5,ELAPVTables!L122,""),"") ->  | S125: =IF(MathPVTables!I122<>"",IF(MathPVTables!$J$4=5,MathPVTables!I122,""),"") ->  | T125: =IF(MathPVTables!J122<>"",IF(MathPVTables!$J$4=5,MathPVTables!J122,""),"") ->  | U125: =IF(MathPVTables!K122<>"",IF(MathPVTables!$J$4=5,MathPVTables!K122,""),"") ->  | W125: =IF(MathPVTables!L122<>"",IF(MathPVTables!$J$4=5,MathPVTables!L122,""),"") ->  | Y125: =IF(SciencePVTables!Q122<>"",IF(SciencePVTables!$R$4=5,SciencePVTables!Q122,""),"") ->  | Z125: =IF(SciencePVTables!R122<>"",IF(SciencePVTables!$R$4=5,SciencePVTables!R122,""),"") ->  | AA125: =IF(SciencePVTables!S122<>"",IF(SciencePVTables!$R$4=5,SciencePVTables!S122,""),"") ->  | AC125: =IF(SciencePVTables!T122<>"",IF(SciencePVTables!$R$4=5,SciencePVTables!T122,""),"") ->  | AE125: =IF(SSPVTables!Q122<>"",IF(SSPVTables!$R$4=5,SSPVTables!Q122,""),"") ->  | AF125: =IF(SSPVTables!R122<>"",IF(SSPVTables!$R$4=5,SSPVTables!R122,""),"") ->  | AG125: =IF(SSPVTables!S122<>"",IF(SSPVTables!$R$4=5,SSPVTables!S122,""),"") ->  | AI125: =IF(SSPVTables!T122<>"",IF(SSPVTables!$R$4=5,SSPVTables!T122,""),"") -> 
A126: =IF(ELAPVTables!A123<>"",IF(ELAPVTables!$B$4=4,ELAPVTables!A123,""),"") ->  | B126: =IF(ELAPVTables!B123<>"",IF(ELAPVTables!$B$4=4,ELAPVTables!B123,""),"") ->  | C126: =IF(ELAPVTables!C123<>"",IF(ELAPVTables!$B$4=4,ELAPVTables!C123,""),"") ->  | E126: =IF(ELAPVTables!D123<>"",IF(ELAPVTables!$B$4=4,ELAPVTables!D123,""),"") ->  | G126: =IF(MathPVTables!A123<>"",IF(MathPVTables!$B$4=4,MathPVTables!A123,""),"") ->  | H126: =IF(MathPVTables!B123<>"",IF(MathPVTables!$B$4=4,MathPVTables!B123,""),"") ->  | I126: =IF(MathPVTables!C123<>"",IF(MathPVTables!$B$4=4,MathPVTables!C123,""),"") ->  | K126: =IF(MathPVTables!D123<>"",IF(MathPVTables!$B$4=4,MathPVTables!D123,""),"") ->  | M126: =IF(ELAPVTables!I123<>"",IF(ELAPVTables!$J$4=5,ELAPVTables!I123,""),"") ->  | N126: =IF(ELAPVTables!J123<>"",IF(ELAPVTables!$J$4=5,ELAPVTables!J123,""),"") ->  | O126: =IF(ELAPVTables!K123<>"",IF(ELAPVTables!$J$4=5,ELAPVTables!K123,""),"") ->  | Q126: =IF(ELAPVTables!L123<>"",IF(ELAPVTables!$J$4=5,ELAPVTables!L123,""),"") ->  | S126: =IF(MathPVTables!I123<>"",IF(MathPVTables!$J$4=5,MathPVTables!I123,""),"") ->  | T126: =IF(MathPVTables!J123<>"",IF(MathPVTables!$J$4=5,MathPVTables!J123,""),"") ->  | U126: =IF(MathPVTables!K123<>"",IF(MathPVTables!$J$4=5,MathPVTables!K123,""),"") ->  | W126: =IF(MathPVTables!L123<>"",IF(MathPVTables!$J$4=5,MathPVTables!L123,""),"") ->  | Y126: =IF(SciencePVTables!Q123<>"",IF(SciencePVTables!$R$4=5,SciencePVTables!Q123,""),"") ->  | Z126: =IF(SciencePVTables!R123<>"",IF(SciencePVTables!$R$4=5,SciencePVTables!R123,""),"") ->  | AA126: =IF(SciencePVTables!S123<>"",IF(SciencePVTables!$R$4=5,SciencePVTables!S123,""),"") ->  | AC126: =IF(SciencePVTables!T123<>"",IF(SciencePVTables!$R$4=5,SciencePVTables!T123,""),"") ->  | AE126: =IF(SSPVTables!Q123<>"",IF(SSPVTables!$R$4=5,SSPVTables!Q123,""),"") ->  | AF126: =IF(SSPVTables!R123<>"",IF(SSPVTables!$R$4=5,SSPVTables!R123,""),"") ->  | AG126: =IF(SSPVTables!S123<>"",IF(SSPVTables!$R$4=5,SSPVTables!S123,""),"") ->  | AI126: =IF(SSPVTables!T123<>"",IF(SSPVTables!$R$4=5,SSPVTables!T123,""),"") -> 
A127: =IF(ELAPVTables!A124<>"",IF(ELAPVTables!$B$4=4,ELAPVTables!A124,""),"") ->  | B127: =IF(ELAPVTables!B124<>"",IF(ELAPVTables!$B$4=4,ELAPVTables!B124,""),"") ->  | C127: =IF(ELAPVTables!C124<>"",IF(ELAPVTables!$B$4=4,ELAPVTables!C124,""),"") ->  | E127: =IF(ELAPVTables!D124<>"",IF(ELAPVTables!$B$4=4,ELAPVTables!D124,""),"") ->  | G127: =IF(MathPVTables!A124<>"",IF(MathPVTables!$B$4=4,MathPVTables!A124,""),"") ->  | H127: =IF(MathPVTables!B124<>"",IF(MathPVTables!$B$4=4,MathPVTables!B124,""),"") ->  | I127: =IF(MathPVTables!C124<>"",IF(MathPVTables!$B$4=4,MathPVTables!C124,""),"") ->  | K127: =IF(MathPVTables!D124<>"",IF(MathPVTables!$B$4=4,MathPVTables!D124,""),"") ->  | M127: =IF(ELAPVTables!I124<>"",IF(ELAPVTables!$J$4=5,ELAPVTables!I124,""),"") ->  | N127: =IF(ELAPVTables!J124<>"",IF(ELAPVTables!$J$4=5,ELAPVTables!J124,""),"") ->  | O127: =IF(ELAPVTables!K124<>"",IF(ELAPVTables!$J$4=5,ELAPVTables!K124,""),"") ->  | Q127: =IF(ELAPVTables!L124<>"",IF(ELAPVTables!$J$4=5,ELAPVTables!L124,""),"") ->  | S127: =IF(MathPVTables!I124<>"",IF(MathPVTables!$J$4=5,MathPVTables!I124,""),"") ->  | T127: =IF(MathPVTables!J124<>"",IF(MathPVTables!$J$4=5,MathPVTables!J124,""),"") ->  | U127: =IF(MathPVTables!K124<>"",IF(MathPVTables!$J$4=5,MathPVTables!K124,""),"") ->  | W127: =IF(MathPVTables!L124<>"",IF(MathPVTables!$J$4=5,MathPVTables!L124,""),"") ->  | Y127: =IF(SciencePVTables!Q124<>"",IF(SciencePVTables!$R$4=5,SciencePVTables!Q124,""),"") ->  | Z127: =IF(SciencePVTables!R124<>"",IF(SciencePVTables!$R$4=5,SciencePVTables!R124,""),"") ->  | AA127: =IF(SciencePVTables!S124<>"",IF(SciencePVTables!$R$4=5,SciencePVTables!S124,""),"") ->  | AC127: =IF(SciencePVTables!T124<>"",IF(SciencePVTables!$R$4=5,SciencePVTables!T124,""),"") ->  | AE127: =IF(SSPVTables!Q124<>"",IF(SSPVTables!$R$4=5,SSPVTables!Q124,""),"") ->  | AF127: =IF(SSPVTables!R124<>"",IF(SSPVTables!$R$4=5,SSPVTables!R124,""),"") ->  | AG127: =IF(SSPVTables!S124<>"",IF(SSPVTables!$R$4=5,SSPVTables!S124,""),"") ->  | AI127: =IF(SSPVTables!T124<>"",IF(SSPVTables!$R$4=5,SSPVTables!T124,""),"") -> 
A128: =IF(ELAPVTables!A125<>"",IF(ELAPVTables!$B$4=4,ELAPVTables!A125,""),"") ->  | B128: =IF(ELAPVTables!B125<>"",IF(ELAPVTables!$B$4=4,ELAPVTables!B125,""),"") ->  | C128: =IF(ELAPVTables!C125<>"",IF(ELAPVTables!$B$4=4,ELAPVTables!C125,""),"") ->  | E128: =IF(ELAPVTables!D125<>"",IF(ELAPVTables!$B$4=4,ELAPVTables!D125,""),"") ->  | G128: =IF(MathPVTables!A125<>"",IF(MathPVTables!$B$4=4,MathPVTables!A125,""),"") ->  | H128: =IF(MathPVTables!B125<>"",IF(MathPVTables!$B$4=4,MathPVTables!B125,""),"") ->  | I128: =IF(MathPVTables!C125<>"",IF(MathPVTables!$B$4=4,MathPVTables!C125,""),"") ->  | K128: =IF(MathPVTables!D125<>"",IF(MathPVTables!$B$4=4,MathPVTables!D125,""),"") ->  | M128: =IF(ELAPVTables!I125<>"",IF(ELAPVTables!$J$4=5,ELAPVTables!I125,""),"") ->  | N128: =IF(ELAPVTables!J125<>"",IF(ELAPVTables!$J$4=5,ELAPVTables!J125,""),"") ->  | O128: =IF(ELAPVTables!K125<>"",IF(ELAPVTables!$J$4=5,ELAPVTables!K125,""),"") ->  | Q128: =IF(ELAPVTables!L125<>"",IF(ELAPVTables!$J$4=5,ELAPVTables!L125,""),"") ->  | S128: =IF(MathPVTables!I125<>"",IF(MathPVTables!$J$4=5,MathPVTables!I125,""),"") ->  | T128: =IF(MathPVTables!J125<>"",IF(MathPVTables!$J$4=5,MathPVTables!J125,""),"") ->  | U128: =IF(MathPVTables!K125<>"",IF(MathPVTables!$J$4=5,MathPVTables!K125,""),"") ->  | W128: =IF(MathPVTables!L125<>"",IF(MathPVTables!$J$4=5,MathPVTables!L125,""),"") ->  | Y128: =IF(SciencePVTables!Q125<>"",IF(SciencePVTables!$R$4=5,SciencePVTables!Q125,""),"") ->  | Z128: =IF(SciencePVTables!R125<>"",IF(SciencePVTables!$R$4=5,SciencePVTables!R125,""),"") ->  | AA128: =IF(SciencePVTables!S125<>"",IF(SciencePVTables!$R$4=5,SciencePVTables!S125,""),"") ->  | AC128: =IF(SciencePVTables!T125<>"",IF(SciencePVTables!$R$4=5,SciencePVTables!T125,""),"") ->  | AE128: =IF(SSPVTables!Q125<>"",IF(SSPVTables!$R$4=5,SSPVTables!Q125,""),"") ->  | AF128: =IF(SSPVTables!R125<>"",IF(SSPVTables!$R$4=5,SSPVTables!R125,""),"") ->  | AG128: =IF(SSPVTables!S125<>"",IF(SSPVTables!$R$4=5,SSPVTables!S125,""),"") ->  | AI128: =IF(SSPVTables!T125<>"",IF(SSPVTables!$R$4=5,SSPVTables!T125,""),"") -> 
A129: =IF(ELAPVTables!A126<>"",IF(ELAPVTables!$B$4=4,ELAPVTables!A126,""),"") ->  | B129: =IF(ELAPVTables!B126<>"",IF(ELAPVTables!$B$4=4,ELAPVTables!B126,""),"") ->  | C129: =IF(ELAPVTables!C126<>"",IF(ELAPVTables!$B$4=4,ELAPVTables!C126,""),"") ->  | E129: =IF(ELAPVTables!D126<>"",IF(ELAPVTables!$B$4=4,ELAPVTables!D126,""),"") ->  | G129: =IF(MathPVTables!A126<>"",IF(MathPVTables!$B$4=4,MathPVTables!A126,""),"") ->  | H129: =IF(MathPVTables!B126<>"",IF(MathPVTables!$B$4=4,MathPVTables!B126,""),"") ->  | I129: =IF(MathPVTables!C126<>"",IF(MathPVTables!$B$4=4,MathPVTables!C126,""),"") ->  | K129: =IF(MathPVTables!D126<>"",IF(MathPVTables!$B$4=4,MathPVTables!D126,""),"") ->  | M129: =IF(ELAPVTables!I126<>"",IF(ELAPVTables!$J$4=5,ELAPVTables!I126,""),"") ->  | N129: =IF(ELAPVTables!J126<>"",IF(ELAPVTables!$J$4=5,ELAPVTables!J126,""),"") ->  | O129: =IF(ELAPVTables!K126<>"",IF(ELAPVTables!$J$4=5,ELAPVTables!K126,""),"") ->  | Q129: =IF(ELAPVTables!L126<>"",IF(ELAPVTables!$J$4=5,ELAPVTables!L126,""),"") ->  | S129: =IF(MathPVTables!I126<>"",IF(MathPVTables!$J$4=5,MathPVTables!I126,""),"") ->  | T129: =IF(MathPVTables!J126<>"",IF(MathPVTables!$J$4=5,MathPVTables!J126,""),"") ->  | U129: =IF(MathPVTables!K126<>"",IF(MathPVTables!$J$4=5,MathPVTables!K126,""),"") ->  | W129: =IF(MathPVTables!L126<>"",IF(MathPVTables!$J$4=5,MathPVTables!L126,""),"") ->  | Y129: =IF(SciencePVTables!Q126<>"",IF(SciencePVTables!$R$4=5,SciencePVTables!Q126,""),"") ->  | Z129: =IF(SciencePVTables!R126<>"",IF(SciencePVTables!$R$4=5,SciencePVTables!R126,""),"") ->  | AA129: =IF(SciencePVTables!S126<>"",IF(SciencePVTables!$R$4=5,SciencePVTables!S126,""),"") ->  | AC129: =IF(SciencePVTables!T126<>"",IF(SciencePVTables!$R$4=5,SciencePVTables!T126,""),"") ->  | AE129: =IF(SSPVTables!Q126<>"",IF(SSPVTables!$R$4=5,SSPVTables!Q126,""),"") ->  | AF129: =IF(SSPVTables!R126<>"",IF(SSPVTables!$R$4=5,SSPVTables!R126,""),"") ->  | AG129: =IF(SSPVTables!S126<>"",IF(SSPVTables!$R$4=5,SSPVTables!S126,""),"") ->  | AI129: =IF(SSPVTables!T126<>"",IF(SSPVTables!$R$4=5,SSPVTables!T126,""),"") -> 
A130: =IF(ELAPVTables!A127<>"",IF(ELAPVTables!$B$4=4,ELAPVTables!A127,""),"") ->  | B130: =IF(ELAPVTables!B127<>"",IF(ELAPVTables!$B$4=4,ELAPVTables!B127,""),"") ->  | C130: =IF(ELAPVTables!C127<>"",IF(ELAPVTables!$B$4=4,ELAPVTables!C127,""),"") ->  | E130: =IF(ELAPVTables!D127<>"",IF(ELAPVTables!$B$4=4,ELAPVTables!D127,""),"") ->  | G130: =IF(MathPVTables!A127<>"",IF(MathPVTables!$B$4=4,MathPVTables!A127,""),"") ->  | H130: =IF(MathPVTables!B127<>"",IF(MathPVTables!$B$4=4,MathPVTables!B127,""),"") ->  | I130: =IF(MathPVTables!C127<>"",IF(MathPVTables!$B$4=4,MathPVTables!C127,""),"") ->  | K130: =IF(MathPVTables!D127<>"",IF(MathPVTables!$B$4=4,MathPVTables!D127,""),"") ->  | M130: =IF(ELAPVTables!I127<>"",IF(ELAPVTables!$J$4=5,ELAPVTables!I127,""),"") ->  | N130: =IF(ELAPVTables!J127<>"",IF(ELAPVTables!$J$4=5,ELAPVTables!J127,""),"") ->  | O130: =IF(ELAPVTables!K127<>"",IF(ELAPVTables!$J$4=5,ELAPVTables!K127,""),"") ->  | Q130: =IF(ELAPVTables!L127<>"",IF(ELAPVTables!$J$4=5,ELAPVTables!L127,""),"") ->  | S130: =IF(MathPVTables!I127<>"",IF(MathPVTables!$J$4=5,MathPVTables!I127,""),"") ->  | T130: =IF(MathPVTables!J127<>"",IF(MathPVTables!$J$4=5,MathPVTables!J127,""),"") ->  | U130: =IF(MathPVTables!K127<>"",IF(MathPVTables!$J$4=5,MathPVTables!K127,""),"") ->  | W130: =IF(MathPVTables!L127<>"",IF(MathPVTables!$J$4=5,MathPVTables!L127,""),"") ->  | Y130: =IF(SciencePVTables!Q127<>"",IF(SciencePVTables!$R$4=5,SciencePVTables!Q127,""),"") ->  | Z130: =IF(SciencePVTables!R127<>"",IF(SciencePVTables!$R$4=5,SciencePVTables!R127,""),"") ->  | AA130: =IF(SciencePVTables!S127<>"",IF(SciencePVTables!$R$4=5,SciencePVTables!S127,""),"") ->  | AC130: =IF(SciencePVTables!T127<>"",IF(SciencePVTables!$R$4=5,SciencePVTables!T127,""),"") ->  | AE130: =IF(SSPVTables!Q127<>"",IF(SSPVTables!$R$4=5,SSPVTables!Q127,""),"") ->  | AF130: =IF(SSPVTables!R127<>"",IF(SSPVTables!$R$4=5,SSPVTables!R127,""),"") ->  | AG130: =IF(SSPVTables!S127<>"",IF(SSPVTables!$R$4=5,SSPVTables!S127,""),"") ->  | AI130: =IF(SSPVTables!T127<>"",IF(SSPVTables!$R$4=5,SSPVTables!T127,""),"") -> 
A131: =IF(ELAPVTables!A128<>"",IF(ELAPVTables!$B$4=4,ELAPVTables!A128,""),"") ->  | B131: =IF(ELAPVTables!B128<>"",IF(ELAPVTables!$B$4=4,ELAPVTables!B128,""),"") ->  | C131: =IF(ELAPVTables!C128<>"",IF(ELAPVTables!$B$4=4,ELAPVTables!C128,""),"") ->  | E131: =IF(ELAPVTables!D128<>"",IF(ELAPVTables!$B$4=4,ELAPVTables!D128,""),"") ->  | G131: =IF(MathPVTables!A128<>"",IF(MathPVTables!$B$4=4,MathPVTables!A128,""),"") ->  | H131: =IF(MathPVTables!B128<>"",IF(MathPVTables!$B$4=4,MathPVTables!B128,""),"") ->  | I131: =IF(MathPVTables!C128<>"",IF(MathPVTables!$B$4=4,MathPVTables!C128,""),"") ->  | K131: =IF(MathPVTables!D128<>"",IF(MathPVTables!$B$4=4,MathPVTables!D128,""),"") ->  | M131: =IF(ELAPVTables!I128<>"",IF(ELAPVTables!$J$4=5,ELAPVTables!I128,""),"") ->  | N131: =IF(ELAPVTables!J128<>"",IF(ELAPVTables!$J$4=5,ELAPVTables!J128,""),"") ->  | O131: =IF(ELAPVTables!K128<>"",IF(ELAPVTables!$J$4=5,ELAPVTables!K128,""),"") ->  | Q131: =IF(ELAPVTables!L128<>"",IF(ELAPVTables!$J$4=5,ELAPVTables!L128,""),"") ->  | S131: =IF(MathPVTables!I128<>"",IF(MathPVTables!$J$4=5,MathPVTables!I128,""),"") ->  | T131: =IF(MathPVTables!J128<>"",IF(MathPVTables!$J$4=5,MathPVTables!J128,""),"") ->  | U131: =IF(MathPVTables!K128<>"",IF(MathPVTables!$J$4=5,MathPVTables!K128,""),"") ->  | W131: =IF(MathPVTables!L128<>"",IF(MathPVTables!$J$4=5,MathPVTables!L128,""),"") ->  | Y131: =IF(SciencePVTables!Q128<>"",IF(SciencePVTables!$R$4=5,SciencePVTables!Q128,""),"") ->  | Z131: =IF(SciencePVTables!R128<>"",IF(SciencePVTables!$R$4=5,SciencePVTables!R128,""),"") ->  | AA131: =IF(SciencePVTables!S128<>"",IF(SciencePVTables!$R$4=5,SciencePVTables!S128,""),"") ->  | AC131: =IF(SciencePVTables!T128<>"",IF(SciencePVTables!$R$4=5,SciencePVTables!T128,""),"") ->  | AE131: =IF(SSPVTables!Q128<>"",IF(SSPVTables!$R$4=5,SSPVTables!Q128,""),"") ->  | AF131: =IF(SSPVTables!R128<>"",IF(SSPVTables!$R$4=5,SSPVTables!R128,""),"") ->  | AG131: =IF(SSPVTables!S128<>"",IF(SSPVTables!$R$4=5,SSPVTables!S128,""),"") ->  | AI131: =IF(SSPVTables!T128<>"",IF(SSPVTables!$R$4=5,SSPVTables!T128,""),"") -> 
A132: =IF(ELAPVTables!A129<>"",IF(ELAPVTables!$B$4=4,ELAPVTables!A129,""),"") ->  | B132: =IF(ELAPVTables!B129<>"",IF(ELAPVTables!$B$4=4,ELAPVTables!B129,""),"") ->  | C132: =IF(ELAPVTables!C129<>"",IF(ELAPVTables!$B$4=4,ELAPVTables!C129,""),"") ->  | E132: =IF(ELAPVTables!D129<>"",IF(ELAPVTables!$B$4=4,ELAPVTables!D129,""),"") ->  | G132: =IF(MathPVTables!A129<>"",IF(MathPVTables!$B$4=4,MathPVTables!A129,""),"") ->  | H132: =IF(MathPVTables!B129<>"",IF(MathPVTables!$B$4=4,MathPVTables!B129,""),"") ->  | I132: =IF(MathPVTables!C129<>"",IF(MathPVTables!$B$4=4,MathPVTables!C129,""),"") ->  | K132: =IF(MathPVTables!D129<>"",IF(MathPVTables!$B$4=4,MathPVTables!D129,""),"") ->  | M132: =IF(ELAPVTables!I129<>"",IF(ELAPVTables!$J$4=5,ELAPVTables!I129,""),"") ->  | N132: =IF(ELAPVTables!J129<>"",IF(ELAPVTables!$J$4=5,ELAPVTables!J129,""),"") ->  | O132: =IF(ELAPVTables!K129<>"",IF(ELAPVTables!$J$4=5,ELAPVTables!K129,""),"") ->  | Q132: =IF(ELAPVTables!L129<>"",IF(ELAPVTables!$J$4=5,ELAPVTables!L129,""),"") ->  | S132: =IF(MathPVTables!I129<>"",IF(MathPVTables!$J$4=5,MathPVTables!I129,""),"") ->  | T132: =IF(MathPVTables!J129<>"",IF(MathPVTables!$J$4=5,MathPVTables!J129,""),"") ->  | U132: =IF(MathPVTables!K129<>"",IF(MathPVTables!$J$4=5,MathPVTables!K129,""),"") ->  | W132: =IF(MathPVTables!L129<>"",IF(MathPVTables!$J$4=5,MathPVTables!L129,""),"") ->  | Y132: =IF(SciencePVTables!Q129<>"",IF(SciencePVTables!$R$4=5,SciencePVTables!Q129,""),"") ->  | Z132: =IF(SciencePVTables!R129<>"",IF(SciencePVTables!$R$4=5,SciencePVTables!R129,""),"") ->  | AA132: =IF(SciencePVTables!S129<>"",IF(SciencePVTables!$R$4=5,SciencePVTables!S129,""),"") ->  | AC132: =IF(SciencePVTables!T129<>"",IF(SciencePVTables!$R$4=5,SciencePVTables!T129,""),"") ->  | AE132: =IF(SSPVTables!Q129<>"",IF(SSPVTables!$R$4=5,SSPVTables!Q129,""),"") ->  | AF132: =IF(SSPVTables!R129<>"",IF(SSPVTables!$R$4=5,SSPVTables!R129,""),"") ->  | AG132: =IF(SSPVTables!S129<>"",IF(SSPVTables!$R$4=5,SSPVTables!S129,""),"") ->  | AI132: =IF(SSPVTables!T129<>"",IF(SSPVTables!$R$4=5,SSPVTables!T129,""),"") -> 
A133: =IF(ELAPVTables!A130<>"",IF(ELAPVTables!$B$4=4,ELAPVTables!A130,""),"") ->  | B133: =IF(ELAPVTables!B130<>"",IF(ELAPVTables!$B$4=4,ELAPVTables!B130,""),"") ->  | C133: =IF(ELAPVTables!C130<>"",IF(ELAPVTables!$B$4=4,ELAPVTables!C130,""),"") ->  | E133: =IF(ELAPVTables!D130<>"",IF(ELAPVTables!$B$4=4,ELAPVTables!D130,""),"") ->  | G133: =IF(MathPVTables!A130<>"",IF(MathPVTables!$B$4=4,MathPVTables!A130,""),"") ->  | H133: =IF(MathPVTables!B130<>"",IF(MathPVTables!$B$4=4,MathPVTables!B130,""),"") ->  | I133: =IF(MathPVTables!C130<>"",IF(MathPVTables!$B$4=4,MathPVTables!C130,""),"") ->  | K133: =IF(MathPVTables!D130<>"",IF(MathPVTables!$B$4=4,MathPVTables!D130,""),"") ->  | M133: =IF(ELAPVTables!I130<>"",IF(ELAPVTables!$J$4=5,ELAPVTables!I130,""),"") ->  | N133: =IF(ELAPVTables!J130<>"",IF(ELAPVTables!$J$4=5,ELAPVTables!J130,""),"") ->  | O133: =IF(ELAPVTables!K130<>"",IF(ELAPVTables!$J$4=5,ELAPVTables!K130,""),"") ->  | Q133: =IF(ELAPVTables!L130<>"",IF(ELAPVTables!$J$4=5,ELAPVTables!L130,""),"") ->  | S133: =IF(MathPVTables!I130<>"",IF(MathPVTables!$J$4=5,MathPVTables!I130,""),"") ->  | T133: =IF(MathPVTables!J130<>"",IF(MathPVTables!$J$4=5,MathPVTables!J130,""),"") ->  | U133: =IF(MathPVTables!K130<>"",IF(MathPVTables!$J$4=5,MathPVTables!K130,""),"") ->  | W133: =IF(MathPVTables!L130<>"",IF(MathPVTables!$J$4=5,MathPVTables!L130,""),"") ->  | Y133: =IF(SciencePVTables!Q130<>"",IF(SciencePVTables!$R$4=5,SciencePVTables!Q130,""),"") ->  | Z133: =IF(SciencePVTables!R130<>"",IF(SciencePVTables!$R$4=5,SciencePVTables!R130,""),"") ->  | AA133: =IF(SciencePVTables!S130<>"",IF(SciencePVTables!$R$4=5,SciencePVTables!S130,""),"") ->  | AC133: =IF(SciencePVTables!T130<>"",IF(SciencePVTables!$R$4=5,SciencePVTables!T130,""),"") ->  | AE133: =IF(SSPVTables!Q130<>"",IF(SSPVTables!$R$4=5,SSPVTables!Q130,""),"") ->  | AF133: =IF(SSPVTables!R130<>"",IF(SSPVTables!$R$4=5,SSPVTables!R130,""),"") ->  | AG133: =IF(SSPVTables!S130<>"",IF(SSPVTables!$R$4=5,SSPVTables!S130,""),"") ->  | AI133: =IF(SSPVTables!T130<>"",IF(SSPVTables!$R$4=5,SSPVTables!T130,""),"") -> 
A134: =IF(ELAPVTables!A131<>"",IF(ELAPVTables!$B$4=4,ELAPVTables!A131,""),"") ->  | B134: =IF(ELAPVTables!B131<>"",IF(ELAPVTables!$B$4=4,ELAPVTables!B131,""),"") ->  | C134: =IF(ELAPVTables!C131<>"",IF(ELAPVTables!$B$4=4,ELAPVTables!C131,""),"") ->  | E134: =IF(ELAPVTables!D131<>"",IF(ELAPVTables!$B$4=4,ELAPVTables!D131,""),"") ->  | G134: =IF(MathPVTables!A131<>"",IF(MathPVTables!$B$4=4,MathPVTables!A131,""),"") ->  | H134: =IF(MathPVTables!B131<>"",IF(MathPVTables!$B$4=4,MathPVTables!B131,""),"") ->  | I134: =IF(MathPVTables!C131<>"",IF(MathPVTables!$B$4=4,MathPVTables!C131,""),"") ->  | K134: =IF(MathPVTables!D131<>"",IF(MathPVTables!$B$4=4,MathPVTables!D131,""),"") ->  | M134: =IF(ELAPVTables!I131<>"",IF(ELAPVTables!$J$4=5,ELAPVTables!I131,""),"") ->  | N134: =IF(ELAPVTables!J131<>"",IF(ELAPVTables!$J$4=5,ELAPVTables!J131,""),"") ->  | O134: =IF(ELAPVTables!K131<>"",IF(ELAPVTables!$J$4=5,ELAPVTables!K131,""),"") ->  | Q134: =IF(ELAPVTables!L131<>"",IF(ELAPVTables!$J$4=5,ELAPVTables!L131,""),"") ->  | S134: =IF(MathPVTables!I131<>"",IF(MathPVTables!$J$4=5,MathPVTables!I131,""),"") ->  | T134: =IF(MathPVTables!J131<>"",IF(MathPVTables!$J$4=5,MathPVTables!J131,""),"") ->  | U134: =IF(MathPVTables!K131<>"",IF(MathPVTables!$J$4=5,MathPVTables!K131,""),"") ->  | W134: =IF(MathPVTables!L131<>"",IF(MathPVTables!$J$4=5,MathPVTables!L131,""),"") ->  | Y134: =IF(SciencePVTables!Q131<>"",IF(SciencePVTables!$R$4=5,SciencePVTables!Q131,""),"") ->  | Z134: =IF(SciencePVTables!R131<>"",IF(SciencePVTables!$R$4=5,SciencePVTables!R131,""),"") ->  | AA134: =IF(SciencePVTables!S131<>"",IF(SciencePVTables!$R$4=5,SciencePVTables!S131,""),"") ->  | AC134: =IF(SciencePVTables!T131<>"",IF(SciencePVTables!$R$4=5,SciencePVTables!T131,""),"") ->  | AE134: =IF(SSPVTables!Q131<>"",IF(SSPVTables!$R$4=5,SSPVTables!Q131,""),"") ->  | AF134: =IF(SSPVTables!R131<>"",IF(SSPVTables!$R$4=5,SSPVTables!R131,""),"") ->  | AG134: =IF(SSPVTables!S131<>"",IF(SSPVTables!$R$4=5,SSPVTables!S131,""),"") ->  | AI134: =IF(SSPVTables!T131<>"",IF(SSPVTables!$R$4=5,SSPVTables!T131,""),"") -> 
A135: =IF(ELAPVTables!A132<>"",IF(ELAPVTables!$B$4=4,ELAPVTables!A132,""),"") ->  | B135: =IF(ELAPVTables!B132<>"",IF(ELAPVTables!$B$4=4,ELAPVTables!B132,""),"") ->  | C135: =IF(ELAPVTables!C132<>"",IF(ELAPVTables!$B$4=4,ELAPVTables!C132,""),"") ->  | E135: =IF(ELAPVTables!D132<>"",IF(ELAPVTables!$B$4=4,ELAPVTables!D132,""),"") ->  | G135: =IF(MathPVTables!A132<>"",IF(MathPVTables!$B$4=4,MathPVTables!A132,""),"") ->  | H135: =IF(MathPVTables!B132<>"",IF(MathPVTables!$B$4=4,MathPVTables!B132,""),"") ->  | I135: =IF(MathPVTables!C132<>"",IF(MathPVTables!$B$4=4,MathPVTables!C132,""),"") ->  | K135: =IF(MathPVTables!D132<>"",IF(MathPVTables!$B$4=4,MathPVTables!D132,""),"") ->  | M135: =IF(ELAPVTables!I132<>"",IF(ELAPVTables!$J$4=5,ELAPVTables!I132,""),"") ->  | N135: =IF(ELAPVTables!J132<>"",IF(ELAPVTables!$J$4=5,ELAPVTables!J132,""),"") ->  | O135: =IF(ELAPVTables!K132<>"",IF(ELAPVTables!$J$4=5,ELAPVTables!K132,""),"") ->  | Q135: =IF(ELAPVTables!L132<>"",IF(ELAPVTables!$J$4=5,ELAPVTables!L132,""),"") ->  | S135: =IF(MathPVTables!I132<>"",IF(MathPVTables!$J$4=5,MathPVTables!I132,""),"") ->  | T135: =IF(MathPVTables!J132<>"",IF(MathPVTables!$J$4=5,MathPVTables!J132,""),"") ->  | U135: =IF(MathPVTables!K132<>"",IF(MathPVTables!$J$4=5,MathPVTables!K132,""),"") ->  | W135: =IF(MathPVTables!L132<>"",IF(MathPVTables!$J$4=5,MathPVTables!L132,""),"") ->  | Y135: =IF(SciencePVTables!Q132<>"",IF(SciencePVTables!$R$4=5,SciencePVTables!Q132,""),"") ->  | Z135: =IF(SciencePVTables!R132<>"",IF(SciencePVTables!$R$4=5,SciencePVTables!R132,""),"") ->  | AA135: =IF(SciencePVTables!S132<>"",IF(SciencePVTables!$R$4=5,SciencePVTables!S132,""),"") ->  | AC135: =IF(SciencePVTables!T132<>"",IF(SciencePVTables!$R$4=5,SciencePVTables!T132,""),"") ->  | AE135: =IF(SSPVTables!Q132<>"",IF(SSPVTables!$R$4=5,SSPVTables!Q132,""),"") ->  | AF135: =IF(SSPVTables!R132<>"",IF(SSPVTables!$R$4=5,SSPVTables!R132,""),"") ->  | AG135: =IF(SSPVTables!S132<>"",IF(SSPVTables!$R$4=5,SSPVTables!S132,""),"") ->  | AI135: =IF(SSPVTables!T132<>"",IF(SSPVTables!$R$4=5,SSPVTables!T132,""),"") -> 
A136: =IF(ELAPVTables!A133<>"",IF(ELAPVTables!$B$4=4,ELAPVTables!A133,""),"") ->  | B136: =IF(ELAPVTables!B133<>"",IF(ELAPVTables!$B$4=4,ELAPVTables!B133,""),"") ->  | C136: =IF(ELAPVTables!C133<>"",IF(ELAPVTables!$B$4=4,ELAPVTables!C133,""),"") ->  | E136: =IF(ELAPVTables!D133<>"",IF(ELAPVTables!$B$4=4,ELAPVTables!D133,""),"") ->  | G136: =IF(MathPVTables!A133<>"",IF(MathPVTables!$B$4=4,MathPVTables!A133,""),"") ->  | H136: =IF(MathPVTables!B133<>"",IF(MathPVTables!$B$4=4,MathPVTables!B133,""),"") ->  | I136: =IF(MathPVTables!C133<>"",IF(MathPVTables!$B$4=4,MathPVTables!C133,""),"") ->  | K136: =IF(MathPVTables!D133<>"",IF(MathPVTables!$B$4=4,MathPVTables!D133,""),"") ->  | M136: =IF(ELAPVTables!I133<>"",IF(ELAPVTables!$J$4=5,ELAPVTables!I133,""),"") ->  | N136: =IF(ELAPVTables!J133<>"",IF(ELAPVTables!$J$4=5,ELAPVTables!J133,""),"") ->  | O136: =IF(ELAPVTables!K133<>"",IF(ELAPVTables!$J$4=5,ELAPVTables!K133,""),"") ->  | Q136: =IF(ELAPVTables!L133<>"",IF(ELAPVTables!$J$4=5,ELAPVTables!L133,""),"") ->  | S136: =IF(MathPVTables!I133<>"",IF(MathPVTables!$J$4=5,MathPVTables!I133,""),"") ->  | T136: =IF(MathPVTables!J133<>"",IF(MathPVTables!$J$4=5,MathPVTables!J133,""),"") ->  | U136: =IF(MathPVTables!K133<>"",IF(MathPVTables!$J$4=5,MathPVTables!K133,""),"") ->  | W136: =IF(MathPVTables!L133<>"",IF(MathPVTables!$J$4=5,MathPVTables!L133,""),"") ->  | Y136: =IF(SciencePVTables!Q133<>"",IF(SciencePVTables!$R$4=5,SciencePVTables!Q133,""),"") ->  | Z136: =IF(SciencePVTables!R133<>"",IF(SciencePVTables!$R$4=5,SciencePVTables!R133,""),"") ->  | AA136: =IF(SciencePVTables!S133<>"",IF(SciencePVTables!$R$4=5,SciencePVTables!S133,""),"") ->  | AC136: =IF(SciencePVTables!T133<>"",IF(SciencePVTables!$R$4=5,SciencePVTables!T133,""),"") ->  | AE136: =IF(SSPVTables!Q133<>"",IF(SSPVTables!$R$4=5,SSPVTables!Q133,""),"") ->  | AF136: =IF(SSPVTables!R133<>"",IF(SSPVTables!$R$4=5,SSPVTables!R133,""),"") ->  | AG136: =IF(SSPVTables!S133<>"",IF(SSPVTables!$R$4=5,SSPVTables!S133,""),"") ->  | AI136: =IF(SSPVTables!T133<>"",IF(SSPVTables!$R$4=5,SSPVTables!T133,""),"") -> 
A137: =IF(ELAPVTables!A134<>"",IF(ELAPVTables!$B$4=4,ELAPVTables!A134,""),"") ->  | B137: =IF(ELAPVTables!B134<>"",IF(ELAPVTables!$B$4=4,ELAPVTables!B134,""),"") ->  | C137: =IF(ELAPVTables!C134<>"",IF(ELAPVTables!$B$4=4,ELAPVTables!C134,""),"") ->  | E137: =IF(ELAPVTables!D134<>"",IF(ELAPVTables!$B$4=4,ELAPVTables!D134,""),"") ->  | G137: =IF(MathPVTables!A134<>"",IF(MathPVTables!$B$4=4,MathPVTables!A134,""),"") ->  | H137: =IF(MathPVTables!B134<>"",IF(MathPVTables!$B$4=4,MathPVTables!B134,""),"") ->  | I137: =IF(MathPVTables!C134<>"",IF(MathPVTables!$B$4=4,MathPVTables!C134,""),"") ->  | K137: =IF(MathPVTables!D134<>"",IF(MathPVTables!$B$4=4,MathPVTables!D134,""),"") ->  | M137: =IF(ELAPVTables!I134<>"",IF(ELAPVTables!$J$4=5,ELAPVTables!I134,""),"") ->  | N137: =IF(ELAPVTables!J134<>"",IF(ELAPVTables!$J$4=5,ELAPVTables!J134,""),"") ->  | O137: =IF(ELAPVTables!K134<>"",IF(ELAPVTables!$J$4=5,ELAPVTables!K134,""),"") ->  | Q137: =IF(ELAPVTables!L134<>"",IF(ELAPVTables!$J$4=5,ELAPVTables!L134,""),"") ->  | S137: =IF(MathPVTables!I134<>"",IF(MathPVTables!$J$4=5,MathPVTables!I134,""),"") ->  | T137: =IF(MathPVTables!J134<>"",IF(MathPVTables!$J$4=5,MathPVTables!J134,""),"") ->  | U137: =IF(MathPVTables!K134<>"",IF(MathPVTables!$J$4=5,MathPVTables!K134,""),"") ->  | W137: =IF(MathPVTables!L134<>"",IF(MathPVTables!$J$4=5,MathPVTables!L134,""),"") ->  | Y137: =IF(SciencePVTables!Q134<>"",IF(SciencePVTables!$R$4=5,SciencePVTables!Q134,""),"") ->  | Z137: =IF(SciencePVTables!R134<>"",IF(SciencePVTables!$R$4=5,SciencePVTables!R134,""),"") ->  | AA137: =IF(SciencePVTables!S134<>"",IF(SciencePVTables!$R$4=5,SciencePVTables!S134,""),"") ->  | AC137: =IF(SciencePVTables!T134<>"",IF(SciencePVTables!$R$4=5,SciencePVTables!T134,""),"") ->  | AE137: =IF(SSPVTables!Q134<>"",IF(SSPVTables!$R$4=5,SSPVTables!Q134,""),"") ->  | AF137: =IF(SSPVTables!R134<>"",IF(SSPVTables!$R$4=5,SSPVTables!R134,""),"") ->  | AG137: =IF(SSPVTables!S134<>"",IF(SSPVTables!$R$4=5,SSPVTables!S134,""),"") ->  | AI137: =IF(SSPVTables!T134<>"",IF(SSPVTables!$R$4=5,SSPVTables!T134,""),"") -> 
A138: =IF(ELAPVTables!A135<>"",IF(ELAPVTables!$B$4=4,ELAPVTables!A135,""),"") ->  | B138: =IF(ELAPVTables!B135<>"",IF(ELAPVTables!$B$4=4,ELAPVTables!B135,""),"") ->  | C138: =IF(ELAPVTables!C135<>"",IF(ELAPVTables!$B$4=4,ELAPVTables!C135,""),"") ->  | E138: =IF(ELAPVTables!D135<>"",IF(ELAPVTables!$B$4=4,ELAPVTables!D135,""),"") ->  | G138: =IF(MathPVTables!A135<>"",IF(MathPVTables!$B$4=4,MathPVTables!A135,""),"") ->  | H138: =IF(MathPVTables!B135<>"",IF(MathPVTables!$B$4=4,MathPVTables!B135,""),"") ->  | I138: =IF(MathPVTables!C135<>"",IF(MathPVTables!$B$4=4,MathPVTables!C135,""),"") ->  | K138: =IF(MathPVTables!D135<>"",IF(MathPVTables!$B$4=4,MathPVTables!D135,""),"") ->  | M138: =IF(ELAPVTables!I135<>"",IF(ELAPVTables!$J$4=5,ELAPVTables!I135,""),"") ->  | N138: =IF(ELAPVTables!J135<>"",IF(ELAPVTables!$J$4=5,ELAPVTables!J135,""),"") ->  | O138: =IF(ELAPVTables!K135<>"",IF(ELAPVTables!$J$4=5,ELAPVTables!K135,""),"") ->  | Q138: =IF(ELAPVTables!L135<>"",IF(ELAPVTables!$J$4=5,ELAPVTables!L135,""),"") ->  | S138: =IF(MathPVTables!I135<>"",IF(MathPVTables!$J$4=5,MathPVTables!I135,""),"") ->  | T138: =IF(MathPVTables!J135<>"",IF(MathPVTables!$J$4=5,MathPVTables!J135,""),"") ->  | U138: =IF(MathPVTables!K135<>"",IF(MathPVTables!$J$4=5,MathPVTables!K135,""),"") ->  | W138: =IF(MathPVTables!L135<>"",IF(MathPVTables!$J$4=5,MathPVTables!L135,""),"") ->  | Y138: =IF(SciencePVTables!Q135<>"",IF(SciencePVTables!$R$4=5,SciencePVTables!Q135,""),"") ->  | Z138: =IF(SciencePVTables!R135<>"",IF(SciencePVTables!$R$4=5,SciencePVTables!R135,""),"") ->  | AA138: =IF(SciencePVTables!S135<>"",IF(SciencePVTables!$R$4=5,SciencePVTables!S135,""),"") ->  | AC138: =IF(SciencePVTables!T135<>"",IF(SciencePVTables!$R$4=5,SciencePVTables!T135,""),"") ->  | AE138: =IF(SSPVTables!Q135<>"",IF(SSPVTables!$R$4=5,SSPVTables!Q135,""),"") ->  | AF138: =IF(SSPVTables!R135<>"",IF(SSPVTables!$R$4=5,SSPVTables!R135,""),"") ->  | AG138: =IF(SSPVTables!S135<>"",IF(SSPVTables!$R$4=5,SSPVTables!S135,""),"") ->  | AI138: =IF(SSPVTables!T135<>"",IF(SSPVTables!$R$4=5,SSPVTables!T135,""),"") -> 
A139: =IF(ELAPVTables!A136<>"",IF(ELAPVTables!$B$4=4,ELAPVTables!A136,""),"") ->  | B139: =IF(ELAPVTables!B136<>"",IF(ELAPVTables!$B$4=4,ELAPVTables!B136,""),"") ->  | C139: =IF(ELAPVTables!C136<>"",IF(ELAPVTables!$B$4=4,ELAPVTables!C136,""),"") ->  | E139: =IF(ELAPVTables!D136<>"",IF(ELAPVTables!$B$4=4,ELAPVTables!D136,""),"") ->  | G139: =IF(MathPVTables!A136<>"",IF(MathPVTables!$B$4=4,MathPVTables!A136,""),"") ->  | H139: =IF(MathPVTables!B136<>"",IF(MathPVTables!$B$4=4,MathPVTables!B136,""),"") ->  | I139: =IF(MathPVTables!C136<>"",IF(MathPVTables!$B$4=4,MathPVTables!C136,""),"") ->  | K139: =IF(MathPVTables!D136<>"",IF(MathPVTables!$B$4=4,MathPVTables!D136,""),"") ->  | M139: =IF(ELAPVTables!I136<>"",IF(ELAPVTables!$J$4=5,ELAPVTables!I136,""),"") ->  | N139: =IF(ELAPVTables!J136<>"",IF(ELAPVTables!$J$4=5,ELAPVTables!J136,""),"") ->  | O139: =IF(ELAPVTables!K136<>"",IF(ELAPVTables!$J$4=5,ELAPVTables!K136,""),"") ->  | Q139: =IF(ELAPVTables!L136<>"",IF(ELAPVTables!$J$4=5,ELAPVTables!L136,""),"") ->  | S139: =IF(MathPVTables!I136<>"",IF(MathPVTables!$J$4=5,MathPVTables!I136,""),"") ->  | T139: =IF(MathPVTables!J136<>"",IF(MathPVTables!$J$4=5,MathPVTables!J136,""),"") ->  | U139: =IF(MathPVTables!K136<>"",IF(MathPVTables!$J$4=5,MathPVTables!K136,""),"") ->  | W139: =IF(MathPVTables!L136<>"",IF(MathPVTables!$J$4=5,MathPVTables!L136,""),"") ->  | Y139: =IF(SciencePVTables!Q136<>"",IF(SciencePVTables!$R$4=5,SciencePVTables!Q136,""),"") ->  | Z139: =IF(SciencePVTables!R136<>"",IF(SciencePVTables!$R$4=5,SciencePVTables!R136,""),"") ->  | AA139: =IF(SciencePVTables!S136<>"",IF(SciencePVTables!$R$4=5,SciencePVTables!S136,""),"") ->  | AC139: =IF(SciencePVTables!T136<>"",IF(SciencePVTables!$R$4=5,SciencePVTables!T136,""),"") ->  | AE139: =IF(SSPVTables!Q136<>"",IF(SSPVTables!$R$4=5,SSPVTables!Q136,""),"") ->  | AF139: =IF(SSPVTables!R136<>"",IF(SSPVTables!$R$4=5,SSPVTables!R136,""),"") ->  | AG139: =IF(SSPVTables!S136<>"",IF(SSPVTables!$R$4=5,SSPVTables!S136,""),"") ->  | AI139: =IF(SSPVTables!T136<>"",IF(SSPVTables!$R$4=5,SSPVTables!T136,""),"") -> 
A140: =IF(ELAPVTables!A137<>"",IF(ELAPVTables!$B$4=4,ELAPVTables!A137,""),"") ->  | B140: =IF(ELAPVTables!B137<>"",IF(ELAPVTables!$B$4=4,ELAPVTables!B137,""),"") ->  | C140: =IF(ELAPVTables!C137<>"",IF(ELAPVTables!$B$4=4,ELAPVTables!C137,""),"") ->  | E140: =IF(ELAPVTables!D137<>"",IF(ELAPVTables!$B$4=4,ELAPVTables!D137,""),"") ->  | G140: =IF(MathPVTables!A137<>"",IF(MathPVTables!$B$4=4,MathPVTables!A137,""),"") ->  | H140: =IF(MathPVTables!B137<>"",IF(MathPVTables!$B$4=4,MathPVTables!B137,""),"") ->  | I140: =IF(MathPVTables!C137<>"",IF(MathPVTables!$B$4=4,MathPVTables!C137,""),"") ->  | K140: =IF(MathPVTables!D137<>"",IF(MathPVTables!$B$4=4,MathPVTables!D137,""),"") ->  | M140: =IF(ELAPVTables!I137<>"",IF(ELAPVTables!$J$4=5,ELAPVTables!I137,""),"") ->  | N140: =IF(ELAPVTables!J137<>"",IF(ELAPVTables!$J$4=5,ELAPVTables!J137,""),"") ->  | O140: =IF(ELAPVTables!K137<>"",IF(ELAPVTables!$J$4=5,ELAPVTables!K137,""),"") ->  | Q140: =IF(ELAPVTables!L137<>"",IF(ELAPVTables!$J$4=5,ELAPVTables!L137,""),"") ->  | S140: =IF(MathPVTables!I137<>"",IF(MathPVTables!$J$4=5,MathPVTables!I137,""),"") ->  | T140: =IF(MathPVTables!J137<>"",IF(MathPVTables!$J$4=5,MathPVTables!J137,""),"") ->  | U140: =IF(MathPVTables!K137<>"",IF(MathPVTables!$J$4=5,MathPVTables!K137,""),"") ->  | W140: =IF(MathPVTables!L137<>"",IF(MathPVTables!$J$4=5,MathPVTables!L137,""),"") ->  | Y140: =IF(SciencePVTables!Q137<>"",IF(SciencePVTables!$R$4=5,SciencePVTables!Q137,""),"") ->  | Z140: =IF(SciencePVTables!R137<>"",IF(SciencePVTables!$R$4=5,SciencePVTables!R137,""),"") ->  | AA140: =IF(SciencePVTables!S137<>"",IF(SciencePVTables!$R$4=5,SciencePVTables!S137,""),"") ->  | AC140: =IF(SciencePVTables!T137<>"",IF(SciencePVTables!$R$4=5,SciencePVTables!T137,""),"") ->  | AE140: =IF(SSPVTables!Q137<>"",IF(SSPVTables!$R$4=5,SSPVTables!Q137,""),"") ->  | AF140: =IF(SSPVTables!R137<>"",IF(SSPVTables!$R$4=5,SSPVTables!R137,""),"") ->  | AG140: =IF(SSPVTables!S137<>"",IF(SSPVTables!$R$4=5,SSPVTables!S137,""),"") ->  | AI140: =IF(SSPVTables!T137<>"",IF(SSPVTables!$R$4=5,SSPVTables!T137,""),"") -> 
A141: =IF(ELAPVTables!A138<>"",IF(ELAPVTables!$B$4=4,ELAPVTables!A138,""),"") ->  | B141: =IF(ELAPVTables!B138<>"",IF(ELAPVTables!$B$4=4,ELAPVTables!B138,""),"") ->  | C141: =IF(ELAPVTables!C138<>"",IF(ELAPVTables!$B$4=4,ELAPVTables!C138,""),"") ->  | E141: =IF(ELAPVTables!D138<>"",IF(ELAPVTables!$B$4=4,ELAPVTables!D138,""),"") ->  | G141: =IF(MathPVTables!A138<>"",IF(MathPVTables!$B$4=4,MathPVTables!A138,""),"") ->  | H141: =IF(MathPVTables!B138<>"",IF(MathPVTables!$B$4=4,MathPVTables!B138,""),"") ->  | I141: =IF(MathPVTables!C138<>"",IF(MathPVTables!$B$4=4,MathPVTables!C138,""),"") ->  | K141: =IF(MathPVTables!D138<>"",IF(MathPVTables!$B$4=4,MathPVTables!D138,""),"") ->  | M141: =IF(ELAPVTables!I138<>"",IF(ELAPVTables!$J$4=5,ELAPVTables!I138,""),"") ->  | N141: =IF(ELAPVTables!J138<>"",IF(ELAPVTables!$J$4=5,ELAPVTables!J138,""),"") ->  | O141: =IF(ELAPVTables!K138<>"",IF(ELAPVTables!$J$4=5,ELAPVTables!K138,""),"") ->  | Q141: =IF(ELAPVTables!L138<>"",IF(ELAPVTables!$J$4=5,ELAPVTables!L138,""),"") ->  | S141: =IF(MathPVTables!I138<>"",IF(MathPVTables!$J$4=5,MathPVTables!I138,""),"") ->  | T141: =IF(MathPVTables!J138<>"",IF(MathPVTables!$J$4=5,MathPVTables!J138,""),"") ->  | U141: =IF(MathPVTables!K138<>"",IF(MathPVTables!$J$4=5,MathPVTables!K138,""),"") ->  | W141: =IF(MathPVTables!L138<>"",IF(MathPVTables!$J$4=5,MathPVTables!L138,""),"") ->  | Y141: =IF(SciencePVTables!Q138<>"",IF(SciencePVTables!$R$4=5,SciencePVTables!Q138,""),"") ->  | Z141: =IF(SciencePVTables!R138<>"",IF(SciencePVTables!$R$4=5,SciencePVTables!R138,""),"") ->  | AA141: =IF(SciencePVTables!S138<>"",IF(SciencePVTables!$R$4=5,SciencePVTables!S138,""),"") ->  | AC141: =IF(SciencePVTables!T138<>"",IF(SciencePVTables!$R$4=5,SciencePVTables!T138,""),"") ->  | AE141: =IF(SSPVTables!Q138<>"",IF(SSPVTables!$R$4=5,SSPVTables!Q138,""),"") ->  | AF141: =IF(SSPVTables!R138<>"",IF(SSPVTables!$R$4=5,SSPVTables!R138,""),"") ->  | AG141: =IF(SSPVTables!S138<>"",IF(SSPVTables!$R$4=5,SSPVTables!S138,""),"") ->  | AI141: =IF(SSPVTables!T138<>"",IF(SSPVTables!$R$4=5,SSPVTables!T138,""),"") -> 
A142: =IF(ELAPVTables!A139<>"",IF(ELAPVTables!$B$4=4,ELAPVTables!A139,""),"") ->  | B142: =IF(ELAPVTables!B139<>"",IF(ELAPVTables!$B$4=4,ELAPVTables!B139,""),"") ->  | C142: =IF(ELAPVTables!C139<>"",IF(ELAPVTables!$B$4=4,ELAPVTables!C139,""),"") ->  | E142: =IF(ELAPVTables!D139<>"",IF(ELAPVTables!$B$4=4,ELAPVTables!D139,""),"") ->  | G142: =IF(MathPVTables!A139<>"",IF(MathPVTables!$B$4=4,MathPVTables!A139,""),"") ->  | H142: =IF(MathPVTables!B139<>"",IF(MathPVTables!$B$4=4,MathPVTables!B139,""),"") ->  | I142: =IF(MathPVTables!C139<>"",IF(MathPVTables!$B$4=4,MathPVTables!C139,""),"") ->  | K142: =IF(MathPVTables!D139<>"",IF(MathPVTables!$B$4=4,MathPVTables!D139,""),"") ->  | M142: =IF(ELAPVTables!I139<>"",IF(ELAPVTables!$J$4=5,ELAPVTables!I139,""),"") ->  | N142: =IF(ELAPVTables!J139<>"",IF(ELAPVTables!$J$4=5,ELAPVTables!J139,""),"") ->  | O142: =IF(ELAPVTables!K139<>"",IF(ELAPVTables!$J$4=5,ELAPVTables!K139,""),"") ->  | Q142: =IF(ELAPVTables!L139<>"",IF(ELAPVTables!$J$4=5,ELAPVTables!L139,""),"") ->  | S142: =IF(MathPVTables!I139<>"",IF(MathPVTables!$J$4=5,MathPVTables!I139,""),"") ->  | T142: =IF(MathPVTables!J139<>"",IF(MathPVTables!$J$4=5,MathPVTables!J139,""),"") ->  | U142: =IF(MathPVTables!K139<>"",IF(MathPVTables!$J$4=5,MathPVTables!K139,""),"") ->  | W142: =IF(MathPVTables!L139<>"",IF(MathPVTables!$J$4=5,MathPVTables!L139,""),"") ->  | Y142: =IF(SciencePVTables!Q139<>"",IF(SciencePVTables!$R$4=5,SciencePVTables!Q139,""),"") ->  | Z142: =IF(SciencePVTables!R139<>"",IF(SciencePVTables!$R$4=5,SciencePVTables!R139,""),"") ->  | AA142: =IF(SciencePVTables!S139<>"",IF(SciencePVTables!$R$4=5,SciencePVTables!S139,""),"") ->  | AC142: =IF(SciencePVTables!T139<>"",IF(SciencePVTables!$R$4=5,SciencePVTables!T139,""),"") ->  | AE142: =IF(SSPVTables!Q139<>"",IF(SSPVTables!$R$4=5,SSPVTables!Q139,""),"") ->  | AF142: =IF(SSPVTables!R139<>"",IF(SSPVTables!$R$4=5,SSPVTables!R139,""),"") ->  | AG142: =IF(SSPVTables!S139<>"",IF(SSPVTables!$R$4=5,SSPVTables!S139,""),"") ->  | AI142: =IF(SSPVTables!T139<>"",IF(SSPVTables!$R$4=5,SSPVTables!T139,""),"") -> 
A143: =IF(ELAPVTables!A140<>"",IF(ELAPVTables!$B$4=4,ELAPVTables!A140,""),"") ->  | B143: =IF(ELAPVTables!B140<>"",IF(ELAPVTables!$B$4=4,ELAPVTables!B140,""),"") ->  | C143: =IF(ELAPVTables!C140<>"",IF(ELAPVTables!$B$4=4,ELAPVTables!C140,""),"") ->  | E143: =IF(ELAPVTables!D140<>"",IF(ELAPVTables!$B$4=4,ELAPVTables!D140,""),"") ->  | G143: =IF(MathPVTables!A140<>"",IF(MathPVTables!$B$4=4,MathPVTables!A140,""),"") ->  | H143: =IF(MathPVTables!B140<>"",IF(MathPVTables!$B$4=4,MathPVTables!B140,""),"") ->  | I143: =IF(MathPVTables!C140<>"",IF(MathPVTables!$B$4=4,MathPVTables!C140,""),"") ->  | K143: =IF(MathPVTables!D140<>"",IF(MathPVTables!$B$4=4,MathPVTables!D140,""),"") ->  | M143: =IF(ELAPVTables!I140<>"",IF(ELAPVTables!$J$4=5,ELAPVTables!I140,""),"") ->  | N143: =IF(ELAPVTables!J140<>"",IF(ELAPVTables!$J$4=5,ELAPVTables!J140,""),"") ->  | O143: =IF(ELAPVTables!K140<>"",IF(ELAPVTables!$J$4=5,ELAPVTables!K140,""),"") ->  | Q143: =IF(ELAPVTables!L140<>"",IF(ELAPVTables!$J$4=5,ELAPVTables!L140,""),"") ->  | S143: =IF(MathPVTables!I140<>"",IF(MathPVTables!$J$4=5,MathPVTables!I140,""),"") ->  | T143: =IF(MathPVTables!J140<>"",IF(MathPVTables!$J$4=5,MathPVTables!J140,""),"") ->  | U143: =IF(MathPVTables!K140<>"",IF(MathPVTables!$J$4=5,MathPVTables!K140,""),"") ->  | W143: =IF(MathPVTables!L140<>"",IF(MathPVTables!$J$4=5,MathPVTables!L140,""),"") ->  | Y143: =IF(SciencePVTables!Q140<>"",IF(SciencePVTables!$R$4=5,SciencePVTables!Q140,""),"") ->  | Z143: =IF(SciencePVTables!R140<>"",IF(SciencePVTables!$R$4=5,SciencePVTables!R140,""),"") ->  | AA143: =IF(SciencePVTables!S140<>"",IF(SciencePVTables!$R$4=5,SciencePVTables!S140,""),"") ->  | AC143: =IF(SciencePVTables!T140<>"",IF(SciencePVTables!$R$4=5,SciencePVTables!T140,""),"") ->  | AE143: =IF(SSPVTables!Q140<>"",IF(SSPVTables!$R$4=5,SSPVTables!Q140,""),"") ->  | AF143: =IF(SSPVTables!R140<>"",IF(SSPVTables!$R$4=5,SSPVTables!R140,""),"") ->  | AG143: =IF(SSPVTables!S140<>"",IF(SSPVTables!$R$4=5,SSPVTables!S140,""),"") ->  | AI143: =IF(SSPVTables!T140<>"",IF(SSPVTables!$R$4=5,SSPVTables!T140,""),"") -> 
A144: =IF(ELAPVTables!A141<>"",IF(ELAPVTables!$B$4=4,ELAPVTables!A141,""),"") ->  | B144: =IF(ELAPVTables!B141<>"",IF(ELAPVTables!$B$4=4,ELAPVTables!B141,""),"") ->  | C144: =IF(ELAPVTables!C141<>"",IF(ELAPVTables!$B$4=4,ELAPVTables!C141,""),"") ->  | E144: =IF(ELAPVTables!D141<>"",IF(ELAPVTables!$B$4=4,ELAPVTables!D141,""),"") ->  | G144: =IF(MathPVTables!A141<>"",IF(MathPVTables!$B$4=4,MathPVTables!A141,""),"") ->  | H144: =IF(MathPVTables!B141<>"",IF(MathPVTables!$B$4=4,MathPVTables!B141,""),"") ->  | I144: =IF(MathPVTables!C141<>"",IF(MathPVTables!$B$4=4,MathPVTables!C141,""),"") ->  | K144: =IF(MathPVTables!D141<>"",IF(MathPVTables!$B$4=4,MathPVTables!D141,""),"") ->  | M144: =IF(ELAPVTables!I141<>"",IF(ELAPVTables!$J$4=5,ELAPVTables!I141,""),"") ->  | N144: =IF(ELAPVTables!J141<>"",IF(ELAPVTables!$J$4=5,ELAPVTables!J141,""),"") ->  | O144: =IF(ELAPVTables!K141<>"",IF(ELAPVTables!$J$4=5,ELAPVTables!K141,""),"") ->  | Q144: =IF(ELAPVTables!L141<>"",IF(ELAPVTables!$J$4=5,ELAPVTables!L141,""),"") ->  | S144: =IF(MathPVTables!I141<>"",IF(MathPVTables!$J$4=5,MathPVTables!I141,""),"") ->  | T144: =IF(MathPVTables!J141<>"",IF(MathPVTables!$J$4=5,MathPVTables!J141,""),"") ->  | U144: =IF(MathPVTables!K141<>"",IF(MathPVTables!$J$4=5,MathPVTables!K141,""),"") ->  | W144: =IF(MathPVTables!L141<>"",IF(MathPVTables!$J$4=5,MathPVTables!L141,""),"") ->  | Y144: =IF(SciencePVTables!Q141<>"",IF(SciencePVTables!$R$4=5,SciencePVTables!Q141,""),"") ->  | Z144: =IF(SciencePVTables!R141<>"",IF(SciencePVTables!$R$4=5,SciencePVTables!R141,""),"") ->  | AA144: =IF(SciencePVTables!S141<>"",IF(SciencePVTables!$R$4=5,SciencePVTables!S141,""),"") ->  | AC144: =IF(SciencePVTables!T141<>"",IF(SciencePVTables!$R$4=5,SciencePVTables!T141,""),"") ->  | AE144: =IF(SSPVTables!Q141<>"",IF(SSPVTables!$R$4=5,SSPVTables!Q141,""),"") ->  | AF144: =IF(SSPVTables!R141<>"",IF(SSPVTables!$R$4=5,SSPVTables!R141,""),"") ->  | AG144: =IF(SSPVTables!S141<>"",IF(SSPVTables!$R$4=5,SSPVTables!S141,""),"") ->  | AI144: =IF(SSPVTables!T141<>"",IF(SSPVTables!$R$4=5,SSPVTables!T141,""),"") -> 
A145: =IF(ELAPVTables!A142<>"",IF(ELAPVTables!$B$4=4,ELAPVTables!A142,""),"") ->  | B145: =IF(ELAPVTables!B142<>"",IF(ELAPVTables!$B$4=4,ELAPVTables!B142,""),"") ->  | C145: =IF(ELAPVTables!C142<>"",IF(ELAPVTables!$B$4=4,ELAPVTables!C142,""),"") ->  | D145: =IF(B145="","",IF(B145>=B$8,"Adv.",IF(AND(B145>=B$9,B145<B$8),"Prof.",IF(AND(B145>=B$10,B145<B$9),"Part. Prof.",IF(B145<B$10,"Not Prof.",""))))) ->  | E145: =IF(ELAPVTables!D142<>"",IF(ELAPVTables!$B$4=4,ELAPVTables!D142,""),"") ->  | G145: =IF(MathPVTables!A142<>"",IF(MathPVTables!$B$4=4,MathPVTables!A142,""),"") ->  | H145: =IF(MathPVTables!B142<>"",IF(MathPVTables!$B$4=4,MathPVTables!B142,""),"") ->  | I145: =IF(MathPVTables!C142<>"",IF(MathPVTables!$B$4=4,MathPVTables!C142,""),"") ->  | J145: =IF(H145="","",IF(H145>=H$8,"Adv.",IF(AND(H145>=H$9,H145<H$8),"Prof.",IF(AND(H145>=H$10,H145<H$9),"Part. Prof.",IF(H145<H$10,"Not Prof.",""))))) ->  | K145: =IF(MathPVTables!D142<>"",IF(MathPVTables!$B$4=4,MathPVTables!D142,""),"") ->  | M145: =IF(ELAPVTables!I142<>"",IF(ELAPVTables!$J$4=5,ELAPVTables!I142,""),"") ->  | N145: =IF(ELAPVTables!J142<>"",IF(ELAPVTables!$J$4=5,ELAPVTables!J142,""),"") ->  | O145: =IF(ELAPVTables!K142<>"",IF(ELAPVTables!$J$4=5,ELAPVTables!K142,""),"") ->  | P145: =IF(N145="","",IF(N145>=N$8,"Adv.",IF(AND(N145>=N$9,N145<N$8),"Prof.",IF(AND(N145>=N$10,N145<N$9),"Part. Prof.",IF(N145<N$10,"Not Prof.",""))))) ->  | Q145: =IF(ELAPVTables!L142<>"",IF(ELAPVTables!$J$4=5,ELAPVTables!L142,""),"") ->  | S145: =IF(MathPVTables!I142<>"",IF(MathPVTables!$J$4=5,MathPVTables!I142,""),"") ->  | T145: =IF(MathPVTables!J142<>"",IF(MathPVTables!$J$4=5,MathPVTables!J142,""),"") ->  | U145: =IF(MathPVTables!K142<>"",IF(MathPVTables!$J$4=5,MathPVTables!K142,""),"") ->  | V145: =IF(T145="","",IF(T145>=T$8,"Adv.",IF(AND(T145>=T$9,T145<T$8),"Prof.",IF(AND(T145>=T$10,T145<T$9),"Part. Prof.",IF(T145<T$10,"Not Prof.",""))))) ->  | W145: =IF(MathPVTables!L142<>"",IF(MathPVTables!$J$4=5,MathPVTables!L142,""),"") ->  | Y145: =IF(SciencePVTables!Q142<>"",IF(SciencePVTables!$R$4=5,SciencePVTables!Q142,""),"") ->  | Z145: =IF(SciencePVTables!R142<>"",IF(SciencePVTables!$R$4=5,SciencePVTables!R142,""),"") ->  | AA145: =IF(SciencePVTables!S142<>"",IF(SciencePVTables!$R$4=5,SciencePVTables!S142,""),"") ->  | AC145: =IF(SciencePVTables!T142<>"",IF(SciencePVTables!$R$4=5,SciencePVTables!T142,""),"") ->  | AE145: =IF(SSPVTables!Q142<>"",IF(SSPVTables!$R$4=5,SSPVTables!Q142,""),"") ->  | AF145: =IF(SSPVTables!R142<>"",IF(SSPVTables!$R$4=5,SSPVTables!R142,""),"") ->  | AG145: =IF(SSPVTables!S142<>"",IF(SSPVTables!$R$4=5,SSPVTables!S142,""),"") ->  | AI145: =IF(SSPVTables!T142<>"",IF(SSPVTables!$R$4=5,SSPVTables!T142,""),"") -> 
A146: =IF(ELAPVTables!A143<>"",IF(ELAPVTables!$B$4=4,ELAPVTables!A143,""),"") ->  | B146: =IF(ELAPVTables!B143<>"",IF(ELAPVTables!$B$4=4,ELAPVTables!B143,""),"") ->  | C146: =IF(ELAPVTables!C143<>"",IF(ELAPVTables!$B$4=4,ELAPVTables!C143,""),"") ->  | E146: =IF(ELAPVTables!D143<>"",IF(ELAPVTables!$B$4=4,ELAPVTables!D143,""),"") ->  | G146: =IF(MathPVTables!A143<>"",IF(MathPVTables!$B$4=4,MathPVTables!A143,""),"") ->  | H146: =IF(MathPVTables!B143<>"",IF(MathPVTables!$B$4=4,MathPVTables!B143,""),"") ->  | I146: =IF(MathPVTables!C143<>"",IF(MathPVTables!$B$4=4,MathPVTables!C143,""),"") ->  | K146: =IF(MathPVTables!D143<>"",IF(MathPVTables!$B$4=4,MathPVTables!D143,""),"") ->  | M146: =IF(ELAPVTables!I143<>"",IF(ELAPVTables!$J$4=5,ELAPVTables!I143,""),"") ->  | N146: =IF(ELAPVTables!J143<>"",IF(ELAPVTables!$J$4=5,ELAPVTables!J143,""),"") ->  | O146: =IF(ELAPVTables!K143<>"",IF(ELAPVTables!$J$4=5,ELAPVTables!K143,""),"") ->  | Q146: =IF(ELAPVTables!L143<>"",IF(ELAPVTables!$J$4=5,ELAPVTables!L143,""),"") ->  | S146: =IF(MathPVTables!I143<>"",IF(MathPVTables!$J$4=5,MathPVTables!I143,""),"") ->  | T146: =IF(MathPVTables!J143<>"",IF(MathPVTables!$J$4=5,MathPVTables!J143,""),"") ->  | U146: =IF(MathPVTables!K143<>"",IF(MathPVTables!$J$4=5,MathPVTables!K143,""),"") ->  | W146: =IF(MathPVTables!L143<>"",IF(MathPVTables!$J$4=5,MathPVTables!L143,""),"") ->  | Y146: =IF(SciencePVTables!Q143<>"",IF(SciencePVTables!$R$4=5,SciencePVTables!Q143,""),"") ->  | Z146: =IF(SciencePVTables!R143<>"",IF(SciencePVTables!$R$4=5,SciencePVTables!R143,""),"") ->  | AA146: =IF(SciencePVTables!S143<>"",IF(SciencePVTables!$R$4=5,SciencePVTables!S143,""),"") ->  | AB146: =IF(Z146="","",IF(Z146>=Z$8,"Adv.",IF(AND(Z146>=Z$9,Z146<Z$8),"Prof.",IF(AND(Z146>=Z$10,Z146<Z$9),"Part. Prof.",IF(Z146<Z$10,"Not Prof.",""))))) ->  | AC146: =IF(SciencePVTables!T143<>"",IF(SciencePVTables!$R$4=5,SciencePVTables!T143,""),"") ->  | AE146: =IF(SSPVTables!Q143<>"",IF(SSPVTables!$R$4=5,SSPVTables!Q143,""),"") ->  | AF146: =IF(SSPVTables!R143<>"",IF(SSPVTables!$R$4=5,SSPVTables!R143,""),"") ->  | AG146: =IF(SSPVTables!S143<>"",IF(SSPVTables!$R$4=5,SSPVTables!S143,""),"") ->  | AH146: =IF(AF146="","",IF(AF146>=AF$8,"Adv.",IF(AND(AF146>=AF$9,AF146<AF$8),"Prof.",IF(AND(AF146>=AF$10,AF146<AF$9),"Part. Prof.",IF(AF146<AF$10,"Not Prof.",""))))) ->  | AI146: =IF(SSPVTables!T143<>"",IF(SSPVTables!$R$4=5,SSPVTables!T143,""),"") -> 
A147: =IF(ELAPVTables!A144<>"",IF(ELAPVTables!$B$4=4,ELAPVTables!A144,""),"") ->  | B147: =IF(ELAPVTables!B144<>"",IF(ELAPVTables!$B$4=4,ELAPVTables!B144,""),"") ->  | C147: =IF(ELAPVTables!C144<>"",IF(ELAPVTables!$B$4=4,ELAPVTables!C144,""),"") ->  | E147: =IF(ELAPVTables!D144<>"",IF(ELAPVTables!$B$4=4,ELAPVTables!D144,""),"") ->  | G147: =IF(MathPVTables!A144<>"",IF(MathPVTables!$B$4=4,MathPVTables!A144,""),"") ->  | H147: =IF(MathPVTables!B144<>"",IF(MathPVTables!$B$4=4,MathPVTables!B144,""),"") ->  | I147: =IF(MathPVTables!C144<>"",IF(MathPVTables!$B$4=4,MathPVTables!C144,""),"") ->  | K147: =IF(MathPVTables!D144<>"",IF(MathPVTables!$B$4=4,MathPVTables!D144,""),"") ->  | M147: =IF(ELAPVTables!I144<>"",IF(ELAPVTables!$J$4=5,ELAPVTables!I144,""),"") ->  | N147: =IF(ELAPVTables!J144<>"",IF(ELAPVTables!$J$4=5,ELAPVTables!J144,""),"") ->  | O147: =IF(ELAPVTables!K144<>"",IF(ELAPVTables!$J$4=5,ELAPVTables!K144,""),"") ->  | Q147: =IF(ELAPVTables!L144<>"",IF(ELAPVTables!$J$4=5,ELAPVTables!L144,""),"") ->  | S147: =IF(MathPVTables!I144<>"",IF(MathPVTables!$J$4=5,MathPVTables!I144,""),"") ->  | T147: =IF(MathPVTables!J144<>"",IF(MathPVTables!$J$4=5,MathPVTables!J144,""),"") ->  | U147: =IF(MathPVTables!K144<>"",IF(MathPVTables!$J$4=5,MathPVTables!K144,""),"") ->  | W147: =IF(MathPVTables!L144<>"",IF(MathPVTables!$J$4=5,MathPVTables!L144,""),"") ->  | Y147: =IF(SciencePVTables!Q144<>"",IF(SciencePVTables!$R$4=5,SciencePVTables!Q144,""),"") ->  | Z147: =IF(SciencePVTables!R144<>"",IF(SciencePVTables!$R$4=5,SciencePVTables!R144,""),"") ->  | AA147: =IF(SciencePVTables!S144<>"",IF(SciencePVTables!$R$4=5,SciencePVTables!S144,""),"") ->  | AC147: =IF(SciencePVTables!T144<>"",IF(SciencePVTables!$R$4=5,SciencePVTables!T144,""),"") ->  | AE147: =IF(SSPVTables!Q144<>"",IF(SSPVTables!$R$4=5,SSPVTables!Q144,""),"") ->  | AF147: =IF(SSPVTables!R144<>"",IF(SSPVTables!$R$4=5,SSPVTables!R144,""),"") ->  | AG147: =IF(SSPVTables!S144<>"",IF(SSPVTables!$R$4=5,SSPVTables!S144,""),"") ->  | AI147: =IF(SSPVTables!T144<>"",IF(SSPVTables!$R$4=5,SSPVTables!T144,""),"") -> 
A148: =IF(ELAPVTables!A145<>"",IF(ELAPVTables!$B$4=4,ELAPVTables!A145,""),"") ->  | B148: =IF(ELAPVTables!B145<>"",IF(ELAPVTables!$B$4=4,ELAPVTables!B145,""),"") ->  | C148: =IF(ELAPVTables!C145<>"",IF(ELAPVTables!$B$4=4,ELAPVTables!C145,""),"") ->  | E148: =IF(ELAPVTables!D145<>"",IF(ELAPVTables!$B$4=4,ELAPVTables!D145,""),"") ->  | G148: =IF(MathPVTables!A145<>"",IF(MathPVTables!$B$4=4,MathPVTables!A145,""),"") ->  | H148: =IF(MathPVTables!B145<>"",IF(MathPVTables!$B$4=4,MathPVTables!B145,""),"") ->  | I148: =IF(MathPVTables!C145<>"",IF(MathPVTables!$B$4=4,MathPVTables!C145,""),"") ->  | K148: =IF(MathPVTables!D145<>"",IF(MathPVTables!$B$4=4,MathPVTables!D145,""),"") ->  | M148: =IF(ELAPVTables!I145<>"",IF(ELAPVTables!$J$4=5,ELAPVTables!I145,""),"") ->  | N148: =IF(ELAPVTables!J145<>"",IF(ELAPVTables!$J$4=5,ELAPVTables!J145,""),"") ->  | O148: =IF(ELAPVTables!K145<>"",IF(ELAPVTables!$J$4=5,ELAPVTables!K145,""),"") ->  | Q148: =IF(ELAPVTables!L145<>"",IF(ELAPVTables!$J$4=5,ELAPVTables!L145,""),"") ->  | S148: =IF(MathPVTables!I145<>"",IF(MathPVTables!$J$4=5,MathPVTables!I145,""),"") ->  | T148: =IF(MathPVTables!J145<>"",IF(MathPVTables!$J$4=5,MathPVTables!J145,""),"") ->  | U148: =IF(MathPVTables!K145<>"",IF(MathPVTables!$J$4=5,MathPVTables!K145,""),"") ->  | W148: =IF(MathPVTables!L145<>"",IF(MathPVTables!$J$4=5,MathPVTables!L145,""),"") ->  | Y148: =IF(SciencePVTables!Q145<>"",IF(SciencePVTables!$R$4=5,SciencePVTables!Q145,""),"") ->  | Z148: =IF(SciencePVTables!R145<>"",IF(SciencePVTables!$R$4=5,SciencePVTables!R145,""),"") ->  | AA148: =IF(SciencePVTables!S145<>"",IF(SciencePVTables!$R$4=5,SciencePVTables!S145,""),"") ->  | AC148: =IF(SciencePVTables!T145<>"",IF(SciencePVTables!$R$4=5,SciencePVTables!T145,""),"") ->  | AE148: =IF(SSPVTables!Q145<>"",IF(SSPVTables!$R$4=5,SSPVTables!Q145,""),"") ->  | AF148: =IF(SSPVTables!R145<>"",IF(SSPVTables!$R$4=5,SSPVTables!R145,""),"") ->  | AG148: =IF(SSPVTables!S145<>"",IF(SSPVTables!$R$4=5,SSPVTables!S145,""),"") ->  | AI148: =IF(SSPVTables!T145<>"",IF(SSPVTables!$R$4=5,SSPVTables!T145,""),"") -> 
A149: =IF(ELAPVTables!A146<>"",IF(ELAPVTables!$B$4=4,ELAPVTables!A146,""),"") ->  | B149: =IF(ELAPVTables!B146<>"",IF(ELAPVTables!$B$4=4,ELAPVTables!B146,""),"") ->  | C149: =IF(ELAPVTables!C146<>"",IF(ELAPVTables!$B$4=4,ELAPVTables!C146,""),"") ->  | E149: =IF(ELAPVTables!D146<>"",IF(ELAPVTables!$B$4=4,ELAPVTables!D146,""),"") ->  | G149: =IF(MathPVTables!A146<>"",IF(MathPVTables!$B$4=4,MathPVTables!A146,""),"") ->  | H149: =IF(MathPVTables!B146<>"",IF(MathPVTables!$B$4=4,MathPVTables!B146,""),"") ->  | I149: =IF(MathPVTables!C146<>"",IF(MathPVTables!$B$4=4,MathPVTables!C146,""),"") ->  | K149: =IF(MathPVTables!D146<>"",IF(MathPVTables!$B$4=4,MathPVTables!D146,""),"") ->  | M149: =IF(ELAPVTables!I146<>"",IF(ELAPVTables!$J$4=5,ELAPVTables!I146,""),"") ->  | N149: =IF(ELAPVTables!J146<>"",IF(ELAPVTables!$J$4=5,ELAPVTables!J146,""),"") ->  | O149: =IF(ELAPVTables!K146<>"",IF(ELAPVTables!$J$4=5,ELAPVTables!K146,""),"") ->  | Q149: =IF(ELAPVTables!L146<>"",IF(ELAPVTables!$J$4=5,ELAPVTables!L146,""),"") ->  | S149: =IF(MathPVTables!I146<>"",IF(MathPVTables!$J$4=5,MathPVTables!I146,""),"") ->  | T149: =IF(MathPVTables!J146<>"",IF(MathPVTables!$J$4=5,MathPVTables!J146,""),"") ->  | U149: =IF(MathPVTables!K146<>"",IF(MathPVTables!$J$4=5,MathPVTables!K146,""),"") ->  | W149: =IF(MathPVTables!L146<>"",IF(MathPVTables!$J$4=5,MathPVTables!L146,""),"") ->  | Y149: =IF(SciencePVTables!Q146<>"",IF(SciencePVTables!$R$4=5,SciencePVTables!Q146,""),"") ->  | Z149: =IF(SciencePVTables!R146<>"",IF(SciencePVTables!$R$4=5,SciencePVTables!R146,""),"") ->  | AA149: =IF(SciencePVTables!S146<>"",IF(SciencePVTables!$R$4=5,SciencePVTables!S146,""),"") ->  | AC149: =IF(SciencePVTables!T146<>"",IF(SciencePVTables!$R$4=5,SciencePVTables!T146,""),"") ->  | AE149: =IF(SSPVTables!Q146<>"",IF(SSPVTables!$R$4=5,SSPVTables!Q146,""),"") ->  | AF149: =IF(SSPVTables!R146<>"",IF(SSPVTables!$R$4=5,SSPVTables!R146,""),"") ->  | AG149: =IF(SSPVTables!S146<>"",IF(SSPVTables!$R$4=5,SSPVTables!S146,""),"") ->  | AI149: =IF(SSPVTables!T146<>"",IF(SSPVTables!$R$4=5,SSPVTables!T146,""),"") -> 
A150: =IF(ELAPVTables!A147<>"",IF(ELAPVTables!$B$4=4,ELAPVTables!A147,""),"") ->  | B150: =IF(ELAPVTables!B147<>"",IF(ELAPVTables!$B$4=4,ELAPVTables!B147,""),"") ->  | C150: =IF(ELAPVTables!C147<>"",IF(ELAPVTables!$B$4=4,ELAPVTables!C147,""),"") ->  | E150: =IF(ELAPVTables!D147<>"",IF(ELAPVTables!$B$4=4,ELAPVTables!D147,""),"") ->  | G150: =IF(MathPVTables!A147<>"",IF(MathPVTables!$B$4=4,MathPVTables!A147,""),"") ->  | H150: =IF(MathPVTables!B147<>"",IF(MathPVTables!$B$4=4,MathPVTables!B147,""),"") ->  | I150: =IF(MathPVTables!C147<>"",IF(MathPVTables!$B$4=4,MathPVTables!C147,""),"") ->  | K150: =IF(MathPVTables!D147<>"",IF(MathPVTables!$B$4=4,MathPVTables!D147,""),"") ->  | M150: =IF(ELAPVTables!I147<>"",IF(ELAPVTables!$J$4=5,ELAPVTables!I147,""),"") ->  | N150: =IF(ELAPVTables!J147<>"",IF(ELAPVTables!$J$4=5,ELAPVTables!J147,""),"") ->  | O150: =IF(ELAPVTables!K147<>"",IF(ELAPVTables!$J$4=5,ELAPVTables!K147,""),"") ->  | Q150: =IF(ELAPVTables!L147<>"",IF(ELAPVTables!$J$4=5,ELAPVTables!L147,""),"") ->  | S150: =IF(MathPVTables!I147<>"",IF(MathPVTables!$J$4=5,MathPVTables!I147,""),"") ->  | T150: =IF(MathPVTables!J147<>"",IF(MathPVTables!$J$4=5,MathPVTables!J147,""),"") ->  | U150: =IF(MathPVTables!K147<>"",IF(MathPVTables!$J$4=5,MathPVTables!K147,""),"") ->  | W150: =IF(MathPVTables!L147<>"",IF(MathPVTables!$J$4=5,MathPVTables!L147,""),"") ->  | Y150: =IF(SciencePVTables!Q147<>"",IF(SciencePVTables!$R$4=5,SciencePVTables!Q147,""),"") ->  | Z150: =IF(SciencePVTables!R147<>"",IF(SciencePVTables!$R$4=5,SciencePVTables!R147,""),"") ->  | AA150: =IF(SciencePVTables!S147<>"",IF(SciencePVTables!$R$4=5,SciencePVTables!S147,""),"") ->  | AC150: =IF(SciencePVTables!T147<>"",IF(SciencePVTables!$R$4=5,SciencePVTables!T147,""),"") ->  | AE150: =IF(SSPVTables!Q147<>"",IF(SSPVTables!$R$4=5,SSPVTables!Q147,""),"") ->  | AF150: =IF(SSPVTables!R147<>"",IF(SSPVTables!$R$4=5,SSPVTables!R147,""),"") ->  | AG150: =IF(SSPVTables!S147<>"",IF(SSPVTables!$R$4=5,SSPVTables!S147,""),"") ->  | AI150: =IF(SSPVTables!T147<>"",IF(SSPVTables!$R$4=5,SSPVTables!T147,""),"") -> 
A151: =IF(ELAPVTables!A148<>"",IF(ELAPVTables!$B$4=4,ELAPVTables!A148,""),"") ->  | B151: =IF(ELAPVTables!B148<>"",IF(ELAPVTables!$B$4=4,ELAPVTables!B148,""),"") ->  | C151: =IF(ELAPVTables!C148<>"",IF(ELAPVTables!$B$4=4,ELAPVTables!C148,""),"") ->  | E151: =IF(ELAPVTables!D148<>"",IF(ELAPVTables!$B$4=4,ELAPVTables!D148,""),"") ->  | G151: =IF(MathPVTables!A148<>"",IF(MathPVTables!$B$4=4,MathPVTables!A148,""),"") ->  | H151: =IF(MathPVTables!B148<>"",IF(MathPVTables!$B$4=4,MathPVTables!B148,""),"") ->  | I151: =IF(MathPVTables!C148<>"",IF(MathPVTables!$B$4=4,MathPVTables!C148,""),"") ->  | K151: =IF(MathPVTables!D148<>"",IF(MathPVTables!$B$4=4,MathPVTables!D148,""),"") ->  | M151: =IF(ELAPVTables!I148<>"",IF(ELAPVTables!$J$4=5,ELAPVTables!I148,""),"") ->  | N151: =IF(ELAPVTables!J148<>"",IF(ELAPVTables!$J$4=5,ELAPVTables!J148,""),"") ->  | O151: =IF(ELAPVTables!K148<>"",IF(ELAPVTables!$J$4=5,ELAPVTables!K148,""),"") ->  | Q151: =IF(ELAPVTables!L148<>"",IF(ELAPVTables!$J$4=5,ELAPVTables!L148,""),"") ->  | S151: =IF(MathPVTables!I148<>"",IF(MathPVTables!$J$4=5,MathPVTables!I148,""),"") ->  | T151: =IF(MathPVTables!J148<>"",IF(MathPVTables!$J$4=5,MathPVTables!J148,""),"") ->  | U151: =IF(MathPVTables!K148<>"",IF(MathPVTables!$J$4=5,MathPVTables!K148,""),"") ->  | W151: =IF(MathPVTables!L148<>"",IF(MathPVTables!$J$4=5,MathPVTables!L148,""),"") ->  | Y151: =IF(SciencePVTables!Q148<>"",IF(SciencePVTables!$R$4=5,SciencePVTables!Q148,""),"") ->  | Z151: =IF(SciencePVTables!R148<>"",IF(SciencePVTables!$R$4=5,SciencePVTables!R148,""),"") ->  | AA151: =IF(SciencePVTables!S148<>"",IF(SciencePVTables!$R$4=5,SciencePVTables!S148,""),"") ->  | AC151: =IF(SciencePVTables!T148<>"",IF(SciencePVTables!$R$4=5,SciencePVTables!T148,""),"") ->  | AE151: =IF(SSPVTables!Q148<>"",IF(SSPVTables!$R$4=5,SSPVTables!Q148,""),"") ->  | AF151: =IF(SSPVTables!R148<>"",IF(SSPVTables!$R$4=5,SSPVTables!R148,""),"") ->  | AG151: =IF(SSPVTables!S148<>"",IF(SSPVTables!$R$4=5,SSPVTables!S148,""),"") ->  | AI151: =IF(SSPVTables!T148<>"",IF(SSPVTables!$R$4=5,SSPVTables!T148,""),"") -> 
